Workbook

Sheet Overview
B2: CAT Scan (Crash Analysis Tool) - SPFs Method
B3: Louisiana Department of Transportation and Development
B4: Highway Safety Section
B5: Spreadsheet Overview
B7: Overview | K7: Color Coding in the Worksheets
B9: This spreadsheet has been developed to analyze the crash history | K9: The worksheets include several specific color options to help users
B10: of a roadway segment using Safety Performance Functions (SPFs) for | K10: identify cells where input data is required. In some cases,
B11: network screening, and statistics and probability to determine overrepresentation. | K11: the shaded cells require the user to input specific numbers. In
B12: All users should verify that the answers they obtain with these | K12: other cases the input is restricted to a select set of options
B13: worksheet correctly represent their target analysis. | K13: included in pull-down lists. The respective color coding is as
K14: follows:
B15: The page tabs available in this file represent the analysis that
B16: can be performed using this spreadsheet tool. | K16: Color Used | M16: Type of Information Required from User
B18: The current contents of this spreadsheet include the following: | M18: Space available for additional information
M19: that will not be used in any calculation. No
B20: Worksheet Name | E20: Contents | M20: input is required from the user.
B22: Overview | E22: Current worksheet displaying overview, summary | M22: Required input information for network screening
E23: of spreadsheet worksheets, and description of | M23: or pattern recognition analysis
E24: color coding included in the worksheets.
M25: Input data required from the user but
B26: Instructions | E26: Includes the instructions to download the crash data | M26: restricted to options provided in pull-down
E27: required for the analysis and to use the tool. | M27: boxes.
B29: Crashes | E29: Space available to paste the crash data downloaded
E30: from Crash 1 for the segment under evaluation. | K30: Spreadsheet developed by:
B32: Dashboards | E32: Programed spreadsheet for the analysis of the crash | K32: Louisiana Department of Transportation and
E33: data pasted on the "Crashes" tab that uses lookup tables | K33: Development -- Highway Safety Section.
E34: and programmed macros and functions to perform network
E35: screening and overrepresentation calculations. | K35: Contact Information:
E37: The "Dashboards" tab has 3 main sections: | K37: Jose M. Rodriguez, M.S.
E38: 1. Crash History | K38: Louisiana Department of Transportation and Development
E39: 2. Network Screening | K39: Highway Safety Section
E40: 3. Pattern Recognition Analysis | K40: 1201 Capitol Access Rd, 201V.
K41: Baton Rouge, LA 70804.
B42: Construction | E42: Includes charts and tables that are used for | K42: Email: jose.rodriguez2@la.gov
E43: calculations and graphic representation of the | K43: Phone: 225-379-1844
E44: network screening process
B46: State Percentages | E46: Includes the statewide percentages of every crash category
E47: based on a defined AADT group. This charts are used
E48: in the Pattern Recognition Analysis section.
B50: Pivot Tables | E50: Includes the pivot tables of the crash history
E51: that are graphically represented on the dashboards
B53: PRA | E53: Includes the output table of the Pattern Recognition
E54: Analysis calculated with a Macro.
B56: PRA Chart Data | E56: Includes the filtered PRA charts based on the selections
E57: picked by the user in the "Dashboards" tab.

Sheet Instructions
B2: CAT Scan (Crash Analysis Tool) - SPFs Method
B3: Louisiana Department of Transportation and Development
B4: Highway Safety Section
B5: Spreadsheet Instructions
B7: 1. Download Crash Data from Crash1
B9: ** Before submiting, select the option for returning output as "CSV for CAT Scan"
B18: 2. Copy/Paste Crash Data from Crash1 into the CatScan Tool
B20: Select and copy all data from the Excel file generated by Crash1 and paste it on the "Crashes" tab of the CAT Scan Tool
B21: on cell "A1" (upper left corner)
B23: 3. Crash History
B25: Fill up the optional information and hit the "Update Dashboards" button
B30: Sort the data with the slicers located on the right to get a better perspective of your segment.
B32: 4. Network Screening
B34: Fill up the optional and required information to determine the Level of Service of Safety (LOSS) of your segment.
B35: The tool will provide all calculations and comparisons to the State specific Safety Performance Functions (SPFs)
B36: to determine the LOSS.
B47: Note: The CAT Scan also offers a graphic representation of the calculations which is found under the information table.
B49: LOSS 1: Low potential for safety improvements
B50: LOSS 2: Low to moderate potential for safety improvements
B51: LOSS 3: Moderate to high potential for safety improvements
B52: LOSS 4: High potential for safety improvements
B54: 5. Pattern Recognition Analysis (PRA)
B56: Fill up the required information and hit the "Run Deltas" and "Run Pattern Recognition Analysis" buttons
B57: The tool will run all calculations using statistics and probability and compare to statewide averages to determine
B58: overrepresentation.
B74: The highlighted cells represent the crash categories that are found to be overrepresented.
B75: Checking the boxes by the highlighted cells will display a graphic representation of the PRA
B76: by logmile for that specific crash category.
B77: Wherever the solid line is over the dashed, red line, the crash category is overrepresented.

Sheet Crashes
A1: CRASH_YEAR | B1: CRASH_NUM | C1: CRASH_DATE | D1: CRASH_HOUR | E1: ACCESS_CNTL_CD | F1: ALCOHOL | G1: ALIGNMENT_CD | H1: BYPASS | I1: CITY_CD | J1: CONST_MAINT_ZN | K1: DAY_OF_WK | L1: DOTD_PROP_DAM | M1: HIT_AND_RUN | N1: HWY_TYPE_CD | O1: INTERSECTION | P1: INVEST_AGENCY_CD | Q1: LIGHTING_CD | R1: LOC_TYPE_CD | S1: MAN_COLL_CD | T1: MILE_POST | U1: NUM_TOT_INJ | V1: NUM_TOT_KIL | W1: NUM_VEH | X1: PARISH_CD | Y1: POP_CD | Z1: PRI_HWY_NUM | AA1: ROAD_COND_CD | AB1: ROAD_REL_CD | AC1: ROAD_TYPE_CD | AD1: RR_TRAIN_INV | AE1: SEVERITY_CD | AF1: SURF_COND_CD | AG1: SURF_TYPE_CD | AH1: TROOP | AI1: WEATHER_CD | AJ1: DR_COND_CD1 | AK1: DR_COND_CD2 | AL1: EST_SPEED1 | AM1: EST_SPEED2 | AN1: F_HARM_EV_CD1 | AO1: F_HARM_EV_CD2 | AP1: M_HARM_EV_CD1 | AQ1: M_HARM_EV_CD2 | AR1: POSTED_SPEED | AS1: PRIOR_MOVEMENTS | AT1: PRIOR_MOVEMENT_CD1 | AU1: PRIOR_MOVEMENT_CD2 | AV1: TRAFF_CNTL_CD | AW1: TRAVEL_DIRS | AX1: TRAVEL_DIR1 | AY1: TRAVEL_DIR2 | AZ1: VEH_COND_CD1 | BA1: VEH_COND_CD2 | BB1: VEH_TYPE_CD1 | BC1: VEH_TYPE_CD2 | BD1: VIOLATIONS_CD1 | BE1: VIOLATIONS_CD2 | BF1: PED_COND | BG1: ACC_CLASS | BH1: ADT | BI1: CSECT | BJ1: DOTD_PARISH | BK1: FUN_CLASS | BL1: HWY_CLASS | BM1: LOGMI_FROM | BN1: LOGMI_TO | BO1: LOGMILE | BP1: MED_WIDTH | BQ1: NUM_LANES | BR1: PAVE_TYPE | BS1: PAVE_WIDTH | BT1: PEDESTRIAN | BU1: MILEPOST_FROM | BV1: MILEPOST_TO | BW1: ROUTE | BX1: SEC_LENGTH | BY1: TYPE_ACC | BZ1: DISTRICT | CA1: PRI_CONTRIB_FAC | CB1: SEC_CONTRIB_FAC | CC1: MOVEMENT_REASON_1 | CD1: MOVEMENT_REASON_2 | CE1: URBAN_AREA | CF1: MILEPOINT | CG1: dotd_latitude | CH1: dotd_longitude | CI1: crash_time | CJ1: spotted_by | CK1: intersection_id | CL1: lrs_id | CM1: lrs_logmile | CN1: roadway_departure | CO1: lane_departure
A2: =YEAR(C2) -> 2015 | B2: =A2 & RANDBETWEEN(111111111,999999999) & "-" -> 2015426414298- | C2: =RANDBETWEEN(DATE(2013, 1, 1),DATE(2015, 12, 31)) -> 2015-04-12 | D2: =RANDBETWEEN(0,6) +RANDBETWEEN(0,6) +RANDBETWEEN(0,6) +RANDBETWEEN(0,5) -> 14 | E2: A | F2: 0 | G2: A | I2: 0 | J2: 0 | K2: =IF(WEEKDAY(C2,1)=1,"SU",IF(WEEKDAY(C2,1)=2,"MO",IF(WEEKDAY(C2,1)=3,"TU",IF(WEEKDAY(C2,1)=4,"WE",IF(WEEKDAY(C2,1)=5,"TH",IF(WEEKDAY(C2,1)=6,"FI",IF(WEEKDAY(C2,1)=7,"SA",""))))))) -> SU | L2: 0 | M2: 0 | N2: C | O2: =IF(AND(BO2>4.4,BO2<4.6),IF(RAND()<0.67,1,0),(IF(AND(BO2>5.2,BO2<5.4),IF(RAND()<0.67,1,0),(IF(AND(BO2>6.3,BO2<6.5),IF(RAND()<0.67,1,0),(IF(AND(BO2>7.1,BO2<7.3),IF(RAND()<0.67,1,0),IF(RAND()<0.06,1,0)))))))) -> 0 | P2: =IF(RAND()<0.12,"A",IF(RAND()<0.22,"B",IF(RAND()<0.97,"C","Z"))) -> B | Q2: B | R2: E | S2: B | T2: =BO2-4 -> 1.48 | U2: 2 | V2: 0 | W2: 2 | X2: 65 | Y2: 0 | Z2: 199 | AA2: B | AB2: A | AC2: B | AD2: 0 | AE2: D | AF2: A | AG2: B | AI2: A | AJ2: B | AK2: A | AM2: 0 | AN2: S | AO2: S | AP2: S | AQ2: S | AR2: 55 | AS2: BA | AT2: B | AU2: A | AV2: Q | AW2: WW | AX2: W | AY2: W | AZ2: K | BA2: K | BB2: A | BC2: B | BD2: S | BE2: Z | BG2: 2 | BH2: =RANDBETWEEN(20100,22100) -> 20534 | BI2: 299-11 | BJ2: 65 | BK2: 8 | BL2: 1 | BM2: 4 | BN2: 8 | BO2: =RANDBETWEEN(4,7) + RANDBETWEEN(0,99)/100 -> 5.48 | BP2: 0 | BQ2: 2 | BR2: 60 | BS2: 22 | BT2: 0 | BU2: 0 | BV2: 4 | BW2: 199 | BX2: 4 | BY2: D | BZ2: 42 | CA2: A | CB2: B | CC2: L | CD2: P | CE2: 1 | CF2: =BO2+2 -> 7.48 | CG2: 30.204966 | CH2: -90.271679 | CI2: =TIME(D2,RANDBETWEEN(0,59),0) -> 14:42:00 | CJ2: 6 | CK2: =IF(AND(BO2>4.4,BO2<4.6),"65LA199@OAK",(IF(AND(BO2>5.2,BO2<5.4),"65LA199@MAIN",(IF(AND(BO2>6.3,BO2<6.5),"65LA199@1ST",(IF(AND(BO2>7.1,BO2<7.3),"65LA199@PINE",""))))))) ->  | CL2: 299-11-1-010 | CM2: =BO2 -> 5.48 | CN2: 0 | CO2: 0
A3: =YEAR(C3) -> 2014 | B3: =A3 & RANDBETWEEN(111111111,999999999) & "-" -> 2014233952519- | C3: 2014-07-19 | D3: =RANDBETWEEN(0,6) +RANDBETWEEN(0,6) +RANDBETWEEN(0,6) +RANDBETWEEN(0,5) -> 12 | E3: A | F3: 0 | G3: A | I3: 0 | J3: 0 | K3: =IF(WEEKDAY(C3,1)=1,"SU",IF(WEEKDAY(C3,1)=2,"MO",IF(WEEKDAY(C3,1)=3,"TU",IF(WEEKDAY(C3,1)=4,"WE",IF(WEEKDAY(C3,1)=5,"TH",IF(WEEKDAY(C3,1)=6,"FI",IF(WEEKDAY(C3,1)=7,"SA",""))))))) -> SA | L3: 0 | M3: 0 | N3: C | O3: =IF(AND(BO3>4.4,BO3<4.6),IF(RAND()<0.67,1,0),(IF(AND(BO3>5.2,BO3<5.4),IF(RAND()<0.67,1,0),(IF(AND(BO3>6.3,BO3<6.5),IF(RAND()<0.67,1,0),(IF(AND(BO3>7.1,BO3<7.3),IF(RAND()<0.67,1,0),IF(RAND()<0.06,1,0)))))))) -> 0 | P3: =IF(RAND()<0.12,"A",IF(RAND()<0.22,"B",IF(RAND()<0.97,"C","Z"))) -> B | Q3: A | R3: E | S3: B | T3: =BO3-4 -> 0.09 | U3: 1 | V3: 0 | W3: 2 | X3: 65 | Y3: 0 | Z3: 199 | AA3: A | AB3: A | AC3: C | AD3: 0 | AE3: D | AF3: A | AG3: B | AI3: A | AJ3: B | AK3: A | AL3: 25 | AM3: 0 | AN3: S | AO3: S | AP3: S | AQ3: S | AR3: 55 | AS3: BM | AT3: B | AU3: M | AV3: S | AW3: EE | AX3: E | AY3: E | AZ3: K | BA3: K | BB3: B | BC3: S | BD3: S | BE3: U | BG3: 2 | BH3: =RANDBETWEEN(20100,22100) -> 20149 | BI3: 299-11 | BJ3: 65 | BK3: 8 | BL3: 1 | BM3: 4 | BN3: 8 | BO3: =RANDBETWEEN(4,7) + RANDBETWEEN(0,99)/100 -> 4.09 | BP3: 0 | BQ3: 2 | BR3: 60 | BS3: 22 | BT3: 0 | BU3: 0 | BV3: 4 | BW3: 199 | BX3: 4 | BY3: D | BZ3: 42 | CA3: A | CB3: B | CC3: L | CD3: P | CE3: 1 | CF3: =BO3+2 -> 6.09 | CG3: 30.204966 | CH3: -90.271679 | CI3: =TIME(D3,RANDBETWEEN(0,59),0) -> 12:13:00 | CJ3: 6 | CK3: =IF(AND(BO3>4.4,BO3<4.6),"65LA199@OAK",(IF(AND(BO3>5.2,BO3<5.4),"65LA199@MAIN",(IF(AND(BO3>6.3,BO3<6.5),"65LA199@1ST",(IF(AND(BO3>7.1,BO3<7.3),"65LA199@PINE",""))))))) ->  | CL3: 299-11-1-010 | CM3: =BO3 -> 4.09 | CN3: 0 | CO3: 0
A4: 2013 | B4: 2013280763287- | C4: 2013-10-20 | D4: 16 | E4: A | F4: 0 | G4: A | I4: 0 | J4: 0 | K4: SU | L4: 0 | M4: 0 | N4: C | O4: 0 | P4: C | Q4: A | R4: D | S4: G | T4: 1.37 | U4: 0 | V4: 0 | W4: 2 | X4: 65 | Y4: 0 | Z4: 199 | AA4: A | AB4: A | AC4: B | AD4: 0 | AE4: E | AF4: A | AG4: B | AI4: A | AJ4: B | AK4: A | AN4: S | AO4: S | AP4: S | AQ4: S | AR4: 55 | AS4: IB | AT4: I | AU4: B | AV4: S | AW4: WW | AX4: W | AY4: W | AZ4: K | BA4: K | BB4: A | BC4: A | BD4: C | BE4: U | BG4: 3 | BH4: 21520 | BI4: 299-11 | BJ4: 65 | BK4: 8 | BL4: 1 | BM4: 4 | BN4: 8 | BO4: 5.37 | BP4: 0 | BQ4: 2 | BR4: 60 | BS4: 22 | BT4: 0 | BU4: 0 | BV4: 4 | BW4: 199 | BX4: 4 | BY4: D | BZ4: 42 | CA4: A | CC4: P | CD4: P | CE4: 1 | CF4: 7.37 | CG4: 30.204966 | CH4: -90.271679 | CI4: 16:56:00 | CJ4: 6 | CK4: 65LA199@MAIN | CL4: 299-11-1-010 | CM4: 5.37 | CN4: 0 | CO4: 0
A5: 2014 | B5: 2014959863602- | C5: 2014-06-01 | D5: 3 | E5: A | F5: 0 | G5: A | I5: 0 | J5: 0 | K5: SU | L5: 0 | M5: 0 | N5: C | O5: 0 | P5: C | Q5: A | R5: E | S5: B | T5: 0.21 | U5: 8 | V5: 0 | W5: 3 | X5: 65 | Y5: 0 | Z5: 199 | AA5: A | AB5: A | AC5: B | AD5: 0 | AE5: C | AF5: B | AG5: B | AH5: H | AI5: C | AJ5: C | AK5: A | AL5: 40 | AM5: 0 | AN5: S | AO5: S | AP5: S | AQ5: S | AR5: 45 | AS5: BAB | AT5: B | AU5: A | AV5: S | AW5: WWE | AX5: W | AY5: W | AZ5: K | BA5: K | BB5: A | BC5: A | BD5: S | BE5: U | BG5: 2 | BH5: 21371 | BI5: 299-11 | BJ5: 65 | BK5: 8 | BL5: 1 | BM5: 4 | BN5: 8 | BO5: 4.21 | BP5: 0 | BQ5: 2 | BR5: 60 | BS5: 22 | BT5: 0 | BU5: 0 | BV5: 4 | BW5: 199 | BX5: 4 | BY5: D | BZ5: 42 | CA5: A | CB5: B | CC5: L | CD5: I | CE5: 1 | CF5: 6.21 | CG5: 30.204966 | CH5: -90.271679 | CI5: 03:39:00 | CJ5: 6 | CL5: 299-11-1-010 | CM5: 4.21 | CN5: 0 | CO5: 0
A6: 2015 | B6: 2015180280973- | C6: 2015-11-30 | D6: 6 | E6: A | F6: 0 | G6: A | I6: 0 | J6: 0 | K6: MO | L6: 0 | M6: 0 | N6: C | O6: 0 | P6: C | Q6: A | R6: D | S6: B | T6: 3.78 | U6: 0 | V6: 0 | W6: 2 | X6: 65 | Y6: 0 | Z6: 199 | AA6: A | AB6: A | AC6: B | AD6: 0 | AE6: E | AF6: A | AG6: B | AI6: A | AJ6: A | AK6: A | AM6: 0 | AN6: S | AO6: S | AP6: S | AQ6: S | AR6: 55 | AS6: BA | AT6: B | AU6: A | AV6: S | AW6: EE | AX6: E | AY6: E | AZ6: K | BA6: K | BB6: B | BC6: B | BD6: D | BE6: U | BG6: 3 | BH6: 21399 | BI6: 299-11 | BJ6: 65 | BK6: 8 | BL6: 1 | BM6: 4 | BN6: 8 | BO6: 7.78 | BP6: 0 | BQ6: 2 | BR6: 60 | BS6: 22 | BT6: 0 | BU6: 0 | BV6: 4 | BW6: 199 | BX6: 4 | BY6: D | BZ6: 42 | CA6: A | CC6: P | CD6: P | CE6: 1 | CF6: 9.78 | CG6: 30.204966 | CH6: -90.271679 | CI6: 06:03:00 | CJ6: 6 | CL6: 299-11-1-010 | CM6: 7.78 | CN6: 0 | CO6: 0
A7: 2013 | B7: 2013234431373- | C7: 2013-06-24 | D7: 12 | E7: A | F7: 0 | G7: A | I7: 0 | J7: 0 | K7: MO | L7: 0 | M7: 0 | N7: C | O7: 0 | P7: C | Q7: A | R7: E | S7: B | T7: 1.2 | U7: 0 | V7: 0 | W7: 2 | X7: 65 | Y7: 0 | Z7: 199 | AA7: A | AB7: A | AC7: B | AD7: 0 | AE7: E | AF7: A | AG7: B | AH7: H | AI7: B | AJ7: B | AK7: A | AL7: 20 | AM7: 0 | AN7: S | AO7: S | AP7: S | AQ7: S | AR7: 55 | AS7: BQ | AT7: B | AU7: Q | AV7: Q | AW7: WW | AX7: W | AY7: W | AZ7: K | BA7: K | BB7: A | BC7: B | BD7: D | BE7: U | BG7: 3 | BH7: 20184 | BI7: 299-11 | BJ7: 65 | BK7: 8 | BL7: 1 | BM7: 4 | BN7: 8 | BO7: 5.2 | BP7: 0 | BQ7: 2 | BR7: 60 | BS7: 22 | BT7: 0 | BU7: 0 | BV7: 4 | BW7: 199 | BX7: 4 | BY7: D | BZ7: 42 | CA7: A | CB7: B | CC7: L | CD7: I | CE7: 1 | CF7: 7.2 | CG7: 30.204966 | CH7: -90.271679 | CI7: 12:50:00 | CJ7: 6 | CL7: 299-11-1-010 | CM7: 5.2 | CN7: 0 | CO7: 0
A8: 2015 | B8: 2015993654987- | C8: 2015-03-26 | D8: 23 | E8: A | F8: 0 | G8: A | I8: 0 | J8: 0 | K8: TH | L8: 0 | M8: 0 | N8: C | O8: 1 | P8: C | Q8: A | R8: C | S8: B | T8: 1.29 | U8: 4 | V8: 0 | W8: 3 | X8: 65 | Y8: 0 | Z8: 199 | AA8: A | AB8: A | AC8: B | AD8: 0 | AE8: D | AF8: A | AG8: B | AH8: H | AI8: A | AJ8: B | AK8: A | AL8: 45 | AM8: 0 | AN8: S | AO8: S | AP8: S | AQ8: S | AR8: 45 | AS8: BAA | AT8: B | AU8: A | AV8: B | AW8: EEE | AX8: E | AY8: E | AZ8: K | BA8: K | BB8: A | BC8: S | BD8: S | BE8: U | BG8: 2 | BH8: 21621 | BI8: 299-11 | BJ8: 65 | BK8: 8 | BL8: 1 | BM8: 4 | BN8: 8 | BO8: 5.29 | BP8: 0 | BQ8: 2 | BR8: 60 | BS8: 22 | BT8: 0 | BU8: 0 | BV8: 4 | BW8: 199 | BX8: 4 | BY8: D | BZ8: 42 | CA8: A | CB8: B | CC8: L | CD8: H | CE8: 1 | CF8: 7.29 | CG8: 30.204966 | CH8: -90.271679 | CI8: 23:37:00 | CJ8: 6 | CK8: 65LA199@MAIN | CL8: 299-11-1-010 | CM8: 5.29 | CN8: 0 | CO8: 0
A9: 2015 | B9: 2015915443215- | C9: 2015-09-15 | D9: 11 | E9: A | F9: 0 | G9: A | I9: 0 | J9: 0 | K9: TU | L9: 0 | M9: 0 | N9: C | O9: 0 | P9: C | Q9: D | R9: C | S9: F | T9: 1.78 | U9: 0 | V9: 0 | W9: 2 | X9: 65 | Y9: 0 | Z9: 199 | AA9: A | AB9: A | AC9: B | AD9: 0 | AE9: E | AF9: A | AG9: B | AH9: H | AI9: A | AJ9: B | AK9: A | AL9: 35 | AM9: 55 | AN9: S | AO9: S | AP9: S | AQ9: S | AR9: 55 | AS9: IB | AT9: I | AU9: B | AV9: E | AW9: NS | AX9: N | AY9: S | AZ9: K | BA9: K | BB9: S | BC9: A | BD9: C | BE9: U | BG9: 3 | BH9: 20408 | BI9: 299-11 | BJ9: 65 | BK9: 8 | BL9: 1 | BM9: 4 | BN9: 8 | BO9: 5.78 | BP9: 0 | BQ9: 2 | BR9: 60 | BS9: 22 | BT9: 0 | BU9: 0 | BV9: 4 | BW9: 199 | BX9: 4 | BY9: D | BZ9: 42 | CA9: A | CB9: B | CC9: L | CD9: P | CE9: 1 | CF9: 7.78 | CG9: 30.204966 | CH9: -90.271679 | CI9: 11:33:00 | CJ9: 6 | CL9: 299-11-1-010 | CM9: 5.78 | CN9: 0 | CO9: 0
A10: 2013 | B10: 2013297006851- | C10: 2013-12-19 | D10: 14 | E10: A | F10: 0 | G10: A | I10: 0 | J10: 0 | K10: TH | L10: 0 | M10: 0 | N10: C | O10: 0 | P10: C | Q10: E | R10: C | S10: B | T10: 2.68 | U10: 2 | V10: 0 | W10: 2 | X10: 65 | Y10: 0 | Z10: 199 | AA10: A | AB10: A | AC10: B | AD10: 0 | AE10: D | AF10: A | AG10: B | AH10: H | AI10: A | AJ10: A | AK10: A | AL10: 15 | AM10: 0 | AN10: S | AO10: S | AP10: S | AQ10: S | AR10: 55 | AS10: BA | AT10: B | AU10: A | AV10: D | AW10: EE | AX10: E | AY10: E | AZ10: K | BA10: K | BB10: A | BC10: S | BD10: D | BE10: U | BG10: 2 | BH10: 20960 | BI10: 299-11 | BJ10: 65 | BK10: 8 | BL10: 1 | BM10: 4 | BN10: 8 | BO10: 6.68 | BP10: 0 | BQ10: 2 | BR10: 60 | BS10: 22 | BT10: 0 | BU10: 0 | BV10: 4 | BW10: 199 | BX10: 4 | BY10: D | BZ10: 42 | CA10: A | CB10: B | CC10: L | CD10: H | CE10: 1 | CF10: 8.68 | CG10: 30.204966 | CH10: -90.271679 | CI10: 14:43:00 | CJ10: 6 | CL10: 299-11-1-010 | CM10: 6.68 | CN10: 0 | CO10: 0
A11: 2013 | B11: 2013485532150- | C11: 2013-04-18 | D11: 8 | E11: A | F11: 0 | G11: A | I11: 0 | J11: 0 | K11: TH | L11: 0 | M11: 0 | N11: C | O11: 0 | P11: B | Q11: A | R11: D | S11: B | T11: 3.78 | U11: 0 | V11: 0 | W11: 2 | X11: 65 | Y11: 0 | Z11: 199 | AA11: A | AB11: A | AC11: B | AD11: 0 | AE11: E | AF11: A | AG11: B | AI11: A | AJ11: B | AK11: A | AL11: 15 | AM11: 0 | AN11: S | AO11: S | AP11: S | AQ11: S | AR11: 45 | AS11: BN | AT11: B | AU11: N | AV11: S | AW11: EE | AX11: E | AY11: E | AZ11: K | BA11: K | BB11: S | BC11: B | BD11: S | BE11: U | BG11: 3 | BH11: 20913 | BI11: 299-11 | BJ11: 65 | BK11: 8 | BL11: 1 | BM11: 4 | BN11: 8 | BO11: 7.78 | BP11: 0 | BQ11: 2 | BR11: 60 | BS11: 22 | BT11: 0 | BU11: 0 | BV11: 4 | BW11: 199 | BX11: 4 | BY11: D | BZ11: 42 | CA11: B | CB11: A | CC11: L | CD11: P | CE11: 1 | CF11: 9.78 | CG11: 30.204966 | CH11: -90.271679 | CI11: 08:41:00 | CJ11: 6 | CL11: 299-11-1-010 | CM11: 7.78 | CN11: 0 | CO11: 0
A12: 2014 | B12: 2014234523344- | C12: 2014-04-17 | D12: 10 | E12: A | F12: 0 | G12: A | I12: 0 | J12: 0 | K12: TH | L12: 0 | M12: 0 | N12: C | O12: 0 | P12: C | Q12: E | R12: C | S12: D | T12: 2.56 | U12: 3 | V12: 0 | W12: 2 | X12: 65 | Y12: 0 | Z12: 199 | AA12: A | AB12: A | AC12: B | AD12: 0 | AE12: D | AF12: A | AG12: B | AH12: H | AI12: A | AJ12: B | AK12: A | AL12: 30 | AM12: 20 | AN12: D | AO12: S | AP12: S | AQ12: S | AR12: 45 | AS12: QB | AT12: Q | AU12: B | AV12: C | AW12: WN | AX12: W | AY12: N | AZ12: K | BA12: K | BB12: C | BC12: S | BD12: C | BE12: U | BG12: 2 | BH12: 21861 | BI12: 299-11 | BJ12: 65 | BK12: 8 | BL12: 1 | BM12: 4 | BN12: 8 | BO12: 6.56 | BP12: 0 | BQ12: 2 | BR12: 60 | BS12: 22 | BT12: 0 | BU12: 0 | BV12: 4 | BW12: 199 | BX12: 4 | BY12: K | BZ12: 42 | CA12: A | CB12: B | CC12: L | CD12: P | CE12: 1 | CF12: 8.56 | CG12: 30.204966 | CH12: -90.271679 | CI12: 10:51:00 | CJ12: 6 | CL12: 299-11-1-010 | CM12: 6.56 | CN12: 0 | CO12: 0
A13: 2013 | B13: 2013884331469- | C13: 2013-09-10 | D13: 10 | E13: A | F13: 0 | G13: A | I13: 0 | J13: 0 | K13: TU | L13: 0 | M13: 0 | N13: C | O13: 0 | P13: B | Q13: B | R13: D | S13: D | T13: 3.64 | U13: 3 | V13: 0 | W13: 2 | X13: 65 | Y13: 0 | Z13: 199 | AA13: A | AB13: A | AC13: B | AD13: 0 | AE13: D | AF13: A | AG13: B | AH13: H | AI13: A | AJ13: Y | AK13: Y | AL13: 45 | AM13: 50 | AN13: S | AO13: S | AP13: S | AQ13: S | AR13: 55 | AS13: BB | AT13: B | AU13: B | AV13: Y | AW13: SW | AX13: S | AY13: W | AZ13: K | BA13: K | BB13: A | BC13: A | BD13: Y | BE13: Y | BG13: 2 | BH13: 21414 | BI13: 299-11 | BJ13: 65 | BK13: 8 | BL13: 1 | BM13: 4 | BN13: 8 | BO13: 7.64 | BP13: 0 | BQ13: 2 | BR13: 60 | BS13: 22 | BT13: 0 | BU13: 0 | BV13: 4 | BW13: 199 | BX13: 4 | BY13: D | BZ13: 42 | CA13: A | CB13: B | CC13: Y | CD13: Y | CE13: 1 | CF13: 9.64 | CG13: 30.204966 | CH13: -90.271679 | CI13: 10:30:00 | CJ13: 6 | CL13: 299-11-1-010 | CM13: 7.64 | CN13: 0 | CO13: 0
A14: 2015 | B14: 2015870158108- | C14: 2015-12-11 | D14: 6 | E14: A | F14: 0 | G14: A | I14: 0 | J14: 0 | K14: FI | L14: 0 | M14: 0 | N14: C | O14: 0 | P14: C | Q14: E | R14: C | S14: B | T14: 1.89 | U14: 0 | V14: 0 | W14: 2 | X14: 65 | Y14: 0 | Z14: 199 | AA14: A | AB14: A | AC14: B | AD14: 0 | AE14: E | AF14: A | AG14: B | AI14: A | AJ14: B | AK14: A | AL14: 25 | AM14: 0 | AN14: S | AO14: S | AP14: S | AQ14: S | AR14: 55 | AS14: OM | AT14: O | AU14: M | AV14: C | AW14: EE | AX14: E | AY14: E | AZ14: K | BA14: K | BB14: B | BC14: A | BD14: D | BE14: U | BG14: 3 | BH14: 21358 | BI14: 299-11 | BJ14: 65 | BK14: 8 | BL14: 1 | BM14: 4 | BN14: 8 | BO14: 5.89 | BP14: 0 | BQ14: 2 | BR14: 60 | BS14: 22 | BT14: 0 | BU14: 0 | BV14: 4 | BW14: 199 | BX14: 4 | BY14: D | BZ14: 42 | CA14: A | CB14: B | CC14: L | CD14: P | CE14: 1 | CF14: 7.89 | CG14: 30.204966 | CH14: -90.271679 | CI14: 06:03:00 | CJ14: 6 | CL14: 299-11-1-010 | CM14: 5.89 | CN14: 0 | CO14: 0
A15: 2015 | B15: 2015543549954- | C15: 2015-04-25 | D15: 9 | E15: A | F15: 0 | G15: A | I15: 0 | J15: 0 | K15: SA | L15: 0 | M15: 0 | N15: C | O15: 1 | P15: C | Q15: A | R15: E | S15: D | T15: 2.38 | U15: 0 | V15: 0 | W15: 2 | X15: 65 | Y15: 0 | Z15: 199 | AA15: A | AB15: A | AC15: B | AD15: 0 | AE15: E | AF15: A | AG15: B | AH15: H | AI15: A | AJ15: C | AK15: A | AL15: 25 | AM15: 0 | AN15: S | AO15: S | AP15: S | AQ15: S | AR15: 45 | AS15: JO | AT15: J | AU15: O | AV15: E | AW15: SS | AX15: S | AY15: S | AZ15: K | BA15: K | BB15: A | BC15: A | BD15: S | BE15: U | BG15: 3 | BH15: 20721 | BI15: 299-11 | BJ15: 65 | BK15: 8 | BL15: 1 | BM15: 4 | BN15: 8 | BO15: 6.38 | BP15: 0 | BQ15: 2 | BR15: 60 | BS15: 22 | BT15: 0 | BU15: 0 | BV15: 4 | BW15: 199 | BX15: 4 | BY15: D | BZ15: 42 | CA15: A | CB15: B | CC15: L | CD15: I | CE15: 1 | CF15: 8.38 | CG15: 30.204966 | CH15: -90.271679 | CI15: 09:27:00 | CJ15: 6 | CK15: 65LA199@1ST | CL15: 299-11-1-010 | CM15: 6.38 | CN15: 0 | CO15: 0
A16: 2013 | B16: 2013259188815- | C16: 2013-07-07 | D16: 18 | E16: A | F16: 0 | G16: A | I16: 0 | J16: 0 | K16: SU | L16: 0 | M16: 0 | N16: C | O16: 1 | P16: B | Q16: E | R16: C | S16: C | T16: 0.6 | U16: 3 | V16: 0 | W16: 2 | X16: 65 | Y16: 0 | Z16: 199 | AA16: A | AB16: A | AC16: B | AD16: 0 | AE16: D | AF16: A | AG16: B | AH16: H | AI16: A | AJ16: B | AK16: A | AL16: 15 | AM16: 55 | AN16: S | AO16: S | AP16: S | AQ16: S | AR16: 55 | AS16: IB | AT16: I | AU16: B | AV16: D | AW16: EW | AX16: E | AY16: W | AZ16: K | BA16: K | BB16: B | BC16: A | BD16: C | BE16: U | BG16: 2 | BH16: 20217 | BI16: 299-11 | BJ16: 65 | BK16: 8 | BL16: 1 | BM16: 4 | BN16: 8 | BO16: 4.6 | BP16: 0 | BQ16: 2 | BR16: 60 | BS16: 22 | BT16: 0 | BU16: 0 | BV16: 4 | BW16: 199 | BX16: 4 | BY16: D | BZ16: 42 | CA16: A | CB16: B | CC16: L | CD16: P | CE16: 1 | CF16: 6.6 | CG16: 30.204966 | CH16: -90.271679 | CI16: 18:26:00 | CJ16: 6 | CL16: 299-11-1-010 | CM16: 4.6 | CN16: 0 | CO16: 0
A17: 2014 | B17: 2014473124864- | C17: 2014-06-01 | D17: 11 | E17: A | F17: 0 | G17: A | I17: 0 | J17: 0 | K17: SU | L17: 0 | M17: 0 | N17: C | O17: 0 | P17: B | Q17: B | R17: D | S17: B | T17: 2.82 | U17: 0 | V17: 0 | W17: 2 | X17: 65 | Y17: 0 | Z17: 199 | AA17: A | AB17: A | AC17: B | AD17: 0 | AE17: E | AF17: A | AG17: B | AH17: H | AI17: A | AJ17: E | AK17: A | AL17: 40 | AM17: 10 | AN17: S | AO17: S | AP17: S | AQ17: S | AR17: 55 | AS17: BB | AT17: B | AU17: B | AV17: C | AW17: WW | AX17: W | AY17: W | AZ17: K | BA17: K | BB17: B | BC17: S | BD17: S | BE17: U | BG17: 3 | BH17: 20627 | BI17: 299-11 | BJ17: 65 | BK17: 8 | BL17: 1 | BM17: 4 | BN17: 8 | BO17: 6.82 | BP17: 0 | BQ17: 2 | BR17: 60 | BS17: 22 | BT17: 0 | BU17: 0 | BV17: 4 | BW17: 199 | BX17: 4 | BY17: D | BZ17: 42 | CA17: A | CB17: B | CC17: L | CD17: H | CE17: 1 | CF17: 8.82 | CG17: 30.204966 | CH17: -90.271679 | CI17: 11:41:00 | CJ17: 6 | CL17: 299-11-1-010 | CM17: 6.82 | CN17: 0 | CO17: 0
A18: 2013 | B18: 2013526841733- | C18: 2013-11-25 | D18: 4 | E18: A | F18: 0 | G18: A | I18: 0 | J18: 0 | K18: MO | L18: 0 | M18: 0 | N18: C | O18: 0 | P18: A | Q18: A | R18: G | S18: B | T18: 1.84 | U18: 0 | V18: 0 | W18: 2 | X18: 65 | Y18: 0 | Z18: 199 | AA18: A | AB18: A | AC18: B | AD18: 0 | AE18: E | AF18: A | AG18: B | AH18: H | AI18: A | AJ18: B | AK18: A | AL18: 0 | AM18: 3 | AN18: S | AO18: S | AP18: S | AQ18: S | AR18: 55 | AS18: II | AT18: I | AU18: I | AV18: F | AW18: SS | AX18: S | AY18: S | AZ18: K | BA18: K | BB18: A | BC18: Q | BD18: J | BE18: U | BG18: 3 | BH18: 21335 | BI18: 299-11 | BJ18: 65 | BK18: 8 | BL18: 1 | BM18: 4 | BN18: 8 | BO18: 5.84 | BP18: 0 | BQ18: 2 | BR18: 60 | BS18: 22 | BT18: 0 | BU18: 0 | BV18: 4 | BW18: 199 | BX18: 4 | BY18: D | BZ18: 42 | CA18: A | CB18: B | CC18: L | CD18: P | CE18: 1 | CF18: 7.84 | CG18: 30.204966 | CH18: -90.271679 | CI18: 04:08:00 | CJ18: 6 | CL18: 299-11-1-010 | CM18: 5.84 | CN18: 0 | CO18: 0
A19: 2015 | B19: 2015145441444- | C19: 2015-10-26 | D19: 15 | E19: A | F19: 0 | G19: A | I19: 0 | J19: 0 | K19: MO | L19: 0 | M19: 0 | N19: C | O19: 0 | P19: C | Q19: A | R19: E | S19: D | T19: 2.2 | U19: 0 | V19: 0 | W19: 3 | X19: 65 | Y19: 0 | Z19: 199 | AA19: A | AB19: A | AC19: B | AD19: 0 | AE19: E | AF19: A | AG19: B | AH19: H | AI19: A | AJ19: B | AK19: A | AL19: 10 | AM19: 45 | AN19: S | AO19: S | AP19: S | AQ19: S | AR19: 45 | AS19: BBA | AT19: B | AU19: B | AV19: Q | AW19: EWS | AX19: E | AY19: W | AZ19: K | BA19: K | BB19: A | BC19: A | BD19: A | BE19: U | BG19: 3 | BH19: 21389 | BI19: 299-11 | BJ19: 65 | BK19: 8 | BL19: 1 | BM19: 4 | BN19: 8 | BO19: 6.2 | BP19: 0 | BQ19: 2 | BR19: 60 | BS19: 22 | BT19: 0 | BU19: 0 | BV19: 4 | BW19: 199 | BX19: 4 | BY19: D | BZ19: 42 | CA19: A | CB19: B | CC19: L | CD19: P | CE19: 1 | CF19: 8.2 | CG19: 30.204966 | CH19: -90.271679 | CI19: 15:40:00 | CJ19: 6 | CL19: 299-11-1-010 | CM19: 6.2 | CN19: 0 | CO19: 0
A20: 2013 | B20: 2013608727378- | C20: 2013-12-13 | D20: 11 | E20: A | F20: 0 | G20: A | I20: 0 | J20: 0 | K20: FI | L20: 0 | M20: 0 | N20: C | O20: 0 | P20: C | Q20: A | R20: C | S20: A | T20: 2 | U20: 0 | V20: 0 | W20: 1 | X20: 65 | Y20: 0 | Z20: 199 | AA20: A | AB20: E | AC20: B | AD20: 0 | AE20: E | AF20: A | AG20: B | AH20: H | AI20: A | AJ20: B | AL20: 45 | AN20: J | AP20: LL | AR20: 55 | AS20: G | AT20: G | AV20: S | AW20: E | AX20: E | AZ20: K | BB20: A | BD20: S | BG20: 3 | BH20: 21441 | BI20: 299-11 | BJ20: 65 | BK20: 8 | BL20: 1 | BM20: 4 | BN20: 8 | BO20: 6 | BP20: 0 | BQ20: 2 | BR20: 60 | BS20: 22 | BT20: 0 | BU20: 0 | BV20: 4 | BW20: 199 | BX20: 4 | BY20: A | BZ20: 42 | CA20: A | CB20: B | CC20: L | CE20: 1 | CF20: 8 | CG20: 30.204966 | CH20: -90.271679 | CI20: 11:08:00 | CJ20: 6 | CL20: 299-11-1-010 | CM20: 6 | CN20: 1 | CO20: 1
A21: 2013 | B21: 2013831033474- | C21: 2013-11-30 | D21: 15 | E21: A | F21: 0 | G21: A | I21: 0 | J21: 0 | K21: SA | L21: 0 | M21: 0 | N21: C | O21: 0 | P21: C | Q21: A | R21: C | S21: J | T21: 2.78 | U21: 0 | V21: 0 | W21: 2 | X21: 65 | Y21: 0 | Z21: 199 | AA21: B | AB21: A | AC21: B | AD21: 0 | AE21: E | AF21: A | AG21: B | AI21: A | AJ21: A | AK21: A | AL21: 55 | AM21: 60 | AN21: S | AO21: S | AP21: S | AQ21: S | AR21: 55 | AS21: BB | AT21: B | AU21: B | AV21: V | AW21: EE | AX21: E | AY21: E | AZ21: K | BA21: K | BB21: A | BC21: B | BD21: U | BE21: U | BG21: 3 | BH21: 21060 | BI21: 299-11 | BJ21: 65 | BK21: 8 | BL21: 1 | BM21: 4 | BN21: 8 | BO21: 6.78 | BP21: 0 | BQ21: 2 | BR21: 60 | BS21: 22 | BT21: 0 | BU21: 0 | BV21: 4 | BW21: 199 | BX21: 4 | BY21: D | BZ21: 42 | CA21: B | CB21: B | CC21: E | CD21: E | CE21: 1 | CF21: 8.78 | CG21: 30.204966 | CH21: -90.271679 | CI21: 15:31:00 | CJ21: 6 | CL21: 299-11-1-010 | CM21: 6.78 | CN21: 0 | CO21: 0
A22: 2014 | B22: 2014503638667- | C22: 2014-10-01 | D22: 12 | E22: A | F22: 0 | G22: A | I22: 0 | J22: 0 | K22: WE | L22: 0 | M22: 0 | N22: C | O22: 0 | P22: A | Q22: A | R22: E | S22: B | T22: 2.51 | U22: 0 | V22: 0 | W22: 2 | X22: 65 | Y22: 0 | Z22: 199 | AA22: A | AB22: A | AC22: B | AD22: 0 | AE22: E | AF22: A | AG22: B | AI22: A | AJ22: A | AK22: A | AL22: 55 | AM22: 55 | AN22: S | AO22: S | AP22: S | AQ22: S | AR22: 55 | AS22: BB | AT22: B | AU22: B | AV22: S | AW22: WW | AX22: W | AY22: W | AZ22: Y | BA22: K | BB22: B | BC22: B | BD22: D | BE22: U | BG22: 3 | BH22: 21479 | BI22: 299-11 | BJ22: 65 | BK22: 8 | BL22: 1 | BM22: 4 | BN22: 8 | BO22: 6.51 | BP22: 0 | BQ22: 2 | BR22: 60 | BS22: 22 | BT22: 0 | BU22: 0 | BV22: 4 | BW22: 199 | BX22: 4 | BY22: D | BZ22: 42 | CA22: B | CC22: P | CD22: P | CE22: 1 | CF22: 8.51 | CG22: 30.204966 | CH22: -90.271679 | CI22: 12:46:00 | CJ22: 6 | CL22: 299-11-1-010 | CM22: 6.51 | CN22: 0 | CO22: 0
A23: 2013 | B23: 2013333317449- | C23: 2013-07-05 | D23: 7 | E23: A | F23: 0 | G23: A | I23: 0 | J23: 0 | K23: FI | L23: 0 | M23: 0 | N23: C | O23: 0 | P23: C | Q23: B | R23: G | S23: A | T23: 0.24 | U23: 1 | V23: 0 | W23: 2 | X23: 65 | Y23: 0 | Z23: 199 | AA23: A | AB23: E | AC23: B | AD23: 0 | AE23: D | AF23: A | AG23: B | AH23: H | AI23: A | AJ23: Y | AK23: A | AL23: 900 | AM23: 65 | AN23: YY | AO23: S | AP23: YY | AQ23: A | AR23: 55 | AS23: FG | AT23: F | AU23: G | AV23: S | AW23: EW | AX23: E | AY23: W | AZ23: Y | BA23: K | BB23: A | BC23: A | BD23: Y | BE23: U | BG23: 2 | BH23: 21323 | BI23: 299-11 | BJ23: 65 | BK23: 8 | BL23: 1 | BM23: 4 | BN23: 8 | BO23: 4.24 | BP23: 0 | BQ23: 2 | BR23: 60 | BS23: 22 | BT23: 0 | BU23: 0 | BV23: 4 | BW23: 199 | BX23: 4 | BY23: J | BZ23: 42 | CA23: A | CB23: B | CC23: Y | CD23: A | CE23: 1 | CF23: 6.24 | CG23: 30.204966 | CH23: -90.271679 | CI23: 07:03:00 | CJ23: 6 | CL23: 299-11-1-010 | CM23: 4.24 | CN23: 1 | CO23: 1
A24: 2013 | B24: 2013233551462- | C24: 2013-06-24 | D24: 10 | E24: A | F24: 0 | G24: A | I24: 0 | J24: 0 | K24: MO | L24: 0 | M24: 0 | N24: C | O24: 0 | P24: A | Q24: A | R24: G | S24: A | T24: 3.51 | U24: 1 | V24: 0 | W24: 1 | X24: 65 | Y24: 0 | Z24: 199 | AA24: M | AB24: D | AC24: B | AD24: 0 | AE24: C | AF24: A | AG24: B | AH24: H | AI24: A | AJ24: A | AL24: 55 | AN24: L | AP24: A | AR24: 55 | AS24: G | AT24: G | AV24: S | AW24: E | AX24: E | AZ24: K | BB24: M | BD24: U | BG24: 2 | BH24: 21898 | BI24: 299-11 | BJ24: 65 | BK24: 8 | BL24: 1 | BM24: 4 | BN24: 8 | BO24: 7.51 | BP24: 0 | BQ24: 2 | BR24: 60 | BS24: 22 | BT24: 0 | BU24: 0 | BV24: 4 | BW24: 199 | BX24: 4 | BY24: A | BZ24: 42 | CA24: G | CB24: B | CC24: D | CE24: 1 | CF24: 9.51 | CG24: 30.204966 | CH24: -90.271679 | CI24: 10:42:00 | CJ24: 6 | CL24: 299-11-1-010 | CM24: 7.51 | CN24: 1 | CO24: 1
A25: 2014 | B25: 2014629942983- | C25: 2014-11-18 | D25: 8 | E25: A | F25: 1 | G25: A | I25: 0 | J25: 0 | K25: TU | L25: 0 | M25: 0 | N25: C | O25: 1 | P25: B | Q25: A | R25: A | S25: A | T25: 2.34 | U25: 0 | V25: 0 | W25: 1 | X25: 65 | Y25: 0 | Z25: 199 | AA25: L | AB25: B | AC25: B | AD25: 0 | AE25: E | AF25: A | AG25: B | AH25: H | AI25: A | AJ25: H | AL25: 55 | AN25: L | AP25: DD | AR25: 55 | AS25: B | AT25: B | AV25: S | AW25: W | AX25: W | AZ25: K | BB25: A | BD25: S | BG25: 3 | BH25: 21646 | BI25: 299-11 | BJ25: 65 | BK25: 8 | BL25: 1 | BM25: 4 | BN25: 8 | BO25: 6.34 | BP25: 0 | BQ25: 2 | BR25: 60 | BS25: 22 | BT25: 0 | BU25: 0 | BV25: 4 | BW25: 199 | BX25: 4 | BY25: A | BZ25: 42 | CA25: G | CB25: A | CC25: C | CE25: 1 | CF25: 8.34 | CG25: 30.204966 | CH25: -90.271679 | CI25: 08:15:00 | CJ25: 6 | CK25: 65LA199@1ST | CL25: 299-11-1-010 | CM25: 6.34 | CN25: 1 | CO25: 1
A26: 2013 | B26: 2013788974411- | C26: 2013-10-29 | D26: 6 | E26: A | F26: 0 | G26: A | I26: 0 | J26: 0 | K26: TU | L26: 0 | M26: 0 | N26: C | O26: 0 | P26: C | Q26: A | R26: G | S26: K | T26: 0.04 | U26: 4 | V26: 0 | W26: 3 | X26: 65 | Y26: 0 | Z26: 199 | AA26: K | AB26: A | AC26: B | AD26: 0 | AE26: D | AF26: B | AG26: B | AH26: H | AI26: C | AJ26: B | AK26: A | AL26: 55 | AM26: 55 | AN26: S | AO26: S | AP26: S | AQ26: S | AR26: 55 | AS26: FBB | AT26: F | AU26: B | AV26: S | AW26: EWW | AX26: E | AY26: W | AZ26: H | BA26: K | BB26: S | BC26: A | BD26: S | BE26: U | BG26: 2 | BH26: 20165 | BI26: 299-11 | BJ26: 65 | BK26: 8 | BL26: 1 | BM26: 4 | BN26: 8 | BO26: 4.04 | BP26: 0 | BQ26: 2 | BR26: 60 | BS26: 22 | BT26: 0 | BU26: 0 | BV26: 4 | BW26: 199 | BX26: 4 | BY26: D | BZ26: 42 | CA26: A | CB26: E | CC26: L | CD26: P | CE26: 1 | CF26: 6.04 | CG26: 30.204966 | CH26: -90.271679 | CI26: 06:09:00 | CJ26: 6 | CL26: 299-11-1-010 | CM26: 4.04 | CN26: 0 | CO26: 1
A27: 2014 | B27: 2014472707608- | C27: 2014-11-09 | D27: 7 | E27: A | F27: 0 | G27: C | I27: 0 | J27: 0 | K27: SU | L27: 0 | M27: 0 | N27: C | O27: 1 | P27: C | Q27: A | R27: G | S27: A | T27: 0.59 | U27: 1 | V27: 0 | W27: 1 | X27: 65 | Y27: 0 | Z27: 199 | AA27: A | AB27: E | AC27: B | AD27: 0 | AE27: D | AF27: A | AG27: B | AH27: H | AI27: A | AJ27: C | AL27: 55 | AN27: J | AP27: A | AR27: 55 | AS27: G | AT27: G | AV27: Q | AW27: E | AX27: E | AZ27: K | BB27: A | BD27: S | BG27: 2 | BH27: 21747 | BI27: 299-11 | BJ27: 65 | BK27: 8 | BL27: 1 | BM27: 4 | BN27: 8 | BO27: 4.59 | BP27: 0 | BQ27: 2 | BR27: 60 | BS27: 22 | BT27: 0 | BU27: 0 | BV27: 4 | BW27: 199 | BX27: 4 | BY27: A | BZ27: 42 | CA27: A | CB27: B | CC27: L | CE27: 1 | CF27: 6.59 | CG27: 30.204966 | CH27: -90.271679 | CI27: 07:44:00 | CJ27: 6 | CK27: 65LA199@OAK | CL27: 299-11-1-010 | CM27: 4.59 | CN27: 1 | CO27: 1
A28: 2013 | B28: 2013157500049- | C28: 2013-06-09 | D28: 11 | E28: A | F28: 1 | G28: C | I28: 0 | J28: 0 | K28: SU | L28: 0 | M28: 0 | N28: C | O28: 1 | P28: C | Q28: A | R28: G | S28: A | T28: 0.59 | U28: 0 | V28: 1 | W28: 1 | X28: 65 | Y28: 0 | Z28: 199 | AA28: B | AB28: D | AC28: B | AD28: 0 | AE28: A | AF28: A | AG28: B | AH28: H | AI28: B | AJ28: Y | AL28: 75 | AN28: J | AP28: A | AR28: 55 | AS28: G | AT28: G | AV28: Q | AW28: E | AX28: E | AZ28: K | BB28: B | BD28: A | BG28: 1 | BH28: 20477 | BI28: 299-11 | BJ28: 65 | BK28: 8 | BL28: 1 | BM28: 4 | BN28: 8 | BO28: 4.59 | BP28: 0 | BQ28: 2 | BR28: 60 | BS28: 22 | BT28: 0 | BU28: 0 | BV28: 4 | BW28: 199 | BX28: 4 | BY28: A | BZ28: 42 | CA28: A | CB28: B | CC28: Y | CE28: 1 | CF28: 6.59 | CG28: 30.204966 | CH28: -90.271679 | CI28: 11:08:00 | CJ28: 6 | CK28: 65LA199@OAK | CL28: 299-11-1-010 | CM28: 4.59 | CN28: 1 | CO28: 1
A29: 2015 | B29: 2015170630833- | C29: 2015-10-25 | D29: 11 | E29: A | F29: 0 | G29: C | I29: 0 | J29: 0 | K29: SU | L29: 0 | M29: 0 | N29: C | O29: 0 | P29: C | Q29: B | R29: G | S29: K | T29: 0.76 | U29: 0 | V29: 0 | W29: 2 | X29: 65 | Y29: 0 | Z29: 199 | AA29: A | AB29: E | AC29: B | AD29: 0 | AE29: E | AF29: A | AG29: B | AH29: H | AI29: A | AJ29: E | AK29: A | AL29: 45 | AM29: 0 | AN29: J | AO29: S | AP29: S | AQ29: S | AR29: 55 | AS29: BA | AT29: B | AU29: A | AV29: Q | AW29: NS | AX29: N | AY29: S | AZ29: K | BA29: K | BB29: A | BC29: B | BD29: S | BE29: U | BG29: 3 | BH29: 20223 | BI29: 299-11 | BJ29: 65 | BK29: 8 | BL29: 1 | BM29: 4 | BN29: 8 | BO29: 4.76 | BP29: 0 | BQ29: 2 | BR29: 60 | BS29: 22 | BT29: 0 | BU29: 0 | BV29: 4 | BW29: 199 | BX29: 4 | BY29: A | BZ29: 42 | CA29: A | CB29: B | CC29: L | CD29: Z | CE29: 1 | CF29: 6.76 | CG29: 30.204966 | CH29: -90.271679 | CI29: 11:54:00 | CJ29: 6 | CL29: 299-11-1-010 | CM29: 4.76 | CN29: 1 | CO29: 1
A30: 2014 | B30: 2014303819154- | C30: 2014-08-17 | D30: 12 | E30: A | F30: 0 | G30: A | I30: 0 | J30: 0 | K30: SU | L30: 0 | M30: 0 | N30: C | O30: 0 | P30: B | Q30: B | R30: G | S30: A | T30: 1.35 | U30: 0 | V30: 0 | W30: 1 | X30: 65 | Y30: 0 | Z30: 199 | AA30: A | AB30: E | AC30: B | AD30: 0 | AE30: E | AF30: A | AG30: B | AI30: A | AJ30: A | AN30: J | AR30: 0 | AV30: V | AW30: N | AX30: N | AZ30: K | BB30: A | BD30: U | BG30: 3 | BH30: 22008 | BI30: 299-11 | BJ30: 65 | BK30: 8 | BL30: 1 | BM30: 4 | BN30: 8 | BO30: 5.35 | BP30: 0 | BQ30: 2 | BR30: 60 | BS30: 22 | BT30: 0 | BU30: 0 | BV30: 4 | BW30: 199 | BX30: 4 | BY30: A | BZ30: 42 | CA30: B | CB30: B | CC30: Y | CE30: 1 | CF30: 7.35 | CG30: 30.204966 | CH30: -90.271679 | CI30: 12:31:00 | CJ30: 6 | CK30: 65LA199@MAIN | CL30: 299-11-1-010 | CM30: 5.35 | CN30: 1 | CO30: 1
A31: 2014 | B31: 2014653411777- | C31: 2014-09-18 | D31: 9 | E31: A | F31: 0 | G31: A | I31: 0 | J31: 0 | K31: TH | L31: 0 | M31: 0 | N31: C | O31: 0 | P31: B | Q31: A | R31: G | S31: E | T31: 2.3 | U31: 1 | V31: 0 | W31: 2 | X31: 65 | Y31: 0 | Z31: 199 | AA31: A | AB31: A | AC31: B | AD31: 0 | AE31: C | AF31: A | AG31: B | AH31: H | AI31: A | AJ31: B | AK31: A | AL31: 2 | AM31: 45 | AN31: S | AO31: S | AP31: S | AQ31: S | AR31: 55 | AS31: IB | AT31: I | AU31: B | AV31: A | AW31: NN | AX31: N | AY31: N | AZ31: K | BA31: K | BB31: B | BC31: S | BD31: C | BE31: U | BG31: 2 | BH31: 21059 | BI31: 299-11 | BJ31: 65 | BK31: 8 | BL31: 1 | BM31: 4 | BN31: 8 | BO31: 6.3 | BP31: 0 | BQ31: 2 | BR31: 60 | BS31: 22 | BT31: 0 | BU31: 0 | BV31: 4 | BW31: 199 | BX31: 4 | BY31: D | BZ31: 42 | CA31: A | CB31: B | CC31: L | CD31: P | CE31: 1 | CF31: 8.3 | CG31: 30.204966 | CH31: -90.271679 | CI31: 09:32:00 | CJ31: 6 | CL31: 299-11-1-010 | CM31: 6.3 | CN31: 0 | CO31: 0
A32: 2014 | B32: 2014577621715- | C32: 2014-05-05 | D32: 10 | E32: A | F32: 0 | G32: A | I32: 0 | J32: 0 | K32: MO | L32: 0 | M32: 0 | N32: C | O32: 0 | P32: Z | Q32: C | R32: B | S32: E | T32: 1.27 | U32: 0 | V32: 0 | W32: 2 | X32: 65 | Y32: 0 | Z32: 199 | AA32: A | AB32: A | AC32: C | AD32: 0 | AE32: E | AF32: A | AG32: A | AI32: B | AJ32: A | AK32: A | AL32: 45 | AM32: 45 | AN32: S | AO32: S | AP32: S | AQ32: S | AR32: 45 | AS32: BB | AT32: B | AU32: B | AV32: R | AW32: EE | AX32: E | AY32: E | AZ32: K | BA32: K | BB32: A | BC32: S | BD32: J | BE32: U | BG32: 3 | BH32: 21184 | BI32: 299-11 | BJ32: 65 | BK32: 8 | BL32: 1 | BM32: 4 | BN32: 8 | BO32: 5.27 | BP32: 0 | BQ32: 2 | BR32: 60 | BS32: 22 | BT32: 0 | BU32: 0 | BV32: 4 | BW32: 199 | BX32: 4 | BY32: D | BZ32: 42 | CA32: A | CB32: A | CC32: L | CD32: P | CE32: 1 | CF32: 7.27 | CG32: 30.204966 | CH32: -90.271679 | CI32: 10:06:00 | CJ32: 6 | CK32: 65LA199@MAIN | CL32: 299-11-1-010 | CM32: 5.27 | CN32: 0 | CO32: 0
A33: 2013 | B33: 2013578725494- | C33: 2013-11-16 | D33: 16 | E33: A | F33: 0 | G33: A | I33: 0 | J33: 0 | K33: SA | L33: 0 | M33: 0 | N33: C | O33: 0 | P33: A | Q33: B | R33: E | S33: A | T33: 3.93 | U33: 1 | V33: 0 | W33: 1 | X33: 65 | Y33: 0 | Z33: 199 | AA33: A | AB33: A | AC33: B | AD33: 0 | AE33: D | AF33: A | AG33: B | AH33: H | AI33: A | AJ33: B | AL33: 55 | AN33: J | AP33: A | AR33: 55 | AS33: G | AT33: G | AV33: Q | AW33: E | AX33: E | AZ33: K | BB33: C | BD33: S | BG33: 2 | BH33: 20526 | BI33: 299-11 | BJ33: 65 | BK33: 8 | BL33: 1 | BM33: 4 | BN33: 8 | BO33: 7.93 | BP33: 0 | BQ33: 2 | BR33: 60 | BS33: 22 | BT33: 0 | BU33: 0 | BV33: 4 | BW33: 199 | BX33: 4 | BY33: A | BZ33: 42 | CA33: A | CB33: B | CC33: L | CE33: 1 | CF33: 9.93 | CG33: 30.204966 | CH33: -90.271679 | CI33: 16:16:00 | CJ33: 6 | CL33: 299-11-1-010 | CM33: 7.93 | CN33: 1 | CO33: 1
A34: 2013 | B34: 2013473863646- | C34: 2013-11-21 | D34: 9 | E34: A | F34: 0 | G34: A | I34: 0 | J34: 0 | K34: TH | L34: 0 | M34: 0 | N34: C | O34: 0 | P34: B | Q34: A | R34: E | S34: B | T34: 1.61 | U34: 0 | V34: 0 | W34: 2 | X34: 65 | Y34: 0 | Z34: 199 | AA34: A | AB34: A | AC34: B | AD34: 0 | AE34: E | AF34: B | AG34: B | AH34: H | AI34: C | AJ34: B | AK34: Y | AL34: 55 | AM34: 10 | AN34: S | AO34: S | AP34: S | AQ34: S | AR34: 55 | AS34: BO | AT34: B | AU34: O | AV34: Q | AW34: SS | AX34: S | AY34: S | AZ34: K | BA34: Y | BB34: A | BC34: B | BD34: D | BE34: U | BG34: 3 | BH34: 21831 | BI34: 299-11 | BJ34: 65 | BK34: 8 | BL34: 1 | BM34: 4 | BN34: 8 | BO34: 5.61 | BP34: 0 | BQ34: 2 | BR34: 60 | BS34: 22 | BT34: 0 | BU34: 0 | BV34: 4 | BW34: 199 | BX34: 4 | BY34: D | BZ34: 42 | CA34: A | CB34: B | CC34: L | CD34: P | CE34: 1 | CF34: 7.61 | CG34: 30.204966 | CH34: -90.271679 | CI34: 09:42:00 | CJ34: 6 | CL34: 299-11-1-010 | CM34: 5.61 | CN34: 0 | CO34: 0
A35: 2013 | B35: 2013232508582- | C35: 2013-06-22 | D35: 13 | E35: A | F35: 0 | G35: A | I35: 0 | J35: 0 | K35: SA | L35: 0 | M35: 0 | N35: C | O35: 0 | P35: C | Q35: B | R35: E | S35: A | T35: 2.05 | U35: 1 | V35: 0 | W35: 1 | X35: 65 | Y35: 0 | Z35: 199 | AA35: A | AB35: E | AC35: B | AD35: 0 | AE35: D | AF35: A | AG35: B | AH35: H | AI35: A | AJ35: Y | AL35: 45 | AN35: J | AP35: JJ | AR35: 55 | AS35: G | AT35: G | AV35: Q | AW35: N | AX35: N | AZ35: K | BB35: S | BD35: R | BG35: 2 | BH35: 21919 | BI35: 299-11 | BJ35: 65 | BK35: 8 | BL35: 1 | BM35: 4 | BN35: 8 | BO35: 6.05 | BP35: 0 | BQ35: 2 | BR35: 60 | BS35: 22 | BT35: 0 | BU35: 0 | BV35: 4 | BW35: 199 | BX35: 4 | BY35: A | BZ35: 42 | CA35: D | CB35: B | CC35: K | CE35: 1 | CF35: 8.05 | CG35: 30.204966 | CH35: -90.271679 | CI35: 13:41:00 | CJ35: 6 | CL35: 299-11-1-010 | CM35: 6.05 | CN35: 1 | CO35: 1
A36: 2014 | B36: 2014496449272- | C36: 2014-09-25 | D36: 12 | E36: A | F36: 0 | G36: A | I36: 0 | J36: 0 | K36: TH | L36: 0 | M36: 0 | N36: C | O36: 0 | P36: Z | Q36: A | R36: B | S36: G | T36: 1.76 | U36: 0 | V36: 0 | W36: 2 | X36: 65 | Y36: 0 | Z36: 199 | AA36: A | AB36: A | AC36: B | AD36: 0 | AE36: E | AF36: A | AG36: B | AI36: A | AJ36: B | AK36: A | AN36: S | AO36: S | AP36: S | AQ36: S | AR36: 45 | AS36: IB | AT36: I | AU36: B | AV36: A | AW36: NW | AX36: N | AY36: W | AZ36: K | BA36: K | BB36: B | BC36: B | BD36: C | BE36: U | BG36: 3 | BH36: 21646 | BI36: 299-11 | BJ36: 65 | BK36: 8 | BL36: 1 | BM36: 4 | BN36: 8 | BO36: 5.76 | BP36: 0 | BQ36: 2 | BR36: 60 | BS36: 22 | BT36: 0 | BU36: 0 | BV36: 4 | BW36: 199 | BX36: 4 | BY36: D | BZ36: 42 | CA36: B | CB36: A | CC36: L | CD36: P | CE36: 1 | CF36: 7.76 | CG36: 30.204966 | CH36: -90.271679 | CI36: 12:33:00 | CJ36: 6 | CL36: 299-11-1-010 | CM36: 5.76 | CN36: 0 | CO36: 0
A37: 2013 | B37: 2013579845678- | C37: 2013-09-08 | D37: 9 | E37: A | F37: 0 | G37: A | I37: 0 | J37: 0 | K37: SU | L37: 0 | M37: 0 | N37: C | O37: 0 | P37: C | Q37: A | R37: E | S37: B | T37: 3.89 | U37: 0 | V37: 0 | W37: 2 | X37: 65 | Y37: 0 | Z37: 199 | AA37: A | AB37: A | AC37: B | AD37: 0 | AE37: E | AF37: A | AG37: B | AI37: A | AJ37: A | AK37: A | AN37: S | AO37: S | AP37: S | AQ37: S | AR37: 55 | AS37: BA | AT37: B | AU37: A | AV37: Q | AW37: EE | AX37: E | AY37: E | AZ37: K | BA37: K | BB37: A | BC37: A | BD37: D | BE37: U | BG37: 3 | BH37: 20756 | BI37: 299-11 | BJ37: 65 | BK37: 8 | BL37: 1 | BM37: 4 | BN37: 8 | BO37: 7.89 | BP37: 0 | BQ37: 2 | BR37: 60 | BS37: 22 | BT37: 0 | BU37: 0 | BV37: 4 | BW37: 199 | BX37: 4 | BY37: D | BZ37: 42 | CA37: A | CB37: B | CC37: P | CD37: J | CE37: 1 | CF37: 9.89 | CG37: 30.204966 | CH37: -90.271679 | CI37: 09:08:00 | CJ37: 6 | CL37: 299-11-1-010 | CM37: 7.89 | CN37: 0 | CO37: 0
A38: 2013 | B38: 2013160384534- | C38: 2013-02-06 | D38: 14 | E38: A | F38: 0 | G38: A | I38: 0 | J38: 0 | K38: WE | L38: 0 | M38: 0 | N38: C | O38: 1 | P38: C | Q38: A | R38: D | S38: B | T38: 0.43 | U38: 0 | V38: 0 | W38: 2 | X38: 65 | Y38: 0 | Z38: 199 | AA38: A | AB38: A | AC38: B | AD38: 0 | AE38: E | AF38: A | AG38: B | AI38: A | AJ38: A | AK38: A | AN38: S | AO38: S | AP38: S | AQ38: S | AR38: 55 | AS38: BQ | AT38: B | AU38: Q | AV38: Q | AW38: EE | AX38: E | AY38: E | AZ38: K | BA38: K | BB38: A | BC38: B | BD38: D | BE38: U | BG38: 3 | BH38: 21034 | BI38: 299-11 | BJ38: 65 | BK38: 8 | BL38: 1 | BM38: 4 | BN38: 8 | BO38: 4.43 | BP38: 0 | BQ38: 2 | BR38: 60 | BS38: 22 | BT38: 0 | BU38: 0 | BV38: 4 | BW38: 199 | BX38: 4 | BY38: D | BZ38: 42 | CA38: A | CC38: P | CD38: A | CE38: 1 | CF38: 6.43 | CG38: 30.204966 | CH38: -90.271679 | CI38: 14:06:00 | CJ38: 6 | CK38: 65LA199@OAK | CL38: 299-11-1-010 | CM38: 4.43 | CN38: 0 | CO38: 0
A39: 2013 | B39: 2013609411546- | C39: 2013-01-03 | D39: 12 | E39: A | F39: 0 | G39: A | I39: 0 | J39: 0 | K39: TH | L39: 0 | M39: 0 | N39: C | O39: 0 | P39: A | Q39: A | R39: C | S39: D | T39: 0.76 | U39: 1 | V39: 0 | W39: 2 | X39: 65 | Y39: 0 | Z39: 199 | AA39: A | AB39: A | AC39: B | AD39: 0 | AE39: D | AF39: A | AG39: B | AI39: A | AJ39: A | AK39: A | AN39: S | AO39: S | AP39: S | AQ39: S | AR39: 35 | AS39: BB | AT39: B | AU39: B | AV39: A | AW39: WS | AX39: W | AY39: S | AZ39: K | BA39: K | BB39: A | BC39: S | BD39: C | BE39: U | BG39: 2 | BH39: 21849 | BI39: 299-11 | BJ39: 65 | BK39: 8 | BL39: 1 | BM39: 4 | BN39: 8 | BO39: 4.76 | BP39: 0 | BQ39: 2 | BR39: 60 | BS39: 22 | BT39: 0 | BU39: 0 | BV39: 4 | BW39: 199 | BX39: 4 | BY39: D | BZ39: 42 | CA39: A | CC39: L | CD39: P | CE39: 1 | CF39: 6.76 | CG39: 30.204966 | CH39: -90.271679 | CI39: 12:33:00 | CJ39: 6 | CL39: 299-11-1-010 | CM39: 4.76 | CN39: 0 | CO39: 0
A40: 2015 | B40: 2015471403722- | C40: 2015-01-05 | D40: 8 | E40: A | F40: 0 | G40: A | I40: 0 | J40: 0 | K40: MO | L40: 0 | M40: 0 | N40: C | O40: 1 | P40: C | Q40: F | R40: E | S40: D | T40: 2.32 | U40: 0 | V40: 0 | W40: 2 | X40: 65 | Y40: 0 | Z40: 199 | AA40: A | AB40: A | AC40: B | AD40: 0 | AE40: E | AF40: A | AG40: B | AH40: H | AI40: A | AJ40: B | AK40: A | AL40: 55 | AM40: 15 | AN40: S | AO40: S | AP40: S | AQ40: S | AR40: 55 | AS40: FI | AT40: F | AU40: I | AV40: Q | AW40: SE | AX40: S | AY40: E | AZ40: K | BA40: K | BB40: B | BC40: A | BD40: F | BE40: U | BG40: 3 | BH40: 20676 | BI40: 299-11 | BJ40: 65 | BK40: 8 | BL40: 1 | BM40: 4 | BN40: 8 | BO40: 6.32 | BP40: 0 | BQ40: 2 | BR40: 60 | BS40: 22 | BT40: 0 | BU40: 0 | BV40: 4 | BW40: 199 | BX40: 4 | BY40: D | BZ40: 42 | CA40: A | CB40: B | CC40: L | CD40: P | CE40: 1 | CF40: 8.32 | CG40: 30.204966 | CH40: -90.271679 | CI40: 08:02:00 | CJ40: 6 | CK40: 65LA199@1ST | CL40: 299-11-1-010 | CM40: 6.32 | CN40: 0 | CO40: 1
A41: 2014 | B41: 2014910804954- | C41: 2014-05-12 | D41: 9 | E41: A | F41: 0 | G41: A | I41: 0 | J41: 0 | K41: MO | L41: 0 | M41: 0 | N41: C | O41: 1 | P41: C | Q41: A | R41: E | S41: I | T41: 0.59 | U41: 0 | V41: 0 | W41: 2 | X41: 65 | Y41: 0 | Z41: 199 | AA41: A | AB41: A | AC41: B | AD41: 0 | AE41: E | AF41: A | AG41: B | AH41: H | AI41: A | AJ41: B | AK41: A | AL41: 20 | AM41: 45 | AN41: S | AO41: S | AP41: S | AQ41: S | AR41: 25 | AS41: JB | AT41: J | AU41: B | AV41: A | AW41: NS | AX41: N | AY41: S | AZ41: K | BA41: K | BB41: C | BC41: A | BD41: C | BE41: U | BG41: 3 | BH41: 20250 | BI41: 299-11 | BJ41: 65 | BK41: 8 | BL41: 1 | BM41: 4 | BN41: 8 | BO41: 4.59 | BP41: 0 | BQ41: 2 | BR41: 60 | BS41: 22 | BT41: 0 | BU41: 0 | BV41: 4 | BW41: 199 | BX41: 4 | BY41: D | BZ41: 42 | CA41: A | CB41: B | CC41: L | CD41: P | CE41: 1 | CF41: 6.59 | CG41: 30.204966 | CH41: -90.271679 | CI41: 09:00:00 | CJ41: 6 | CK41: 65LA199@OAK | CL41: 299-11-1-010 | CM41: 4.59 | CN41: 0 | CO41: 0
A42: 2014 | B42: 2014807327772- | C42: 2014-12-08 | D42: 15 | E42: A | F42: 0 | G42: A | I42: 0 | J42: 0 | K42: MO | L42: 0 | M42: 0 | N42: C | O42: 0 | P42: C | Q42: A | R42: B | S42: I | T42: 1.24 | U42: 1 | V42: 0 | W42: 2 | X42: 65 | Y42: 0 | Z42: 199 | AA42: A | AB42: A | AC42: B | AD42: 0 | AE42: C | AF42: A | AG42: B | AI42: A | AJ42: B | AK42: A | AN42: S | AO42: S | AP42: S | AQ42: S | AR42: 50 | AS42: FB | AT42: F | AU42: B | AV42: Q | AW42: SN | AX42: S | AY42: N | AZ42: K | BA42: K | BB42: B | BC42: B | BD42: E | BE42: U | BG42: 2 | BH42: 21074 | BI42: 299-11 | BJ42: 65 | BK42: 8 | BL42: 1 | BM42: 4 | BN42: 8 | BO42: 5.24 | BP42: 0 | BQ42: 2 | BR42: 60 | BS42: 22 | BT42: 0 | BU42: 0 | BV42: 4 | BW42: 199 | BX42: 4 | BY42: D | BZ42: 42 | CA42: A | CB42: B | CC42: L | CD42: P | CE42: 1 | CF42: 7.24 | CG42: 30.204966 | CH42: -90.271679 | CI42: 15:02:00 | CJ42: 6 | CK42: 65LA199@MAIN | CL42: 299-11-1-010 | CM42: 5.24 | CN42: 0 | CO42: 1
A43: 2014 | B43: 2014659851842- | C43: 2014-03-14 | D43: 14 | E43: A | F43: 0 | G43: A | I43: 0 | J43: 0 | K43: FI | L43: 0 | M43: 0 | N43: C | O43: 0 | P43: B | Q43: A | R43: G | S43: D | T43: 2.3 | U43: 1 | V43: 0 | W43: 2 | X43: 65 | Y43: 0 | Z43: 199 | AA43: A | AB43: A | AC43: B | AD43: 0 | AE43: D | AF43: A | AG43: B | AH43: H | AI43: A | AJ43: B | AK43: A | AL43: 15 | AM43: 45 | AN43: S | AO43: S | AP43: S | AQ43: S | AR43: 35 | AS43: BB | AT43: B | AU43: B | AV43: A | AW43: WS | AX43: W | AY43: S | AZ43: K | BA43: K | BB43: B | BC43: A | BD43: C | BE43: U | BG43: 2 | BH43: 21498 | BI43: 299-11 | BJ43: 65 | BK43: 8 | BL43: 1 | BM43: 4 | BN43: 8 | BO43: 6.3 | BP43: 0 | BQ43: 2 | BR43: 60 | BS43: 22 | BT43: 0 | BU43: 0 | BV43: 4 | BW43: 199 | BX43: 4 | BY43: D | BZ43: 42 | CA43: A | CB43: B | CC43: L | CD43: P | CE43: 1 | CF43: 8.3 | CG43: 30.204966 | CH43: -90.271679 | CI43: 14:00:00 | CJ43: 6 | CL43: 299-11-1-010 | CM43: 6.3 | CN43: 0 | CO43: 0
A44: 2013 | B44: 2013391932428- | C44: 2013-08-02 | D44: 11 | E44: A | F44: 0 | G44: B | I44: 0 | J44: 0 | K44: FI | L44: 0 | M44: 0 | N44: C | O44: 0 | P44: C | Q44: A | R44: G | S44: D | T44: 1.57 | U44: 0 | V44: 0 | W44: 2 | X44: 65 | Y44: 0 | Z44: 199 | AA44: A | AB44: A | AC44: B | AD44: 0 | AE44: E | AF44: A | AG44: B | AI44: A | AJ44: B | AK44: A | AN44: S | AO44: S | AP44: S | AQ44: S | AR44: 35 | AS44: BB | AT44: B | AU44: B | AV44: A | AW44: EN | AX44: E | AY44: N | AZ44: K | BA44: K | BB44: S | BC44: A | BD44: S | BE44: U | BG44: 3 | BH44: 21959 | BI44: 299-11 | BJ44: 65 | BK44: 8 | BL44: 1 | BM44: 4 | BN44: 8 | BO44: 5.57 | BP44: 0 | BQ44: 2 | BR44: 60 | BS44: 22 | BT44: 0 | BU44: 0 | BV44: 4 | BW44: 199 | BX44: 4 | BY44: D | BZ44: 42 | CA44: A | CC44: P | CD44: P | CE44: 1 | CF44: 7.57 | CG44: 30.204966 | CH44: -90.271679 | CI44: 11:09:00 | CJ44: 6 | CL44: 299-11-1-010 | CM44: 5.57 | CN44: 0 | CO44: 0
A45: 2014 | B45: 2014605037232- | C45: 2014-05-10 | D45: 20 | E45: A | F45: 0 | G45: A | I45: 0 | J45: 0 | K45: SA | L45: 0 | M45: 0 | N45: C | O45: 1 | P45: C | Q45: D | R45: C | S45: A | T45: 0.48 | U45: 0 | V45: 0 | W45: 1 | X45: 65 | Y45: 0 | Z45: 199 | AA45: A | AB45: A | AC45: B | AD45: 0 | AE45: E | AF45: A | AG45: B | AI45: A | AJ45: A | AN45: R | AP45: R | AR45: 45 | AS45: B | AT45: B | AV45: S | AW45: E | AX45: E | AZ45: K | BB45: A | BD45: U | BG45: 3 | BH45: 21638 | BI45: 299-11 | BJ45: 65 | BK45: 8 | BL45: 1 | BM45: 4 | BN45: 8 | BO45: 4.48 | BP45: 0 | BQ45: 2 | BR45: 60 | BS45: 22 | BT45: 0 | BU45: 0 | BV45: 4 | BW45: 199 | BX45: 4 | BY45: H | BZ45: 42 | CA45: B | CB45: B | CC45: P | CE45: 1 | CF45: 6.48 | CG45: 30.204966 | CH45: -90.271679 | CI45: 20:38:00 | CJ45: 6 | CK45: 65LA199@OAK | CL45: 299-11-1-010 | CM45: 4.48 | CN45: 1 | CO45: 1
A46: 2013 | B46: 2013262376712- | C46: 2013-07-28 | D46: 14 | E46: A | F46: 0 | G46: A | I46: 0 | J46: 0 | K46: SU | L46: 0 | M46: 0 | N46: C | O46: 0 | P46: B | Q46: A | R46: B | S46: B | T46: 1.85 | U46: 2 | V46: 0 | W46: 2 | X46: 65 | Y46: 0 | Z46: 199 | AA46: A | AB46: A | AC46: B | AD46: 0 | AE46: D | AF46: A | AG46: B | AI46: A | AJ46: A | AK46: A | AL46: 25 | AM46: 0 | AN46: S | AO46: S | AP46: S | AQ46: S | AR46: 45 | AS46: QA | AT46: Q | AU46: A | AV46: S | AW46: EE | AX46: E | AY46: E | AZ46: Y | BA46: K | BB46: A | BC46: A | BD46: Q | BE46: U | BG46: 2 | BH46: 21542 | BI46: 299-11 | BJ46: 65 | BK46: 8 | BL46: 1 | BM46: 4 | BN46: 8 | BO46: 5.85 | BP46: 0 | BQ46: 2 | BR46: 60 | BS46: 22 | BT46: 0 | BU46: 0 | BV46: 4 | BW46: 199 | BX46: 4 | BY46: D | BZ46: 42 | CA46: E | CC46: P | CD46: I | CE46: 1 | CF46: 7.85 | CG46: 30.204966 | CH46: -90.271679 | CI46: 14:21:00 | CJ46: 6 | CL46: 299-11-1-010 | CM46: 5.85 | CN46: 0 | CO46: 0
A47: 2013 | B47: 2013430850815- | C47: 2013-10-28 | D47: 7 | E47: A | F47: 0 | G47: A | I47: 0 | J47: 0 | K47: MO | L47: 0 | M47: 0 | N47: C | O47: 0 | P47: C | Q47: B | R47: G | S47: A | T47: 2.12 | U47: 0 | V47: 0 | W47: 1 | X47: 65 | Y47: 0 | Z47: 199 | AA47: L | AB47: A | AC47: C | AD47: 0 | AE47: E | AF47: A | AG47: B | AH47: H | AI47: A | AJ47: A | AL47: 50 | AN47: R | AP47: R | AR47: 50 | AS47: B | AT47: B | AV47: S | AW47: N | AX47: N | AZ47: K | BB47: B | BD47: U | BG47: 3 | BH47: 20235 | BI47: 299-11 | BJ47: 65 | BK47: 8 | BL47: 1 | BM47: 4 | BN47: 8 | BO47: 6.12 | BP47: 0 | BQ47: 2 | BR47: 60 | BS47: 22 | BT47: 0 | BU47: 0 | BV47: 4 | BW47: 199 | BX47: 4 | BY47: H | BZ47: 42 | CA47: G | CB47: B | CC47: P | CE47: 1 | CF47: 8.12 | CG47: 30.204966 | CH47: -90.271679 | CI47: 07:54:00 | CJ47: 6 | CL47: 299-11-1-010 | CM47: 6.12 | CN47: 1 | CO47: 1
A48: 2015 | B48: 2015565104565- | C48: 2015-12-29 | D48: 18 | E48: A | F48: 0 | G48: A | I48: 0 | J48: 0 | K48: TU | L48: 0 | M48: 0 | N48: C | O48: 0 | P48: C | Q48: A | R48: B | S48: B | T48: 0.29 | U48: 0 | V48: 0 | W48: 2 | X48: 65 | Y48: 0 | Z48: 199 | AA48: A | AB48: A | AC48: B | AD48: 0 | AE48: E | AF48: A | AG48: B | AH48: H | AI48: A | AJ48: A | AK48: A | AN48: S | AO48: S | AP48: S | AQ48: S | AR48: 45 | AS48: DW | AT48: D | AU48: W | AV48: Q | AW48: NE | AX48: N | AY48: E | AZ48: K | BA48: K | BB48: B | BC48: B | BD48: T | BE48: U | BG48: 3 | BH48: 21948 | BI48: 299-11 | BJ48: 65 | BK48: 8 | BL48: 1 | BM48: 4 | BN48: 8 | BO48: 4.29 | BP48: 0 | BQ48: 2 | BR48: 60 | BS48: 22 | BT48: 0 | BU48: 0 | BV48: 4 | BW48: 199 | BX48: 4 | BY48: D | BZ48: 42 | CA48: A | CC48: P | CD48: P | CE48: 1 | CF48: 6.29 | CG48: 30.204966 | CH48: -90.271679 | CI48: 18:45:00 | CJ48: 6 | CL48: 299-11-1-010 | CM48: 4.29 | CN48: 0 | CO48: 0
A49: 2014 | B49: 2014983960325- | C49: 2014-03-15 | D49: 18 | E49: A | F49: 0 | G49: A | I49: 0 | J49: 0 | K49: SA | L49: 0 | M49: 0 | N49: C | O49: 0 | P49: C | Q49: C | R49: B | S49: A | T49: 0.09 | U49: 0 | V49: 0 | W49: 1 | X49: 65 | Y49: 0 | Z49: 199 | AA49: A | AB49: A | AC49: B | AD49: 0 | AE49: E | AF49: A | AG49: B | AI49: A | AJ49: A | AN49: R | AP49: R | AR49: 45 | AS49: B | AT49: B | AV49: Q | AW49: N | AX49: N | AZ49: Y | BB49: A | BD49: U | BG49: 3 | BH49: 21616 | BI49: 299-11 | BJ49: 65 | BK49: 8 | BL49: 1 | BM49: 4 | BN49: 8 | BO49: 4.09 | BP49: 0 | BQ49: 2 | BR49: 60 | BS49: 22 | BT49: 0 | BU49: 0 | BV49: 4 | BW49: 199 | BX49: 4 | BY49: H | BZ49: 42 | CA49: G | CC49: P | CE49: 1 | CF49: 6.09 | CG49: 30.204966 | CH49: -90.271679 | CI49: 18:09:00 | CJ49: 6 | CL49: 299-11-1-010 | CM49: 4.09 | CN49: 1 | CO49: 1
A50: 2015 | B50: 2015871985688- | C50: 2015-06-03 | D50: 10 | E50: A | F50: 0 | G50: A | I50: 0 | J50: 0 | K50: WE | L50: 0 | M50: 0 | N50: C | O50: 0 | P50: C | Q50: E | R50: A | S50: F | T50: 1.4 | U50: 0 | V50: 0 | W50: 2 | X50: 65 | Y50: 0 | Z50: 199 | AA50: A | AB50: A | AC50: B | AD50: 0 | AE50: E | AF50: A | AG50: B | AI50: A | AJ50: B | AK50: A | AL50: 20 | AM50: 50 | AN50: S | AO50: S | AP50: S | AQ50: S | AR50: 55 | AS50: IB | AT50: I | AU50: B | AV50: A | AW50: WE | AX50: W | AY50: E | AZ50: K | BA50: K | BB50: B | BC50: B | BD50: S | BE50: U | BG50: 3 | BH50: 20605 | BI50: 299-11 | BJ50: 65 | BK50: 8 | BL50: 1 | BM50: 4 | BN50: 8 | BO50: 5.4 | BP50: 0 | BQ50: 2 | BR50: 60 | BS50: 22 | BT50: 0 | BU50: 0 | BV50: 4 | BW50: 199 | BX50: 4 | BY50: D | BZ50: 42 | CA50: A | CB50: B | CC50: P | CD50: P | CE50: 1 | CF50: 7.4 | CG50: 30.204966 | CH50: -90.271679 | CI50: 10:04:00 | CJ50: 6 | CL50: 299-11-1-010 | CM50: 5.4 | CN50: 0 | CO50: 0
A51: 2014 | B51: 2014269739756- | C51: 2014-02-01 | D51: 14 | E51: A | F51: 0 | G51: A | I51: 0 | J51: 0 | K51: SA | L51: 0 | M51: 0 | N51: C | O51: 0 | P51: C | Q51: C | R51: Z | S51: Z | T51: 1.83 | U51: 3 | V51: 0 | W51: 1 | X51: 65 | Y51: 0 | Z51: 199 | AA51: A | AB51: E | AC51: B | AD51: 0 | AE51: D | AF51: A | AG51: A | AI51: A | AJ51: Y | AN51: DD | AP51: DD | AR51: 45 | AS51: Z | AT51: Z | AW51: S | AX51: S | BB51: A | BD51: Y | BG51: 2 | BH51: 20263 | BI51: 299-11 | BJ51: 65 | BK51: 8 | BL51: 1 | BM51: 4 | BN51: 8 | BO51: 5.83 | BP51: 0 | BQ51: 2 | BR51: 60 | BS51: 22 | BT51: 0 | BU51: 0 | BV51: 4 | BW51: 199 | BX51: 4 | BY51: I | BZ51: 42 | CA51: A | CB51: B | CC51: P | CE51: 1 | CF51: 7.83 | CG51: 30.204966 | CH51: -90.271679 | CI51: 14:43:00 | CJ51: 6 | CL51: 299-11-1-010 | CM51: 5.83 | CN51: 1 | CO51: 1
A52: 2015 | B52: 2015266768191- | C52: 2015-11-29 | D52: 9 | E52: A | F52: 0 | G52: A | I52: 0 | J52: 0 | K52: SU | L52: 0 | M52: 0 | N52: C | O52: 0 | P52: C | Q52: A | R52: B | S52: F | T52: 2.55 | U52: 2 | V52: 0 | W52: 2 | X52: 65 | Y52: 0 | Z52: 199 | AA52: A | AB52: A | AC52: B | AD52: 0 | AE52: C | AF52: A | AG52: B | AI52: A | AJ52: A | AK52: A | AN52: S | AO52: S | AP52: S | AQ52: S | AR52: 45 | AS52: IB | AT52: I | AU52: B | AV52: R | AW52: SN | AX52: S | AY52: N | AZ52: Y | BA52: Y | BB52: A | BC52: S | BD52: K | BE52: U | BG52: 2 | BH52: 20799 | BI52: 299-11 | BJ52: 65 | BK52: 8 | BL52: 1 | BM52: 4 | BN52: 8 | BO52: 6.55 | BP52: 0 | BQ52: 2 | BR52: 60 | BS52: 22 | BT52: 0 | BU52: 0 | BV52: 4 | BW52: 199 | BX52: 4 | BY52: D | BZ52: 42 | CA52: B | CB52: B | CC52: P | CD52: P | CE52: 1 | CF52: 8.55 | CG52: 30.204966 | CH52: -90.271679 | CI52: 09:42:00 | CJ52: 6 | CL52: 299-11-1-010 | CM52: 6.55 | CN52: 0 | CO52: 0
A53: 2013 | B53: 2013485186543- | C53: 2013-11-23 | D53: 10 | E53: A | F53: 0 | G53: A | I53: 0 | J53: 0 | K53: SA | L53: 0 | M53: 0 | N53: C | O53: 0 | P53: C | Q53: A | R53: B | S53: F | T53: 0.83 | U53: 2 | V53: 0 | W53: 2 | X53: 65 | Y53: 0 | Z53: 199 | AA53: A | AB53: A | AC53: B | AD53: 0 | AE53: D | AF53: A | AG53: B | AI53: A | AJ53: A | AK53: A | AN53: S | AO53: S | AP53: S | AQ53: S | AR53: 45 | AS53: IB | AT53: I | AU53: B | AV53: Q | AW53: WE | AX53: W | AY53: E | AZ53: K | BA53: K | BB53: B | BC53: A | BD53: C | BE53: U | BG53: 2 | BH53: 20845 | BI53: 299-11 | BJ53: 65 | BK53: 8 | BL53: 1 | BM53: 4 | BN53: 8 | BO53: 4.83 | BP53: 0 | BQ53: 2 | BR53: 60 | BS53: 22 | BT53: 0 | BU53: 0 | BV53: 4 | BW53: 199 | BX53: 4 | BY53: D | BZ53: 42 | CA53: A | CC53: L | CD53: P | CE53: 1 | CF53: 6.83 | CG53: 30.204966 | CH53: -90.271679 | CI53: 10:22:00 | CJ53: 6 | CL53: 299-11-1-010 | CM53: 4.83 | CN53: 0 | CO53: 0
A54: 2014 | B54: 2014969327518- | C54: 2014-01-26 | D54: 18 | E54: A | F54: 0 | G54: A | I54: 0 | J54: 0 | K54: SU | L54: 0 | M54: 0 | N54: C | O54: 1 | P54: C | Q54: A | R54: B | S54: D | T54: 2.25 | U54: 2 | V54: 0 | W54: 2 | X54: 65 | Y54: 0 | Z54: 199 | AA54: A | AB54: A | AC54: B | AD54: 0 | AE54: D | AF54: A | AG54: B | AI54: A | AJ54: B | AK54: A | AL54: 5 | AM54: 35 | AN54: S | AO54: S | AP54: S | AQ54: S | AR54: 45 | AS54: IB | AT54: I | AU54: B | AV54: A | AW54: NE | AX54: N | AY54: E | AZ54: K | BA54: K | BB54: A | BC54: I | BD54: C | BE54: U | BG54: 2 | BH54: 21754 | BI54: 299-11 | BJ54: 65 | BK54: 8 | BL54: 1 | BM54: 4 | BN54: 8 | BO54: 6.25 | BP54: 0 | BQ54: 2 | BR54: 60 | BS54: 22 | BT54: 0 | BU54: 0 | BV54: 4 | BW54: 199 | BX54: 4 | BY54: D | BZ54: 42 | CA54: A | CB54: B | CC54: L | CD54: P | CE54: 1 | CF54: 8.25 | CG54: 30.204966 | CH54: -90.271679 | CI54: 18:30:00 | CJ54: 6 | CL54: 299-11-1-010 | CM54: 6.25 | CN54: 0 | CO54: 0
A55: 2015 | B55: 2015316885659- | C55: 2015-07-21 | D55: 16 | E55: A | F55: 0 | G55: A | I55: 0 | J55: 0 | K55: TU | L55: 0 | M55: 0 | N55: C | O55: 0 | P55: A | Q55: D | R55: B | S55: A | T55: 0.21 | U55: 0 | V55: 0 | W55: 1 | X55: 65 | Y55: 0 | Z55: 199 | AA55: A | AB55: D | AC55: B | AD55: 0 | AE55: E | AF55: A | AG55: B | AI55: A | AJ55: Y | AN55: K | AP55: DD | AR55: 45 | AS55: J | AT55: J | AV55: A | AW55: N | AX55: N | AZ55: K | BB55: B | BD55: H | BG55: 3 | BH55: 21733 | BI55: 299-11 | BJ55: 65 | BK55: 8 | BL55: 1 | BM55: 4 | BN55: 8 | BO55: 4.21 | BP55: 0 | BQ55: 2 | BR55: 60 | BS55: 22 | BT55: 0 | BU55: 0 | BV55: 4 | BW55: 199 | BX55: 4 | BY55: A | BZ55: 42 | CA55: A | CB55: B | CC55: L | CE55: 1 | CF55: 6.21 | CG55: 30.204966 | CH55: -90.271679 | CI55: 16:13:00 | CJ55: 6 | CL55: 299-11-1-010 | CM55: 4.21 | CN55: 1 | CO55: 1
A56: 2015 | B56: 2015487715943- | C56: 2015-09-19 | D56: 18 | E56: A | F56: 0 | G56: A | I56: 0 | J56: 0 | K56: SA | L56: 0 | M56: 0 | N56: C | O56: 0 | P56: C | Q56: A | R56: A | S56: D | T56: 1.76 | U56: 1 | V56: 0 | W56: 2 | X56: 65 | Y56: 0 | Z56: 199 | AA56: A | AB56: A | AC56: B | AD56: 0 | AE56: D | AF56: A | AG56: B | AI56: A | AJ56: A | AK56: A | AL56: 5 | AM56: 45 | AN56: S | AO56: S | AP56: S | AQ56: S | AR56: 45 | AS56: B | AU56: B | AV56: J | AW56: EN | AX56: E | AY56: N | AZ56: K | BA56: K | BB56: M | BC56: A | BD56: C | BE56: U | BG56: 2 | BH56: 20441 | BI56: 299-11 | BJ56: 65 | BK56: 8 | BL56: 1 | BM56: 4 | BN56: 8 | BO56: 5.76 | BP56: 0 | BQ56: 2 | BR56: 60 | BS56: 22 | BT56: 0 | BU56: 0 | BV56: 4 | BW56: 199 | BX56: 4 | BY56: D | BZ56: 42 | CA56: A | CC56: P | CD56: P | CE56: 1 | CF56: 7.76 | CG56: 30.204966 | CH56: -90.271679 | CI56: 18:41:00 | CJ56: 6 | CL56: 299-11-1-010 | CM56: 5.76 | CN56: 0 | CO56: 0
A57: 2014 | B57: 2014517325165- | C57: 2014-06-22 | D57: 12 | E57: A | F57: 0 | G57: A | I57: 0 | J57: 0 | K57: SU | L57: 0 | M57: 0 | N57: C | O57: 0 | P57: B | Q57: A | R57: C | S57: D | T57: 0.22 | U57: 2 | V57: 0 | W57: 2 | X57: 65 | Y57: 0 | Z57: 199 | AA57: A | AB57: A | AC57: B | AD57: 0 | AE57: C | AF57: A | AG57: B | AI57: A | AJ57: B | AK57: A | AN57: S | AO57: S | AP57: S | AQ57: S | AR57: 55 | AS57: IB | AT57: I | AU57: B | AV57: A | AW57: NE | AX57: N | AY57: E | AZ57: K | BA57: K | BB57: S | BC57: B | BD57: C | BE57: U | BG57: 2 | BH57: 21038 | BI57: 299-11 | BJ57: 65 | BK57: 8 | BL57: 1 | BM57: 4 | BN57: 8 | BO57: 4.22 | BP57: 0 | BQ57: 2 | BR57: 60 | BS57: 22 | BT57: 0 | BU57: 0 | BV57: 4 | BW57: 199 | BX57: 4 | BY57: D | BZ57: 42 | CA57: A | CC57: P | CD57: P | CE57: 1 | CF57: 6.22 | CG57: 30.204966 | CH57: -90.271679 | CI57: 12:40:00 | CJ57: 6 | CL57: 299-11-1-010 | CM57: 4.22 | CN57: 0 | CO57: 0
A58: 2013 | B58: 2013835930355- | C58: 2013-03-19 | D58: 5 | E58: A | F58: 0 | G58: A | I58: 0 | J58: 0 | K58: TU | L58: 0 | M58: 0 | N58: C | O58: 0 | P58: C | Q58: D | R58: C | S58: F | T58: 0.64 | U58: 1 | V58: 0 | W58: 2 | X58: 65 | Y58: 0 | Z58: 199 | AA58: A | AB58: Z | AC58: B | AD58: 0 | AE58: D | AF58: A | AG58: B | AI58: Z | AJ58: B | AK58: A | AN58: S | AO58: S | AP58: X | AQ58: X | AR58: 55 | AS58: IB | AT58: I | AU58: B | AV58: Z | AW58: SN | AX58: S | AY58: N | AZ58: K | BA58: K | BB58: B | BC58: A | BD58: C | BE58: U | BG58: 2 | BH58: 22017 | BI58: 299-11 | BJ58: 65 | BK58: 8 | BL58: 1 | BM58: 4 | BN58: 8 | BO58: 4.64 | BP58: 0 | BQ58: 2 | BR58: 60 | BS58: 22 | BT58: 0 | BU58: 0 | BV58: 4 | BW58: 199 | BX58: 4 | BY58: D | BZ58: 42 | CA58: B | CB58: A | CC58: Y | CD58: A | CE58: 1 | CF58: 6.64 | CG58: 30.204966 | CH58: -90.271679 | CI58: 05:45:00 | CJ58: 6 | CL58: 299-11-1-010 | CM58: 4.64 | CN58: 0 | CO58: 0
A59: 2015 | B59: 2015515090874- | C59: 2015-11-06 | D59: 5 | E59: B | F59: 0 | G59: A | I59: 0 | J59: 0 | K59: FI | L59: 0 | M59: 0 | N59: C | O59: 0 | P59: C | Q59: C | R59: B | S59: A | T59: 3.57 | U59: 0 | V59: 0 | W59: 1 | X59: 65 | Y59: 0 | Z59: 199 | AA59: A | AB59: D | AC59: D | AD59: 0 | AE59: E | AF59: A | AG59: B | AI59: A | AJ59: B | AN59: S | AP59: S | AR59: 45 | AS59: B | AT59: B | AV59: A | AW59: E | AX59: E | AZ59: K | BB59: B | BD59: S | BG59: 3 | BH59: 20892 | BI59: 299-11 | BJ59: 65 | BK59: 8 | BL59: 1 | BM59: 4 | BN59: 8 | BO59: 7.57 | BP59: 0 | BQ59: 2 | BR59: 60 | BS59: 22 | BT59: 0 | BU59: 0 | BV59: 4 | BW59: 199 | BX59: 4 | BY59: D | BZ59: 42 | CA59: A | CB59: B | CC59: P | CE59: 1 | CF59: 9.57 | CG59: 30.204966 | CH59: -90.271679 | CI59: 05:51:00 | CJ59: 6 | CL59: 299-11-1-010 | CM59: 7.57 | CN59: 1 | CO59: 1
A60: 2015 | B60: 2015650108376- | C60: 2015-04-15 | D60: 11 | E60: A | F60: 0 | G60: A | I60: 0 | J60: 0 | K60: WE | L60: 0 | M60: 0 | N60: C | O60: 1 | P60: C | Q60: F | R60: B | S60: F | T60: 0.51 | U60: 0 | V60: 0 | W60: 3 | X60: 65 | Y60: 0 | Z60: 199 | AA60: A | AB60: A | AC60: B | AD60: 0 | AE60: E | AF60: A | AG60: B | AI60: A | AJ60: A | AK60: A | AN60: S | AO60: S | AP60: S | AQ60: S | AR60: 45 | AS60: IBM | AT60: I | AU60: B | AV60: A | AW60: WEW | AX60: W | AY60: E | AZ60: K | BA60: K | BB60: A | BC60: A | BD60: C | BE60: U | BG60: 3 | BH60: 21298 | BI60: 299-11 | BJ60: 65 | BK60: 8 | BL60: 1 | BM60: 4 | BN60: 8 | BO60: 4.51 | BP60: 0 | BQ60: 2 | BR60: 60 | BS60: 22 | BT60: 0 | BU60: 0 | BV60: 4 | BW60: 199 | BX60: 4 | BY60: D | BZ60: 42 | CA60: A | CC60: L | CD60: P | CE60: 1 | CF60: 6.51 | CG60: 30.204966 | CH60: -90.271679 | CI60: 11:07:00 | CJ60: 6 | CK60: 65LA199@OAK | CL60: 299-11-1-010 | CM60: 4.51 | CN60: 0 | CO60: 0
A61: 2015 | B61: 2015229664135- | C61: 2015-03-26 | D61: 6 | E61: A | F61: 0 | G61: A | I61: 0 | J61: 0 | K61: TH | L61: 0 | M61: 0 | N61: C | O61: 1 | P61: C | Q61: A | R61: B | S61: D | T61: 1.24 | U61: 1 | V61: 0 | W61: 2 | X61: 65 | Y61: 0 | Z61: 199 | AA61: A | AB61: A | AC61: B | AD61: 0 | AE61: D | AF61: B | AG61: B | AI61: C | AJ61: B | AK61: A | AL61: 10 | AM61: 35 | AN61: S | AO61: S | AP61: S | AQ61: S | AR61: 45 | AS61: IB | AT61: I | AU61: B | AV61: A | AW61: NE | AX61: N | AY61: E | AZ61: K | BA61: K | BB61: A | BC61: A | BD61: C | BE61: U | BG61: 2 | BH61: 21140 | BI61: 299-11 | BJ61: 65 | BK61: 8 | BL61: 1 | BM61: 4 | BN61: 8 | BO61: 5.24 | BP61: 0 | BQ61: 2 | BR61: 60 | BS61: 22 | BT61: 0 | BU61: 0 | BV61: 4 | BW61: 199 | BX61: 4 | BY61: D | BZ61: 42 | CA61: A | CB61: I | CC61: L | CD61: P | CE61: 1 | CF61: 7.24 | CG61: 30.204966 | CH61: -90.271679 | CI61: 06:38:00 | CJ61: 6 | CK61: 65LA199@MAIN | CL61: 299-11-1-010 | CM61: 5.24 | CN61: 0 | CO61: 0
A62: 2014 | B62: 2014902290427- | C62: 2014-09-18 | D62: 16 | E62: A | F62: 0 | G62: A | I62: 0 | J62: 0 | K62: TH | L62: 0 | M62: 0 | N62: C | O62: 1 | P62: C | Q62: F | R62: B | S62: D | T62: 1.23 | U62: 5 | V62: 0 | W62: 5 | X62: 65 | Y62: 0 | Z62: 199 | AA62: K | AB62: D | AC62: B | AD62: 0 | AE62: D | AF62: B | AG62: B | AI62: C | AJ62: Y | AK62: A | AN62: S | AO62: S | AP62: S | AQ62: S | AR62: 45 | AS62: IBMA | AT62: I | AU62: B | AV62: A | AW62: NEWW | AX62: N | AY62: E | AZ62: K | BA62: K | BB62: A | BC62: Q | BD62: S | BE62: U | BG62: 2 | BH62: 21436 | BI62: 299-11 | BJ62: 65 | BK62: 8 | BL62: 1 | BM62: 4 | BN62: 8 | BO62: 5.23 | BP62: 0 | BQ62: 2 | BR62: 60 | BS62: 22 | BT62: 0 | BU62: 0 | BV62: 4 | BW62: 199 | BX62: 4 | BY62: D | BZ62: 42 | CA62: A | CB62: D | CC62: Y | CD62: P | CE62: 1 | CF62: 7.23 | CG62: 30.204966 | CH62: -90.271679 | CI62: 16:27:00 | CJ62: 6 | CK62: 65LA199@MAIN | CL62: 299-11-1-010 | CM62: 5.23 | CN62: 0 | CO62: 0
A63: 2014 | B63: 2014609804582- | C63: 2014-12-03 | D63: 11 | E63: A | F63: 0 | G63: A | I63: 0 | J63: 0 | K63: WE | L63: 0 | M63: 0 | N63: C | O63: 0 | P63: B | Q63: A | R63: B | S63: A | T63: 0.36 | U63: 0 | V63: 0 | W63: 1 | X63: 65 | Y63: 0 | Z63: 199 | AA63: A | AB63: A | AD63: 0 | AE63: E | AF63: A | AG63: B | AI63: A | AJ63: A | AL63: 45 | AN63: CC | AP63: CC | AR63: 45 | AS63: B | AT63: B | AV63: S | AW63: E | AX63: E | AZ63: Y | BB63: A | BD63: U | BG63: 3 | BH63: 20246 | BI63: 299-11 | BJ63: 65 | BK63: 8 | BL63: 1 | BM63: 4 | BN63: 8 | BO63: 4.36 | BP63: 0 | BQ63: 2 | BR63: 60 | BS63: 22 | BT63: 0 | BU63: 0 | BV63: 4 | BW63: 199 | BX63: 4 | BY63: I | BZ63: 42 | CA63: B | CC63: A | CE63: 1 | CF63: 6.36 | CG63: 30.204966 | CH63: -90.271679 | CI63: 11:49:00 | CJ63: 6 | CL63: 299-11-1-010 | CM63: 4.36 | CN63: 1 | CO63: 1
A64: 2013 | B64: 2013826334084- | C64: 2013-09-22 | D64: 9 | E64: A | F64: 0 | G64: A | I64: 0 | J64: 0 | K64: SU | L64: 0 | M64: 0 | N64: C | O64: 0 | P64: C | Q64: A | R64: B | S64: B | T64: 3.69 | U64: 0 | V64: 0 | W64: 2 | X64: 65 | Y64: 0 | Z64: 199 | AA64: A | AB64: A | AC64: B | AD64: 0 | AE64: E | AF64: A | AG64: B | AI64: A | AJ64: B | AK64: A | AN64: S | AO64: S | AP64: S | AQ64: S | AR64: 45 | AS64: AB | AT64: A | AU64: B | AV64: V | AW64: WW | AX64: W | AY64: W | AZ64: K | BA64: K | BB64: B | BC64: B | BD64: S | BE64: U | BG64: 3 | BH64: 20763 | BI64: 299-11 | BJ64: 65 | BK64: 8 | BL64: 1 | BM64: 4 | BN64: 8 | BO64: 7.69 | BP64: 0 | BQ64: 2 | BR64: 60 | BS64: 22 | BT64: 0 | BU64: 0 | BV64: 4 | BW64: 199 | BX64: 4 | BY64: D | BZ64: 42 | CA64: A | CB64: B | CC64: P | CD64: P | CE64: 1 | CF64: 9.69 | CG64: 30.204966 | CH64: -90.271679 | CI64: 09:09:00 | CJ64: 6 | CL64: 299-11-1-010 | CM64: 7.69 | CN64: 0 | CO64: 0
A65: 2014 | B65: 2014513776638- | C65: 2014-04-13 | D65: 8 | E65: A | F65: 0 | G65: A | I65: 0 | J65: 0 | K65: SU | L65: 0 | M65: 0 | N65: C | O65: 1 | P65: C | Q65: D | R65: C | S65: B | T65: 0.41 | U65: 0 | V65: 0 | W65: 2 | X65: 65 | Y65: 0 | Z65: 199 | AA65: A | AB65: A | AC65: B | AD65: 0 | AE65: E | AF65: A | AG65: B | AI65: B | AJ65: B | AK65: Y | AL65: 25 | AM65: 0 | AN65: S | AO65: S | AP65: S | AQ65: S | AR65: 45 | AS65: BM | AT65: B | AU65: M | AV65: I | AW65: WW | AX65: W | AY65: W | AZ65: K | BA65: Y | BB65: B | BC65: B | BD65: D | BE65: Y | BG65: 3 | BH65: 21839 | BI65: 299-11 | BJ65: 65 | BK65: 8 | BL65: 1 | BM65: 4 | BN65: 8 | BO65: 4.41 | BP65: 0 | BQ65: 2 | BR65: 60 | BS65: 22 | BT65: 0 | BU65: 0 | BV65: 4 | BW65: 199 | BX65: 4 | BY65: D | BZ65: 42 | CA65: A | CB65: B | CC65: K | CD65: Y | CE65: 1 | CF65: 6.41 | CG65: 30.204966 | CH65: -90.271679 | CI65: 08:35:00 | CJ65: 6 | CK65: 65LA199@OAK | CL65: 299-11-1-010 | CM65: 4.41 | CN65: 0 | CO65: 0
A66: 2014 | B66: 2014383023720- | C66: 2014-09-19 | D66: 13 | E66: A | F66: 0 | G66: A | I66: 0 | J66: 0 | K66: FI | L66: 0 | M66: 0 | N66: C | O66: 0 | P66: C | Q66: A | R66: B | S66: D | T66: 0.32 | U66: 0 | V66: 0 | W66: 4 | X66: 65 | Y66: 0 | Z66: 199 | AA66: A | AB66: A | AC66: B | AD66: 0 | AE66: E | AF66: A | AG66: B | AI66: A | AJ66: B | AK66: A | AL66: 10 | AM66: 0 | AN66: S | AO66: S | AP66: S | AQ66: S | AR66: 45 | AS66: BAAB | AT66: B | AU66: A | AV66: A | AW66: NWWE | AX66: N | AY66: W | AZ66: K | BA66: K | BB66: A | BC66: A | BD66: C | BE66: U | BG66: 3 | BH66: 20123 | BI66: 299-11 | BJ66: 65 | BK66: 8 | BL66: 1 | BM66: 4 | BN66: 8 | BO66: 4.32 | BP66: 0 | BQ66: 2 | BR66: 60 | BS66: 22 | BT66: 0 | BU66: 0 | BV66: 4 | BW66: 199 | BX66: 4 | BY66: D | BZ66: 42 | CA66: A | CB66: D | CC66: L | CD66: P | CE66: 1 | CF66: 6.32 | CG66: 30.204966 | CH66: -90.271679 | CI66: 13:06:00 | CJ66: 6 | CL66: 299-11-1-010 | CM66: 4.32 | CN66: 0 | CO66: 0
A67: =YEAR(C67) -> 2014 | B67: =A67 & RANDBETWEEN(111111111,999999999) & "-" -> 2014949983753- | C67: =RANDBETWEEN(DATE(2013, 1, 1),DATE(2015, 12, 31)) -> 2014-03-03 | D67: =RANDBETWEEN(0,6) +RANDBETWEEN(0,6) +RANDBETWEEN(0,6) +RANDBETWEEN(0,5) -> 6 | E67: A | F67: 0 | G67: A | I67: 0 | J67: 0 | K67: =IF(WEEKDAY(C67,1)=1,"SU",IF(WEEKDAY(C67,1)=2,"MO",IF(WEEKDAY(C67,1)=3,"TU",IF(WEEKDAY(C67,1)=4,"WE",IF(WEEKDAY(C67,1)=5,"TH",IF(WEEKDAY(C67,1)=6,"FI",IF(WEEKDAY(C67,1)=7,"SA",""))))))) -> MO | L67: 0 | M67: 0 | N67: C | O67: =IF(AND(BO67>4.4,BO67<4.6),IF(RAND()<0.67,1,0),(IF(AND(BO67>5.2,BO67<5.4),IF(RAND()<0.67,1,0),(IF(AND(BO67>6.3,BO67<6.5),IF(RAND()<0.67,1,0),(IF(AND(BO67>7.1,BO67<7.3),IF(RAND()<0.67,1,0),IF(RAND()<0.06,1,0)))))))) -> 0 | P67: =IF(RAND()<0.12,"A",IF(RAND()<0.22,"B",IF(RAND()<0.97,"C","Z"))) -> C | Q67: A | R67: C | S67: B | T67: =BO67-4 -> 0.81 | U67: 0 | V67: 0 | W67: 2 | X67: 65 | Y67: 0 | Z67: 199 | AA67: A | AB67: A | AC67: B | AD67: 0 | AE67: E | AF67: A | AG67: B | AI67: A | AJ67: A | AK67: Y | AL67: 0 | AN67: S | AO67: YY | AP67: S | AQ67: YY | AR67: 45 | AS67: AY | AT67: A | AU67: Y | AV67: I | AW67: W | AX67: W | AZ67: K | BA67: Y | BB67: B | BC67: Z | BD67: U | BE67: Y | BG67: 3 | BH67: =RANDBETWEEN(20100,22100) -> 20708 | BI67: 299-11 | BJ67: 65 | BK67: 8 | BL67: 1 | BM67: 4 | BN67: 8 | BO67: =RANDBETWEEN(4,7) + RANDBETWEEN(0,99)/100 -> 4.81 | BP67: 0 | BQ67: 2 | BR67: 60 | BS67: 22 | BT67: 0 | BU67: 0 | BV67: 4 | BW67: 199 | BX67: 4 | BY67: D | BZ67: 42 | CA67: A | CB67: B | CC67: P | CD67: Y | CE67: 1 | CF67: =BO67+2 -> 6.81 | CG67: 30.204966 | CH67: -90.271679 | CI67: =TIME(D67,RANDBETWEEN(0,59),0) -> 06:58:00 | CJ67: 6 | CK67: =IF(AND(BO67>4.4,BO67<4.6),"65LA199@OAK",(IF(AND(BO67>5.2,BO67<5.4),"65LA199@MAIN",(IF(AND(BO67>6.3,BO67<6.5),"65LA199@1ST",(IF(AND(BO67>7.1,BO67<7.3),"65LA199@PINE",""))))))) ->  | CL67: 299-11-1-010 | CM67: =BO67 -> 4.81 | CN67: 0 | CO67: 0
A68: 2013 | B68: 2013556972633- | C68: 2013-03-14 | D68: 12 | E68: A | F68: 0 | G68: A | I68: 0 | J68: 0 | K68: TH | L68: 0 | M68: 0 | N68: C | O68: 1 | P68: C | Q68: A | R68: B | S68: B | T68: 3.81 | U68: 3 | V68: 0 | W68: 2 | X68: 65 | Y68: 0 | Z68: 199 | AA68: A | AB68: A | AC68: D | AD68: 0 | AE68: D | AF68: A | AG68: B | AI68: A | AJ68: B | AK68: A | AN68: S | AO68: S | AP68: S | AQ68: S | AR68: 45 | AS68: BB | AT68: B | AU68: B | AV68: V | AW68: WW | AX68: W | AY68: W | AZ68: K | BA68: K | BB68: S | BC68: A | BD68: S | BE68: U | BG68: 2 | BH68: 21557 | BI68: 299-11 | BJ68: 65 | BK68: 8 | BL68: 1 | BM68: 4 | BN68: 8 | BO68: 7.81 | BP68: 0 | BQ68: 2 | BR68: 60 | BS68: 22 | BT68: 0 | BU68: 0 | BV68: 4 | BW68: 199 | BX68: 4 | BY68: D | BZ68: 42 | CA68: A | CB68: B | CC68: P | CD68: P | CE68: 1 | CF68: 9.81 | CG68: 30.204966 | CH68: -90.271679 | CI68: 12:23:00 | CJ68: 6 | CL68: 299-11-1-010 | CM68: 7.81 | CN68: 0 | CO68: 0
A69: 2014 | B69: 2014240354912- | C69: 2014-03-08 | D69: 13 | E69: A | F69: 0 | G69: A | I69: 0 | J69: 0 | K69: SA | L69: 0 | M69: 0 | N69: C | O69: 0 | P69: C | Q69: A | R69: B | S69: K | T69: 1.08 | U69: 0 | V69: 0 | W69: 2 | X69: 65 | Y69: 0 | Z69: 199 | AA69: A | AB69: A | AC69: B | AD69: 0 | AE69: E | AF69: B | AG69: B | AI69: B | AJ69: A | AK69: A | AN69: S | AO69: S | AP69: S | AQ69: S | AR69: 45 | AS69: FB | AT69: F | AU69: B | AV69: R | AW69: NS | AX69: N | AY69: S | AZ69: Y | BA69: Y | BB69: B | BC69: N | BD69: S | BE69: U | BG69: 3 | BH69: 21325 | BI69: 299-11 | BJ69: 65 | BK69: 8 | BL69: 1 | BM69: 4 | BN69: 8 | BO69: 5.08 | BP69: 0 | BQ69: 2 | BR69: 60 | BS69: 22 | BT69: 0 | BU69: 0 | BV69: 4 | BW69: 199 | BX69: 4 | BY69: D | BZ69: 42 | CA69: A | CB69: B | CC69: P | CD69: P | CE69: 1 | CF69: 7.08 | CG69: 30.204966 | CH69: -90.271679 | CI69: 13:23:00 | CJ69: 6 | CL69: 299-11-1-010 | CM69: 5.08 | CN69: 0 | CO69: 1
A70: 2014 | B70: 2014298275975- | C70: 2014-10-18 | D70: 13 | E70: A | F70: 0 | G70: A | I70: 0 | J70: 0 | K70: SA | L70: 0 | M70: 0 | N70: C | O70: 0 | P70: B | Q70: A | R70: B | S70: B | T70: 0.65 | U70: 0 | V70: 0 | W70: 2 | X70: 65 | Y70: 0 | Z70: 199 | AA70: A | AB70: A | AC70: B | AD70: 0 | AE70: E | AF70: B | AG70: B | AI70: C | AJ70: A | AK70: A | AN70: S | AO70: S | AP70: S | AQ70: S | AR70: 45 | AS70: BB | AT70: B | AU70: B | AV70: R | AW70: NN | AX70: N | AY70: N | AZ70: Y | BA70: Y | BB70: B | BC70: Z | BD70: D | BE70: U | BG70: 3 | BH70: 21432 | BI70: 299-11 | BJ70: 65 | BK70: 8 | BL70: 1 | BM70: 4 | BN70: 8 | BO70: 4.65 | BP70: 0 | BQ70: 2 | BR70: 60 | BS70: 22 | BT70: 0 | BU70: 0 | BV70: 4 | BW70: 199 | BX70: 4 | BY70: D | BZ70: 42 | CA70: B | CB70: I | CC70: P | CD70: P | CE70: 1 | CF70: 6.65 | CG70: 30.204966 | CH70: -90.271679 | CI70: 13:46:00 | CJ70: 6 | CL70: 299-11-1-010 | CM70: 4.65 | CN70: 0 | CO70: 0
A71: 2015 | B71: 2015387960572- | C71: 2015-03-13 | D71: 11 | E71: A | F71: 0 | G71: A | I71: 0 | J71: 0 | K71: FI | L71: 0 | M71: 0 | N71: C | O71: 1 | P71: C | Q71: A | R71: B | S71: A | T71: 3.94 | U71: 0 | V71: 0 | W71: 2 | X71: 65 | Y71: 0 | Z71: 199 | AA71: A | AB71: A | AC71: B | AD71: 0 | AE71: E | AF71: A | AG71: B | AI71: A | AJ71: B | AK71: A | AL71: 25 | AM71: 45 | AN71: N | AO71: HH | AP71: N | AQ71: HH | AR71: 45 | AS71: IB | AT71: I | AU71: B | AV71: I | AW71: SN | AX71: S | AY71: N | AZ71: K | BA71: K | BB71: B | BC71: B | BD71: C | BE71: U | BG71: 3 | BH71: 20372 | BI71: 299-11 | BJ71: 65 | BK71: 8 | BL71: 1 | BM71: 4 | BN71: 8 | BO71: 7.94 | BP71: 0 | BQ71: 2 | BR71: 60 | BS71: 22 | BT71: 0 | BU71: 0 | BV71: 4 | BW71: 199 | BX71: 4 | BY71: K | BZ71: 42 | CA71: A | CB71: B | CC71: L | CD71: P | CE71: 1 | CF71: 9.94 | CG71: 30.204966 | CH71: -90.271679 | CI71: 11:46:00 | CJ71: 6 | CL71: 299-11-1-010 | CM71: 7.94 | CN71: 0 | CO71: 0
A72: 2013 | B72: 2013929255342- | C72: 2013-07-30 | D72: 8 | E72: A | F72: 0 | G72: A | I72: 0 | J72: 0 | K72: TU | L72: 0 | M72: 0 | N72: C | O72: 0 | P72: C | Q72: A | R72: B | S72: F | T72: 0.11 | U72: 1 | V72: 0 | W72: 2 | X72: 65 | Y72: 0 | Z72: 199 | AA72: K | AB72: A | AC72: C | AD72: 0 | AE72: D | AF72: B | AG72: B | AI72: C | AJ72: A | AK72: A | AN72: S | AO72: S | AP72: S | AQ72: S | AR72: 45 | AS72: MB | AT72: M | AU72: B | AV72: V | AW72: WE | AX72: W | AY72: E | AZ72: K | BA72: K | BB72: A | BC72: B | BD72: Z | BE72: U | BG72: 2 | BH72: 21833 | BI72: 299-11 | BJ72: 65 | BK72: 8 | BL72: 1 | BM72: 4 | BN72: 8 | BO72: 4.11 | BP72: 0 | BQ72: 2 | BR72: 60 | BS72: 22 | BT72: 0 | BU72: 0 | BV72: 4 | BW72: 199 | BX72: 4 | BY72: D | BZ72: 42 | CA72: M | CC72: P | CD72: P | CE72: 1 | CF72: 6.11 | CG72: 30.204966 | CH72: -90.271679 | CI72: 08:00:00 | CJ72: 6 | CL72: 299-11-1-010 | CM72: 4.11 | CN72: 0 | CO72: 0
A73: 2014 | B73: 2014234715007- | C73: 2014-03-11 | D73: 9 | E73: A | F73: 0 | G73: A | I73: 0 | J73: 0 | K73: TU | L73: 0 | M73: 0 | N73: C | O73: 0 | P73: B | Q73: A | R73: B | S73: E | T73: 0.04 | U73: 0 | V73: 0 | W73: 2 | X73: 65 | Y73: 0 | Z73: 199 | AA73: A | AB73: A | AC73: B | AD73: 0 | AE73: E | AF73: A | AG73: A | AI73: A | AJ73: A | AK73: A | AN73: S | AO73: S | AP73: S | AQ73: S | AR73: 55 | AS73: IB | AT73: I | AU73: B | AV73: A | AW73: SN | AX73: S | AY73: N | AZ73: Y | BA73: Y | BB73: B | BC73: N | BD73: Z | BE73: Z | BG73: 3 | BH73: 21076 | BI73: 299-11 | BJ73: 65 | BK73: 8 | BL73: 1 | BM73: 4 | BN73: 8 | BO73: 4.04 | BP73: 0 | BQ73: 2 | BR73: 60 | BS73: 22 | BT73: 0 | BU73: 0 | BV73: 4 | BW73: 199 | BX73: 4 | BY73: D | BZ73: 42 | CA73: A | CB73: B | CC73: P | CD73: P | CE73: 1 | CF73: 6.04 | CG73: 30.204966 | CH73: -90.271679 | CI73: 09:52:00 | CJ73: 6 | CL73: 299-11-1-010 | CM73: 4.04 | CN73: 0 | CO73: 0
A74: 2013 | B74: 2013648557356- | C74: 2013-04-02 | D74: 14 | E74: B | F74: 0 | G74: A | I74: 0 | J74: 0 | K74: TU | L74: 0 | M74: 0 | N74: C | O74: 0 | P74: B | Q74: C | R74: C | S74: B | T74: 3.94 | U74: 0 | V74: 0 | W74: 2 | X74: 65 | Y74: 0 | Z74: 199 | AA74: B | AB74: A | AC74: B | AD74: 0 | AE74: E | AF74: A | AG74: B | AI74: B | AJ74: A | AK74: A | AL74: 10 | AM74: 0 | AN74: S | AO74: S | AP74: S | AQ74: S | AR74: 45 | AS74: BA | AT74: B | AU74: A | AV74: Q | AW74: SS | AX74: S | AY74: S | AZ74: K | BA74: K | BB74: S | BC74: S | BD74: D | BE74: U | BG74: 3 | BH74: 21944 | BI74: 299-11 | BJ74: 65 | BK74: 8 | BL74: 1 | BM74: 4 | BN74: 8 | BO74: 7.94 | BP74: 0 | BQ74: 2 | BR74: 60 | BS74: 22 | BT74: 0 | BU74: 0 | BV74: 4 | BW74: 199 | BX74: 4 | BY74: D | BZ74: 42 | CA74: A | CB74: A | CC74: P | CD74: P | CE74: 1 | CF74: 9.94 | CG74: 30.204966 | CH74: -90.271679 | CI74: 14:13:00 | CJ74: 6 | CL74: 299-11-1-010 | CM74: 7.94 | CN74: 0 | CO74: 0
A75: 2013 | B75: 2013413671799- | C75: 2013-08-19 | D75: 13 | E75: A | F75: 0 | G75: A | I75: 0 | J75: 0 | K75: MO | L75: 0 | M75: 0 | N75: C | O75: 1 | P75: C | Q75: A | R75: C | S75: E | T75: 1.22 | U75: 1 | V75: 0 | W75: 2 | X75: 65 | Y75: 0 | Z75: 199 | AA75: A | AB75: A | AC75: B | AD75: 0 | AE75: D | AF75: A | AG75: B | AI75: A | AJ75: A | AK75: A | AL75: 5 | AM75: 40 | AN75: S | AO75: S | AP75: S | AQ75: S | AR75: 45 | AS75: IB | AT75: I | AU75: B | AV75: A | AW75: NE | AX75: N | AY75: E | AZ75: K | BA75: K | BB75: B | BC75: P | BD75: S | BE75: U | BG75: 2 | BH75: 21936 | BI75: 299-11 | BJ75: 65 | BK75: 8 | BL75: 1 | BM75: 4 | BN75: 8 | BO75: 5.22 | BP75: 0 | BQ75: 2 | BR75: 60 | BS75: 22 | BT75: 0 | BU75: 0 | BV75: 4 | BW75: 199 | BX75: 4 | BY75: D | BZ75: 42 | CA75: A | CB75: B | CC75: P | CD75: P | CE75: 1 | CF75: 7.22 | CG75: 30.204966 | CH75: -90.271679 | CI75: 13:11:00 | CJ75: 6 | CK75: 65LA199@MAIN | CL75: 299-11-1-010 | CM75: 5.22 | CN75: 0 | CO75: 0
A76: 2015 | B76: 2015759705006- | C76: 2015-07-05 | D76: 6 | E76: A | F76: 0 | G76: A | I76: 0 | J76: 0 | K76: SU | L76: 0 | M76: 0 | N76: C | O76: 0 | P76: B | Q76: A | R76: B | S76: B | T76: 3.79 | U76: 0 | V76: 0 | W76: 2 | X76: 65 | Y76: 0 | Z76: 199 | AA76: A | AB76: A | AC76: B | AD76: 0 | AE76: E | AF76: A | AG76: B | AI76: B | AJ76: A | AK76: A | AL76: 10 | AM76: 0 | AN76: S | AO76: S | AP76: S | AQ76: S | AR76: 45 | AS76: BA | AT76: B | AU76: A | AV76: V | AW76: NN | AX76: N | AY76: N | AZ76: K | BA76: K | BB76: S | BC76: B | BD76: S | BE76: U | BG76: 3 | BH76: 21674 | BI76: 299-11 | BJ76: 65 | BK76: 8 | BL76: 1 | BM76: 4 | BN76: 8 | BO76: 7.79 | BP76: 0 | BQ76: 2 | BR76: 60 | BS76: 22 | BT76: 0 | BU76: 0 | BV76: 4 | BW76: 199 | BX76: 4 | BY76: D | BZ76: 42 | CA76: B | CB76: A | CC76: P | CD76: P | CE76: 1 | CF76: 9.79 | CG76: 30.204966 | CH76: -90.271679 | CI76: 06:59:00 | CJ76: 6 | CL76: 299-11-1-010 | CM76: 7.79 | CN76: 0 | CO76: 0
A77: 2013 | B77: 2013992177410- | C77: 2013-02-24 | D77: 8 | E77: A | F77: 0 | G77: A | I77: 0 | J77: 0 | K77: SU | L77: 0 | M77: 0 | N77: C | O77: 0 | P77: A | Q77: A | R77: C | S77: D | T77: 0.66 | U77: 0 | V77: 0 | W77: 2 | X77: 65 | Y77: 0 | Z77: 199 | AA77: A | AB77: A | AC77: C | AD77: 0 | AE77: E | AF77: B | AG77: B | AI77: B | AJ77: A | AK77: A | AL77: 5 | AM77: 40 | AN77: S | AO77: S | AP77: S | AQ77: S | AR77: 45 | AS77: MB | AT77: M | AU77: B | AV77: A | AW77: WN | AX77: W | AY77: N | AZ77: K | BA77: K | BB77: A | BC77: A | BD77: C | BE77: U | BG77: 3 | BH77: 20342 | BI77: 299-11 | BJ77: 65 | BK77: 8 | BL77: 1 | BM77: 4 | BN77: 8 | BO77: 4.66 | BP77: 0 | BQ77: 2 | BR77: 60 | BS77: 22 | BT77: 0 | BU77: 0 | BV77: 4 | BW77: 199 | BX77: 4 | BY77: D | BZ77: 42 | CA77: A | CB77: B | CC77: L | CD77: P | CE77: 1 | CF77: 6.66 | CG77: 30.204966 | CH77: -90.271679 | CI77: 08:33:00 | CJ77: 6 | CL77: 299-11-1-010 | CM77: 4.66 | CN77: 0 | CO77: 0
A78: 2013 | B78: 2013598321649- | C78: 2013-04-06 | D78: 11 | E78: A | F78: 0 | G78: A | I78: 0 | J78: 0 | K78: SA | L78: 0 | M78: 0 | N78: C | O78: 1 | P78: C | Q78: A | R78: C | S78: B | T78: 0.58 | U78: 0 | V78: 0 | W78: 2 | X78: 65 | Y78: 0 | Z78: 199 | AA78: A | AB78: A | AC78: B | AD78: 0 | AE78: E | AF78: A | AG78: B | AI78: A | AJ78: B | AK78: A | AN78: S | AO78: S | AP78: X | AQ78: X | AR78: 45 | AS78: BA | AT78: B | AU78: A | AV78: Z | AW78: SS | AX78: S | AY78: S | AZ78: K | BA78: K | BB78: B | BC78: D | BD78: C | BE78: U | BG78: 3 | BH78: 21200 | BI78: 299-11 | BJ78: 65 | BK78: 8 | BL78: 1 | BM78: 4 | BN78: 8 | BO78: 4.58 | BP78: 0 | BQ78: 2 | BR78: 60 | BS78: 22 | BT78: 0 | BU78: 0 | BV78: 4 | BW78: 199 | BX78: 4 | BY78: D | BZ78: 42 | CA78: B | CB78: A | CC78: L | CD78: P | CE78: 1 | CF78: 6.58 | CG78: 30.204966 | CH78: -90.271679 | CI78: 11:16:00 | CJ78: 6 | CK78: 65LA199@OAK | CL78: 299-11-1-010 | CM78: 4.58 | CN78: 0 | CO78: 0
A79: 2015 | B79: 2015775189486- | C79: 2015-06-14 | D79: 8 | E79: A | F79: 0 | G79: A | I79: 0 | J79: 0 | K79: SU | L79: 0 | M79: 0 | N79: C | O79: 0 | P79: A | Q79: A | R79: A | S79: B | T79: 1.16 | U79: 0 | V79: 0 | W79: 2 | X79: 65 | Y79: 0 | Z79: 199 | AA79: A | AB79: A | AC79: B | AD79: 0 | AE79: E | AF79: A | AG79: B | AI79: A | AJ79: A | AK79: A | AL79: 30 | AM79: 40 | AN79: S | AO79: S | AP79: S | AQ79: S | AR79: 45 | AS79: BB | AT79: B | AU79: B | AV79: Y | AW79: NN | AX79: N | AY79: N | AZ79: K | BA79: K | BB79: A | BC79: Q | BD79: Y | BE79: Y | BG79: 3 | BH79: 20595 | BI79: 299-11 | BJ79: 65 | BK79: 8 | BL79: 1 | BM79: 4 | BN79: 8 | BO79: 5.16 | BP79: 0 | BQ79: 2 | BR79: 60 | BS79: 22 | BT79: 0 | BU79: 0 | BV79: 4 | BW79: 199 | BX79: 4 | BY79: D | BZ79: 42 | CA79: B | CC79: P | CD79: P | CE79: 1 | CF79: 7.16 | CG79: 30.204966 | CH79: -90.271679 | CI79: 08:36:00 | CJ79: 6 | CL79: 299-11-1-010 | CM79: 5.16 | CN79: 0 | CO79: 0
A80: 2014 | B80: 2014610455360- | C80: 2014-04-14 | D80: 11 | E80: A | F80: 0 | G80: A | I80: 0 | J80: 0 | K80: MO | L80: 0 | M80: 0 | N80: C | O80: 1 | P80: B | Q80: A | R80: B | S80: B | T80: 2.35 | U80: 0 | V80: 0 | W80: 2 | X80: 65 | Y80: 0 | Z80: 199 | AA80: A | AC80: B | AD80: 0 | AE80: E | AF80: A | AG80: B | AI80: A | AJ80: B | AK80: A | AL80: 35 | AM80: 0 | AN80: S | AO80: S | AP80: S | AQ80: S | AR80: 45 | AS80: BA | AT80: B | AU80: A | AV80: R | AW80: EE | AX80: E | AY80: E | AZ80: K | BA80: K | BB80: B | BC80: B | BD80: S | BE80: U | BG80: 3 | BH80: 20933 | BI80: 299-11 | BJ80: 65 | BK80: 8 | BL80: 1 | BM80: 4 | BN80: 8 | BO80: 6.35 | BP80: 0 | BQ80: 2 | BR80: 60 | BS80: 22 | BT80: 0 | BU80: 0 | BV80: 4 | BW80: 199 | BX80: 4 | BY80: D | BZ80: 42 | CA80: B | CB80: A | CC80: L | CD80: P | CE80: 1 | CF80: 8.35 | CG80: 30.204966 | CH80: -90.271679 | CI80: 11:08:00 | CJ80: 6 | CK80: 65LA199@1ST | CL80: 299-11-1-010 | CM80: 6.35 | CN80: 0 | CO80: 0
A81: 2013 | B81: 2013969554648- | C81: 2013-02-16 | D81: 16 | E81: A | F81: 0 | G81: A | I81: 0 | J81: 0 | K81: SA | L81: 0 | M81: 0 | N81: C | O81: 0 | P81: A | Q81: B | R81: C | S81: J | T81: 1.82 | U81: 0 | V81: 0 | W81: 2 | X81: 65 | Y81: 0 | Z81: 199 | AA81: A | AB81: A | AC81: B | AD81: 0 | AE81: E | AF81: A | AG81: B | AI81: A | AJ81: B | AK81: A | AN81: S | AO81: S | AP81: S | AQ81: S | AR81: 45 | AS81: HB | AT81: H | AU81: B | AV81: R | AW81: NN | AX81: N | AY81: N | AZ81: K | BA81: K | BB81: B | BC81: A | BD81: Z | BE81: U | BG81: 3 | BH81: 20672 | BI81: 299-11 | BJ81: 65 | BK81: 8 | BL81: 1 | BM81: 4 | BN81: 8 | BO81: 5.82 | BP81: 0 | BQ81: 2 | BR81: 60 | BS81: 22 | BT81: 0 | BU81: 0 | BV81: 4 | BW81: 199 | BX81: 4 | BY81: D | BZ81: 42 | CA81: B | CB81: A | CC81: L | CD81: P | CE81: 1 | CF81: 7.82 | CG81: 30.204966 | CH81: -90.271679 | CI81: 16:56:00 | CJ81: 6 | CL81: 299-11-1-010 | CM81: 5.82 | CN81: 0 | CO81: 0
A82: 2013 | B82: 2013468152768- | C82: 2013-08-14 | D82: 9 | E82: A | F82: 0 | G82: A | I82: 0 | J82: 0 | K82: WE | L82: 0 | M82: 0 | N82: C | O82: 0 | P82: C | Q82: A | R82: B | S82: B | T82: 0.74 | U82: 0 | V82: 0 | W82: 2 | X82: 65 | Y82: 0 | Z82: 199 | AA82: A | AB82: A | AC82: B | AD82: 0 | AE82: E | AF82: A | AG82: B | AI82: A | AJ82: A | AK82: A | AN82: S | AO82: S | AP82: S | AQ82: S | AR82: 45 | AS82: BQ | AT82: B | AU82: Q | AV82: S | AW82: EE | AX82: E | AY82: E | AZ82: K | BA82: K | BB82: B | BC82: B | BD82: S | BE82: U | BG82: 3 | BH82: 21812 | BI82: 299-11 | BJ82: 65 | BK82: 8 | BL82: 1 | BM82: 4 | BN82: 8 | BO82: 4.74 | BP82: 0 | BQ82: 2 | BR82: 60 | BS82: 22 | BT82: 0 | BU82: 0 | BV82: 4 | BW82: 199 | BX82: 4 | BY82: D | BZ82: 42 | CA82: A | CC82: L | CD82: P | CE82: 1 | CF82: 6.74 | CG82: 30.204966 | CH82: -90.271679 | CI82: 09:33:00 | CJ82: 6 | CL82: 299-11-1-010 | CM82: 4.74 | CN82: 0 | CO82: 0
A83: 2015 | B83: 2015954009109- | C83: 2015-04-24 | D83: 12 | E83: A | F83: 0 | G83: A | I83: 0 | J83: 0 | K83: FI | L83: 0 | M83: 0 | N83: C | O83: 1 | P83: C | Q83: A | R83: B | S83: B | T83: 2.32 | U83: 0 | V83: 0 | W83: 2 | X83: 65 | Y83: 0 | Z83: 199 | AA83: A | AB83: A | AC83: B | AD83: 0 | AE83: E | AF83: A | AG83: B | AI83: A | AJ83: E | AK83: A | AN83: S | AO83: S | AR83: 45 | AS83: BB | AT83: B | AU83: B | AV83: V | AW83: WW | AX83: W | AY83: W | AZ83: K | BA83: K | BB83: B | BC83: A | BD83: D | BE83: U | BG83: 3 | BH83: 21381 | BI83: 299-11 | BJ83: 65 | BK83: 8 | BL83: 1 | BM83: 4 | BN83: 8 | BO83: 6.32 | BP83: 0 | BQ83: 2 | BR83: 60 | BS83: 22 | BT83: 0 | BU83: 0 | BV83: 4 | BW83: 199 | BX83: 4 | BY83: D | BZ83: 42 | CA83: D | CB83: A | CC83: K | CD83: P | CE83: 1 | CF83: 8.32 | CG83: 30.204966 | CH83: -90.271679 | CI83: 12:04:00 | CJ83: 6 | CK83: 65LA199@1ST | CL83: 299-11-1-010 | CM83: 6.32 | CN83: 0 | CO83: 0
A84: 2015 | B84: 2015504073212- | C84: 2015-01-13 | D84: 21 | E84: A | F84: 0 | G84: A | I84: 0 | J84: 0 | K84: TU | L84: 0 | M84: 0 | N84: C | O84: 0 | P84: Z | Q84: C | R84: B | S84: D | T84: 1.59 | U84: 0 | V84: 0 | W84: 2 | X84: 65 | Y84: 0 | Z84: 199 | AA84: A | AB84: A | AC84: B | AD84: 0 | AE84: E | AF84: B | AG84: B | AI84: C | AJ84: B | AK84: A | AN84: S | AO84: S | AP84: S | AQ84: S | AR84: 0 | AS84: WB | AT84: W | AU84: B | AV84: V | AW84: NE | AX84: N | AY84: E | AZ84: K | BA84: K | BB84: A | BC84: A | BD84: C | BE84: U | BG84: 3 | BH84: 21590 | BI84: 299-11 | BJ84: 65 | BK84: 8 | BL84: 1 | BM84: 4 | BN84: 8 | BO84: 5.59 | BP84: 0 | BQ84: 2 | BR84: 60 | BS84: 22 | BT84: 0 | BU84: 0 | BV84: 4 | BW84: 199 | BX84: 4 | BY84: D | BZ84: 42 | CA84: A | CC84: L | CD84: P | CE84: 1 | CF84: 7.59 | CG84: 30.204966 | CH84: -90.271679 | CI84: 21:06:00 | CJ84: 6 | CL84: 299-11-1-010 | CM84: 5.59 | CN84: 0 | CO84: 0
A85: 2014 | B85: 2014950227398- | C85: 2014-02-21 | D85: 11 | E85: A | F85: 0 | G85: A | I85: 0 | J85: 0 | K85: FI | L85: 0 | M85: 0 | N85: C | O85: 0 | P85: B | Q85: B | R85: B | S85: J | T85: 2.85 | U85: 0 | V85: 0 | W85: 2 | X85: 65 | Y85: 0 | Z85: 199 | AA85: A | AB85: A | AC85: B | AD85: 0 | AE85: E | AF85: B | AG85: B | AI85: A | AJ85: B | AK85: A | AN85: S | AO85: S | AP85: S | AQ85: S | AR85: 45 | AS85: HB | AT85: H | AU85: B | AV85: S | AW85: EE | AX85: E | AY85: E | AZ85: K | BA85: K | BB85: A | BC85: B | BD85: C | BE85: U | BG85: 3 | BH85: 21278 | BI85: 299-11 | BJ85: 65 | BK85: 8 | BL85: 1 | BM85: 4 | BN85: 8 | BO85: 6.85 | BP85: 0 | BQ85: 2 | BR85: 60 | BS85: 22 | BT85: 0 | BU85: 0 | BV85: 4 | BW85: 199 | BX85: 4 | BY85: D | BZ85: 42 | CA85: A | CB85: B | CC85: L | CD85: A | CE85: 1 | CF85: 8.85 | CG85: 30.204966 | CH85: -90.271679 | CI85: 11:39:00 | CJ85: 6 | CL85: 299-11-1-010 | CM85: 6.85 | CN85: 0 | CO85: 0
A86: 2015 | B86: 2015348407113- | C86: 2015-05-30 | D86: 14 | E86: A | F86: 0 | G86: A | I86: 0 | J86: 0 | K86: SA | L86: 0 | M86: 0 | N86: C | O86: 0 | P86: C | Q86: B | R86: G | S86: A | T86: 0.28 | U86: 0 | V86: 0 | W86: 1 | X86: 65 | Y86: 0 | Z86: 199 | AA86: A | AB86: A | AC86: B | AD86: 0 | AE86: E | AF86: A | AG86: B | AI86: A | AJ86: A | AN86: S | AP86: S | AR86: 55 | AS86: B | AT86: B | AV86: Q | AW86: W | AX86: W | AZ86: K | BB86: A | BD86: U | BG86: 3 | BH86: 22039 | BI86: 299-11 | BJ86: 65 | BK86: 8 | BL86: 1 | BM86: 4 | BN86: 8 | BO86: 4.28 | BP86: 0 | BQ86: 2 | BR86: 60 | BS86: 22 | BT86: 0 | BU86: 0 | BV86: 4 | BW86: 199 | BX86: 4 | BY86: D | BZ86: 42 | CA86: B | CB86: B | CC86: P | CE86: 1 | CF86: 6.28 | CG86: 30.204966 | CH86: -90.271679 | CI86: 14:28:00 | CJ86: 6 | CL86: 299-11-1-010 | CM86: 4.28 | CN86: 1 | CO86: 1
A87: 2015 | B87: 2015352020299- | C87: 2015-11-30 | D87: 15 | E87: A | F87: 0 | G87: A | I87: 0 | J87: 0 | K87: MO | L87: 0 | M87: 0 | N87: C | O87: 0 | P87: A | Q87: A | R87: C | S87: J | T87: 1.14 | U87: 0 | V87: 0 | W87: 2 | X87: 65 | Y87: 0 | Z87: 199 | AA87: A | AB87: A | AC87: B | AD87: 0 | AE87: E | AF87: A | AG87: B | AH87: H | AI87: A | AJ87: Y | AK87: A | AL87: 45 | AM87: 45 | AN87: S | AO87: S | AQ87: S | AR87: 45 | AS87: HB | AT87: H | AU87: B | AV87: R | AW87: SS | AX87: S | AY87: S | AZ87: Y | BA87: K | BB87: B | BC87: B | BD87: C | BE87: U | BG87: 3 | BH87: 21759 | BI87: 299-11 | BJ87: 65 | BK87: 8 | BL87: 1 | BM87: 4 | BN87: 8 | BO87: 5.14 | BP87: 0 | BQ87: 2 | BR87: 60 | BS87: 22 | BT87: 0 | BU87: 0 | BV87: 4 | BW87: 199 | BX87: 4 | BY87: D | BZ87: 42 | CA87: A | CC87: Y | CD87: P | CE87: 1 | CF87: 7.14 | CG87: 30.204966 | CH87: -90.271679 | CI87: 15:08:00 | CJ87: 6 | CL87: 299-11-1-010 | CM87: 5.14 | CN87: 0 | CO87: 0
A88: 2013 | B88: 2013189736233- | C88: 2013-03-23 | D88: 11 | E88: A | F88: 0 | G88: A | I88: 0 | J88: 0 | K88: SA | L88: 0 | M88: 0 | N88: C | O88: 0 | P88: C | Q88: F | R88: B | S88: B | T88: 2.87 | U88: 1 | V88: 0 | W88: 2 | X88: 65 | Y88: 0 | Z88: 199 | AA88: A | AB88: A | AC88: C | AD88: 0 | AE88: D | AF88: A | AG88: B | AI88: A | AJ88: B | AK88: A | AL88: 30 | AM88: 15 | AN88: S | AO88: S | AP88: S | AQ88: S | AR88: 45 | AS88: BB | AT88: B | AU88: B | AV88: Q | AW88: WW | AX88: W | AY88: W | AZ88: K | BA88: K | BB88: A | BC88: B | BD88: S | BE88: U | BG88: 2 | BH88: 21027 | BI88: 299-11 | BJ88: 65 | BK88: 8 | BL88: 1 | BM88: 4 | BN88: 8 | BO88: 6.87 | BP88: 0 | BQ88: 2 | BR88: 60 | BS88: 22 | BT88: 0 | BU88: 0 | BV88: 4 | BW88: 199 | BX88: 4 | BY88: D | BZ88: 42 | CA88: A | CB88: B | CC88: I | CD88: I | CE88: 1 | CF88: 8.87 | CG88: 30.204966 | CH88: -90.271679 | CI88: 11:06:00 | CJ88: 6 | CL88: 299-11-1-010 | CM88: 6.87 | CN88: 0 | CO88: 0
A89: 2014 | B89: 2014538308402- | C89: 2014-06-07 | D89: 19 | E89: A | F89: 0 | G89: A | I89: 0 | J89: 0 | K89: SA | L89: 0 | M89: 0 | N89: C | O89: 0 | P89: B | Q89: E | R89: G | S89: B | T89: 3.73 | U89: 0 | V89: 0 | W89: 2 | X89: 65 | Y89: 0 | Z89: 199 | AA89: A | AB89: A | AC89: B | AD89: 0 | AE89: E | AF89: A | AG89: B | AI89: A | AJ89: C | AK89: A | AN89: S | AO89: S | AP89: S | AQ89: S | AR89: 45 | AS89: BA | AT89: B | AU89: A | AV89: Q | AW89: WW | AX89: W | AY89: W | AZ89: K | BA89: K | BB89: A | BC89: A | BD89: R | BE89: Z | BG89: 3 | BH89: 20505 | BI89: 299-11 | BJ89: 65 | BK89: 8 | BL89: 1 | BM89: 4 | BN89: 8 | BO89: 7.73 | BP89: 0 | BQ89: 2 | BR89: 60 | BS89: 22 | BT89: 0 | BU89: 0 | BV89: 4 | BW89: 199 | BX89: 4 | BY89: D | BZ89: 42 | CA89: B | CC89: P | CD89: P | CE89: 1 | CF89: 9.73 | CG89: 30.204966 | CH89: -90.271679 | CI89: 19:30:00 | CJ89: 6 | CL89: 299-11-1-010 | CM89: 7.73 | CN89: 0 | CO89: 0
A90: 2014 | B90: 2014409116047- | C90: 2014-10-08 | D90: 8 | E90: A | F90: 0 | G90: A | I90: 0 | J90: 0 | K90: WE | L90: 0 | M90: 0 | N90: C | O90: 0 | P90: C | Q90: B | R90: B | S90: A | T90: 3.4 | U90: 2 | V90: 0 | W90: 3 | X90: 65 | Y90: 0 | Z90: 199 | AA90: A | AB90: A | AC90: B | AD90: 0 | AE90: D | AF90: A | AG90: B | AH90: H | AI90: A | AJ90: B | AK90: A | AL90: 25 | AM90: 0 | AN90: S | AO90: S | AP90: S | AQ90: S | AR90: 45 | AS90: BAA | AT90: B | AU90: A | AV90: Q | AW90: SSS | AX90: S | AY90: S | AZ90: K | BA90: K | BB90: B | BC90: S | BD90: S | BE90: U | BG90: 2 | BH90: 20522 | BI90: 299-11 | BJ90: 65 | BK90: 8 | BL90: 1 | BM90: 4 | BN90: 8 | BO90: 7.4 | BP90: 0 | BQ90: 2 | BR90: 60 | BS90: 22 | BT90: 0 | BU90: 0 | BV90: 4 | BW90: 199 | BX90: 4 | BY90: D | BZ90: 42 | CA90: A | CB90: B | CD90: P | CE90: 1 | CF90: 9.4 | CG90: 30.204966 | CH90: -90.271679 | CI90: 08:50:00 | CJ90: 6 | CL90: 299-11-1-010 | CM90: 7.4 | CN90: 0 | CO90: 0
A91: 2015 | B91: 2015773917011- | C91: 2015-12-01 | D91: 15 | E91: A | F91: 0 | G91: A | I91: 0 | J91: 0 | K91: TU | L91: 0 | M91: 0 | N91: C | O91: 0 | P91: B | Q91: A | R91: B | S91: B | T91: 0.43 | U91: 1 | V91: 0 | W91: 3 | X91: 65 | Y91: 0 | Z91: 199 | AA91: A | AB91: A | AC91: B | AD91: 0 | AE91: D | AF91: A | AG91: B | AI91: A | AJ91: C | AK91: A | AM91: 0 | AN91: S | AO91: S | AP91: S | AQ91: S | AR91: 45 | AS91: BAA | AT91: B | AU91: A | AV91: Q | AW91: WWW | AX91: W | AY91: W | AZ91: K | BA91: K | BB91: B | BC91: B | BD91: S | BE91: U | BG91: 2 | BH91: 21334 | BI91: 299-11 | BJ91: 65 | BK91: 8 | BL91: 1 | BM91: 4 | BN91: 8 | BO91: 4.43 | BP91: 0 | BQ91: 2 | BR91: 60 | BS91: 22 | BT91: 0 | BU91: 0 | BV91: 4 | BW91: 199 | BX91: 4 | BY91: D | BZ91: 42 | CA91: A | CC91: P | CD91: P | CE91: 1 | CF91: 6.43 | CG91: 30.204966 | CH91: -90.271679 | CI91: 15:06:00 | CJ91: 6 | CK91: 65LA199@OAK | CL91: 299-11-1-010 | CM91: 4.43 | CN91: 0 | CO91: 0
A92: 2014 | B92: 2014238955227- | C92: 2014-02-18 | D92: 21 | E92: A | F92: 0 | G92: A | I92: 0 | J92: 0 | K92: TU | L92: 0 | M92: 0 | N92: C | O92: 1 | P92: C | Q92: A | R92: C | S92: B | T92: 0.36 | U92: 0 | V92: 0 | W92: 2 | X92: 65 | Y92: 0 | Z92: 199 | AA92: A | AB92: B | AC92: B | AD92: 0 | AE92: E | AF92: A | AG92: B | AI92: A | AJ92: A | AK92: A | AL92: 10 | AM92: 0 | AN92: S | AO92: S | AP92: S | AQ92: S | AR92: 45 | AS92: BQ | AT92: B | AU92: Q | AV92: R | AW92: SS | AX92: S | AY92: S | AZ92: K | BA92: K | BB92: B | BC92: B | BD92: S | BE92: U | BG92: 3 | BH92: 20883 | BI92: 299-11 | BJ92: 65 | BK92: 8 | BL92: 1 | BM92: 4 | BN92: 8 | BO92: 4.36 | BP92: 0 | BQ92: 2 | BR92: 60 | BS92: 22 | BT92: 0 | BU92: 0 | BV92: 4 | BW92: 199 | BX92: 4 | BY92: D | BZ92: 42 | CA92: A | CB92: B | CC92: P | CD92: P | CE92: 1 | CF92: 6.36 | CG92: 30.204966 | CH92: -90.271679 | CI92: 21:21:00 | CJ92: 6 | CL92: 299-11-1-010 | CM92: 4.36 | CN92: 0 | CO92: 0
A93: 2014 | B93: 2014598787196- | C93: 2014-06-21 | D93: 15 | E93: A | F93: 0 | G93: A | I93: 0 | J93: 0 | K93: SA | L93: 0 | M93: 0 | N93: C | O93: 0 | P93: C | Q93: C | R93: B | S93: B | T93: 1.55 | U93: 0 | V93: 0 | W93: 2 | X93: 65 | Y93: 0 | Z93: 199 | AA93: A | AB93: A | AC93: Z | AD93: 0 | AE93: E | AF93: A | AG93: B | AI93: A | AJ93: B | AK93: A | AL93: 10 | AM93: 0 | AN93: S | AO93: S | AP93: S | AQ93: S | AR93: 45 | AS93: BA | AT93: B | AU93: A | AV93: Q | AW93: WW | AX93: W | AY93: W | AZ93: K | BA93: K | BB93: A | BC93: B | BD93: D | BE93: U | BG93: 3 | BH93: 20951 | BI93: 299-11 | BJ93: 65 | BK93: 8 | BL93: 1 | BM93: 4 | BN93: 8 | BO93: 5.55 | BP93: 0 | BQ93: 2 | BR93: 60 | BS93: 22 | BT93: 0 | BU93: 0 | BV93: 4 | BW93: 199 | BX93: 4 | BY93: D | BZ93: 42 | CA93: D | CB93: A | CC93: P | CD93: P | CE93: 1 | CF93: 7.55 | CG93: 30.204966 | CH93: -90.271679 | CI93: 15:11:00 | CJ93: 6 | CL93: 299-11-1-010 | CM93: 5.55 | CN93: 0 | CO93: 0
A94: 2014 | B94: 2014665013094- | C94: 2014-06-13 | D94: 9 | E94: A | F94: 0 | G94: A | I94: 0 | J94: 0 | K94: FI | L94: 0 | M94: 0 | N94: C | O94: 0 | P94: C | Q94: A | R94: B | S94: H | T94: 0.27 | U94: 0 | V94: 0 | W94: 2 | X94: 65 | Y94: 0 | Z94: 199 | AA94: A | AB94: A | AC94: B | AD94: 0 | AE94: E | AF94: A | AG94: B | AI94: A | AJ94: B | AK94: A | AL94: 15 | AM94: 45 | AN94: S | AO94: S | AP94: S | AQ94: S | AR94: 45 | AS94: WC | AT94: W | AU94: C | AV94: V | AW94: NE | AX94: N | AY94: E | AZ94: K | BA94: K | BB94: B | BC94: A | BD94: C | BE94: U | BG94: 3 | BH94: 21550 | BI94: 299-11 | BJ94: 65 | BK94: 8 | BL94: 1 | BM94: 4 | BN94: 8 | BO94: 4.27 | BP94: 0 | BQ94: 2 | BR94: 60 | BS94: 22 | BT94: 0 | BU94: 0 | BV94: 4 | BW94: 199 | BX94: 4 | BY94: D | BZ94: 42 | CA94: B | CB94: A | CC94: L | CD94: P | CE94: 1 | CF94: 6.27 | CG94: 30.204966 | CH94: -90.271679 | CI94: 09:40:00 | CJ94: 6 | CL94: 299-11-1-010 | CM94: 4.27 | CN94: 0 | CO94: 0
A95: 2014 | B95: 2014819598174- | C95: 2014-03-29 | D95: 8 | E95: B | F95: 0 | G95: A | I95: 0 | J95: 0 | K95: SA | L95: 0 | M95: 0 | N95: C | O95: 0 | P95: C | Q95: A | R95: B | S95: D | T95: 0.67 | U95: 2 | V95: 0 | W95: 2 | X95: 65 | Y95: 0 | Z95: 199 | AA95: A | AB95: C | AC95: C | AD95: 0 | AE95: C | AF95: A | AG95: A | AI95: A | AJ95: B | AK95: A | AL95: 45 | AM95: 15 | AN95: S | AO95: S | AP95: S | AQ95: S | AR95: 45 | AS95: BI | AT95: B | AU95: I | AV95: R | AW95: WS | AX95: W | AY95: S | AZ95: Y | BA95: Y | BB95: S | BC95: B | BD95: L | BE95: U | BG95: 2 | BH95: 22030 | BI95: 299-11 | BJ95: 65 | BK95: 8 | BL95: 1 | BM95: 4 | BN95: 8 | BO95: 4.67 | BP95: 0 | BQ95: 2 | BR95: 60 | BS95: 22 | BT95: 0 | BU95: 0 | BV95: 4 | BW95: 199 | BX95: 4 | BY95: D | BZ95: 42 | CA95: A | CB95: D | CC95: P | CD95: P | CE95: 1 | CF95: 6.67 | CG95: 30.204966 | CH95: -90.271679 | CI95: 08:58:00 | CJ95: 6 | CL95: 299-11-1-010 | CM95: 4.67 | CN95: 0 | CO95: 0
A96: 2015 | B96: 2015964558992- | C96: 2015-04-30 | D96: 5 | E96: A | F96: 0 | G96: A | I96: 0 | J96: 0 | K96: TH | L96: 0 | M96: 0 | N96: C | O96: 1 | P96: B | Q96: A | R96: B | S96: B | T96: 2.49 | U96: 0 | V96: 0 | W96: 2 | X96: 65 | Y96: 0 | Z96: 199 | AA96: A | AB96: A | AC96: B | AD96: 0 | AE96: E | AF96: B | AG96: B | AI96: C | AJ96: B | AK96: A | AL96: 25 | AM96: 0 | AN96: S | AO96: S | AP96: S | AQ96: S | AR96: 45 | AS96: BB | AT96: B | AU96: B | AV96: R | AW96: NN | AX96: N | AY96: N | AZ96: K | BA96: K | BB96: B | BC96: A | BD96: S | BE96: U | BG96: 3 | BH96: 20814 | BI96: 299-11 | BJ96: 65 | BK96: 8 | BL96: 1 | BM96: 4 | BN96: 8 | BO96: 6.49 | BP96: 0 | BQ96: 2 | BR96: 60 | BS96: 22 | BT96: 0 | BU96: 0 | BV96: 4 | BW96: 199 | BX96: 4 | BY96: D | BZ96: 42 | CA96: B | CB96: A | CC96: N | CD96: P | CE96: 1 | CF96: 8.49 | CG96: 30.204966 | CH96: -90.271679 | CI96: 05:22:00 | CJ96: 6 | CK96: 65LA199@1ST | CL96: 299-11-1-010 | CM96: 6.49 | CN96: 0 | CO96: 0
A97: 2015 | B97: 2015216558881- | C97: 2015-08-01 | D97: 14 | E97: A | F97: 0 | G97: A | I97: 0 | J97: 0 | K97: SA | L97: 0 | M97: 0 | N97: C | O97: 0 | P97: C | Q97: A | R97: B | S97: F | T97: 3.77 | U97: 0 | V97: 0 | W97: 2 | X97: 65 | Y97: 0 | Z97: 199 | AA97: A | AB97: A | AC97: C | AD97: 0 | AE97: E | AF97: A | AG97: B | AI97: A | AJ97: Y | AK97: A | AL97: 15 | AM97: 45 | AN97: S | AO97: S | AP97: S | AQ97: S | AR97: 45 | AS97: UB | AT97: U | AU97: B | AV97: R | AW97: WE | AX97: W | AY97: E | AZ97: K | BA97: K | BB97: A | BC97: A | BD97: C | BE97: U | BG97: 3 | BH97: 21245 | BI97: 299-11 | BJ97: 65 | BK97: 8 | BL97: 1 | BM97: 4 | BN97: 8 | BO97: 7.77 | BP97: 0 | BQ97: 2 | BR97: 60 | BS97: 22 | BT97: 0 | BU97: 0 | BV97: 4 | BW97: 199 | BX97: 4 | BY97: D | BZ97: 42 | CA97: B | CB97: D | CC97: P | CD97: A | CE97: 1 | CF97: 9.77 | CG97: 30.204966 | CH97: -90.271679 | CI97: 14:32:00 | CJ97: 6 | CL97: 299-11-1-010 | CM97: 7.77 | CN97: 0 | CO97: 0
A98: 2013 | B98: 2013982804119- | C98: 2013-11-12 | D98: 7 | E98: A | F98: 0 | G98: A | I98: 0 | J98: 0 | K98: TU | L98: 0 | M98: 0 | N98: C | O98: 0 | P98: C | Q98: A | R98: B | S98: J | T98: 2.94 | U98: 0 | V98: 0 | W98: 2 | X98: 65 | Y98: 0 | Z98: 199 | AA98: A | AB98: A | AC98: B | AD98: 0 | AE98: E | AF98: A | AG98: B | AI98: A | AJ98: B | AK98: A | AL98: 35 | AM98: 40 | AN98: S | AO98: S | AP98: S | AQ98: S | AR98: 45 | AS98: HB | AT98: H | AU98: B | AV98: Z | AW98: WW | AX98: W | AY98: W | AZ98: K | BA98: K | BB98: B | BC98: B | BD98: C | BE98: S | BG98: 3 | BH98: 20427 | BI98: 299-11 | BJ98: 65 | BK98: 8 | BL98: 1 | BM98: 4 | BN98: 8 | BO98: 6.94 | BP98: 0 | BQ98: 2 | BR98: 60 | BS98: 22 | BT98: 0 | BU98: 0 | BV98: 4 | BW98: 199 | BX98: 4 | BY98: D | BZ98: 42 | CA98: B | CB98: A | CC98: L | CD98: P | CE98: 1 | CF98: 8.94 | CG98: 30.204966 | CH98: -90.271679 | CI98: 07:13:00 | CJ98: 6 | CL98: 299-11-1-010 | CM98: 6.94 | CN98: 0 | CO98: 0
A99: 2014 | B99: 2014122258463- | C99: 2014-08-13 | D99: 4 | E99: A | F99: 0 | G99: B | I99: 0 | J99: 0 | K99: WE | L99: 0 | M99: 0 | N99: C | O99: 0 | P99: C | Q99: A | R99: E | S99: Z | T99: 3.36 | U99: 0 | V99: 0 | W99: 2 | X99: 65 | Y99: 0 | Z99: 199 | AA99: A | AB99: A | AC99: D | AD99: 0 | AE99: E | AF99: A | AG99: A | AI99: A | AJ99: A | AK99: A | AN99: S | AO99: S | AP99: S | AQ99: S | AR99: 45 | AS99: EB | AT99: E | AU99: B | AV99: R | AW99: SN | AX99: S | AY99: N | AZ99: K | BA99: K | BB99: B | BC99: B | BD99: C | BE99: U | BG99: 3 | BH99: 21366 | BI99: 299-11 | BJ99: 65 | BK99: 8 | BL99: 1 | BM99: 4 | BN99: 8 | BO99: 7.36 | BP99: 0 | BQ99: 2 | BR99: 60 | BS99: 22 | BT99: 0 | BU99: 0 | BV99: 4 | BW99: 199 | BX99: 4 | BY99: D | BZ99: 42 | CA99: C | CB99: J | CC99: I | CD99: P | CE99: 1 | CF99: 9.36 | CG99: 30.204966 | CH99: -90.271679 | CI99: 04:47:00 | CJ99: 6 | CL99: 299-11-1-010 | CM99: 7.36 | CN99: 1 | CO99: 1
A100: 2014 | B100: 2014735397457- | C100: 2014-07-10 | D100: 13 | E100: A | F100: 0 | G100: A | I100: 0 | J100: 0 | K100: TH | L100: 0 | M100: 0 | N100: C | O100: 0 | P100: C | Q100: A | R100: B | S100: E | T100: 3.3 | U100: 1 | V100: 0 | W100: 2 | X100: 65 | Y100: 0 | Z100: 199 | AA100: A | AB100: A | AC100: C | AD100: 0 | AE100: D | AF100: A | AG100: B | AI100: A | AJ100: A | AK100: A | AN100: S | AO100: S | AP100: S | AQ100: S | AR100: 45 | AS100: WB | AT100: W | AU100: B | AV100: R | AW100: EW | AX100: E | AY100: W | AZ100: Y | BA100: Y | BB100: S | BC100: S | BD100: S | BE100: U | BG100: 2 | BH100: 20857 | BI100: 299-11 | BJ100: 65 | BK100: 8 | BL100: 1 | BM100: 4 | BN100: 8 | BO100: 7.3 | BP100: 0 | BQ100: 2 | BR100: 60 | BS100: 22 | BT100: 0 | BU100: 0 | BV100: 4 | BW100: 199 | BX100: 4 | BY100: D | BZ100: 42 | CA100: B | CB100: B | CC100: P | CD100: P | CE100: 1 | CF100: 9.3 | CG100: 30.204966 | CH100: -90.271679 | CJ100: 6 | CL100: 299-11-1-010 | CM100: 7.3 | CN100: 0 | CO100: 0
A101: 2014 | B101: 2014642625884- | C101: 2014-05-12 | D101: 8 | E101: A | F101: 0 | G101: A | I101: 0 | J101: 0 | K101: MO | L101: 0 | M101: 0 | N101: C | O101: 0 | P101: C | Q101: C | R101: B | S101: F | T101: 1.83 | U101: 1 | V101: 0 | W101: 4 | X101: 65 | Y101: 0 | Z101: 199 | AA101: A | AB101: A | AC101: C | AD101: 0 | AE101: D | AF101: A | AG101: B | AI101: A | AJ101: B | AK101: A | AL101: 5 | AM101: 30 | AN101: S | AO101: S | AP101: S | AQ101: S | AR101: 45 | AS101: IBAM | AT101: I | AU101: B | AV101: Z | AW101: SNWS | AX101: S | AY101: N | AZ101: K | BA101: K | BB101: A | BC101: B | BD101: C | BE101: U | BG101: 2 | BH101: 20826 | BI101: 299-11 | BJ101: 65 | BK101: 8 | BL101: 1 | BM101: 4 | BN101: 8 | BO101: 5.83 | BP101: 0 | BQ101: 2 | BR101: 60 | BS101: 22 | BT101: 0 | BU101: 0 | BV101: 4 | BW101: 199 | BX101: 4 | BY101: D | BZ101: 42 | CA101: A | CB101: B | CC101: L | CD101: P | CE101: 1 | CF101: 7.83 | CG101: 30.204966 | CH101: -90.271679 | CI101: 18:03:00 | CJ101: 6 | CL101: 299-11-1-010 | CM101: 5.83 | CN101: 0 | CO101: 0
A102: 2013 | B102: 2013692036324- | C102: 2013-07-08 | D102: 11 | E102: A | F102: 0 | G102: A | I102: 0 | J102: 0 | K102: MO | L102: 0 | M102: 0 | N102: C | O102: 1 | P102: C | Q102: B | R102: B | S102: F | T102: 0.49 | U102: 2 | V102: 0 | W102: 2 | X102: 65 | Y102: 0 | Z102: 199 | AA102: A | AB102: A | AC102: B | AD102: 0 | AE102: C | AF102: A | AG102: B | AI102: A | AJ102: A | AK102: A | AL102: 10 | AM102: 40 | AN102: S | AO102: S | AP102: S | AQ102: S | AR102: 45 | AS102: IB | AT102: I | AU102: B | AV102: V | AW102: EE | AX102: E | AY102: E | AZ102: Y | BA102: K | BB102: B | BC102: A | BD102: C | BE102: U | BG102: 2 | BH102: 20575 | BI102: 299-11 | BJ102: 65 | BK102: 8 | BL102: 1 | BM102: 4 | BN102: 8 | BO102: 4.49 | BP102: 0 | BQ102: 2 | BR102: 60 | BS102: 22 | BT102: 0 | BU102: 0 | BV102: 4 | BW102: 199 | BX102: 4 | BY102: D | BZ102: 42 | CA102: A | CB102: B | CC102: P | CD102: P | CE102: 1 | CF102: 6.49 | CG102: 30.204966 | CH102: -90.271679 | CI102: 05:43:00 | CJ102: 6 | CK102: 65LA199@OAK | CL102: 299-11-1-010 | CM102: 4.49 | CN102: 0 | CO102: 0
A103: 2015 | B103: 2015995066186- | C103: 2015-05-01 | D103: 6 | E103: A | F103: 0 | G103: A | I103: 0 | J103: 0 | K103: FI | L103: 0 | M103: 0 | N103: C | O103: 0 | P103: C | Q103: C | R103: B | S103: Z | T103: 2 | U103: 0 | V103: 0 | W103: 2 | X103: 65 | Y103: 0 | Z103: 199 | AA103: A | AB103: A | AC103: C | AD103: 0 | AE103: E | AF103: A | AG103: B | AI103: A | AJ103: A | AK103: A | AL103: 5 | AM103: 5 | AN103: S | AO103: S | AP103: S | AQ103: S | AR103: 45 | AS103: WO | AT103: W | AU103: O | AV103: R | AW103: WE | AX103: W | AY103: E | AZ103: K | BA103: K | BB103: B | BC103: S | BD103: U | BE103: U | BG103: 3 | BH103: 20291 | BI103: 299-11 | BJ103: 65 | BK103: 8 | BL103: 1 | BM103: 4 | BN103: 8 | BO103: 6 | BP103: 0 | BQ103: 2 | BR103: 60 | BS103: 22 | BT103: 0 | BU103: 0 | BV103: 4 | BW103: 199 | BX103: 4 | BY103: D | BZ103: 42 | CA103: B | CB103: K | CD103: P | CE103: 1 | CF103: 8 | CG103: 30.204966 | CH103: -90.271679 | CI103: 06:19:00 | CJ103: 6 | CL103: 299-11-1-010 | CM103: 6 | CN103: 0 | CO103: 0
A104: 2015 | B104: 2015176938612- | C104: 2015-10-28 | D104: 8 | E104: B | F104: 0 | G104: A | I104: 0 | J104: 0 | K104: WE | L104: 0 | M104: 0 | N104: C | O104: 0 | P104: C | Q104: F | R104: B | S104: Z | T104: 0.1 | U104: 0 | V104: 0 | W104: 2 | X104: 65 | Y104: 0 | Z104: 199 | AA104: A | AB104: A | AC104: B | AD104: 0 | AE104: E | AF104: A | AG104: B | AI104: A | AJ104: A | AK104: A | AN104: S | AO104: S | AP104: S | AR104: 45 | AS104: ZB | AT104: Z | AU104: B | AV104: Z | AW104: SS | AX104: S | AY104: S | AZ104: K | BA104: Y | BB104: S | BC104: P | BD104: C | BE104: U | BG104: 3 | BH104: 20692 | BI104: 299-11 | BJ104: 65 | BK104: 8 | BL104: 1 | BM104: 4 | BN104: 8 | BO104: 4.1 | BP104: 0 | BQ104: 2 | BR104: 60 | BS104: 22 | BT104: 0 | BU104: 0 | BV104: 4 | BW104: 199 | BX104: 4 | BY104: D | BZ104: 42 | CA104: A | CC104: P | CD104: P | CE104: 1 | CF104: 6.1 | CG104: 30.204966 | CH104: -90.271679 | CI104: 06:17:00 | CJ104: 6 | CL104: 299-11-1-010 | CM104: 4.1 | CN104: 0 | CO104: 0
A105: 2015 | B105: 2015778360265- | C105: 2015-08-10 | D105: 9 | E105: A | F105: 0 | G105: A | I105: 0 | J105: 0 | K105: MO | L105: 0 | M105: 0 | N105: C | O105: 0 | P105: C | Q105: A | R105: B | S105: D | T105: 0.96 | U105: 0 | V105: 0 | W105: 2 | X105: 65 | Y105: 0 | Z105: 199 | AA105: A | AB105: B | AC105: B | AD105: 0 | AE105: E | AF105: A | AG105: B | AI105: A | AJ105: B | AK105: A | AM105: 0 | AN105: S | AO105: S | AP105: S | AQ105: S | AR105: 45 | AS105: ZA | AT105: Z | AU105: A | AV105: Q | AW105: SE | AX105: S | AY105: E | AZ105: K | BA105: K | BB105: A | BC105: B | BD105: Z | BE105: U | BG105: 3 | BH105: 20222 | BI105: 299-11 | BJ105: 65 | BK105: 8 | BL105: 1 | BM105: 4 | BN105: 8 | BO105: 4.96 | BP105: 0 | BQ105: 2 | BR105: 60 | BS105: 22 | BT105: 0 | BU105: 0 | BV105: 4 | BW105: 199 | BX105: 4 | BY105: D | BZ105: 42 | CA105: A | CB105: B | CC105: L | CE105: 1 | CF105: 6.96 | CG105: 30.204966 | CH105: -90.271679 | CI105: 15:55:00 | CJ105: 6 | CL105: 299-11-1-010 | CM105: 4.96 | CN105: 0 | CO105: 0
A106: 2015 | B106: 2015685067684- | C106: 2015-04-06 | D106: 7 | E106: A | F106: 0 | G106: B | I106: 0 | J106: 0 | K106: MO | L106: 0 | M106: 0 | N106: C | O106: 0 | P106: C | Q106: D | R106: C | S106: B | T106: 3.32 | U106: 0 | V106: 0 | W106: 2 | X106: 65 | Y106: 0 | Z106: 199 | AA106: A | AB106: A | AC106: C | AD106: 0 | AE106: E | AF106: A | AG106: A | AI106: A | AJ106: A | AK106: A | AN106: S | AO106: S | AP106: S | AQ106: S | AR106: 45 | AS106: QQ | AT106: Q | AU106: Q | AV106: Q | AW106: SS | AX106: S | AY106: S | AZ106: Y | BA106: Y | BB106: B | BC106: B | BD106: D | BE106: U | BG106: 3 | BH106: 21557 | BI106: 299-11 | BJ106: 65 | BK106: 8 | BL106: 1 | BM106: 4 | BN106: 8 | BO106: 7.32 | BP106: 0 | BQ106: 2 | BR106: 60 | BS106: 22 | BT106: 0 | BU106: 0 | BV106: 4 | BW106: 199 | BX106: 4 | BY106: D | BZ106: 42 | CA106: A | CB106: B | CC106: I | CD106: I | CE106: 1 | CF106: 9.32 | CG106: 30.204966 | CH106: -90.271679 | CI106: 05:18:00 | CJ106: 6 | CL106: 299-11-1-010 | CM106: 7.32 | CN106: 0 | CO106: 0
A107: 2014 | B107: 2014620236562- | C107: 2014-01-31 | D107: 14 | E107: A | F107: 0 | G107: A | I107: 0 | J107: 0 | K107: FI | L107: 0 | M107: 0 | N107: C | O107: 0 | P107: C | Q107: A | R107: C | S107: D | T107: 2.82 | U107: 1 | V107: 0 | W107: 3 | X107: 65 | Y107: 0 | Z107: 199 | AA107: A | AB107: A | AC107: B | AD107: 0 | AE107: C | AF107: A | AG107: B | AI107: A | AJ107: A | AK107: A | AL107: 5 | AM107: 0 | AN107: S | AO107: S | AP107: S | AQ107: S | AR107: 45 | AS107: IAB | AT107: I | AU107: A | AV107: Z | AW107: NNN | AX107: N | AY107: N | AZ107: K | BA107: K | BB107: A | BC107: B | BD107: S | BE107: U | BG107: 2 | BH107: 20381 | BI107: 299-11 | BJ107: 65 | BK107: 8 | BL107: 1 | BM107: 4 | BN107: 8 | BO107: 6.82 | BP107: 0 | BQ107: 2 | BR107: 60 | BS107: 22 | BT107: 0 | BU107: 0 | BV107: 4 | BW107: 199 | BX107: 4 | BY107: D | BZ107: 42 | CA107: A | CC107: P | CD107: P | CE107: 1 | CF107: 8.82 | CG107: 30.204966 | CH107: -90.271679 | CI107: 07:29:00 | CJ107: 6 | CL107: 299-11-1-010 | CM107: 6.82 | CN107: 0 | CO107: 0
A108: 2015 | B108: 2015451275138- | C108: 2015-01-18 | D108: 14 | E108: A | F108: 0 | G108: A | I108: 0 | J108: 0 | K108: SU | L108: 0 | M108: 0 | N108: C | O108: 0 | P108: C | Q108: A | R108: B | S108: B | T108: 0.69 | U108: 0 | V108: 0 | W108: 2 | X108: 65 | Y108: 0 | Z108: 199 | AA108: A | AB108: A | AC108: B | AD108: 0 | AE108: E | AF108: A | AG108: B | AI108: A | AJ108: Y | AK108: A | AL108: 10 | AM108: 5 | AN108: S | AO108: S | AP108: S | AQ108: S | AR108: 45 | AS108: WQ | AT108: W | AU108: Q | AV108: Q | AW108: NN | AX108: N | AY108: N | AZ108: Y | BA108: Y | BB108: S | BC108: A | BD108: R | BE108: U | BG108: 3 | BH108: 21803 | BI108: 299-11 | BJ108: 65 | BK108: 8 | BL108: 1 | BM108: 4 | BN108: 8 | BO108: 4.69 | BP108: 0 | BQ108: 2 | BR108: 60 | BS108: 22 | BT108: 0 | BU108: 0 | BV108: 4 | BW108: 199 | BX108: 4 | BY108: D | BZ108: 42 | CA108: A | CB108: D | CC108: P | CD108: P | CE108: 1 | CF108: 6.69 | CG108: 30.204966 | CH108: -90.271679 | CI108: 13:20:00 | CJ108: 6 | CL108: 299-11-1-010 | CM108: 4.69 | CN108: 0 | CO108: 0
A109: 2013 | B109: 2013325198639- | C109: 2013-08-12 | D109: 12 | E109: A | F109: 0 | G109: A | I109: 0 | J109: 0 | K109: MO | L109: 0 | M109: 0 | N109: C | O109: 0 | P109: C | Q109: A | R109: B | S109: H | T109: 2.95 | U109: 0 | V109: 0 | W109: 2 | X109: 65 | Y109: 0 | Z109: 199 | AA109: A | AB109: A | AC109: C | AD109: 0 | AE109: E | AF109: A | AG109: B | AI109: A | AJ109: B | AK109: A | AL109: 2 | AM109: 5 | AN109: S | AO109: S | AP109: S | AQ109: S | AR109: 45 | AS109: WB | AT109: W | AU109: B | AV109: R | AW109: EE | AX109: E | AY109: E | AZ109: K | BA109: K | BB109: A | BC109: A | BD109: C | BE109: U | BG109: 3 | BH109: 22027 | BI109: 299-11 | BJ109: 65 | BK109: 8 | BL109: 1 | BM109: 4 | BN109: 8 | BO109: 6.95 | BP109: 0 | BQ109: 2 | BR109: 60 | BS109: 22 | BT109: 0 | BU109: 0 | BV109: 4 | BW109: 199 | BX109: 4 | BY109: D | BZ109: 42 | CA109: A | CC109: P | CD109: P | CE109: 1 | CF109: 8.95 | CG109: 30.204966 | CH109: -90.271679 | CI109: 17:32:00 | CJ109: 6 | CL109: 299-11-1-010 | CM109: 6.95 | CN109: 0 | CO109: 0
A110: 2015 | B110: 2015135759652- | C110: 2015-04-17 | D110: 13 | E110: A | F110: 0 | G110: A | I110: 0 | J110: 0 | K110: FI | L110: 0 | M110: 0 | N110: C | O110: 1 | P110: B | Q110: A | R110: B | S110: K | T110: 2.46 | U110: 0 | V110: 0 | W110: 2 | X110: 65 | Y110: 0 | Z110: 199 | AA110: A | AB110: A | AC110: C | AD110: 0 | AE110: E | AF110: A | AG110: B | AI110: A | AJ110: Y | AK110: A | AL110: 10 | AM110: 0 | AN110: S | AO110: S | AP110: S | AQ110: S | AR110: 45 | AS110: IA | AT110: I | AU110: A | AV110: V | AW110: NS | AX110: N | AY110: S | AZ110: K | BA110: K | BB110: B | BC110: A | BD110: S | BE110: U | BG110: 3 | BH110: 20501 | BI110: 299-11 | BJ110: 65 | BK110: 8 | BL110: 1 | BM110: 4 | BN110: 8 | BO110: 6.46 | BP110: 0 | BQ110: 2 | BR110: 60 | BS110: 22 | BT110: 0 | BU110: 0 | BV110: 4 | BW110: 199 | BX110: 4 | BY110: D | BZ110: 42 | CA110: A | CC110: L | CD110: P | CE110: 1 | CF110: 8.46 | CG110: 30.204966 | CH110: -90.271679 | CI110: 12:12:00 | CJ110: 6 | CK110: 65LA199@1ST | CL110: 299-11-1-010 | CM110: 6.46 | CN110: 0 | CO110: 0
A111: 2015 | B111: 2015605555251- | C111: 2015-02-09 | D111: 12 | E111: B | F111: 0 | G111: A | I111: 0 | J111: 0 | K111: MO | L111: 0 | M111: 0 | N111: C | O111: 0 | P111: B | Q111: F | R111: B | S111: Z | T111: 2.82 | U111: 0 | V111: 0 | W111: 2 | X111: 65 | Y111: 0 | Z111: 199 | AA111: A | AB111: A | AC111: C | AD111: 0 | AE111: E | AF111: B | AG111: B | AI111: A | AJ111: B | AK111: A | AN111: S | AO111: S | AP111: S | AQ111: S | AR111: 45 | AS111: AB | AT111: A | AU111: B | AV111: Z | AW111: NN | AX111: N | AY111: N | AZ111: K | BA111: K | BB111: A | BC111: A | BD111: C | BE111: U | BG111: 3 | BH111: 21321 | BI111: 299-11 | BJ111: 65 | BK111: 8 | BL111: 1 | BM111: 4 | BN111: 8 | BO111: 6.82 | BP111: 0 | BQ111: 2 | BR111: 60 | BS111: 22 | BT111: 0 | BU111: 0 | BV111: 4 | BW111: 199 | BX111: 4 | BY111: D | BZ111: 42 | CA111: A | CC111: L | CD111: P | CE111: 1 | CF111: 8.82 | CG111: 30.204966 | CH111: -90.271679 | CI111: 06:00:00 | CJ111: 6 | CL111: 299-11-1-010 | CM111: 6.82 | CN111: 0 | CO111: 0
A112: 2015 | B112: 2015984148755- | C112: 2015-02-21 | D112: 19 | E112: A | F112: 0 | G112: A | I112: 0 | J112: 0 | K112: SA | L112: 0 | M112: 0 | N112: C | O112: 0 | P112: C | Q112: A | R112: C | S112: D | T112: 1.84 | U112: 0 | V112: 0 | W112: 2 | X112: 65 | Y112: 0 | Z112: 199 | AA112: A | AB112: A | AC112: B | AD112: 0 | AE112: E | AF112: A | AG112: B | AI112: A | AJ112: B | AK112: A | AN112: S | AO112: S | AP112: S | AQ112: S | AR112: 50 | AS112: IB | AT112: I | AU112: B | AV112: R | AW112: EE | AX112: E | AY112: E | AZ112: K | BA112: K | BB112: S | BC112: B | BD112: C | BE112: Z | BG112: 3 | BH112: 21728 | BI112: 299-11 | BJ112: 65 | BK112: 8 | BL112: 1 | BM112: 4 | BN112: 8 | BO112: 5.84 | BP112: 0 | BQ112: 2 | BR112: 60 | BS112: 22 | BT112: 0 | BU112: 0 | BV112: 4 | BW112: 199 | BX112: 4 | BY112: D | BZ112: 42 | CA112: A | CC112: L | CD112: P | CE112: 1 | CF112: 7.84 | CG112: 30.204966 | CH112: -90.271679 | CI112: 08:00:00 | CJ112: 6 | CL112: 299-11-1-010 | CM112: 5.84 | CN112: 0 | CO112: 0
A113: 2013 | B113: 2013157974473- | C113: 2013-07-20 | D113: 16 | E113: A | F113: 0 | G113: A | I113: 0 | J113: 0 | K113: SA | L113: 0 | M113: 0 | N113: C | O113: 0 | P113: B | Q113: A | R113: B | S113: Z | T113: 2.94 | U113: 0 | V113: 0 | W113: 2 | X113: 65 | Y113: 0 | Z113: 199 | AA113: A | AB113: B | AC113: C | AD113: 0 | AE113: E | AF113: A | AG113: A | AH113: H | AI113: B | AJ113: A | AK113: A | AL113: 5 | AM113: 5 | AN113: S | AO113: S | AP113: S | AQ113: S | AR113: 10 | AS113: NJ | AT113: N | AU113: J | AV113: V | AW113: WN | AX113: W | AY113: N | AZ113: K | BA113: K | BB113: A | BC113: A | BD113: S | BE113: U | BG113: 3 | BH113: 21097 | BI113: 299-11 | BJ113: 65 | BK113: 8 | BL113: 1 | BM113: 4 | BN113: 8 | BO113: 6.94 | BP113: 0 | BQ113: 2 | BR113: 60 | BS113: 22 | BT113: 0 | BU113: 0 | BV113: 4 | BW113: 199 | BX113: 4 | BY113: D | BZ113: 42 | CA113: A | CC113: P | CD113: P | CE113: 1 | CF113: 8.94 | CG113: 30.204966 | CH113: -90.271679 | CI113: 12:49:00 | CJ113: 6 | CL113: 299-11-1-010 | CM113: 6.94 | CN113: 0 | CO113: 0
A114: 2013 | B114: 2013255913003- | C114: 2013-01-25 | D114: 1 | E114: A | F114: 0 | G114: A | I114: 0 | J114: 0 | K114: FI | L114: 0 | M114: 0 | N114: C | O114: 1 | P114: B | Q114: F | R114: B | S114: B | T114: 2.41 | U114: 0 | V114: 0 | W114: 2 | X114: 65 | Y114: 0 | Z114: 199 | AA114: A | AB114: A | AC114: C | AD114: 0 | AE114: E | AF114: A | AG114: B | AI114: A | AJ114: C | AK114: A | AM114: 45 | AN114: S | AO114: S | AP114: S | AQ114: S | AR114: 45 | AS114: BA | AT114: B | AU114: A | AV114: R | AW114: SS | AX114: S | AY114: S | AZ114: Y | BA114: Y | BB114: A | BC114: A | BD114: D | BE114: U | BG114: 3 | BH114: 20184 | BI114: 299-11 | BJ114: 65 | BK114: 8 | BL114: 1 | BM114: 4 | BN114: 8 | BO114: 6.41 | BP114: 0 | BQ114: 2 | BR114: 60 | BS114: 22 | BT114: 0 | BU114: 0 | BV114: 4 | BW114: 199 | BX114: 4 | BY114: D | BZ114: 42 | CA114: A | CB114: B | CC114: L | CD114: P | CE114: 1 | CF114: 8.41 | CG114: 30.204966 | CH114: -90.271679 | CI114: 06:03:00 | CJ114: 6 | CK114: 65LA199@1ST | CL114: 299-11-1-010 | CM114: 6.41 | CN114: 0 | CO114: 0
A115: 2015 | B115: 2015294500783- | C115: 2015-07-22 | D115: 6 | E115: A | F115: 0 | G115: A | I115: 0 | J115: 0 | K115: WE | L115: 0 | M115: 0 | N115: C | O115: 0 | P115: B | Q115: A | R115: B | S115: E | T115: 2.87 | U115: 1 | V115: 0 | W115: 2 | X115: 65 | Y115: 0 | Z115: 199 | AA115: A | AB115: A | AC115: B | AD115: 0 | AE115: D | AF115: A | AG115: B | AI115: A | AJ115: B | AK115: A | AN115: S | AO115: S | AP115: S | AQ115: S | AR115: 45 | AS115: IB | AT115: I | AU115: B | AV115: S | AW115: SN | AX115: S | AY115: N | AZ115: K | BA115: K | BB115: S | BC115: A | BD115: S | BE115: U | BG115: 2 | BH115: 21335 | BI115: 299-11 | BJ115: 65 | BK115: 8 | BL115: 1 | BM115: 4 | BN115: 8 | BO115: 6.87 | BP115: 0 | BQ115: 2 | BR115: 60 | BS115: 22 | BT115: 0 | BU115: 0 | BV115: 4 | BW115: 199 | BX115: 4 | BY115: D | BZ115: 42 | CA115: B | CB115: A | CC115: P | CD115: P | CE115: 1 | CF115: 8.87 | CG115: 30.204966 | CH115: -90.271679 | CI115: 07:46:00 | CJ115: 6 | CL115: 299-11-1-010 | CM115: 6.87 | CN115: 0 | CO115: 0
A116: 2015 | B116: 2015977660890- | C116: 2015-07-02 | D116: 5 | E116: A | F116: 0 | G116: A | I116: 0 | J116: 0 | K116: TH | L116: 0 | M116: 0 | N116: C | O116: 0 | P116: C | Q116: E | R116: C | S116: Z | T116: 3.28 | U116: 0 | V116: 0 | W116: 2 | X116: 65 | Y116: 0 | Z116: 199 | AA116: A | AB116: A | AC116: C | AD116: 0 | AE116: E | AF116: A | AG116: B | AI116: B | AJ116: B | AK116: A | AN116: S | AO116: S | AP116: S | AQ116: S | AR116: 45 | AS116: JP | AT116: J | AU116: P | AV116: R | AW116: EE | AX116: E | AY116: E | AZ116: K | BA116: K | BB116: B | BC116: A | BD116: C | BE116: U | BG116: 3 | BH116: 20444 | BI116: 299-11 | BJ116: 65 | BK116: 8 | BL116: 1 | BM116: 4 | BN116: 8 | BO116: 7.28 | BP116: 0 | BQ116: 2 | BR116: 60 | BS116: 22 | BT116: 0 | BU116: 0 | BV116: 4 | BW116: 199 | BX116: 4 | BY116: D | BZ116: 42 | CA116: A | CB116: B | CC116: L | CD116: P | CE116: 1 | CF116: 9.28 | CG116: 30.204966 | CH116: -90.271679 | CI116: 17:45:00 | CJ116: 6 | CK116: 65LA199@PINE | CL116: 299-11-1-010 | CM116: 7.28 | CN116: 0 | CO116: 0
A117: 2015 | B117: 2015597623004- | C117: 2015-11-03 | D117: 4 | E117: A | F117: 0 | G117: A | I117: 0 | J117: 0 | K117: TU | L117: 0 | M117: 0 | N117: C | O117: 1 | P117: C | Q117: A | R117: A | S117: Z | T117: 3.2 | U117: 0 | V117: 0 | W117: 2 | X117: 65 | Y117: 0 | Z117: 199 | AA117: A | AB117: A | AC117: C | AD117: 0 | AE117: E | AF117: A | AG117: B | AI117: A | AK117: A | AM117: 10 | AN117: S | AO117: S | AP117: S | AQ117: S | AR117: 0 | AS117: I | AU117: I | AW117: S | AY117: S | BA117: K | BB117: B | BC117: A | BE117: U | BG117: 3 | BH117: 21457 | BI117: 299-11 | BJ117: 65 | BK117: 8 | BL117: 1 | BM117: 4 | BN117: 8 | BO117: 7.2 | BP117: 0 | BQ117: 2 | BR117: 60 | BS117: 22 | BT117: 0 | BU117: 0 | BV117: 4 | BW117: 199 | BX117: 4 | BY117: D | BZ117: 42 | CA117: B | CD117: P | CE117: 1 | CF117: 9.2 | CG117: 30.204966 | CH117: -90.271679 | CI117: 16:17:00 | CJ117: 6 | CK117: 65LA199@PINE | CL117: 299-11-1-010 | CM117: 7.2 | CN117: 0 | CO117: 0
A118: 2015 | B118: 2015192148727- | C118: 2015-10-01 | D118: 9 | E118: A | F118: 0 | G118: A | I118: 0 | J118: 0 | K118: TH | L118: 0 | M118: 0 | N118: C | O118: 0 | P118: C | Q118: A | R118: A | S118: Z | T118: 2.44 | U118: 5 | V118: 0 | W118: 2 | X118: 65 | Y118: 0 | Z118: 199 | AA118: A | AB118: A | AC118: C | AD118: 0 | AE118: D | AF118: A | AG118: B | AI118: A | AJ118: A | AK118: A | AL118: 15 | AM118: 10 | AN118: S | AO118: S | AP118: S | AQ118: S | AR118: 35 | AS118: IJ | AT118: I | AU118: J | AV118: R | AW118: SS | AX118: S | AY118: S | AZ118: K | BA118: K | BB118: A | BC118: A | BD118: Y | BE118: Y | BG118: 2 | BH118: 22019 | BI118: 299-11 | BJ118: 65 | BK118: 8 | BL118: 1 | BM118: 4 | BN118: 8 | BO118: 6.44 | BP118: 0 | BQ118: 2 | BR118: 60 | BS118: 22 | BT118: 0 | BU118: 0 | BV118: 4 | BW118: 199 | BX118: 4 | BY118: D | BZ118: 42 | CA118: B | CC118: P | CD118: P | CE118: 1 | CF118: 8.44 | CG118: 30.204966 | CH118: -90.271679 | CI118: 14:14:00 | CJ118: 6 | CK118: 65LA199@1ST | CL118: 299-11-1-010 | CM118: 6.44 | CN118: 0 | CO118: 0
A119: 2013 | B119: 2013781638649- | C119: 2013-03-11 | D119: 6 | E119: A | F119: 0 | G119: A | I119: 0 | J119: 0 | K119: MO | L119: 0 | M119: 0 | N119: C | O119: 0 | P119: C | Q119: A | R119: B | S119: E | T119: 3.71 | U119: 0 | V119: 0 | W119: 2 | X119: 65 | Y119: 0 | Z119: 199 | AA119: A | AB119: A | AC119: B | AD119: 0 | AE119: E | AF119: A | AG119: B | AI119: A | AJ119: B | AK119: A | AN119: S | AO119: S | AP119: S | AQ119: S | AR119: 45 | AS119: IB | AT119: I | AU119: B | AV119: Q | AW119: SN | AX119: S | AY119: N | AZ119: K | BA119: K | BB119: A | BC119: A | BD119: S | BE119: U | BG119: 3 | BH119: 21131 | BI119: 299-11 | BJ119: 65 | BK119: 8 | BL119: 1 | BM119: 4 | BN119: 8 | BO119: 7.71 | BP119: 0 | BQ119: 2 | BR119: 60 | BS119: 22 | BT119: 0 | BU119: 0 | BV119: 4 | BW119: 199 | BX119: 4 | BY119: D | BZ119: 42 | CA119: B | CB119: A | CC119: L | CD119: P | CE119: 1 | CF119: 9.71 | CG119: 30.204966 | CH119: -90.271679 | CI119: 08:40:00 | CJ119: 6 | CL119: 299-11-1-010 | CM119: 7.71 | CN119: 0 | CO119: 0
A120: 2014 | B120: 2014288882132- | C120: 2014-02-03 | D120: 8 | E120: A | F120: 0 | G120: A | I120: 0 | J120: 0 | K120: MO | L120: 0 | M120: 0 | N120: C | O120: 0 | P120: C | Q120: A | R120: B | S120: F | T120: 2.68 | U120: 2 | V120: 0 | W120: 2 | X120: 65 | Y120: 0 | Z120: 199 | AA120: A | AB120: A | AC120: C | AD120: 0 | AE120: C | AF120: A | AG120: B | AI120: A | AJ120: A | AK120: A | AM120: 45 | AN120: S | AO120: S | AP120: S | AQ120: S | AR120: 45 | AS120: MB | AT120: M | AU120: B | AV120: Z | AW120: WE | AX120: W | AY120: E | AZ120: K | BA120: K | BB120: A | BC120: B | BD120: C | BE120: U | BG120: 2 | BH120: 21309 | BI120: 299-11 | BJ120: 65 | BK120: 8 | BL120: 1 | BM120: 4 | BN120: 8 | BO120: 6.68 | BP120: 0 | BQ120: 2 | BR120: 60 | BS120: 22 | BT120: 0 | BU120: 0 | BV120: 4 | BW120: 199 | BX120: 4 | BY120: D | BZ120: 42 | CA120: A | CB120: C | CC120: P | CD120: P | CE120: 1 | CF120: 8.68 | CG120: 30.204966 | CH120: -90.271679 | CI120: 17:53:00 | CJ120: 6 | CL120: 299-11-1-010 | CM120: 6.68 | CN120: 0 | CO120: 0
A121: 2015 | B121: 2015504540120- | C121: 2015-07-15 | D121: 7 | E121: A | F121: 0 | G121: B | I121: 0 | J121: 0 | K121: WE | L121: 0 | M121: 0 | N121: C | O121: 1 | P121: A | Q121: A | R121: C | S121: F | T121: 0.52 | U121: 1 | V121: 0 | W121: 2 | X121: 65 | Y121: 0 | Z121: 199 | AA121: A | AB121: A | AC121: C | AD121: 0 | AE121: D | AF121: A | AG121: A | AI121: A | AJ121: A | AK121: A | AN121: S | AO121: S | AP121: S | AQ121: S | AR121: 45 | AS121: IB | AT121: I | AU121: B | AV121: R | AW121: SN | AX121: S | AY121: N | AZ121: Y | BA121: Y | BB121: B | BC121: B | BD121: S | BE121: U | BG121: 2 | BH121: 20915 | BI121: 299-11 | BJ121: 65 | BK121: 8 | BL121: 1 | BM121: 4 | BN121: 8 | BO121: 4.52 | BP121: 0 | BQ121: 2 | BR121: 60 | BS121: 22 | BT121: 0 | BU121: 0 | BV121: 4 | BW121: 199 | BX121: 4 | BY121: D | BZ121: 42 | CA121: A | CB121: B | CC121: I | CD121: P | CE121: 1 | CF121: 6.52 | CG121: 30.204966 | CH121: -90.271679 | CI121: 09:16:00 | CJ121: 6 | CK121: 65LA199@OAK | CL121: 299-11-1-010 | CM121: 4.52 | CN121: 0 | CO121: 0
A122: 2014 | B122: 2014521561272- | C122: 2014-07-19 | D122: 16 | E122: A | F122: 0 | G122: A | I122: 0 | J122: 0 | K122: SA | L122: 0 | M122: 0 | N122: C | O122: 1 | P122: C | Q122: B | R122: B | S122: F | T122: 0.44 | U122: 0 | V122: 0 | W122: 2 | X122: 65 | Y122: 0 | Z122: 199 | AA122: A | AB122: A | AC122: B | AD122: 0 | AE122: E | AF122: A | AG122: B | AI122: A | AJ122: A | AK122: A | AN122: S | AO122: S | AP122: S | AQ122: S | AR122: 45 | AS122: II | AT122: I | AU122: I | AV122: R | AW122: EN | AX122: E | AY122: N | AZ122: Y | BA122: Y | BB122: A | BC122: B | BD122: Z | BE122: U | BG122: 3 | BH122: 21941 | BI122: 299-11 | BJ122: 65 | BK122: 8 | BL122: 1 | BM122: 4 | BN122: 8 | BO122: 4.44 | BP122: 0 | BQ122: 2 | BR122: 60 | BS122: 22 | BT122: 0 | BU122: 0 | BV122: 4 | BW122: 199 | BX122: 4 | BY122: D | BZ122: 42 | CA122: A | CB122: B | CC122: P | CD122: P | CE122: 1 | CF122: 6.44 | CG122: 30.204966 | CH122: -90.271679 | CJ122: 6 | CK122: 65LA199@OAK | CL122: 299-11-1-010 | CM122: 4.44 | CN122: 0 | CO122: 0
A123: 2013 | B123: 2013945093220- | C123: 2013-06-25 | D123: 19 | E123: A | F123: 0 | G123: A | I123: 0 | J123: 0 | K123: TU | L123: 0 | M123: 0 | N123: C | O123: 0 | P123: C | Q123: A | R123: A | S123: D | T123: 0.14 | U123: 1 | V123: 0 | W123: 1 | X123: 65 | Y123: 0 | Z123: 199 | AA123: A | AB123: A | AC123: C | AD123: 0 | AE123: B | AF123: A | AG123: B | AI123: A | AJ123: A | AL123: 20 | AN123: S | AR123: 45 | AS123: B | AT123: B | AV123: R | AW123: E | AX123: E | AZ123: K | BB123: E | BD123: U | BG123: 2 | BH123: 20699 | BI123: 299-11 | BJ123: 65 | BK123: 8 | BL123: 1 | BM123: 4 | BN123: 8 | BO123: 4.14 | BP123: 0 | BQ123: 2 | BR123: 60 | BS123: 22 | BT123: 0 | BU123: 0 | BV123: 4 | BW123: 199 | BX123: 4 | BY123: D | BZ123: 42 | CA123: A | CC123: P | CE123: 1 | CF123: 6.14 | CG123: 30.204966 | CH123: -90.271679 | CI123: 15:00:00 | CJ123: 6 | CL123: 299-11-1-010 | CM123: 4.14 | CN123: 1 | CO123: 1
A124: 2013 | B124: 2013156595153- | C124: 2013-05-07 | D124: 16 | E124: A | F124: 0 | G124: A | I124: 0 | J124: 0 | K124: TU | L124: 0 | M124: 0 | N124: C | O124: 0 | P124: A | Q124: A | R124: B | S124: B | T124: 0.39 | U124: 0 | V124: 0 | W124: 2 | X124: 65 | Y124: 0 | Z124: 199 | AA124: A | AB124: A | AC124: B | AD124: 0 | AE124: E | AF124: A | AG124: B | AI124: A | AJ124: B | AK124: A | AL124: 15 | AM124: 0 | AN124: S | AO124: S | AP124: S | AQ124: S | AR124: 45 | AS124: IA | AT124: I | AU124: A | AV124: Z | AW124: SS | AX124: S | AY124: S | AZ124: K | BA124: K | BB124: S | BC124: A | BD124: D | BE124: U | BG124: 3 | BH124: 20820 | BI124: 299-11 | BJ124: 65 | BK124: 8 | BL124: 1 | BM124: 4 | BN124: 8 | BO124: 4.39 | BP124: 0 | BQ124: 2 | BR124: 60 | BS124: 22 | BT124: 0 | BU124: 0 | BV124: 4 | BW124: 199 | BX124: 4 | BY124: D | BZ124: 42 | CA124: D | CB124: B | CC124: P | CD124: P | CE124: 1 | CF124: 6.39 | CG124: 30.204966 | CH124: -90.271679 | CI124: 12:01:00 | CJ124: 6 | CL124: 299-11-1-010 | CM124: 4.39 | CN124: 0 | CO124: 0
A125: 2013 | B125: 2013647948631- | C125: 2013-02-18 | D125: 9 | E125: A | F125: 0 | G125: A | I125: 0 | J125: 0 | K125: MO | L125: 0 | M125: 0 | N125: C | O125: 0 | P125: C | Q125: A | R125: B | S125: A | T125: 3.99 | U125: 0 | V125: 0 | W125: 1 | X125: 65 | Y125: 0 | Z125: 199 | AA125: A | AB125: Z | AC125: D | AD125: 0 | AE125: E | AF125: A | AG125: B | AI125: A | AJ125: B | AL125: 5 | AN125: DD | AP125: DD | AR125: 45 | AS125: O | AT125: O | AV125: R | AW125: W | AX125: W | AZ125: Y | BB125: B | BD125: R | BG125: 3 | BH125: 22086 | BI125: 299-11 | BJ125: 65 | BK125: 8 | BL125: 1 | BM125: 4 | BN125: 8 | BO125: 7.99 | BP125: 0 | BQ125: 2 | BR125: 60 | BS125: 22 | BT125: 0 | BU125: 0 | BV125: 4 | BW125: 199 | BX125: 4 | BY125: I | BZ125: 42 | CA125: D | CC125: P | CE125: 1 | CF125: 9.99 | CG125: 30.204966 | CH125: -90.271679 | CI125: 10:52:00 | CJ125: 6 | CL125: 299-11-1-010 | CM125: 7.99 | CN125: 1 | CO125: 1
A126: 2015 | B126: 2015816119204- | C126: 2015-07-06 | D126: 14 | E126: A | F126: 0 | G126: A | I126: 0 | J126: 0 | K126: MO | L126: 0 | M126: 0 | N126: C | O126: 0 | P126: B | Q126: A | R126: A | S126: D | T126: 1.97 | U126: 1 | V126: 0 | W126: 2 | X126: 65 | Y126: 0 | Z126: 199 | AA126: A | AB126: A | AC126: A | AD126: 0 | AE126: D | AF126: A | AG126: B | AI126: A | AJ126: A | AK126: A | AL126: 15 | AM126: 20 | AN126: S | AO126: S | AP126: S | AQ126: S | AR126: 35 | AS126: BB | AT126: B | AU126: B | AV126: R | AW126: WN | AX126: W | AY126: N | AZ126: K | BA126: K | BB126: A | BC126: A | BD126: C | BE126: U | BG126: 2 | BH126: 21280 | BI126: 299-11 | BJ126: 65 | BK126: 8 | BL126: 1 | BM126: 4 | BN126: 8 | BO126: 5.97 | BP126: 0 | BQ126: 2 | BR126: 60 | BS126: 22 | BT126: 0 | BU126: 0 | BV126: 4 | BW126: 199 | BX126: 4 | BY126: D | BZ126: 42 | CA126: A | CC126: P | CD126: P | CE126: 1 | CF126: 7.97 | CG126: 30.204966 | CH126: -90.271679 | CI126: 13:33:00 | CJ126: 6 | CL126: 299-11-1-010 | CM126: 5.97 | CN126: 0 | CO126: 0
A127: 2015 | B127: 2015775258643- | C127: 2015-06-08 | D127: 10 | E127: A | F127: 0 | G127: A | I127: 0 | J127: 0 | K127: MO | L127: 0 | M127: 0 | N127: C | O127: 0 | P127: C | Q127: A | R127: B | S127: F | T127: 2.16 | U127: 0 | V127: 0 | W127: 2 | X127: 65 | Y127: 0 | Z127: 199 | AA127: A | AB127: A | AC127: C | AD127: 0 | AE127: E | AF127: A | AG127: B | AI127: A | AJ127: B | AK127: A | AN127: S | AO127: S | AP127: S | AQ127: S | AR127: 45 | AS127: MB | AT127: M | AU127: B | AV127: R | AW127: WE | AX127: W | AY127: E | AZ127: K | BA127: K | BB127: B | BC127: S | BD127: S | BE127: U | BG127: 3 | BH127: 21379 | BI127: 299-11 | BJ127: 65 | BK127: 8 | BL127: 1 | BM127: 4 | BN127: 8 | BO127: 6.16 | BP127: 0 | BQ127: 2 | BR127: 60 | BS127: 22 | BT127: 0 | BU127: 0 | BV127: 4 | BW127: 199 | BX127: 4 | BY127: D | BZ127: 42 | CA127: A | CB127: C | CC127: P | CD127: P | CE127: 1 | CF127: 8.16 | CG127: 30.204966 | CH127: -90.271679 | CI127: 18:20:00 | CJ127: 6 | CL127: 299-11-1-010 | CM127: 6.16 | CN127: 0 | CO127: 0
A128: 2013 | B128: 2013361849560- | C128: 2013-05-03 | D128: 11 | E128: A | F128: 0 | G128: A | I128: 0 | J128: 0 | K128: FI | L128: 0 | M128: 0 | N128: C | O128: 0 | P128: C | Q128: A | R128: B | S128: Z | T128: 0.78 | U128: 0 | V128: 0 | W128: 2 | X128: 65 | Y128: 0 | Z128: 199 | AA128: A | AB128: A | AC128: B | AD128: 0 | AE128: E | AF128: A | AG128: A | AI128: A | AJ128: A | AK128: A | AN128: S | AO128: S | AP128: S | AQ128: S | AR128: 45 | AS128: DB | AT128: D | AU128: B | AV128: R | AW128: NN | AX128: N | AY128: N | AZ128: Y | BA128: Y | BB128: I | BC128: A | BD128: T | BE128: U | BG128: 3 | BH128: 20861 | BI128: 299-11 | BJ128: 65 | BK128: 8 | BL128: 1 | BM128: 4 | BN128: 8 | BO128: 4.78 | BP128: 0 | BQ128: 2 | BR128: 60 | BS128: 22 | BT128: 0 | BU128: 0 | BV128: 4 | BW128: 199 | BX128: 4 | BY128: D | BZ128: 42 | CA128: A | CB128: B | CC128: A | CD128: P | CE128: 1 | CF128: 6.78 | CG128: 30.204966 | CH128: -90.271679 | CI128: 14:16:00 | CJ128: 6 | CL128: 299-11-1-010 | CM128: 4.78 | CN128: 0 | CO128: 0
A129: 2015 | B129: 2015721858880- | C129: 2015-10-08 | D129: 14 | E129: A | F129: 0 | G129: A | I129: 0 | J129: 0 | K129: TH | L129: 0 | M129: 0 | N129: C | O129: 0 | P129: A | Q129: A | R129: B | S129: F | T129: 3.53 | U129: 1 | V129: 0 | W129: 2 | X129: 65 | Y129: 0 | Z129: 199 | AA129: A | AB129: A | AC129: C | AD129: 0 | AE129: D | AF129: A | AG129: B | AI129: A | AJ129: B | AK129: A | AN129: S | AO129: S | AP129: S | AQ129: S | AR129: 45 | AS129: IB | AT129: I | AU129: B | AV129: Z | AW129: SN | AX129: S | AY129: N | AZ129: K | BA129: K | BB129: B | BC129: A | BD129: C | BE129: U | BG129: 2 | BH129: 20497 | BI129: 299-11 | BJ129: 65 | BK129: 8 | BL129: 1 | BM129: 4 | BN129: 8 | BO129: 7.53 | BP129: 0 | BQ129: 2 | BR129: 60 | BS129: 22 | BT129: 0 | BU129: 0 | BV129: 4 | BW129: 199 | BX129: 4 | BY129: D | BZ129: 42 | CA129: A | CB129: B | CC129: L | CD129: P | CE129: 1 | CF129: 9.53 | CG129: 30.204966 | CH129: -90.271679 | CI129: 16:44:00 | CJ129: 6 | CL129: 299-11-1-010 | CM129: 7.53 | CN129: 0 | CO129: 0
A130: 2013 | B130: 2013215285582- | C130: 2013-07-11 | D130: 10 | E130: A | F130: 0 | G130: A | I130: 0 | J130: 0 | K130: TH | L130: 0 | M130: 0 | N130: C | O130: 0 | P130: C | Q130: E | R130: C | S130: B | T130: 1.72 | U130: 0 | V130: 0 | W130: 2 | X130: 65 | Y130: 0 | Z130: 199 | AA130: A | AB130: A | AC130: B | AD130: 0 | AE130: E | AF130: A | AG130: B | AI130: A | AJ130: B | AK130: A | AN130: S | AO130: S | AP130: X | AQ130: X | AR130: 45 | AS130: BA | AT130: B | AU130: A | AV130: Z | AW130: SS | AX130: S | AY130: S | AZ130: K | BA130: K | BB130: B | BC130: B | BD130: C | BE130: U | BG130: 3 | BH130: 21997 | BI130: 299-11 | BJ130: 65 | BK130: 8 | BL130: 1 | BM130: 4 | BN130: 8 | BO130: 5.72 | BP130: 0 | BQ130: 2 | BR130: 60 | BS130: 22 | BT130: 0 | BU130: 0 | BV130: 4 | BW130: 199 | BX130: 4 | BY130: D | BZ130: 42 | CA130: B | CB130: A | CC130: Z | CD130: P | CE130: 1 | CF130: 7.72 | CG130: 30.204966 | CH130: -90.271679 | CI130: 05:43:00 | CJ130: 6 | CL130: 299-11-1-010 | CM130: 5.72 | CN130: 0 | CO130: 0
A131: =YEAR(C131) -> 2013 | B131: =A131 & RANDBETWEEN(111111111,999999999) & "-" -> 2013339404181- | C131: =RANDBETWEEN(DATE(2013, 1, 1),DATE(2015, 12, 31)) -> 2013-03-10 | D131: =RANDBETWEEN(0,6) +RANDBETWEEN(0,6) +RANDBETWEEN(0,6) +RANDBETWEEN(0,5) -> 10 | E131: A | F131: 0 | G131: A | I131: 0 | J131: 0 | K131: =IF(WEEKDAY(C131,1)=1,"SU",IF(WEEKDAY(C131,1)=2,"MO",IF(WEEKDAY(C131,1)=3,"TU",IF(WEEKDAY(C131,1)=4,"WE",IF(WEEKDAY(C131,1)=5,"TH",IF(WEEKDAY(C131,1)=6,"FI",IF(WEEKDAY(C131,1)=7,"SA",""))))))) -> SU | L131: 0 | M131: 0 | N131: C | O131: =IF(AND(BO131>4.4,BO131<4.6),IF(RAND()<0.67,1,0),(IF(AND(BO131>5.2,BO131<5.4),IF(RAND()<0.67,1,0),(IF(AND(BO131>6.3,BO131<6.5),IF(RAND()<0.67,1,0),(IF(AND(BO131>7.1,BO131<7.3),IF(RAND()<0.67,1,0),IF(RAND()<0.06,1,0)))))))) -> 1 | P131: =IF(RAND()<0.12,"A",IF(RAND()<0.22,"B",IF(RAND()<0.97,"C","Z"))) -> A | Q131: C | R131: C | S131: F | T131: =BO131-4 -> 0.31 | U131: 0 | V131: 0 | W131: 2 | X131: 65 | Y131: 0 | Z131: 199 | AA131: A | AB131: A | AC131: C | AD131: 0 | AE131: E | AF131: B | AG131: B | AI131: B | AJ131: B | AK131: A | AL131: 10 | AM131: 30 | AN131: S | AO131: S | AP131: S | AQ131: S | AR131: 45 | AS131: IB | AT131: I | AU131: B | AV131: R | AW131: WE | AX131: W | AY131: E | AZ131: K | BA131: K | BB131: B | BC131: A | BD131: C | BE131: U | BG131: 3 | BH131: =RANDBETWEEN(20100,22100) -> 20880 | BI131: 299-11 | BJ131: 65 | BK131: 8 | BL131: 1 | BM131: 4 | BN131: 8 | BO131: =RANDBETWEEN(4,7) + RANDBETWEEN(0,99)/100 -> 4.31 | BP131: 0 | BQ131: 2 | BR131: 60 | BS131: 22 | BT131: 0 | BU131: 0 | BV131: 4 | BW131: 199 | BX131: 4 | BY131: D | BZ131: 42 | CA131: A | CB131: B | CC131: P | CD131: P | CE131: 1 | CF131: =BO131+2 -> 6.31 | CG131: 30.204966 | CH131: -90.271679 | CI131: 17:25:00 | CJ131: 6 | CK131: =IF(AND(BO131>4.4,BO131<4.6),"65LA199@OAK",(IF(AND(BO131>5.2,BO131<5.4),"65LA199@MAIN",(IF(AND(BO131>6.3,BO131<6.5),"65LA199@1ST",(IF(AND(BO131>7.1,BO131<7.3),"65LA199@PINE",""))))))) ->  | CL131: 299-11-1-010 | CM131: =BO131 -> 4.31 | CN131: 0 | CO131: 0
A132: 2014 | B132: 2014194592755- | C132: 2014-05-01 | D132: 4 | E132: A | F132: 0 | G132: A | I132: 0 | J132: 0 | K132: TH | L132: 0 | M132: 0 | N132: C | O132: 1 | P132: B | Q132: A | R132: B | S132: Z | T132: 0.58 | U132: 0 | V132: 0 | W132: 2 | X132: 65 | Y132: 0 | Z132: 199 | AA132: A | AB132: A | AC132: C | AD132: 0 | AE132: E | AF132: A | AG132: B | AI132: A | AJ132: A | AK132: A | AN132: S | AO132: S | AP132: S | AQ132: S | AR132: 45 | AS132: EB | AT132: E | AU132: B | AV132: R | AW132: WN | AX132: W | AY132: N | AZ132: Y | BA132: Y | BB132: A | BC132: B | BD132: S | BE132: U | BG132: 3 | BH132: 21422 | BI132: 299-11 | BJ132: 65 | BK132: 8 | BL132: 1 | BM132: 4 | BN132: 8 | BO132: 4.58 | BP132: 0 | BQ132: 2 | BR132: 60 | BS132: 22 | BT132: 0 | BU132: 0 | BV132: 4 | BW132: 199 | BX132: 4 | BY132: D | BZ132: 42 | CA132: B | CB132: A | CC132: P | CD132: P | CE132: 1 | CF132: 6.58 | CG132: 30.204966 | CH132: -90.271679 | CI132: 16:32:00 | CJ132: 6 | CK132: 65LA199@OAK | CL132: 299-11-1-010 | CM132: 4.58 | CN132: 1 | CO132: 1
A133: 2013 | B133: 2013219139642- | C133: 2013-03-07 | D133: 8 | E133: A | F133: 0 | G133: A | I133: 0 | J133: 0 | K133: TH | L133: 0 | M133: 0 | N133: C | O133: 0 | P133: C | Q133: A | R133: B | S133: F | T133: 0 | U133: 0 | V133: 0 | W133: 2 | X133: 65 | Y133: 0 | Z133: 199 | AA133: A | AB133: A | AC133: C | AD133: 0 | AE133: E | AF133: A | AG133: B | AI133: A | AJ133: B | AK133: A | AL133: 5 | AM133: 25 | AN133: N | AO133: S | AP133: S | AQ133: S | AR133: 45 | AS133: UB | AT133: U | AU133: B | AV133: V | AW133: EN | AX133: E | AY133: N | AZ133: K | BA133: K | BB133: A | BC133: B | BD133: C | BE133: U | BG133: 3 | BH133: 20385 | BI133: 299-11 | BJ133: 65 | BK133: 8 | BL133: 1 | BM133: 4 | BN133: 8 | BO133: 4 | BP133: 0 | BQ133: 2 | BR133: 60 | BS133: 22 | BT133: 0 | BU133: 0 | BV133: 4 | BW133: 199 | BX133: 4 | BY133: K | BZ133: 42 | CA133: A | CB133: B | CC133: L | CD133: P | CE133: 1 | CF133: 6 | CG133: 30.204966 | CH133: -90.271679 | CI133: 18:36:00 | CJ133: 6 | CL133: 299-11-1-010 | CM133: 4 | CN133: 0 | CO133: 0
A134: 2014 | B134: 2014962368441- | C134: 2014-06-19 | D134: 12 | E134: A | F134: 0 | G134: A | I134: 0 | J134: 0 | K134: TH | L134: 0 | M134: 0 | N134: C | O134: 0 | P134: C | Q134: A | R134: B | S134: D | T134: 0.15 | U134: 2 | V134: 0 | W134: 2 | X134: 65 | Y134: 0 | Z134: 199 | AA134: A | AB134: E | AC134: C | AD134: 0 | AE134: C | AF134: B | AG134: B | AI134: C | AJ134: B | AK134: A | AN134: S | AO134: S | AP134: S | AQ134: S | AR134: 45 | AS134: IB | AT134: I | AU134: B | AV134: V | AW134: EN | AX134: E | AY134: N | AZ134: K | BA134: K | BB134: A | BC134: A | BD134: C | BE134: U | BG134: 2 | BH134: 21942 | BI134: 299-11 | BJ134: 65 | BK134: 8 | BL134: 1 | BM134: 4 | BN134: 8 | BO134: 4.15 | BP134: 0 | BQ134: 2 | BR134: 60 | BS134: 22 | BT134: 0 | BU134: 0 | BV134: 4 | BW134: 199 | BX134: 4 | BY134: D | BZ134: 42 | CA134: A | CB134: F | CC134: P | CD134: P | CE134: 1 | CF134: 6.15 | CG134: 30.204966 | CH134: -90.271679 | CI134: 14:03:00 | CJ134: 6 | CL134: 299-11-1-010 | CM134: 4.15 | CN134: 0 | CO134: 0
A135: 2014 | B135: 2014531809574- | C135: 2014-10-04 | D135: 10 | E135: A | F135: 0 | G135: A | I135: 0 | J135: 0 | K135: SA | L135: 0 | M135: 0 | N135: C | O135: 0 | P135: C | Q135: B | R135: B | S135: C | T135: 3.37 | U135: 1 | V135: 0 | W135: 2 | X135: 65 | Y135: 0 | Z135: 199 | AA135: A | AB135: A | AC135: C | AD135: 0 | AE135: D | AF135: A | AG135: B | AI135: A | AJ135: B | AK135: A | AL135: 25 | AN135: S | AO135: S | AP135: S | AQ135: S | AR135: 45 | AS135: IA | AT135: I | AU135: A | AV135: R | AW135: W | AX135: W | AZ135: K | BB135: A | BC135: A | BD135: S | BE135: U | BG135: 2 | BH135: 20307 | BI135: 299-11 | BJ135: 65 | BK135: 8 | BL135: 1 | BM135: 4 | BN135: 8 | BO135: 7.37 | BP135: 0 | BQ135: 2 | BR135: 60 | BS135: 22 | BT135: 0 | BU135: 0 | BV135: 4 | BW135: 199 | BX135: 4 | BY135: D | BZ135: 42 | CA135: B | CB135: A | CC135: L | CD135: P | CE135: 1 | CF135: 9.37 | CG135: 30.204966 | CH135: -90.271679 | CI135: 20:05:00 | CJ135: 6 | CL135: 299-11-1-010 | CM135: 7.37 | CN135: 0 | CO135: 0
A136: 2014 | B136: 2014578659880- | C136: 2014-08-24 | D136: 18 | E136: A | F136: 0 | G136: A | I136: 0 | J136: 0 | K136: SU | L136: 0 | M136: 0 | N136: C | O136: 0 | P136: C | Q136: A | R136: A | S136: H | T136: 1.72 | U136: 2 | V136: 0 | W136: 2 | X136: 65 | Y136: 0 | Z136: 199 | AA136: A | AB136: A | AC136: C | AD136: 0 | AE136: D | AF136: A | AG136: B | AI136: A | AJ136: A | AK136: A | AL136: 15 | AM136: 35 | AN136: S | AO136: S | AP136: S | AQ136: S | AR136: 45 | AS136: JB | AT136: J | AU136: B | AV136: R | AW136: NN | AX136: N | AY136: N | AZ136: K | BA136: K | BB136: S | BC136: A | BD136: C | BE136: U | BG136: 2 | BH136: 20506 | BI136: 299-11 | BJ136: 65 | BK136: 8 | BL136: 1 | BM136: 4 | BN136: 8 | BO136: 5.72 | BP136: 0 | BQ136: 2 | BR136: 60 | BS136: 22 | BT136: 0 | BU136: 0 | BV136: 4 | BW136: 199 | BX136: 4 | BY136: D | BZ136: 42 | CA136: A | CC136: P | CD136: P | CE136: 1 | CF136: 7.72 | CG136: 30.204966 | CH136: -90.271679 | CI136: 09:20:00 | CJ136: 6 | CL136: 299-11-1-010 | CM136: 5.72 | CN136: 0 | CO136: 0
A137: 2015 | B137: 2015895543109- | C137: 2015-02-28 | D137: 8 | E137: A | F137: 0 | G137: A | I137: 0 | J137: 0 | K137: SA | L137: 0 | M137: 0 | N137: C | O137: 1 | P137: C | Q137: A | R137: B | S137: H | T137: 3.2 | U137: 0 | V137: 0 | W137: 2 | X137: 65 | Y137: 0 | Z137: 199 | AA137: A | AB137: A | AC137: C | AD137: 0 | AE137: E | AF137: A | AG137: B | AI137: A | AJ137: A | AK137: A | AN137: S | AO137: S | AP137: S | AQ137: S | AR137: 45 | AS137: BN | AT137: B | AU137: N | AV137: R | AW137: SS | AX137: S | AY137: S | AZ137: Y | BA137: Y | BB137: B | BC137: N | BD137: S | BE137: U | BG137: 3 | BH137: 20335 | BI137: 299-11 | BJ137: 65 | BK137: 8 | BL137: 1 | BM137: 4 | BN137: 8 | BO137: 7.2 | BP137: 0 | BQ137: 2 | BR137: 60 | BS137: 22 | BT137: 0 | BU137: 0 | BV137: 4 | BW137: 199 | BX137: 4 | BY137: D | BZ137: 42 | CA137: B | CB137: A | CC137: P | CD137: P | CE137: 1 | CF137: 9.2 | CG137: 30.204966 | CH137: -90.271679 | CI137: 15:26:00 | CJ137: 6 | CK137: 65LA199@PINE | CL137: 299-11-1-010 | CM137: 7.2 | CN137: 0 | CO137: 0
A138: 2015 | B138: 2015877712365- | C138: 2015-02-28 | D138: 10 | E138: A | F138: 0 | G138: A | I138: 0 | J138: 0 | K138: SA | L138: 0 | M138: 0 | N138: C | O138: 0 | P138: A | Q138: C | R138: B | S138: G | T138: 2.35 | U138: 0 | V138: 0 | W138: 2 | X138: 65 | Y138: 0 | Z138: 199 | AA138: A | AB138: A | AC138: D | AD138: 0 | AE138: E | AF138: A | AG138: B | AI138: A | AJ138: A | AK138: A | AL138: 2 | AM138: 20 | AN138: S | AO138: S | AP138: S | AQ138: S | AR138: 45 | AS138: IB | AT138: I | AU138: B | AV138: V | AW138: EE | AX138: E | AY138: E | BA138: K | BB138: B | BC138: Q | BD138: C | BE138: U | BG138: 3 | BH138: 20712 | BI138: 299-11 | BJ138: 65 | BK138: 8 | BL138: 1 | BM138: 4 | BN138: 8 | BO138: 6.35 | BP138: 0 | BQ138: 2 | BR138: 60 | BS138: 22 | BT138: 0 | BU138: 0 | BV138: 4 | BW138: 199 | BX138: 4 | BY138: D | BZ138: 42 | CA138: A | CB138: A | CC138: L | CD138: P | CE138: 1 | CF138: 8.35 | CG138: 30.204966 | CH138: -90.271679 | CI138: 04:30:00 | CJ138: 6 | CK138: 65LA199@1ST | CL138: 299-11-1-010 | CM138: 6.35 | CN138: 0 | CO138: 0
A139: 2014 | B139: 2014512553247- | C139: 2014-10-29 | D139: 10 | E139: A | F139: 0 | G139: A | I139: 0 | J139: 0 | K139: WE | L139: 0 | M139: 0 | N139: C | O139: 0 | P139: B | Q139: E | R139: C | S139: E | T139: 1.38 | U139: 0 | V139: 0 | W139: 2 | X139: 65 | Y139: 0 | Z139: 199 | AA139: A | AB139: A | AC139: B | AD139: 0 | AE139: E | AF139: A | AG139: B | AI139: A | AJ139: B | AK139: A | AN139: S | AO139: S | AP139: S | AQ139: S | AR139: 55 | AS139: BI | AT139: B | AU139: I | AV139: C | AW139: SE | AX139: S | AY139: E | AZ139: K | BA139: K | BB139: S | BC139: A | BD139: Z | BE139: U | BG139: 3 | BH139: 21834 | BI139: 299-11 | BJ139: 65 | BK139: 8 | BL139: 1 | BM139: 4 | BN139: 8 | BO139: 5.38 | BP139: 0 | BQ139: 2 | BR139: 60 | BS139: 22 | BT139: 0 | BU139: 0 | BV139: 4 | BW139: 199 | BX139: 4 | BY139: D | BZ139: 42 | CA139: A | CC139: L | CD139: P | CE139: 1 | CF139: 7.38 | CG139: 30.204966 | CH139: -90.271679 | CI139: 06:37:00 | CJ139: 6 | CK139: 65LA199@MAIN | CL139: 299-11-1-010 | CM139: 5.38 | CN139: 0 | CO139: 0
A140: 2015 | B140: 2015615161342- | C140: 2015-01-01 | D140: 9 | E140: A | F140: 0 | G140: A | I140: 0 | J140: 0 | K140: TH | L140: 0 | M140: 0 | N140: C | O140: 0 | P140: A | Q140: A | R140: B | S140: Z | T140: 2.51 | U140: 0 | V140: 0 | W140: 2 | X140: 65 | Y140: 0 | Z140: 199 | AA140: A | AB140: B | AC140: C | AD140: 0 | AE140: E | AF140: A | AG140: B | AH140: H | AI140: A | AJ140: B | AK140: A | AM140: 0 | AN140: S | AO140: S | AP140: S | AQ140: S | AR140: 45 | AS140: WA | AT140: W | AU140: A | AV140: R | AW140: EE | AX140: E | AY140: E | AZ140: K | BA140: K | BB140: A | BC140: S | BD140: R | BE140: U | BG140: 3 | BH140: 20194 | BI140: 299-11 | BJ140: 65 | BK140: 8 | BL140: 1 | BM140: 4 | BN140: 8 | BO140: 6.51 | BP140: 0 | BQ140: 2 | BR140: 60 | BS140: 22 | BT140: 0 | BU140: 0 | BV140: 4 | BW140: 199 | BX140: 4 | BY140: D | BZ140: 42 | CA140: D | CB140: B | CC140: K | CD140: P | CE140: 1 | CF140: 8.51 | CG140: 30.204966 | CH140: -90.271679 | CI140: 16:17:00 | CJ140: 6 | CL140: 299-11-1-010 | CM140: 6.51 | CN140: 0 | CO140: 0
A141: 2015 | B141: 2015704251267- | C141: 2015-12-13 | D141: 10 | E141: A | F141: 0 | G141: A | I141: 0 | J141: 0 | K141: SU | L141: 0 | M141: 0 | N141: C | O141: 0 | P141: C | Q141: A | R141: A | S141: D | T141: 3.05 | U141: 1 | V141: 0 | W141: 2 | X141: 65 | Y141: 0 | Z141: 199 | AA141: A | AB141: A | AC141: B | AD141: 0 | AE141: D | AF141: A | AG141: B | AI141: A | AJ141: A | AK141: A | AN141: L | AO141: S | AP141: S | AQ141: S | AR141: 45 | AS141: WB | AT141: W | AU141: B | AV141: V | AW141: WN | AX141: W | AY141: N | AZ141: K | BA141: K | BB141: S | BC141: A | BD141: C | BE141: U | BG141: 2 | BH141: 20143 | BI141: 299-11 | BJ141: 65 | BK141: 8 | BL141: 1 | BM141: 4 | BN141: 8 | BO141: 7.05 | BP141: 0 | BQ141: 2 | BR141: 60 | BS141: 22 | BT141: 0 | BU141: 0 | BV141: 4 | BW141: 199 | BX141: 4 | BY141: A | BZ141: 42 | CA141: A | CB141: B | CC141: L | CD141: P | CE141: 1 | CF141: 9.05 | CG141: 30.204966 | CH141: -90.271679 | CI141: 14:57:00 | CJ141: 6 | CL141: 299-11-1-010 | CM141: 7.05 | CN141: 0 | CO141: 1
A142: 2014 | B142: 2014118913650- | C142: 2014-02-27 | D142: 6 | E142: A | F142: 0 | G142: A | I142: 0 | J142: 0 | K142: TH | L142: 0 | M142: 0 | N142: C | O142: 1 | P142: B | Q142: A | R142: B | S142: F | T142: 1.31 | U142: 0 | V142: 0 | W142: 3 | X142: 65 | Y142: 0 | Z142: 199 | AA142: A | AB142: A | AC142: C | AD142: 0 | AE142: E | AF142: A | AG142: B | AI142: A | AJ142: A | AK142: A | AM142: 30 | AN142: S | AO142: S | AP142: S | AQ142: S | AR142: 50 | AS142: MBA | AT142: M | AU142: B | AV142: V | AW142: SNN | AX142: S | AY142: N | AZ142: K | BA142: K | BB142: A | BC142: S | BD142: C | BE142: U | BG142: 3 | BH142: 20779 | BI142: 299-11 | BJ142: 65 | BK142: 8 | BL142: 1 | BM142: 4 | BN142: 8 | BO142: 5.31 | BP142: 0 | BQ142: 2 | BR142: 60 | BS142: 22 | BT142: 0 | BU142: 0 | BV142: 4 | BW142: 199 | BX142: 4 | BY142: D | BZ142: 42 | CA142: A | CC142: L | CD142: P | CE142: 1 | CF142: 7.31 | CG142: 30.204966 | CH142: -90.271679 | CI142: 06:49:00 | CJ142: 6 | CK142: 65LA199@MAIN | CL142: 299-11-1-010 | CM142: 5.31 | CN142: 0 | CO142: 0
A143: 2013 | B143: 2013642510066- | C143: 2013-09-08 | D143: 8 | E143: A | F143: 0 | G143: C | I143: 0 | J143: 0 | K143: SU | L143: 0 | M143: 0 | N143: C | O143: 0 | P143: B | Q143: B | R143: G | S143: A | T143: 2.1 | U143: 0 | V143: 0 | W143: 1 | X143: 65 | Y143: 0 | Z143: 199 | AA143: L | AB143: E | AC143: B | AD143: 0 | AE143: E | AF143: A | AG143: B | AH143: H | AI143: A | AJ143: Y | AL143: 50 | AN143: R | AP143: A | AR143: 55 | AS143: G | AT143: G | AV143: Q | AW143: N | AX143: N | AZ143: K | BB143: A | BD143: Y | BG143: 3 | BH143: 21496 | BI143: 299-11 | BJ143: 65 | BK143: 8 | BL143: 1 | BM143: 4 | BN143: 8 | BO143: 6.1 | BP143: 0 | BQ143: 2 | BR143: 60 | BS143: 22 | BT143: 0 | BU143: 0 | BV143: 4 | BW143: 199 | BX143: 4 | BY143: A | BZ143: 42 | CA143: G | CB143: B | CC143: Y | CE143: 1 | CF143: 8.1 | CG143: 30.204966 | CH143: -90.271679 | CI143: 05:43:00 | CJ143: 6 | CL143: 299-11-1-010 | CM143: 6.1 | CN143: 1 | CO143: 1
A144: 2013 | B144: 2013764576856- | C144: 2013-09-02 | D144: 14 | E144: A | F144: 0 | G144: A | I144: 0 | J144: 0 | K144: MO | L144: 0 | M144: 0 | N144: C | O144: 0 | P144: C | Q144: A | R144: G | S144: D | T144: 0.91 | U144: 4 | V144: 0 | W144: 2 | X144: 65 | Y144: 0 | Z144: 199 | AA144: A | AB144: A | AC144: B | AD144: 0 | AE144: D | AF144: A | AG144: B | AH144: H | AI144: A | AJ144: B | AK144: A | AL144: 5 | AM144: 45 | AN144: S | AO144: S | AP144: S | AQ144: S | AR144: 55 | AS144: WB | AT144: W | AU144: B | AV144: A | AW144: WE | AX144: W | AY144: E | AZ144: K | BA144: K | BB144: B | BC144: B | BD144: C | BE144: U | BG144: 2 | BH144: 21844 | BI144: 299-11 | BJ144: 65 | BK144: 8 | BL144: 1 | BM144: 4 | BN144: 8 | BO144: 4.91 | BP144: 0 | BQ144: 2 | BR144: 60 | BS144: 22 | BT144: 0 | BU144: 0 | BV144: 4 | BW144: 199 | BX144: 4 | BY144: D | BZ144: 42 | CA144: A | CB144: B | CC144: L | CD144: P | CE144: 1 | CF144: 6.91 | CG144: 30.204966 | CH144: -90.271679 | CI144: 02:10:00 | CJ144: 6 | CL144: 299-11-1-010 | CM144: 4.91 | CN144: 0 | CO144: 0
A145: 2014 | B145: 2014270057181- | C145: 2014-09-14 | D145: 14 | E145: A | F145: 0 | G145: A | I145: 0 | J145: 0 | K145: SU | L145: 0 | M145: 0 | N145: C | O145: 0 | P145: B | Q145: A | R145: B | S145: B | T145: 0.51 | U145: 0 | V145: 0 | W145: 2 | X145: 65 | Y145: 0 | Z145: 199 | AA145: A | AB145: A | AC145: C | AD145: 0 | AE145: E | AF145: A | AG145: B | AI145: A | AJ145: B | AK145: A | AL145: 15 | AM145: 0 | AN145: S | AO145: S | AP145: S | AQ145: S | AR145: 45 | AS145: BA | AT145: B | AU145: A | AV145: R | AW145: EE | AX145: E | AY145: E | AZ145: K | BA145: K | BB145: B | BC145: B | BD145: S | BE145: U | BG145: 3 | BH145: 21654 | BI145: 299-11 | BJ145: 65 | BK145: 8 | BL145: 1 | BM145: 4 | BN145: 8 | BO145: 4.51 | BP145: 0 | BQ145: 2 | BR145: 60 | BS145: 22 | BT145: 0 | BU145: 0 | BV145: 4 | BW145: 199 | BX145: 4 | BY145: D | BZ145: 42 | CA145: B | CB145: A | CC145: L | CD145: P | CE145: 1 | CF145: 6.51 | CG145: 30.204966 | CH145: -90.271679 | CI145: 17:10:00 | CJ145: 6 | CK145: 65LA199@OAK | CL145: 299-11-1-010 | CM145: 4.51 | CN145: 0 | CO145: 0
A146: 2015 | B146: 2015860139209- | C146: 2015-05-27 | D146: 13 | E146: C | F146: 0 | G146: A | I146: 0 | J146: 0 | K146: WE | L146: 0 | M146: 0 | N146: C | O146: 0 | P146: C | Q146: C | R146: B | S146: B | T146: 0.17 | U146: 0 | V146: 0 | W146: 3 | X146: 65 | Y146: 0 | Z146: 199 | AA146: A | AB146: A | AC146: C | AD146: 0 | AE146: E | AF146: A | AG146: A | AI146: B | AJ146: B | AK146: A | AN146: S | AO146: S | AP146: S | AQ146: S | AR146: 50 | AS146: BQQ | AT146: B | AU146: Q | AV146: C | AW146: EEE | AX146: E | AY146: E | AZ146: K | BA146: K | BB146: A | BC146: S | BD146: D | BE146: U | BG146: 3 | BH146: 21545 | BI146: 299-11 | BJ146: 65 | BK146: 8 | BL146: 1 | BM146: 4 | BN146: 8 | BO146: 4.17 | BP146: 0 | BQ146: 2 | BR146: 60 | BS146: 22 | BT146: 0 | BU146: 0 | BV146: 4 | BW146: 199 | BX146: 4 | BY146: D | BZ146: 42 | CA146: A | CB146: B | CC146: L | CD146: P | CE146: 1 | CF146: 6.17 | CG146: 30.204966 | CH146: -90.271679 | CI146: 19:28:00 | CJ146: 6 | CL146: 299-11-1-010 | CM146: 4.17 | CN146: 0 | CO146: 0
A147: 2013 | B147: 2013905733454- | C147: 2013-05-18 | D147: 15 | E147: A | F147: 0 | G147: A | I147: 0 | J147: 0 | K147: SA | L147: 0 | M147: 0 | N147: C | O147: 0 | P147: B | Q147: A | R147: B | S147: B | T147: 0.3 | U147: 0 | V147: 0 | W147: 2 | X147: 65 | Y147: 0 | Z147: 199 | AA147: A | AB147: A | AC147: C | AD147: 0 | AE147: E | AF147: A | AG147: B | AI147: B | AJ147: B | AK147: A | AM147: 0 | AN147: S | AO147: S | AP147: S | AQ147: S | AR147: 45 | AS147: QA | AT147: Q | AU147: A | AV147: R | AW147: NN | AX147: N | AY147: N | AZ147: K | BA147: K | BB147: S | BC147: B | BD147: D | BE147: U | BG147: 3 | BH147: 20545 | BI147: 299-11 | BJ147: 65 | BK147: 8 | BL147: 1 | BM147: 4 | BN147: 8 | BO147: 4.3 | BP147: 0 | BQ147: 2 | BR147: 60 | BS147: 22 | BT147: 0 | BU147: 0 | BV147: 4 | BW147: 199 | BX147: 4 | BY147: D | BZ147: 42 | CA147: A | CB147: B | CC147: L | CD147: P | CE147: 1 | CF147: 6.3 | CG147: 30.204966 | CH147: -90.271679 | CI147: 16:12:00 | CJ147: 6 | CL147: 299-11-1-010 | CM147: 4.3 | CN147: 0 | CO147: 0
A148: 2015 | B148: 2015128862480- | C148: 2015-12-09 | D148: 2 | E148: A | F148: 0 | G148: A | I148: 0 | J148: 0 | K148: WE | L148: 0 | M148: 0 | N148: C | O148: 0 | P148: B | Q148: A | R148: B | S148: B | T148: 0.25 | U148: 0 | V148: 0 | W148: 2 | X148: 65 | Y148: 0 | Z148: 199 | AA148: A | AB148: A | AC148: C | AD148: 0 | AE148: E | AF148: A | AG148: B | AI148: A | AJ148: B | AK148: A | AL148: 10 | AM148: 0 | AN148: S | AO148: S | AP148: S | AQ148: S | AR148: 45 | AS148: BA | AT148: B | AU148: A | AV148: Q | AW148: WE | AX148: W | AY148: E | AZ148: Y | BA148: Y | BB148: A | BC148: B | BD148: R | BE148: U | BG148: 3 | BH148: 21663 | BI148: 299-11 | BJ148: 65 | BK148: 8 | BL148: 1 | BM148: 4 | BN148: 8 | BO148: 4.25 | BP148: 0 | BQ148: 2 | BR148: 60 | BS148: 22 | BT148: 0 | BU148: 0 | BV148: 4 | BW148: 199 | BX148: 4 | BY148: D | BZ148: 42 | CA148: A | CB148: D | CC148: P | CD148: I | CE148: 1 | CF148: 6.25 | CG148: 30.204966 | CH148: -90.271679 | CI148: 15:38:00 | CJ148: 6 | CL148: 299-11-1-010 | CM148: 4.25 | CN148: 0 | CO148: 0
A149: 2013 | B149: 2013920338937- | C149: 2013-12-27 | D149: 12 | E149: A | F149: 0 | G149: A | I149: 0 | J149: 0 | K149: FI | L149: 0 | M149: 0 | N149: C | O149: 1 | P149: B | Q149: A | R149: A | S149: G | T149: 2.34 | U149: 0 | V149: 0 | W149: 2 | X149: 65 | Y149: 0 | Z149: 199 | AA149: A | AB149: A | AC149: C | AD149: 0 | AE149: E | AF149: A | AG149: B | AI149: A | AJ149: B | AK149: A | AL149: 10 | AM149: 30 | AN149: S | AO149: S | AP149: S | AQ149: S | AR149: 45 | AS149: WB | AT149: W | AU149: B | AV149: S | AW149: WW | AX149: W | AY149: W | AZ149: Y | BA149: Y | BB149: A | BC149: B | BD149: S | BE149: U | BG149: 3 | BH149: 21900 | BI149: 299-11 | BJ149: 65 | BK149: 8 | BL149: 1 | BM149: 4 | BN149: 8 | BO149: 6.34 | BP149: 0 | BQ149: 2 | BR149: 60 | BS149: 22 | BT149: 0 | BU149: 0 | BV149: 4 | BW149: 199 | BX149: 4 | BY149: D | BZ149: 42 | CA149: A | CB149: D | CC149: P | CD149: O | CE149: 1 | CF149: 8.34 | CG149: 30.204966 | CH149: -90.271679 | CI149: 15:06:00 | CJ149: 6 | CK149: 65LA199@1ST | CL149: 299-11-1-010 | CM149: 6.34 | CN149: 0 | CO149: 0
A150: 2014 | B150: 2014679626549- | C150: 2014-05-30 | D150: 13 | E150: A | F150: 0 | G150: A | I150: 0 | J150: 0 | K150: FI | L150: 0 | M150: 0 | N150: C | O150: 0 | P150: C | Q150: C | R150: B | S150: J | T150: 0.2 | U150: 0 | V150: 0 | W150: 2 | X150: 65 | Y150: 0 | Z150: 199 | AA150: A | AB150: A | AC150: B | AD150: 0 | AE150: E | AF150: A | AG150: B | AI150: A | AJ150: B | AK150: A | AN150: S | AO150: S | AP150: S | AQ150: S | AR150: 45 | AS150: HB | AT150: H | AU150: B | AV150: R | AW150: SS | AX150: S | AY150: S | AZ150: K | BA150: K | BB150: A | BC150: P | BD150: S | BE150: U | BG150: 3 | BH150: 20425 | BI150: 299-11 | BJ150: 65 | BK150: 8 | BL150: 1 | BM150: 4 | BN150: 8 | BO150: 4.2 | BP150: 0 | BQ150: 2 | BR150: 60 | BS150: 22 | BT150: 0 | BU150: 0 | BV150: 4 | BW150: 199 | BX150: 4 | BY150: D | BZ150: 42 | CA150: A | CB150: B | CC150: L | CD150: P | CE150: 1 | CF150: 6.2 | CG150: 30.204966 | CH150: -90.271679 | CI150: 05:32:00 | CJ150: 6 | CL150: 299-11-1-010 | CM150: 4.2 | CN150: 0 | CO150: 0
A151: 2015 | B151: 2015685855733- | C151: 2015-07-18 | D151: 11 | E151: A | F151: 0 | G151: A | I151: 0 | J151: 0 | K151: SA | L151: 0 | M151: 0 | N151: C | O151: 0 | P151: C | Q151: D | R151: B | S151: B | T151: 1.04 | U151: 1 | V151: 0 | W151: 2 | X151: 65 | Y151: 0 | Z151: 199 | AA151: A | AB151: A | AC151: C | AD151: 0 | AE151: D | AF151: A | AG151: B | AH151: H | AI151: A | AJ151: Y | AK151: A | AM151: 30 | AN151: S | AO151: YY | AP151: S | AQ151: YY | AR151: 55 | AS151: BB | AT151: B | AU151: B | AV151: R | AW151: NN | AX151: N | AY151: N | AZ151: Y | BA151: K | BB151: Z | BC151: A | BD151: S | BE151: U | BG151: 2 | BH151: 20562 | BI151: 299-11 | BJ151: 65 | BK151: 8 | BL151: 1 | BM151: 4 | BN151: 8 | BO151: 5.04 | BP151: 0 | BQ151: 2 | BR151: 60 | BS151: 22 | BT151: 0 | BU151: 0 | BV151: 4 | BW151: 199 | BX151: 4 | BY151: D | BZ151: 42 | CA151: A | CB151: B | CC151: L | CD151: P | CE151: 1 | CF151: 7.04 | CG151: 30.204966 | CH151: -90.271679 | CI151: 18:45:00 | CJ151: 6 | CL151: 299-11-1-010 | CM151: 5.04 | CN151: 0 | CO151: 0
A152: 2013 | B152: 2013507405227- | C152: 2013-12-08 | D152: 15 | E152: A | F152: 0 | G152: A | I152: 0 | J152: 0 | K152: SU | L152: 0 | M152: 0 | N152: C | O152: 0 | P152: C | Q152: A | R152: B | S152: B | T152: 1.86 | U152: 0 | V152: 0 | W152: 2 | X152: 65 | Y152: 0 | Z152: 199 | AA152: A | AB152: A | AC152: C | AD152: 0 | AE152: E | AF152: A | AG152: B | AI152: A | AJ152: A | AK152: A | AL152: 45 | AM152: 45 | AN152: S | AO152: S | AP152: S | AQ152: S | AR152: 45 | AS152: BB | AT152: B | AU152: B | AV152: R | AW152: WW | AX152: W | AY152: W | AZ152: K | BA152: K | BB152: B | BC152: B | BD152: D | BE152: U | BG152: 3 | BH152: 21834 | BI152: 299-11 | BJ152: 65 | BK152: 8 | BL152: 1 | BM152: 4 | BN152: 8 | BO152: 5.86 | BP152: 0 | BQ152: 2 | BR152: 60 | BS152: 22 | BT152: 0 | BU152: 0 | BV152: 4 | BW152: 199 | BX152: 4 | BY152: D | BZ152: 42 | CA152: A | CB152: B | CC152: L | CD152: A | CE152: 1 | CF152: 7.86 | CG152: 30.204966 | CH152: -90.271679 | CI152: 17:31:00 | CJ152: 6 | CL152: 299-11-1-010 | CM152: 5.86 | CN152: 0 | CO152: 0
A153: 2015 | B153: 2015691624701- | C153: 2015-01-29 | D153: 16 | E153: A | F153: 0 | G153: A | I153: 0 | J153: 0 | K153: TH | L153: 0 | M153: 0 | N153: C | O153: 0 | P153: C | Q153: C | R153: B | S153: E | T153: 0.97 | U153: 1 | V153: 0 | W153: 2 | X153: 65 | Y153: 0 | Z153: 199 | AA153: A | AB153: A | AC153: B | AD153: 0 | AE153: D | AF153: A | AG153: B | AI153: A | AJ153: B | AK153: A | AN153: S | AO153: S | AP153: S | AQ153: S | AR153: 45 | AS153: IB | AT153: I | AU153: B | AV153: E | AW153: NS | AX153: N | AY153: S | AZ153: K | BA153: K | BB153: A | BC153: B | BD153: C | BE153: U | BG153: 2 | BH153: 20368 | BI153: 299-11 | BJ153: 65 | BK153: 8 | BL153: 1 | BM153: 4 | BN153: 8 | BO153: 4.97 | BP153: 0 | BQ153: 2 | BR153: 60 | BS153: 22 | BT153: 0 | BU153: 0 | BV153: 4 | BW153: 199 | BX153: 4 | BY153: D | BZ153: 42 | CA153: A | CB153: B | CC153: L | CD153: P | CE153: 1 | CF153: 6.97 | CG153: 30.204966 | CH153: -90.271679 | CI153: 05:28:00 | CJ153: 6 | CL153: 299-11-1-010 | CM153: 4.97 | CN153: 0 | CO153: 0
A154: 2013 | B154: 2013270206018- | C154: 2013-02-26 | D154: 16 | E154: A | F154: 0 | G154: A | I154: 0 | J154: 0 | K154: TU | L154: 0 | M154: 0 | N154: C | O154: 0 | P154: B | Q154: A | R154: B | S154: B | T154: 0.83 | U154: 1 | V154: 0 | W154: 2 | X154: 65 | Y154: 0 | Z154: 199 | AA154: A | AB154: A | AC154: C | AD154: 0 | AE154: D | AF154: A | AG154: B | AI154: A | AJ154: A | AK154: A | AL154: 35 | AM154: 0 | AN154: S | AO154: S | AP154: S | AQ154: S | AR154: 45 | AS154: BA | AT154: B | AU154: A | AV154: C | AW154: NN | AX154: N | AY154: N | AZ154: K | BA154: K | BB154: A | BC154: B | BD154: S | BE154: U | BG154: 2 | BH154: 21143 | BI154: 299-11 | BJ154: 65 | BK154: 8 | BL154: 1 | BM154: 4 | BN154: 8 | BO154: 4.83 | BP154: 0 | BQ154: 2 | BR154: 60 | BS154: 22 | BT154: 0 | BU154: 0 | BV154: 4 | BW154: 199 | BX154: 4 | BY154: D | BZ154: 42 | CA154: B | CB154: A | CC154: P | CD154: P | CE154: 1 | CF154: 6.83 | CG154: 30.204966 | CH154: -90.271679 | CI154: 13:42:00 | CJ154: 6 | CL154: 299-11-1-010 | CM154: 4.83 | CN154: 0 | CO154: 0
A155: 2015 | B155: 2015325257426- | C155: 2015-01-07 | D155: 9 | E155: B | F155: 0 | G155: A | I155: 0 | J155: 0 | K155: WE | L155: 0 | M155: 0 | N155: C | O155: 0 | P155: C | Q155: D | R155: B | S155: B | T155: 2.39 | U155: 0 | V155: 0 | W155: 2 | X155: 65 | Y155: 0 | Z155: 199 | AA155: A | AB155: A | AC155: C | AD155: 0 | AE155: E | AF155: A | AG155: A | AI155: A | AJ155: B | AK155: A | AN155: S | AO155: S | AP155: S | AQ155: S | AR155: 45 | AS155: BB | AT155: B | AU155: B | AV155: E | AW155: EE | AX155: E | AY155: E | AZ155: K | BA155: K | BB155: B | BC155: A | BD155: S | BE155: U | BG155: 3 | BH155: 20634 | BI155: 299-11 | BJ155: 65 | BK155: 8 | BL155: 1 | BM155: 4 | BN155: 8 | BO155: 6.39 | BP155: 0 | BQ155: 2 | BR155: 60 | BS155: 22 | BT155: 0 | BU155: 0 | BV155: 4 | BW155: 199 | BX155: 4 | BY155: D | BZ155: 42 | CA155: A | CB155: B | CC155: P | CD155: P | CE155: 1 | CF155: 8.39 | CG155: 30.204966 | CH155: -90.271679 | CI155: 10:51:00 | CJ155: 6 | CK155: 65LA199@1ST | CL155: 299-11-1-010 | CM155: 6.39 | CN155: 0 | CO155: 0
A156: 2013 | B156: 2013965015687- | C156: 2013-01-05 | D156: 17 | E156: B | F156: 0 | G156: A | I156: 0 | J156: 0 | K156: SA | L156: 0 | M156: 0 | N156: C | O156: 0 | P156: C | Q156: A | R156: B | S156: B | T156: 0.91 | U156: 0 | V156: 0 | W156: 2 | X156: 65 | Y156: 0 | Z156: 199 | AA156: A | AB156: A | AC156: A | AD156: 0 | AE156: E | AF156: A | AG156: A | AI156: A | AJ156: B | AK156: A | AL156: 2 | AM156: 0 | AN156: S | AO156: S | AP156: S | AQ156: S | AR156: 45 | AS156: AA | AT156: A | AU156: A | AV156: C | AW156: EE | AX156: E | AY156: E | AZ156: Y | BA156: Y | BB156: A | BC156: A | BD156: D | BE156: U | BG156: 3 | BH156: 20352 | BI156: 299-11 | BJ156: 65 | BK156: 8 | BL156: 1 | BM156: 4 | BN156: 8 | BO156: 4.91 | BP156: 0 | BQ156: 2 | BR156: 60 | BS156: 22 | BT156: 0 | BU156: 0 | BV156: 4 | BW156: 199 | BX156: 4 | BY156: D | BZ156: 42 | CA156: A | CC156: Z | CD156: P | CE156: 1 | CF156: 6.91 | CG156: 30.204966 | CH156: -90.271679 | CI156: 07:25:00 | CJ156: 6 | CL156: 299-11-1-010 | CM156: 4.91 | CN156: 0 | CO156: 0
A157: 2014 | B157: 2014587058440- | C157: 2014-01-11 | D157: 11 | E157: A | F157: 0 | G157: A | I157: 0 | J157: 0 | K157: SA | L157: 0 | M157: 0 | N157: C | O157: 0 | P157: C | Q157: F | R157: B | S157: B | T157: 3.41 | U157: 0 | V157: 0 | W157: 2 | X157: 65 | Y157: 0 | Z157: 199 | AA157: A | AB157: A | AC157: C | AD157: 0 | AE157: E | AF157: A | AG157: B | AI157: A | AJ157: B | AK157: A | AL157: 3 | AM157: 0 | AN157: S | AO157: S | AP157: S | AQ157: S | AR157: 45 | AS157: BA | AT157: B | AU157: A | AV157: R | AW157: WW | AX157: W | AY157: W | AZ157: Y | BA157: Y | BB157: A | BC157: S | BD157: D | BE157: U | BG157: 3 | BH157: 22005 | BI157: 299-11 | BJ157: 65 | BK157: 8 | BL157: 1 | BM157: 4 | BN157: 8 | BO157: 7.41 | BP157: 0 | BQ157: 2 | BR157: 60 | BS157: 22 | BT157: 0 | BU157: 0 | BV157: 4 | BW157: 199 | BX157: 4 | BY157: D | BZ157: 42 | CA157: A | CB157: D | CC157: I | CD157: I | CE157: 1 | CF157: 9.41 | CG157: 30.204966 | CH157: -90.271679 | CI157: 06:15:00 | CJ157: 6 | CL157: 299-11-1-010 | CM157: 7.41 | CN157: 0 | CO157: 0
A158: 2014 | B158: 2014373445740- | C158: 2014-12-05 | D158: 11 | E158: A | F158: 0 | G158: A | I158: 0 | J158: 0 | K158: FI | L158: 0 | M158: 0 | N158: C | O158: 1 | P158: C | Q158: C | R158: B | S158: J | T158: 2.46 | U158: 0 | V158: 0 | W158: 2 | X158: 65 | Y158: 0 | Z158: 199 | AA158: A | AB158: A | AC158: C | AD158: 0 | AE158: E | AF158: A | AG158: B | AI158: A | AJ158: Y | AK158: A | AL158: 30 | AM158: 30 | AN158: S | AO158: S | AP158: S | AQ158: S | AR158: 55 | AS158: YB | AT158: Y | AU158: B | AV158: B | AW158: WW | AX158: W | AY158: W | AZ158: Y | BA158: K | BB158: A | BC158: B | BD158: C | BE158: U | BG158: 3 | BH158: 20356 | BI158: 299-11 | BJ158: 65 | BK158: 8 | BL158: 1 | BM158: 4 | BN158: 8 | BO158: 6.46 | BP158: 0 | BQ158: 2 | BR158: 60 | BS158: 22 | BT158: 0 | BU158: 0 | BV158: 4 | BW158: 199 | BX158: 4 | BY158: D | BZ158: 42 | CA158: A | CB158: B | CC158: L | CD158: P | CE158: 1 | CF158: 8.46 | CG158: 30.204966 | CH158: -90.271679 | CI158: 05:58:00 | CJ158: 6 | CK158: 65LA199@1ST | CL158: 299-11-1-010 | CM158: 6.46 | CN158: 0 | CO158: 0
A159: 2015 | B159: 2015275794854- | C159: 2015-03-06 | D159: 7 | E159: A | F159: 0 | G159: A | I159: 0 | J159: 0 | K159: FI | L159: 0 | M159: 0 | N159: C | O159: 0 | P159: C | Q159: A | R159: C | S159: Z | T159: 2.2 | U159: 0 | V159: 0 | W159: 2 | X159: 65 | Y159: 0 | Z159: 199 | AA159: A | AB159: A | AC159: C | AD159: 0 | AE159: E | AF159: A | AG159: B | AI159: A | AJ159: Z | AK159: A | AN159: N | AO159: N | AP159: S | AQ159: S | AR159: 35 | AS159: Z | AU159: Z | AV159: R | AW159: SS | AX159: S | AY159: S | AZ159: K | BA159: K | BB159: B | BC159: Q | BD159: J | BE159: U | BG159: 3 | BH159: 21299 | BI159: 299-11 | BJ159: 65 | BK159: 8 | BL159: 1 | BM159: 4 | BN159: 8 | BO159: 6.2 | BP159: 0 | BQ159: 2 | BR159: 60 | BS159: 22 | BT159: 0 | BU159: 0 | BV159: 4 | BW159: 199 | BX159: 4 | BY159: K | BZ159: 42 | CA159: A | CB159: B | CC159: Z | CD159: P | CE159: 1 | CF159: 8.2 | CG159: 30.204966 | CH159: -90.271679 | CI159: 17:51:00 | CJ159: 6 | CL159: 299-11-1-010 | CM159: 6.2 | CN159: 0 | CO159: 0
A160: 2013 | B160: 2013715663317- | C160: 2013-06-10 | D160: 12 | E160: A | F160: 0 | G160: A | I160: 0 | J160: 0 | K160: MO | L160: 0 | M160: 0 | N160: C | O160: 0 | P160: C | Q160: A | R160: B | S160: B | T160: 0.73 | U160: 0 | V160: 0 | W160: 2 | X160: 65 | Y160: 0 | Z160: 199 | AA160: K | AB160: A | AC160: A | AD160: 0 | AE160: E | AF160: B | AG160: B | AI160: C | AJ160: B | AK160: A | AN160: S | AO160: S | AP160: S | AQ160: S | AR160: 70 | AS160: BA | AT160: B | AU160: A | AV160: B | AW160: EE | AX160: E | AY160: E | AZ160: Y | BA160: Y | BB160: A | BC160: A | BD160: D | BE160: U | BG160: 3 | BH160: 20699 | BI160: 299-11 | BJ160: 65 | BK160: 8 | BL160: 1 | BM160: 4 | BN160: 8 | BO160: 4.73 | BP160: 0 | BQ160: 2 | BR160: 60 | BS160: 22 | BT160: 0 | BU160: 0 | BV160: 4 | BW160: 199 | BX160: 4 | BY160: D | BZ160: 42 | CA160: A | CB160: B | CC160: L | CD160: P | CE160: 1 | CF160: 6.73 | CG160: 30.204966 | CH160: -90.271679 | CI160: 13:35:00 | CJ160: 6 | CL160: 299-11-1-010 | CM160: 4.73 | CN160: 0 | CO160: 0
A161: 2014 | B161: 2014926733381- | C161: 2014-04-11 | D161: 14 | E161: A | F161: 0 | G161: B | I161: 0 | J161: 0 | K161: FI | L161: 0 | M161: 0 | N161: C | O161: 0 | P161: C | Q161: C | R161: C | S161: B | T161: 2.03 | U161: 1 | V161: 0 | W161: 2 | X161: 65 | Y161: 0 | Z161: 199 | AA161: A | AB161: A | AC161: C | AD161: 0 | AE161: D | AF161: A | AG161: A | AI161: A | AJ161: A | AK161: A | AN161: S | AO161: S | AP161: S | AQ161: S | AR161: 45 | AS161: QA | AT161: Q | AU161: A | AV161: C | AW161: EE | AX161: E | AY161: E | AZ161: Y | BA161: Y | BB161: A | BC161: A | BD161: S | BE161: U | BG161: 2 | BH161: 21493 | BI161: 299-11 | BJ161: 65 | BK161: 8 | BL161: 1 | BM161: 4 | BN161: 8 | BO161: 6.03 | BP161: 0 | BQ161: 2 | BR161: 60 | BS161: 22 | BT161: 0 | BU161: 0 | BV161: 4 | BW161: 199 | BX161: 4 | BY161: D | BZ161: 42 | CA161: A | CB161: B | CC161: M | CD161: P | CE161: 1 | CF161: 8.03 | CG161: 30.204966 | CH161: -90.271679 | CI161: 20:14:00 | CJ161: 6 | CL161: 299-11-1-010 | CM161: 6.03 | CN161: 0 | CO161: 0
A162: 2014 | B162: 2014438027101- | C162: 2014-04-23 | D162: 10 | E162: A | F162: 0 | G162: A | I162: 0 | J162: 0 | K162: WE | L162: 0 | M162: 0 | N162: C | O162: 0 | P162: C | Q162: B | R162: B | S162: D | T162: 3.39 | U162: 1 | V162: 0 | W162: 2 | X162: 65 | Y162: 0 | Z162: 199 | AA162: A | AB162: A | AC162: B | AD162: 0 | AE162: C | AF162: B | AG162: A | AI162: B | AJ162: A | AK162: A | AN162: S | AO162: S | AP162: S | AQ162: S | AR162: 70 | AS162: BB | AT162: B | AU162: B | AV162: C | AW162: ES | AX162: E | AY162: S | AZ162: A | BA162: K | BB162: A | BC162: P | BD162: Q | BE162: U | BG162: 2 | BH162: 20277 | BI162: 299-11 | BJ162: 65 | BK162: 8 | BL162: 1 | BM162: 4 | BN162: 8 | BO162: 7.39 | BP162: 0 | BQ162: 2 | BR162: 60 | BS162: 22 | BT162: 0 | BU162: 0 | BV162: 4 | BW162: 199 | BX162: 4 | BY162: D | BZ162: 42 | CA162: A | CC162: M | CD162: P | CE162: 1 | CF162: 9.39 | CG162: 30.204966 | CH162: -90.271679 | CI162: 02:56:00 | CJ162: 6 | CL162: 299-11-1-010 | CM162: 7.39 | CN162: 0 | CO162: 0
A163: 2013 | B163: 2013374901872- | C163: 2013-09-27 | D163: 9 | E163: B | F163: 0 | G163: A | I163: 0 | J163: 0 | K163: FI | L163: 0 | M163: 0 | N163: C | O163: 1 | P163: C | Q163: B | R163: B | S163: G | T163: 3.2 | U163: 2 | V163: 0 | W163: 2 | X163: 65 | Y163: 0 | Z163: 199 | AA163: A | AB163: A | AC163: C | AD163: 0 | AE163: D | AF163: A | AG163: A | AI163: B | AJ163: A | AK163: A | AL163: 5 | AM163: 5 | AN163: S | AO163: S | AP163: S | AQ163: S | AR163: 45 | AS163: IB | AT163: I | AU163: B | AV163: E | AW163: EN | AX163: E | AY163: N | AZ163: K | BA163: K | BB163: A | BC163: P | BD163: C | BE163: U | BG163: 2 | BH163: 21550 | BI163: 299-11 | BJ163: 65 | BK163: 8 | BL163: 1 | BM163: 4 | BN163: 8 | BO163: 7.2 | BP163: 0 | BQ163: 2 | BR163: 60 | BS163: 22 | BT163: 0 | BU163: 0 | BV163: 4 | BW163: 199 | BX163: 4 | BY163: D | BZ163: 42 | CA163: B | CB163: A | CC163: P | CD163: P | CE163: 1 | CF163: 9.2 | CG163: 30.204966 | CH163: -90.271679 | CI163: 05:34:00 | CJ163: 6 | CK163: 65LA199@PINE | CL163: 299-11-1-010 | CM163: 7.2 | CN163: 0 | CO163: 0
A164: 2015 | B164: 2015639625519- | C164: 2015-09-18 | D164: 10 | E164: A | F164: 0 | G164: B | I164: 0 | J164: 0 | K164: FI | L164: 0 | M164: 0 | N164: C | O164: 0 | P164: C | Q164: A | R164: E | S164: F | T164: 2.9 | U164: 1 | V164: 0 | W164: 2 | X164: 65 | Y164: 0 | Z164: 199 | AA164: A | AB164: E | AC164: C | AD164: 0 | AE164: C | AF164: A | AG164: A | AI164: A | AJ164: A | AK164: A | AN164: S | AO164: S | AP164: S | AQ164: S | AR164: 45 | AS164: IB | AT164: I | AU164: B | AV164: S | AW164: WE | AX164: W | AY164: E | AZ164: K | BA164: K | BB164: A | BC164: A | BD164: C | BE164: U | BG164: 2 | BH164: 21930 | BI164: 299-11 | BJ164: 65 | BK164: 8 | BL164: 1 | BM164: 4 | BN164: 8 | BO164: 6.9 | BP164: 0 | BQ164: 2 | BR164: 60 | BS164: 22 | BT164: 0 | BU164: 0 | BV164: 4 | BW164: 199 | BX164: 4 | BY164: D | BZ164: 42 | CA164: C | CB164: J | CC164: P | CD164: P | CE164: 1 | CF164: 8.9 | CG164: 30.204966 | CH164: -90.271679 | CI164: 15:30:00 | CJ164: 6 | CL164: 299-11-1-010 | CM164: 6.9 | CN164: 0 | CO164: 0
A165: 2015 | B165: 2015544829011- | C165: 2015-08-12 | D165: 11 | E165: B | F165: 0 | G165: A | I165: 0 | J165: 0 | K165: WE | L165: 0 | M165: 0 | N165: C | O165: 1 | P165: C | Q165: A | R165: B | S165: D | T165: 1.26 | U165: 0 | V165: 0 | W165: 2 | X165: 65 | Y165: 0 | Z165: 199 | AA165: A | AB165: A | AC165: B | AD165: 0 | AE165: E | AF165: A | AG165: B | AI165: B | AJ165: A | AK165: A | AL165: 10 | AM165: 35 | AN165: S | AO165: S | AP165: S | AQ165: S | AR165: 45 | AS165: IB | AT165: I | AU165: B | AV165: E | AW165: EN | AX165: E | AY165: N | AZ165: K | BA165: K | BB165: A | BC165: B | BD165: C | BE165: U | BG165: 3 | BH165: 22043 | BI165: 299-11 | BJ165: 65 | BK165: 8 | BL165: 1 | BM165: 4 | BN165: 8 | BO165: 5.26 | BP165: 0 | BQ165: 2 | BR165: 60 | BS165: 22 | BT165: 0 | BU165: 0 | BV165: 4 | BW165: 199 | BX165: 4 | BY165: D | BZ165: 42 | CA165: B | CB165: A | CC165: P | CD165: P | CE165: 1 | CF165: 7.26 | CG165: 30.204966 | CH165: -90.271679 | CI165: 11:01:00 | CJ165: 6 | CK165: 65LA199@MAIN | CL165: 299-11-1-010 | CM165: 5.26 | CN165: 0 | CO165: 0
A166: 2015 | B166: 2015916976945- | C166: 2015-09-18 | D166: 13 | E166: A | F166: 0 | G166: A | I166: 0 | J166: 0 | K166: FI | L166: 0 | M166: 0 | N166: C | O166: 0 | P166: C | Q166: A | R166: C | S166: F | T166: 3.54 | U166: 2 | V166: 0 | W166: 2 | X166: 65 | Y166: 0 | Z166: 199 | AA166: A | AB166: A | AC166: C | AD166: 0 | AE166: D | AF166: A | AG166: B | AI166: A | AJ166: B | AK166: A | AN166: S | AO166: S | AP166: S | AQ166: S | AR166: 45 | AS166: IB | AT166: I | AU166: B | AV166: E | AW166: SN | AX166: S | AY166: N | AZ166: K | BA166: K | BB166: A | BC166: B | BD166: C | BE166: U | BG166: 2 | BH166: 21604 | BI166: 299-11 | BJ166: 65 | BK166: 8 | BL166: 1 | BM166: 4 | BN166: 8 | BO166: 7.54 | BP166: 0 | BQ166: 2 | BR166: 60 | BS166: 22 | BT166: 0 | BU166: 0 | BV166: 4 | BW166: 199 | BX166: 4 | BY166: D | BZ166: 42 | CA166: A | CB166: B | CC166: L | CD166: P | CE166: 1 | CF166: 9.54 | CG166: 30.204966 | CH166: -90.271679 | CI166: 17:26:00 | CJ166: 6 | CL166: 299-11-1-010 | CM166: 7.54 | CN166: 0 | CO166: 0
A167: 2015 | B167: 2015832555825- | C167: 2015-02-03 | D167: 8 | E167: A | F167: 0 | G167: C | I167: 0 | J167: 0 | K167: TU | L167: 0 | M167: 0 | N167: C | O167: 0 | P167: A | Q167: A | R167: A | S167: F | T167: 3.2 | U167: 0 | V167: 0 | W167: 2 | X167: 65 | Y167: 0 | Z167: 199 | AA167: A | AB167: A | AC167: A | AD167: 0 | AE167: E | AF167: A | AG167: A | AI167: A | AJ167: A | AK167: A | AL167: 35 | AM167: 20 | AN167: S | AO167: S | AP167: S | AQ167: S | AR167: 35 | AS167: BI | AT167: B | AU167: I | AV167: Y | AW167: NE | AX167: N | AY167: E | AZ167: K | BA167: K | BB167: A | BC167: B | BD167: Y | BE167: Y | BG167: 3 | BH167: 20838 | BI167: 299-11 | BJ167: 65 | BK167: 8 | BL167: 1 | BM167: 4 | BN167: 8 | BO167: 7.2 | BP167: 0 | BQ167: 2 | BR167: 60 | BS167: 22 | BT167: 0 | BU167: 0 | BV167: 4 | BW167: 199 | BX167: 4 | BY167: D | BZ167: 42 | CA167: A | CC167: P | CE167: 1 | CF167: 9.2 | CG167: 30.204966 | CH167: -90.271679 | CI167: 08:00:00 | CJ167: 6 | CK167: 65LA199@PINE | CL167: 299-11-1-010 | CM167: 7.2 | CN167: 0 | CO167: 0
A168: 2013 | B168: 2013983361024- | C168: 2013-11-01 | D168: 8 | E168: A | F168: 0 | G168: A | I168: 0 | J168: 0 | K168: FI | L168: 0 | M168: 0 | N168: C | O168: 0 | P168: C | Q168: A | R168: B | S168: D | T168: 0.17 | U168: 1 | V168: 0 | W168: 2 | X168: 65 | Y168: 0 | Z168: 199 | AA168: A | AB168: A | AC168: B | AD168: 0 | AE168: C | AF168: A | AG168: B | AI168: C | AJ168: B | AK168: A | AL168: 25 | AM168: 5 | AN168: S | AO168: S | AP168: S | AQ168: S | AR168: 35 | AS168: BB | AT168: B | AU168: B | AV168: V | AW168: WS | AX168: W | AY168: S | AZ168: K | BA168: K | BB168: S | BC168: A | BD168: C | BE168: U | BG168: 2 | BH168: 20466 | BI168: 299-11 | BJ168: 65 | BK168: 8 | BL168: 1 | BM168: 4 | BN168: 8 | BO168: 4.17 | BP168: 0 | BQ168: 2 | BR168: 60 | BS168: 22 | BT168: 0 | BU168: 0 | BV168: 4 | BW168: 199 | BX168: 4 | BY168: D | BZ168: 42 | CA168: A | CB168: J | CC168: P | CD168: P | CE168: 1 | CF168: 6.17 | CG168: 30.204966 | CH168: -90.271679 | CI168: 14:46:00 | CJ168: 6 | CL168: 299-11-1-010 | CM168: 4.17 | CN168: 0 | CO168: 0
A169: 2014 | B169: 2014315430577- | C169: 2014-02-20 | D169: 13 | E169: A | F169: 0 | G169: A | I169: 0 | J169: 0 | K169: TH | L169: 0 | M169: 0 | N169: C | O169: 0 | P169: C | Q169: A | R169: B | S169: D | T169: 1.63 | U169: 0 | V169: 0 | W169: 2 | X169: 65 | Y169: 0 | Z169: 199 | AA169: A | AB169: A | AC169: C | AD169: 0 | AE169: E | AF169: A | AG169: A | AI169: A | AJ169: B | AK169: A | AL169: 10 | AM169: 0 | AN169: S | AO169: S | AP169: S | AQ169: S | AR169: 45 | AS169: BA | AT169: B | AU169: A | AV169: C | AW169: WS | AX169: W | AY169: S | AZ169: K | BA169: K | BB169: B | BC169: B | BD169: S | BE169: U | BG169: 3 | BH169: 20220 | BI169: 299-11 | BJ169: 65 | BK169: 8 | BL169: 1 | BM169: 4 | BN169: 8 | BO169: 5.63 | BP169: 0 | BQ169: 2 | BR169: 60 | BS169: 22 | BT169: 0 | BU169: 0 | BV169: 4 | BW169: 199 | BX169: 4 | BY169: D | BZ169: 42 | CA169: A | CB169: C | CC169: L | CD169: P | CE169: 1 | CF169: 7.63 | CG169: 30.204966 | CH169: -90.271679 | CI169: 16:35:00 | CJ169: 6 | CL169: 299-11-1-010 | CM169: 5.63 | CN169: 0 | CO169: 0
A170: 2015 | B170: 2015685943979- | C170: 2015-04-20 | D170: 10 | E170: A | F170: 0 | G170: A | I170: 0 | J170: 0 | K170: MO | L170: 0 | M170: 0 | N170: C | O170: 0 | P170: C | Q170: A | R170: B | S170: F | T170: 2.8 | U170: 1 | V170: 0 | W170: 2 | X170: 65 | Y170: 0 | Z170: 199 | AA170: A | AB170: A | AC170: C | AD170: 0 | AE170: C | AF170: B | AG170: B | AI170: C | AJ170: A | AK170: A | AL170: 5 | AM170: 10 | AN170: S | AO170: S | AP170: S | AQ170: S | AR170: 45 | AS170: IB | AT170: I | AU170: B | AV170: V | AW170: SE | AX170: S | AY170: E | AZ170: K | BA170: K | BB170: B | BC170: B | BD170: C | BE170: U | BG170: 2 | BH170: 21393 | BI170: 299-11 | BJ170: 65 | BK170: 8 | BL170: 1 | BM170: 4 | BN170: 8 | BO170: 6.8 | BP170: 0 | BQ170: 2 | BR170: 60 | BS170: 22 | BT170: 0 | BU170: 0 | BV170: 4 | BW170: 199 | BX170: 4 | BY170: D | BZ170: 42 | CA170: A | CC170: L | CD170: P | CE170: 1 | CF170: 8.8 | CG170: 30.204966 | CH170: -90.271679 | CI170: 17:46:00 | CJ170: 6 | CL170: 299-11-1-010 | CM170: 6.8 | CN170: 0 | CO170: 0
A171: 2013 | B171: 2013729088135- | C171: 2013-04-12 | D171: 16 | E171: A | F171: 0 | G171: A | I171: 0 | J171: 0 | K171: FI | L171: 0 | M171: 0 | N171: C | O171: 0 | P171: C | Q171: A | R171: B | S171: A | T171: 3.05 | U171: 1 | V171: 0 | W171: 3 | X171: 65 | Y171: 0 | Z171: 199 | AA171: A | AB171: B | AC171: C | AD171: 0 | AE171: D | AF171: B | AG171: B | AH171: H | AI171: C | AJ171: B | AK171: A | AL171: 15 | AM171: 0 | AN171: S | AO171: S | AP171: S | AQ171: S | AR171: 55 | AS171: BAA | AT171: B | AU171: A | AV171: C | AW171: SSS | AX171: S | AY171: S | AZ171: K | BA171: K | BB171: A | BC171: S | BD171: S | BE171: U | BG171: 2 | BH171: 20154 | BI171: 299-11 | BJ171: 65 | BK171: 8 | BL171: 1 | BM171: 4 | BN171: 8 | BO171: 7.05 | BP171: 0 | BQ171: 2 | BR171: 60 | BS171: 22 | BT171: 0 | BU171: 0 | BV171: 4 | BW171: 199 | BX171: 4 | BY171: D | BZ171: 42 | CA171: A | CC171: L | CD171: P | CE171: 1 | CF171: 9.05 | CG171: 30.204966 | CH171: -90.271679 | CI171: 16:07:00 | CJ171: 6 | CL171: 299-11-1-010 | CM171: 7.05 | CN171: 0 | CO171: 0
A172: 2014 | B172: 2014501743515- | C172: 2014-07-21 | D172: 8 | E172: A | F172: 0 | G172: A | I172: 0 | J172: 0 | K172: MO | L172: 0 | M172: 0 | N172: C | O172: 1 | P172: C | Q172: B | R172: C | S172: Z | T172: 2.34 | U172: 1 | V172: 0 | W172: 1 | X172: 65 | Y172: 0 | Z172: 199 | AA172: A | AB172: E | AC172: C | AD172: 0 | AE172: D | AF172: A | AG172: A | AI172: A | AJ172: A | AL172: 15 | AN172: J | AP172: J | AR172: 45 | AS172: J | AT172: J | AV172: R | AW172: W | AX172: W | AZ172: K | BB172: A | BD172: U | BG172: 2 | BH172: 21170 | BI172: 299-11 | BJ172: 65 | BK172: 8 | BL172: 1 | BM172: 4 | BN172: 8 | BO172: 6.34 | BP172: 0 | BQ172: 2 | BR172: 60 | BS172: 22 | BT172: 0 | BU172: 0 | BV172: 4 | BW172: 199 | BX172: 4 | BY172: A | BZ172: 42 | CA172: H | CC172: P | CE172: 1 | CF172: 8.34 | CG172: 30.204966 | CH172: -90.271679 | CI172: 02:00:00 | CJ172: 6 | CK172: 65LA199@1ST | CL172: 299-11-1-010 | CM172: 6.34 | CN172: 1 | CO172: 1
A173: 2014 | B173: 2014830861794- | C173: 2014-02-14 | D173: 8 | E173: A | F173: 0 | G173: A | I173: 0 | J173: 0 | K173: FI | L173: 0 | M173: 0 | N173: C | O173: 1 | P173: C | Q173: A | R173: B | S173: B | T173: 0.28 | U173: 0 | V173: 0 | W173: 2 | X173: 65 | Y173: 0 | Z173: 199 | AA173: A | AB173: A | AC173: C | AD173: 0 | AE173: E | AF173: A | AG173: A | AI173: A | AJ173: B | AK173: A | AM173: 0 | AN173: S | AO173: S | AP173: S | AQ173: S | AR173: 45 | AS173: AA | AT173: A | AU173: A | AV173: C | AW173: WW | AX173: W | AY173: W | AZ173: K | BA173: K | BB173: B | BC173: A | BD173: S | BE173: U | BG173: 3 | BH173: 21754 | BI173: 299-11 | BJ173: 65 | BK173: 8 | BL173: 1 | BM173: 4 | BN173: 8 | BO173: 4.28 | BP173: 0 | BQ173: 2 | BR173: 60 | BS173: 22 | BT173: 0 | BU173: 0 | BV173: 4 | BW173: 199 | BX173: 4 | BY173: D | BZ173: 42 | CA173: A | CC173: L | CD173: P | CE173: 1 | CF173: 6.28 | CG173: 30.204966 | CH173: -90.271679 | CI173: 07:33:00 | CJ173: 6 | CL173: 299-11-1-010 | CM173: 4.28 | CN173: 0 | CO173: 0
A174: 2014 | B174: 2014320312349- | C174: 2014-12-29 | D174: 6 | E174: B | F174: 0 | G174: A | I174: 0 | J174: 0 | K174: MO | L174: 0 | M174: 0 | N174: C | O174: 0 | P174: B | Q174: A | R174: B | S174: B | T174: 2.58 | U174: 2 | V174: 0 | W174: 2 | X174: 65 | Y174: 0 | Z174: 199 | AA174: A | AB174: A | AC174: C | AD174: 0 | AE174: D | AF174: A | AG174: A | AI174: A | AJ174: B | AK174: A | AL174: 5 | AM174: 5 | AN174: S | AO174: S | AP174: S | AQ174: S | AR174: 35 | AS174: BB | AT174: B | AU174: B | AV174: E | AW174: NN | AX174: N | AY174: N | AZ174: K | BA174: K | BB174: A | BC174: S | BD174: D | BE174: U | BG174: 2 | BH174: 21534 | BI174: 299-11 | BJ174: 65 | BK174: 8 | BL174: 1 | BM174: 4 | BN174: 8 | BO174: 6.58 | BP174: 0 | BQ174: 2 | BR174: 60 | BS174: 22 | BT174: 0 | BU174: 0 | BV174: 4 | BW174: 199 | BX174: 4 | BY174: D | BZ174: 42 | CA174: A | CB174: B | CD174: P | CE174: 1 | CF174: 8.58 | CG174: 30.204966 | CH174: -90.271679 | CI174: 15:31:00 | CJ174: 6 | CL174: 299-11-1-010 | CM174: 6.58 | CN174: 0 | CO174: 0
A175: 2013 | B175: 2013209760559- | C175: 2013-08-28 | D175: 10 | E175: B | F175: 0 | G175: A | I175: 0 | J175: 0 | K175: WE | L175: 0 | M175: 0 | N175: C | O175: 1 | P175: A | Q175: A | R175: B | S175: B | T175: 2.37 | U175: 0 | V175: 0 | W175: 2 | X175: 65 | Y175: 0 | Z175: 199 | AA175: A | AB175: A | AC175: A | AD175: 0 | AE175: E | AF175: A | AG175: B | AI175: A | AJ175: B | AK175: A | AL175: 45 | AM175: 10 | AN175: S | AO175: S | AP175: S | AQ175: S | AR175: 45 | AS175: BB | AT175: B | AU175: B | AV175: R | AW175: EE | AX175: E | AY175: E | AZ175: Y | BA175: Y | BB175: A | BC175: B | BD175: S | BE175: U | BG175: 3 | BH175: 20631 | BI175: 299-11 | BJ175: 65 | BK175: 8 | BL175: 1 | BM175: 4 | BN175: 8 | BO175: 6.37 | BP175: 0 | BQ175: 2 | BR175: 60 | BS175: 22 | BT175: 0 | BU175: 0 | BV175: 4 | BW175: 199 | BX175: 4 | BY175: D | BZ175: 42 | CA175: A | CB175: D | CC175: P | CD175: P | CE175: 1 | CF175: 8.37 | CG175: 30.204966 | CH175: -90.271679 | CI175: 10:01:00 | CJ175: 6 | CK175: 65LA199@1ST | CL175: 299-11-1-010 | CM175: 6.37 | CN175: 0 | CO175: 0
A176: 2014 | B176: 2014983191937- | C176: 2014-03-26 | D176: 14 | E176: A | F176: 0 | G176: A | I176: 0 | J176: 0 | K176: WE | L176: 0 | M176: 0 | N176: C | O176: 0 | P176: C | Q176: B | R176: C | S176: Z | T176: 1.25 | U176: 0 | V176: 0 | W176: 2 | X176: 65 | Y176: 0 | Z176: 199 | AA176: A | AB176: Z | AC176: C | AD176: 0 | AE176: E | AF176: A | AG176: B | AI176: A | AJ176: A | AK176: A | AL176: 10 | AM176: 10 | AN176: S | AO176: S | AP176: S | AQ176: S | AR176: 45 | AS176: WW | AT176: W | AU176: W | AV176: R | AW176: NE | AX176: N | AY176: E | AZ176: K | BA176: K | BB176: B | BC176: B | BD176: D | BE176: U | BG176: 3 | BH176: 21964 | BI176: 299-11 | BJ176: 65 | BK176: 8 | BL176: 1 | BM176: 4 | BN176: 8 | BO176: 5.25 | BP176: 0 | BQ176: 2 | BR176: 60 | BS176: 22 | BT176: 0 | BU176: 0 | BV176: 4 | BW176: 199 | BX176: 4 | BY176: D | BZ176: 42 | CA176: B | CC176: P | CD176: P | CE176: 1 | CF176: 7.25 | CG176: 30.204966 | CH176: -90.271679 | CI176: 05:28:00 | CJ176: 6 | CK176: 65LA199@MAIN | CL176: 299-11-1-010 | CM176: 5.25 | CN176: 0 | CO176: 0
A177: 2015 | B177: 2015437681874- | C177: 2015-06-08 | D177: 6 | E177: A | F177: 0 | G177: A | I177: 0 | J177: 0 | K177: MO | L177: 0 | M177: 0 | N177: C | O177: 0 | P177: C | Q177: A | R177: A | S177: B | T177: 0.23 | U177: 0 | V177: 0 | W177: 2 | X177: 65 | Y177: 0 | Z177: 199 | AA177: A | AB177: A | AC177: C | AD177: 0 | AE177: E | AF177: A | AG177: A | AI177: A | AJ177: A | AK177: A | AL177: 5 | AM177: 5 | AN177: S | AO177: S | AP177: S | AQ177: S | AR177: 45 | AS177: BB | AT177: B | AU177: B | AV177: C | AW177: NN | AX177: N | AY177: N | AZ177: K | BA177: K | BB177: B | BC177: A | BD177: D | BE177: U | BG177: 3 | BH177: 20887 | BI177: 299-11 | BJ177: 65 | BK177: 8 | BL177: 1 | BM177: 4 | BN177: 8 | BO177: 4.23 | BP177: 0 | BQ177: 2 | BR177: 60 | BS177: 22 | BT177: 0 | BU177: 0 | BV177: 4 | BW177: 199 | BX177: 4 | BY177: D | BZ177: 42 | CA177: A | CC177: P | CD177: P | CE177: 1 | CF177: 6.23 | CG177: 30.204966 | CH177: -90.271679 | CI177: 08:11:00 | CJ177: 6 | CL177: 299-11-1-010 | CM177: 4.23 | CN177: 0 | CO177: 0
A178: 2015 | B178: 2015858095880- | C178: 2015-02-07 | D178: 10 | E178: B | F178: 0 | G178: A | I178: 0 | J178: 0 | K178: SA | L178: 0 | M178: 0 | N178: C | O178: 0 | P178: A | Q178: C | R178: B | S178: J | T178: 1.12 | U178: 0 | V178: 0 | W178: 2 | X178: 65 | Y178: 0 | Z178: 199 | AA178: A | AB178: A | AC178: B | AD178: 0 | AE178: E | AF178: A | AG178: B | AI178: A | AJ178: B | AK178: A | AL178: 35 | AM178: 35 | AN178: S | AO178: S | AP178: S | AQ178: S | AR178: 35 | AS178: HB | AT178: H | AU178: B | AV178: Z | AW178: WW | AX178: W | AY178: W | AZ178: K | BA178: K | BB178: B | BC178: B | BD178: C | BE178: U | BG178: 3 | BH178: 21216 | BI178: 299-11 | BJ178: 65 | BK178: 8 | BL178: 1 | BM178: 4 | BN178: 8 | BO178: 5.12 | BP178: 0 | BQ178: 2 | BR178: 60 | BS178: 22 | BT178: 0 | BU178: 0 | BV178: 4 | BW178: 199 | BX178: 4 | BY178: D | BZ178: 42 | CA178: A | CC178: L | CD178: P | CE178: 1 | CF178: 7.12 | CG178: 30.204966 | CH178: -90.271679 | CI178: 04:28:00 | CJ178: 6 | CL178: 299-11-1-010 | CM178: 5.12 | CN178: 0 | CO178: 0
A179: 2015 | B179: 2015140730879- | C179: 2015-05-25 | D179: 19 | E179: A | F179: 0 | G179: A | I179: 0 | J179: 0 | K179: MO | L179: 0 | M179: 0 | N179: C | O179: 1 | P179: C | Q179: A | R179: B | S179: B | T179: 2.79 | U179: 0 | V179: 0 | W179: 3 | X179: 65 | Y179: 0 | Z179: 199 | AA179: A | AB179: A | AC179: C | AD179: 0 | AE179: E | AF179: A | AG179: A | AI179: A | AJ179: B | AK179: A | AN179: S | AO179: S | AP179: S | AQ179: S | AR179: 55 | AS179: BAA | AT179: B | AU179: A | AV179: C | AW179: EEE | AX179: E | AY179: E | AZ179: K | BA179: K | BB179: B | BC179: S | BD179: D | BE179: U | BG179: 3 | BH179: 21579 | BI179: 299-11 | BJ179: 65 | BK179: 8 | BL179: 1 | BM179: 4 | BN179: 8 | BO179: 6.79 | BP179: 0 | BQ179: 2 | BR179: 60 | BS179: 22 | BT179: 0 | BU179: 0 | BV179: 4 | BW179: 199 | BX179: 4 | BY179: D | BZ179: 42 | CA179: A | CB179: B | CC179: L | CD179: P | CE179: 1 | CF179: 8.79 | CG179: 30.204966 | CH179: -90.271679 | CI179: 17:27:00 | CJ179: 6 | CL179: 299-11-1-010 | CM179: 6.79 | CN179: 0 | CO179: 0
A180: 2014 | B180: 2014618762117- | C180: 2014-04-29 | D180: 15 | E180: C | F180: 0 | G180: B | I180: 0 | J180: 0 | K180: TU | L180: 0 | M180: 0 | N180: C | O180: 0 | P180: C | Q180: A | R180: E | S180: B | T180: 3.19 | U180: 2 | V180: 0 | W180: 3 | X180: 65 | Y180: 0 | Z180: 199 | AA180: A | AB180: A | AC180: C | AD180: 0 | AE180: B | AF180: A | AG180: A | AI180: A | AJ180: K | AK180: A | AN180: S | AO180: S | AP180: S | AQ180: S | AR180: 45 | AS180: BAA | AT180: B | AU180: A | AV180: C | AW180: EEE | AX180: E | AY180: E | AZ180: Y | BA180: Y | BB180: B | BC180: A | BD180: S | BE180: U | BG180: 2 | BH180: 21231 | BI180: 299-11 | BJ180: 65 | BK180: 8 | BL180: 1 | BM180: 4 | BN180: 8 | BO180: 7.19 | BP180: 0 | BQ180: 2 | BR180: 60 | BS180: 22 | BT180: 0 | BU180: 0 | BV180: 4 | BW180: 199 | BX180: 4 | BY180: D | BZ180: 42 | CA180: A | CB180: B | CC180: H | CD180: H | CE180: 1 | CF180: 9.19 | CG180: 30.204966 | CH180: -90.271679 | CI180: 17:48:00 | CJ180: 6 | CK180: 65LA199@PINE | CL180: 299-11-1-010 | CM180: 7.19 | CN180: 0 | CO180: 0
A181: 2015 | B181: 2015761251624- | C181: 2015-11-13 | D181: 10 | E181: A | F181: 0 | G181: A | I181: 0 | J181: 0 | K181: FI | L181: 0 | M181: 0 | N181: C | O181: 0 | P181: B | Q181: A | R181: B | S181: D | T181: 2.23 | U181: 1 | V181: 0 | W181: 2 | X181: 65 | Y181: 0 | Z181: 199 | AA181: A | AB181: A | AC181: C | AD181: 0 | AE181: C | AF181: A | AG181: B | AI181: A | AJ181: B | AK181: A | AL181: 5 | AM181: 35 | AN181: S | AO181: S | AP181: S | AQ181: S | AR181: 45 | AS181: IB | AT181: I | AU181: B | AV181: V | AW181: WE | AX181: W | AY181: E | AZ181: K | BA181: K | BB181: B | BC181: A | BD181: C | BE181: U | BG181: 2 | BH181: 21090 | BI181: 299-11 | BJ181: 65 | BK181: 8 | BL181: 1 | BM181: 4 | BN181: 8 | BO181: 6.23 | BP181: 0 | BQ181: 2 | BR181: 60 | BS181: 22 | BT181: 0 | BU181: 0 | BV181: 4 | BW181: 199 | BX181: 4 | BY181: D | BZ181: 42 | CA181: A | CB181: B | CC181: L | CD181: P | CE181: 1 | CF181: 8.23 | CG181: 30.204966 | CH181: -90.271679 | CI181: 10:53:00 | CJ181: 6 | CL181: 299-11-1-010 | CM181: 6.23 | CN181: 0 | CO181: 0
A182: 2014 | B182: 2014886850398- | C182: 2014-07-12 | D182: 7 | E182: A | F182: 0 | G182: A | I182: 0 | J182: 0 | K182: SA | L182: 0 | M182: 0 | N182: C | O182: 0 | P182: C | Q182: A | R182: C | S182: G | T182: 3.7 | U182: 0 | V182: 0 | W182: 2 | X182: 65 | Y182: 0 | Z182: 199 | AA182: A | AB182: C | AC182: B | AD182: 0 | AE182: E | AF182: A | AG182: B | AI182: A | AJ182: C | AK182: A | AL182: 5 | AM182: 5 | AN182: S | AO182: S | AP182: S | AQ182: S | AR182: 45 | AS182: UO | AT182: U | AU182: O | AV182: R | AW182: WW | AX182: W | AY182: W | AZ182: K | BA182: K | BB182: A | BC182: A | BD182: S | BE182: U | BG182: 3 | BH182: 20673 | BI182: 299-11 | BJ182: 65 | BK182: 8 | BL182: 1 | BM182: 4 | BN182: 8 | BO182: 7.7 | BP182: 0 | BQ182: 2 | BR182: 60 | BS182: 22 | BT182: 0 | BU182: 0 | BV182: 4 | BW182: 199 | BX182: 4 | BY182: D | BZ182: 42 | CA182: B | CC182: P | CD182: P | CE182: 1 | CF182: 9.7 | CG182: 30.204966 | CH182: -90.271679 | CI182: 10:30:00 | CJ182: 6 | CL182: 299-11-1-010 | CM182: 7.7 | CN182: 0 | CO182: 0
A183: 2013 | B183: 2013541435013- | C183: 2013-09-25 | D183: 12 | E183: A | F183: 0 | G183: A | I183: 0 | J183: 0 | K183: WE | L183: 0 | M183: 0 | N183: C | O183: 0 | P183: C | Q183: A | R183: B | S183: Z | T183: 0.12 | U183: 0 | V183: 0 | W183: 2 | X183: 65 | Y183: 0 | Z183: 199 | AA183: A | AB183: A | AC183: C | AD183: 0 | AE183: E | AF183: A | AG183: B | AI183: A | AJ183: A | AK183: A | AN183: S | AO183: S | AP183: S | AQ183: S | AR183: 45 | AS183: AB | AT183: A | AU183: B | AV183: R | AW183: WN | AX183: W | AY183: N | AZ183: K | BA183: K | BB183: S | BC183: A | BD183: U | BE183: U | BG183: 3 | BH183: 20637 | BI183: 299-11 | BJ183: 65 | BK183: 8 | BL183: 1 | BM183: 4 | BN183: 8 | BO183: 4.12 | BP183: 0 | BQ183: 2 | BR183: 60 | BS183: 22 | BT183: 0 | BU183: 0 | BV183: 4 | BW183: 199 | BX183: 4 | BY183: D | BZ183: 42 | CA183: K | CB183: B | CC183: P | CD183: A | CE183: 1 | CF183: 6.12 | CG183: 30.204966 | CH183: -90.271679 | CI183: 09:40:00 | CJ183: 6 | CL183: 299-11-1-010 | CM183: 4.12 | CN183: 0 | CO183: 0
A184: 2015 | B184: 2015922010041- | C184: 2015-08-13 | D184: 8 | E184: A | F184: 0 | G184: A | I184: 0 | J184: 0 | K184: TH | L184: 0 | M184: 0 | N184: C | O184: 0 | P184: B | Q184: A | R184: C | S184: H | T184: 3.75 | U184: 0 | V184: 0 | W184: 2 | X184: 65 | Y184: 0 | Z184: 199 | AA184: A | AB184: A | AC184: B | AD184: 0 | AE184: E | AF184: A | AG184: B | AI184: A | AJ184: A | AK184: A | AL184: 15 | AM184: 40 | AN184: S | AO184: S | AP184: S | AQ184: S | AR184: 0 | AS184: WB | AT184: W | AU184: B | AV184: V | AW184: NE | AX184: N | AY184: E | AZ184: K | BA184: K | BB184: A | BC184: B | BD184: U | BE184: U | BG184: 3 | BH184: 21480 | BI184: 299-11 | BJ184: 65 | BK184: 8 | BL184: 1 | BM184: 4 | BN184: 8 | BO184: 7.75 | BP184: 0 | BQ184: 2 | BR184: 60 | BS184: 22 | BT184: 0 | BU184: 0 | BV184: 4 | BW184: 199 | BX184: 4 | BY184: D | BZ184: 42 | CA184: B | CC184: P | CD184: P | CE184: 1 | CF184: 9.75 | CG184: 30.204966 | CH184: -90.271679 | CI184: 11:15:00 | CJ184: 6 | CL184: 299-11-1-010 | CM184: 7.75 | CN184: 0 | CO184: 0
A185: 2013 | B185: 2013678410763- | C185: 2013-09-19 | D185: 7 | E185: A | F185: 0 | G185: A | I185: 0 | J185: 0 | K185: TH | L185: 0 | M185: 0 | N185: C | O185: 0 | P185: C | Q185: A | R185: B | S185: B | T185: 3.7 | U185: 0 | V185: 0 | W185: 3 | X185: 65 | Y185: 0 | Z185: 199 | AA185: A | AB185: A | AC185: C | AD185: 0 | AE185: E | AF185: A | AG185: A | AI185: A | AJ185: A | AK185: A | AL185: 30 | AM185: 0 | AN185: W | AO185: W | AP185: W | AQ185: W | AR185: 45 | AS185: BAA | AT185: B | AU185: A | AV185: R | AW185: NNN | AX185: N | AY185: N | AZ185: K | BA185: K | BB185: A | BC185: B | BD185: S | BE185: U | BG185: 3 | BH185: 21387 | BI185: 299-11 | BJ185: 65 | BK185: 8 | BL185: 1 | BM185: 4 | BN185: 8 | BO185: 7.7 | BP185: 0 | BQ185: 2 | BR185: 60 | BS185: 22 | BT185: 0 | BU185: 0 | BV185: 4 | BW185: 199 | BX185: 4 | BY185: J | BZ185: 42 | CA185: A | CB185: B | CC185: L | CD185: I | CE185: 1 | CF185: 9.7 | CG185: 30.204966 | CH185: -90.271679 | CI185: 18:04:00 | CJ185: 6 | CL185: 299-11-1-010 | CM185: 7.7 | CN185: 0 | CO185: 0
A186: 2013 | B186: 2013684201453- | C186: 2013-02-20 | D186: 10 | E186: B | F186: 0 | G186: A | I186: 0 | J186: 0 | K186: WE | L186: 0 | M186: 0 | N186: C | O186: 0 | P186: C | Q186: B | R186: B | S186: B | T186: 1.87 | U186: 1 | V186: 0 | W186: 2 | X186: 65 | Y186: 0 | Z186: 199 | AA186: A | AB186: B | AC186: C | AD186: 0 | AE186: D | AF186: A | AG186: B | AI186: A | AJ186: A | AK186: A | AL186: 10 | AM186: 10 | AN186: S | AO186: S | AP186: S | AQ186: S | AR186: 45 | AS186: WQ | AT186: W | AU186: Q | AV186: R | AW186: WW | AX186: W | AY186: W | AZ186: K | BA186: K | BB186: B | BC186: A | BD186: Z | BE186: U | BG186: 2 | BH186: 21490 | BI186: 299-11 | BJ186: 65 | BK186: 8 | BL186: 1 | BM186: 4 | BN186: 8 | BO186: 5.87 | BP186: 0 | BQ186: 2 | BR186: 60 | BS186: 22 | BT186: 0 | BU186: 0 | BV186: 4 | BW186: 199 | BX186: 4 | BY186: D | BZ186: 42 | CA186: B | CB186: J | CC186: P | CD186: P | CE186: 1 | CF186: 7.87 | CG186: 30.204966 | CH186: -90.271679 | CI186: 05:35:00 | CJ186: 6 | CL186: 299-11-1-010 | CM186: 5.87 | CN186: 0 | CO186: 0
A187: 2014 | B187: 2014225591935- | C187: 2014-07-20 | D187: 9 | E187: A | F187: 0 | G187: A | I187: 0 | J187: 0 | K187: SU | L187: 0 | M187: 0 | N187: C | O187: 1 | P187: C | Q187: A | R187: B | S187: B | T187: 0.44 | U187: 0 | V187: 0 | W187: 2 | X187: 65 | Y187: 0 | Z187: 199 | AA187: A | AB187: A | AC187: B | AD187: 0 | AE187: E | AF187: A | AG187: B | AI187: A | AJ187: B | AK187: A | AL187: 3 | AM187: 0 | AN187: S | AO187: S | AR187: 45 | AS187: BA | AT187: B | AU187: A | AV187: C | AW187: NN | AX187: N | AY187: N | AZ187: K | BA187: K | BB187: A | BC187: S | BD187: D | BE187: U | BG187: 3 | BH187: 20575 | BI187: 299-11 | BJ187: 65 | BK187: 8 | BL187: 1 | BM187: 4 | BN187: 8 | BO187: 4.44 | BP187: 0 | BQ187: 2 | BR187: 60 | BS187: 22 | BT187: 0 | BU187: 0 | BV187: 4 | BW187: 199 | BX187: 4 | BY187: D | BZ187: 42 | CA187: A | CC187: L | CD187: P | CE187: 1 | CF187: 6.44 | CG187: 30.204966 | CH187: -90.271679 | CI187: 16:21:00 | CJ187: 6 | CK187: 65LA199@OAK | CL187: 299-11-1-010 | CM187: 4.44 | CN187: 0 | CO187: 0
A188: 2015 | B188: 2015235990487- | C188: 2015-09-26 | D188: 13 | E188: A | F188: 0 | G188: A | I188: 0 | J188: 0 | K188: SA | L188: 0 | M188: 0 | N188: C | O188: 0 | P188: B | Q188: A | R188: C | S188: J | T188: 2.32 | U188: 0 | V188: 0 | W188: 2 | X188: 65 | Y188: 0 | Z188: 199 | AA188: A | AB188: A | AC188: B | AD188: 0 | AE188: E | AF188: A | AG188: B | AI188: A | AJ188: A | AK188: A | AL188: 10 | AM188: 40 | AN188: X | AO188: X | AP188: X | AQ188: X | AR188: 40 | AS188: AB | AT188: A | AU188: B | AV188: Y | AW188: WW | AX188: W | AY188: W | AZ188: K | BA188: K | BB188: B | BC188: B | BD188: Y | BE188: Y | BG188: 3 | BH188: 20551 | BI188: 299-11 | BJ188: 65 | BK188: 8 | BL188: 1 | BM188: 4 | BN188: 8 | BO188: 6.32 | BP188: 0 | BQ188: 2 | BR188: 60 | BS188: 22 | BT188: 0 | BU188: 0 | BV188: 4 | BW188: 199 | BX188: 4 | BY188: I | BZ188: 42 | CA188: A | CC188: Y | CD188: P | CE188: 1 | CF188: 8.32 | CG188: 30.204966 | CH188: -90.271679 | CI188: 16:00:00 | CJ188: 6 | CK188: 65LA199@1ST | CL188: 299-11-1-010 | CM188: 6.32 | CN188: 0 | CO188: 0
A189: 2013 | B189: 2013762725502- | C189: 2013-10-31 | D189: 4 | E189: A | F189: 0 | G189: A | I189: 0 | J189: 0 | K189: TH | L189: 0 | M189: 0 | N189: C | O189: 0 | P189: B | Q189: C | R189: B | S189: F | T189: 2.83 | U189: 0 | V189: 0 | W189: 2 | X189: 65 | Y189: 0 | Z189: 199 | AA189: A | AB189: A | AC189: C | AD189: 0 | AE189: E | AF189: A | AG189: B | AI189: A | AJ189: A | AK189: A | AN189: S | AO189: S | AP189: S | AQ189: S | AR189: 45 | AS189: IB | AT189: I | AU189: B | AV189: R | AW189: WS | AX189: W | AY189: S | AZ189: Y | BA189: Y | BB189: B | BC189: B | BD189: S | BE189: U | BG189: 3 | BH189: 21744 | BI189: 299-11 | BJ189: 65 | BK189: 8 | BL189: 1 | BM189: 4 | BN189: 8 | BO189: 6.83 | BP189: 0 | BQ189: 2 | BR189: 60 | BS189: 22 | BT189: 0 | BU189: 0 | BV189: 4 | BW189: 199 | BX189: 4 | BY189: D | BZ189: 42 | CA189: B | CC189: P | CD189: P | CE189: 1 | CF189: 8.83 | CG189: 30.204966 | CH189: -90.271679 | CI189: 06:34:00 | CJ189: 6 | CL189: 299-11-1-010 | CM189: 6.83 | CN189: 0 | CO189: 0
A190: 2013 | B190: 2013846081584- | C190: 2013-03-19 | D190: 5 | E190: B | F190: 0 | G190: A | I190: 0 | J190: 0 | K190: TU | L190: 0 | M190: 0 | N190: C | O190: 0 | P190: C | Q190: A | R190: B | S190: B | T190: 0.03 | U190: 0 | V190: 0 | W190: 2 | X190: 65 | Y190: 0 | Z190: 199 | AA190: A | AB190: A | AC190: C | AD190: 0 | AE190: E | AF190: B | AG190: A | AI190: C | AJ190: A | AK190: A | AL190: 10 | AM190: 0 | AN190: S | AO190: S | AP190: S | AQ190: S | AR190: 25 | AS190: BO | AT190: B | AU190: O | AV190: C | AW190: EE | AX190: E | AY190: E | AZ190: K | BA190: K | BB190: A | BC190: A | BD190: S | BE190: U | BG190: 3 | BH190: 21949 | BI190: 299-11 | BJ190: 65 | BK190: 8 | BL190: 1 | BM190: 4 | BN190: 8 | BO190: 4.03 | BP190: 0 | BQ190: 2 | BR190: 60 | BS190: 22 | BT190: 0 | BU190: 0 | BV190: 4 | BW190: 199 | BX190: 4 | BY190: D | BZ190: 42 | CA190: I | CB190: B | CC190: H | CD190: P | CE190: 1 | CF190: 6.03 | CG190: 30.204966 | CH190: -90.271679 | CI190: 11:04:00 | CJ190: 6 | CL190: 299-11-1-010 | CM190: 4.03 | CN190: 0 | CO190: 0
A191: 2013 | B191: 2013601721463- | C191: 2013-12-15 | D191: 10 | E191: A | F191: 0 | G191: A | I191: 0 | J191: 0 | K191: SU | L191: 0 | M191: 0 | N191: C | O191: 0 | P191: C | Q191: A | R191: C | S191: F | T191: 0.96 | U191: 3 | V191: 0 | W191: 2 | X191: 65 | Y191: 0 | Z191: 199 | AA191: A | AB191: A | AC191: C | AD191: 0 | AE191: C | AF191: A | AG191: B | AI191: A | AJ191: A | AK191: A | AL191: 15 | AM191: 55 | AN191: S | AO191: S | AP191: S | AQ191: S | AR191: 45 | AS191: IB | AT191: I | AU191: B | AV191: E | AW191: EW | AX191: E | AY191: W | AZ191: K | BA191: K | BB191: A | BC191: A | BD191: C | BE191: U | BG191: 2 | BH191: 21408 | BI191: 299-11 | BJ191: 65 | BK191: 8 | BL191: 1 | BM191: 4 | BN191: 8 | BO191: 4.96 | BP191: 0 | BQ191: 2 | BR191: 60 | BS191: 22 | BT191: 0 | BU191: 0 | BV191: 4 | BW191: 199 | BX191: 4 | BY191: D | BZ191: 42 | CA191: A | CB191: B | CC191: P | CD191: P | CE191: 1 | CF191: 6.96 | CG191: 30.204966 | CH191: -90.271679 | CI191: 06:43:00 | CJ191: 6 | CL191: 299-11-1-010 | CM191: 4.96 | CN191: 0 | CO191: 0
A192: 2015 | B192: 2015380901454- | C192: 2015-02-24 | D192: 11 | E192: B | F192: 0 | G192: A | I192: 0 | J192: 0 | K192: TU | L192: 0 | M192: 0 | N192: C | O192: 0 | P192: B | Q192: B | R192: B | S192: F | T192: 2.63 | U192: 2 | V192: 0 | W192: 2 | X192: 65 | Y192: 0 | Z192: 199 | AA192: A | AB192: A | AC192: C | AD192: 0 | AE192: D | AF192: A | AG192: A | AI192: B | AJ192: A | AK192: A | AL192: 10 | AM192: 45 | AN192: S | AO192: S | AP192: S | AQ192: S | AR192: 45 | AS192: IB | AT192: I | AU192: B | AV192: E | AW192: EW | AX192: E | AY192: W | AZ192: K | BA192: K | BB192: S | BC192: S | BD192: C | BE192: U | BG192: 2 | BH192: 21051 | BI192: 299-11 | BJ192: 65 | BK192: 8 | BL192: 1 | BM192: 4 | BN192: 8 | BO192: 6.63 | BP192: 0 | BQ192: 2 | BR192: 60 | BS192: 22 | BT192: 0 | BU192: 0 | BV192: 4 | BW192: 199 | BX192: 4 | BY192: D | BZ192: 42 | CA192: A | CB192: B | CC192: L | CD192: P | CE192: 1 | CF192: 8.63 | CG192: 30.204966 | CH192: -90.271679 | CI192: 05:12:00 | CJ192: 6 | CL192: 299-11-1-010 | CM192: 6.63 | CN192: 0 | CO192: 0
A193: 2015 | B193: 2015240602842- | C193: 2015-01-15 | D193: 16 | E193: A | F193: 0 | G193: A | I193: 0 | J193: 0 | K193: TH | L193: 0 | M193: 0 | N193: C | O193: 0 | P193: B | Q193: A | R193: C | S193: B | T193: 1.18 | U193: 0 | V193: 0 | W193: 4 | X193: 65 | Y193: 0 | Z193: 199 | AA193: A | AB193: A | AC193: C | AD193: 0 | AE193: E | AF193: B | AG193: B | AI193: C | AJ193: A | AK193: A | AL193: 5 | AM193: 0 | AN193: S | AO193: S | AP193: S | AQ193: S | AR193: 45 | AS193: BAAB | AT193: B | AU193: A | AV193: C | AW193: NENN | AX193: N | AY193: E | AZ193: Y | BA193: K | BB193: A | BC193: A | BD193: U | BE193: U | BG193: 3 | BH193: 21512 | BI193: 299-11 | BJ193: 65 | BK193: 8 | BL193: 1 | BM193: 4 | BN193: 8 | BO193: 5.18 | BP193: 0 | BQ193: 2 | BR193: 60 | BS193: 22 | BT193: 0 | BU193: 0 | BV193: 4 | BW193: 199 | BX193: 4 | BY193: D | BZ193: 42 | CA193: A | CB193: B | CC193: H | CD193: P | CE193: 1 | CF193: 7.18 | CG193: 30.204966 | CH193: -90.271679 | CI193: 07:16:00 | CJ193: 6 | CL193: 299-11-1-010 | CM193: 5.18 | CN193: 0 | CO193: 0
A194: 2015 | B194: 2015215687715- | C194: 2015-03-04 | D194: 10 | E194: B | F194: 0 | G194: A | I194: 0 | J194: 0 | K194: WE | L194: 0 | M194: 0 | N194: C | O194: 0 | P194: C | Q194: A | R194: B | S194: B | T194: 1.19 | U194: 1 | V194: 0 | W194: 2 | X194: 65 | Y194: 0 | Z194: 199 | AA194: A | AB194: A | AC194: B | AD194: 0 | AE194: D | AF194: A | AG194: B | AI194: B | AJ194: A | AK194: A | AL194: 15 | AM194: 0 | AN194: S | AO194: S | AP194: S | AQ194: S | AR194: 35 | AS194: BA | AT194: B | AU194: A | AV194: B | AW194: NN | AX194: N | AY194: N | AZ194: K | BA194: K | BB194: A | BC194: A | BD194: S | BE194: U | BG194: 2 | BH194: 20566 | BI194: 299-11 | BJ194: 65 | BK194: 8 | BL194: 1 | BM194: 4 | BN194: 8 | BO194: 5.19 | BP194: 0 | BQ194: 2 | BR194: 60 | BS194: 22 | BT194: 0 | BU194: 0 | BV194: 4 | BW194: 199 | BX194: 4 | BY194: D | BZ194: 42 | CA194: A | CB194: B | CC194: P | CD194: P | CE194: 1 | CF194: 7.19 | CG194: 30.204966 | CH194: -90.271679 | CI194: 09:45:00 | CJ194: 6 | CL194: 299-11-1-010 | CM194: 5.19 | CN194: 0 | CO194: 0
A195: =YEAR(C195) -> 2015 | B195: =A195 & RANDBETWEEN(111111111,999999999) & "-" -> 2015938901589- | C195: =RANDBETWEEN(DATE(2013, 1, 1),DATE(2015, 12, 31)) -> 2015-12-10 | D195: =RANDBETWEEN(0,6) +RANDBETWEEN(0,6) +RANDBETWEEN(0,6) +RANDBETWEEN(0,5) -> 17 | E195: A | F195: 0 | G195: A | I195: 0 | J195: 0 | K195: =IF(WEEKDAY(C195,1)=1,"SU",IF(WEEKDAY(C195,1)=2,"MO",IF(WEEKDAY(C195,1)=3,"TU",IF(WEEKDAY(C195,1)=4,"WE",IF(WEEKDAY(C195,1)=5,"TH",IF(WEEKDAY(C195,1)=6,"FI",IF(WEEKDAY(C195,1)=7,"SA",""))))))) -> TH | L195: 0 | M195: 0 | N195: C | O195: =IF(AND(BO195>4.4,BO195<4.6),IF(RAND()<0.67,1,0),(IF(AND(BO195>5.2,BO195<5.4),IF(RAND()<0.67,1,0),(IF(AND(BO195>6.3,BO195<6.5),IF(RAND()<0.67,1,0),(IF(AND(BO195>7.1,BO195<7.3),IF(RAND()<0.67,1,0),IF(RAND()<0.06,1,0)))))))) -> 0 | P195: =IF(RAND()<0.12,"A",IF(RAND()<0.22,"B",IF(RAND()<0.97,"C","Z"))) -> B | Q195: A | R195: B | S195: Z | T195: =BO195-4 -> 3.95 | U195: 0 | V195: 0 | W195: 2 | X195: 65 | Y195: 0 | Z195: 199 | AA195: A | AB195: A | AC195: B | AD195: 0 | AE195: E | AF195: A | AG195: B | AI195: A | AJ195: B | AK195: A | AN195: S | AO195: S | AR195: 45 | AS195: BI | AT195: B | AU195: I | AV195: C | AW195: NW | AX195: N | AY195: W | AZ195: K | BA195: K | BB195: B | BC195: A | BD195: L | BE195: U | BG195: 3 | BH195: =RANDBETWEEN(20100,22100) -> 21356 | BI195: 299-11 | BJ195: 65 | BK195: 8 | BL195: 1 | BM195: 4 | BN195: 8 | BO195: =RANDBETWEEN(4,7) + RANDBETWEEN(0,99)/100 -> 7.95 | BP195: 0 | BQ195: 2 | BR195: 60 | BS195: 22 | BT195: 0 | BU195: 0 | BV195: 4 | BW195: 199 | BX195: 4 | BY195: D | BZ195: 42 | CA195: A | CC195: L | CD195: P | CE195: 1 | CF195: =BO195+2 -> 9.95 | CG195: 30.204966 | CH195: -90.271679 | CI195: 12:31:00 | CJ195: 6 | CK195: =IF(AND(BO195>4.4,BO195<4.6),"65LA199@OAK",(IF(AND(BO195>5.2,BO195<5.4),"65LA199@MAIN",(IF(AND(BO195>6.3,BO195<6.5),"65LA199@1ST",(IF(AND(BO195>7.1,BO195<7.3),"65LA199@PINE",""))))))) ->  | CL195: 299-11-1-010 | CM195: =BO195 -> 7.95 | CN195: 0 | CO195: 0
A196: 2013 | B196: 2013890573547- | C196: 2013-03-21 | D196: 8 | E196: A | F196: 0 | G196: A | I196: 0 | J196: 0 | K196: TH | L196: 0 | M196: 0 | N196: C | O196: 1 | P196: C | Q196: A | R196: A | S196: J | T196: 0.84 | U196: 0 | V196: 0 | W196: 2 | X196: 65 | Y196: 0 | Z196: 199 | AA196: A | AB196: A | AC196: C | AD196: 0 | AE196: E | AF196: B | AG196: A | AI196: C | AJ196: A | AK196: A | AL196: 10 | AM196: 10 | AN196: S | AO196: S | AP196: S | AQ196: S | AR196: 45 | AS196: BB | AT196: B | AU196: B | AV196: R | AW196: NN | AX196: N | AY196: N | AZ196: K | BA196: K | BB196: A | BC196: A | BD196: S | BE196: U | BG196: 3 | BH196: 21465 | BI196: 299-11 | BJ196: 65 | BK196: 8 | BL196: 1 | BM196: 4 | BN196: 8 | BO196: 4.84 | BP196: 0 | BQ196: 2 | BR196: 60 | BS196: 22 | BT196: 0 | BU196: 0 | BV196: 4 | BW196: 199 | BX196: 4 | BY196: D | BZ196: 42 | CA196: A | CC196: P | CE196: 1 | CF196: 6.84 | CG196: 30.204966 | CH196: -90.271679 | CI196: 13:35:00 | CJ196: 6 | CL196: 299-11-1-010 | CM196: 4.84 | CN196: 0 | CO196: 0
A197: 2014 | B197: 2014666237472- | C197: 2014-06-27 | D197: 13 | E197: A | F197: 0 | G197: A | I197: 0 | J197: 0 | K197: FI | L197: 0 | M197: 0 | N197: C | O197: 0 | P197: C | Q197: C | R197: B | S197: F | T197: 0.87 | U197: 2 | V197: 0 | W197: 2 | X197: 65 | Y197: 0 | Z197: 199 | AA197: A | AB197: A | AC197: C | AD197: 0 | AE197: C | AF197: A | AG197: B | AI197: A | AJ197: A | AK197: A | AN197: S | AO197: S | AP197: S | AQ197: S | AR197: 55 | AS197: IB | AT197: I | AU197: B | AV197: G | AW197: WN | AX197: W | AY197: N | AZ197: K | BA197: K | BB197: B | BC197: A | BD197: G | BE197: U | BG197: 2 | BH197: 20432 | BI197: 299-11 | BJ197: 65 | BK197: 8 | BL197: 1 | BM197: 4 | BN197: 8 | BO197: 4.87 | BP197: 0 | BQ197: 2 | BR197: 60 | BS197: 22 | BT197: 0 | BU197: 0 | BV197: 4 | BW197: 199 | BX197: 4 | BY197: D | BZ197: 42 | CA197: A | CB197: B | CC197: P | CD197: P | CE197: 1 | CF197: 6.87 | CG197: 30.204966 | CH197: -90.271679 | CI197: 05:14:00 | CJ197: 6 | CL197: 299-11-1-010 | CM197: 4.87 | CN197: 0 | CO197: 0
A198: 2014 | B198: 2014114300249- | C198: 2014-11-17 | D198: 9 | E198: B | F198: 0 | G198: A | I198: 0 | J198: 0 | K198: MO | L198: 0 | M198: 0 | N198: C | O198: 1 | P198: C | Q198: A | R198: B | S198: B | T198: 3.12 | U198: 2 | V198: 0 | W198: 2 | X198: 65 | Y198: 0 | Z198: 199 | AA198: A | AB198: A | AC198: C | AD198: 0 | AE198: C | AF198: A | AG198: B | AI198: A | AJ198: A | AK198: A | AN198: S | AO198: S | AP198: S | AQ198: S | AR198: 45 | AS198: BA | AT198: B | AU198: A | AV198: C | AW198: WW | AX198: W | AY198: W | AZ198: Y | BA198: Y | BB198: A | BC198: S | BD198: D | BE198: U | BG198: 2 | BH198: 22056 | BI198: 299-11 | BJ198: 65 | BK198: 8 | BL198: 1 | BM198: 4 | BN198: 8 | BO198: 7.12 | BP198: 0 | BQ198: 2 | BR198: 60 | BS198: 22 | BT198: 0 | BU198: 0 | BV198: 4 | BW198: 199 | BX198: 4 | BY198: D | BZ198: 42 | CA198: B | CB198: J | CC198: P | CD198: P | CE198: 1 | CF198: 9.12 | CG198: 30.204966 | CH198: -90.271679 | CI198: 16:24:00 | CJ198: 6 | CK198: 65LA199@PINE | CL198: 299-11-1-010 | CM198: 7.12 | CN198: 0 | CO198: 0
A199: 2013 | B199: 2013589241949- | C199: 2013-04-01 | D199: 11 | E199: A | F199: 0 | G199: A | I199: 0 | J199: 0 | K199: MO | L199: 0 | M199: 0 | N199: C | O199: 0 | P199: C | Q199: A | R199: B | S199: D | T199: 0.04 | U199: 0 | V199: 0 | W199: 2 | X199: 65 | Y199: 0 | Z199: 199 | AA199: A | AB199: A | AC199: C | AD199: 0 | AE199: E | AF199: A | AG199: B | AI199: A | AJ199: B | AK199: A | AN199: S | AO199: S | AR199: 45 | AS199: UB | AT199: U | AU199: B | AV199: V | AW199: EN | AX199: E | AY199: N | AZ199: K | BA199: K | BB199: A | BC199: B | BD199: C | BE199: U | BG199: 3 | BH199: 21129 | BI199: 299-11 | BJ199: 65 | BK199: 8 | BL199: 1 | BM199: 4 | BN199: 8 | BO199: 4.04 | BP199: 0 | BQ199: 2 | BR199: 60 | BS199: 22 | BT199: 0 | BU199: 0 | BV199: 4 | BW199: 199 | BX199: 4 | BY199: D | BZ199: 42 | CA199: A | CB199: B | CC199: L | CD199: P | CE199: 1 | CF199: 6.04 | CG199: 30.204966 | CH199: -90.271679 | CI199: 07:38:00 | CJ199: 6 | CL199: 299-11-1-010 | CM199: 4.04 | CN199: 0 | CO199: 0
A200: 2014 | B200: 2014537963533- | C200: 2014-12-21 | D200: 16 | E200: A | F200: 0 | G200: A | I200: 0 | J200: 0 | K200: SU | L200: 0 | M200: 0 | N200: C | O200: 1 | P200: C | Q200: C | R200: B | S200: Z | T200: 0.57 | U200: 1 | V200: 0 | W200: 3 | X200: 65 | Y200: 0 | Z200: 199 | AA200: A | AB200: A | AC200: C | AD200: 0 | AE200: D | AF200: A | AG200: B | AI200: A | AJ200: C | AK200: A | AN200: S | AO200: S | AP200: S | AQ200: S | AR200: 45 | AS200: BQQ | AT200: B | AU200: Q | AV200: V | AW200: WWW | AX200: W | AY200: W | AZ200: Y | BA200: Y | BB200: B | BC200: A | BD200: D | BE200: U | BG200: 2 | BH200: 21919 | BI200: 299-11 | BJ200: 65 | BK200: 8 | BL200: 1 | BM200: 4 | BN200: 8 | BO200: 4.57 | BP200: 0 | BQ200: 2 | BR200: 60 | BS200: 22 | BT200: 0 | BU200: 0 | BV200: 4 | BW200: 199 | BX200: 4 | BY200: D | BZ200: 42 | CA200: D | CB200: A | CC200: K | CD200: P | CE200: 1 | CF200: 6.57 | CG200: 30.204966 | CH200: -90.271679 | CI200: 05:48:00 | CJ200: 6 | CK200: 65LA199@OAK | CL200: 299-11-1-010 | CM200: 4.57 | CN200: 0 | CO200: 0
... 56 more rows

Sheet Dashboards
B1: 1. Crash History
C2: Project Name/Number = | D2: Example | K2: Analysis Performed by: | L2: DOTD Highway Safety | P2: Hour Range
C3: Control Section / Route = | D3: 299-11 | K3: Date: | L3: 2017-03-14 | Q3: MON | R3: TUE | S3: WED | T3: THU | U3: SAT | V3: SUN
C4: Limits /Logmiles = | D4: 4.0 to 8.0 | P4: 1-3 | Q4: 1 | T4: 1
P5: 4-6 | Q5: 3 | R5: 5 | S5: 1 | T5: 3 | U5: 1 | V5: 6
P6: 7-9 | Q6: 4 | R6: 8 | S6: 8 | T6: 5 | U6: 3 | V6: 10
P7: 10-12 | Q7: 14 | R7: 10 | S7: 10 | T7: 8 | U7: 11 | V7: 15
P8: 13-15 | Q8: 10 | R8: 11 | S8: 7 | T8: 12 | U8: 12 | V8: 11
P9: 16-18 | Q9: 10 | R9: 6 | S9: 2 | T9: 7 | U9: 4 | V9: 3
P10: 19-21 | Q10: 2 | R10: 2 | T10: 1 | U10: 1 | V10: 3
B36: 2. Network Screening
C37: Project Name/Number = | D37: Example
C38: Route = | D38: LA 199
C39: Control Section = | D39: 299-11 | G39: (i.e XXX-XX)
C40: Logmile From = | D40: 4 | G40: (i.e XX.XX)
C41: Logmile To = | D41: 8 | G41: (i.e XX.XX)
C42: AADT = | D42: 21000 | G42: (Average of last 3 yrs)
C43: Highway Class = | D43: Rural 2-Lane
B45: All Crashes - Safety Performance Function (SPF) | P45: Fatal and Serious Injury Crashes - Safety Performance Function (SPF)
B47: ="All Crashes - "&D43&" SPF" -> All Crashes - Rural 2-Lane SPF | P47: ="F&SI Crashes - "&D43&" SPF" -> F&SI Crashes - Rural 2-Lane SPF
B51: β0 | C51: β1 | D51: β2 | E51: β3 | F51: b | P51: β0 | Q51: β1 | R51: β2 | S51: β3 | T51: b
B52: =VLOOKUP(D43,SPFCoeficients,2,FALSE) -> 0.002807493858 | C52: =VLOOKUP(D43,SPFCoeficients,3,FALSE) -> 0.9458467982 | D52: =VLOOKUP(D43,SPFCoeficients,4,FALSE) -> 0.74892369 | E52: =VLOOKUP(D43,SPFCoeficients,5,FALSE) -> 0 | F52: =VLOOKUP(D43,SPFCoeficients,6,FALSE) -> 2.640033845 | P52: =VLOOKUP(D43,SPFCoeficients,7,FALSE) -> 1.782424906 | Q52: =VLOOKUP(D43,SPFCoeficients,8,FALSE) -> 0.9392476143 | R52: =VLOOKUP(D43,SPFCoeficients,9,FALSE) -> 1590.25761 | S52: =VLOOKUP(D43,SPFCoeficients,10,FALSE) -> -0.7855649811 | T52: =VLOOKUP(D43,SPFCoeficients,11,FALSE) -> 0.7303098675
C54: Observed Crashes = | D54: =IF(COUNTA(D39:D41)=3,COUNTIFS(CSECT,D39,LOGMILE,">="&D40,LOGMILE,"<="&D41,INTERSECTION,0,CRASH_YEAR,">"&(MAX(CRASH_YEAR)-3))/3,"") -> 65.33333333 | E54: Crashes/yr | Q54: Observed Crashes = | R54: =IF(COUNTA(D39:F41)=3,COUNTIFS(CSECT,D39,LOGMILE,">="&D40,LOGMILE,"<="&D41,INTERSECTION,0,CRASH_YEAR,">"&(MAX(CRASH_YEAR)-3),SEVERITY_CD,"<>"&"E",SEVERITY_CD,"<>"&"D"),"") -> 22 | S54: Crashes/3yrs
C55: Predicted Crashes (SPF) = | D55: =ALLPredictedCrashes(D43,D59,D42,B52,C52,D52,E52) -> 17.97991993 | E55: Crashes/yr | Q55: Predicted Crashes (SPF) = | R55: =ABCPredictedCrashes(D43,R59,D42,P52,Q52,R52,S52) -> 3.996579933 | S55: Crashes/3yrs
C56: Overdispersion Parameter = | D56: =1/(F52*(D41-D40)^C52) -> 0.102078432 | Q56: Overdispersion Parameter = | R56: =1/(T52*(D41-D40)^Q52) -> 0.3723997844
C57: Weighted Adjustment = | D57: =1/(1+D56*D55) -> 0.3526886472 | Q57: Weighted Adjustment = | R57: =1/(1+R56*R55) -> 0.4018766829
C59: Segment Length = | D59: =D41-D40 -> 4 | E59: mile | Q59: Segment Length = | R59: =D41-D40 -> 4 | S59: mile
C60: Observed Crashes = | D60: =D54/(D59) -> 16.33333333 | E60: Crashes/mile/yr | Q60: Observed Crashes = | R60: =R54/(R59) -> 5.5 | S60: Crashes/mile/3yrs
C61: Predicted Crashes (SPF) = | D61: =D55/((D59)^C52) -> 4.845417887 | E61: Crashes/mile/yr | Q61: Predicted Crashes (SPF) = | R61: =R55/((R59)^Q52) -> 1.086938803 | S61: Crashes/mile/3yrs
C62: Expected Crashes (SPF + EB) = | D62: =(D57*D55+(1-D57)*D54)/((D59)^C52) -> 13.10594952 | E62: Crashes/mile/yr | Q62: Expected Crashes (SPF + EB) = | R62: =(R57*R55+(1-R57)*R54)/((R59)^Q52) -> 4.015554174 | S62: Crashes/mile/3yrs
C63: Statewide Average = | D63: =D55/((D59)^C52) -> 4.845417887 | E63: Crashes/mile/yr | Q63: Statewide Average = | R63: =R55/((R59)^Q52) -> 1.086938803 | S63: Crashes/mile/3yrs
C64: 80th Percentile = | D64: =_xlfn.GAMMA.INV(0.8,F52,(D55/F52))/((D59)^C52) -> 7.017875295 | E64: Crashes/mile/yr | Q64: 80th Percentile = | R64: =_xlfn.GAMMA.INV(0.8,T52,(R55/T52))/((R59)^Q52) -> 1.783938896 | S64: Crashes/mile/3yrs
C65: Level of Service of Safety = | D65: =IF(D62>=D64,"LOSS 4",IF(D62>=D63,"LOSS 3",IF(D62>=_xlfn.GAMMA.INV(0.2,F52,(D55/F52))/((D59)^C52),"LOSS 2","LOSS 1"))) -> LOSS 4 | Q65: Level of Service of Safety = | R65: =IF(R62>=R64,"LOSS 4",IF(R62>=R63,"LOSS 3",IF(R62>=_xlfn.GAMMA.INV(0.2,T52,(R55/T52))/((R59)^Q52),"LOSS 2","LOSS 1"))) -> LOSS 4
B68: 3. Pattern Recognition Analysis
B70: Control Section = | C70: 299-11 | F70: (i.e XXX-XX)
B71: Logmile From = | C71: 4 | F71: (i.e XX.XX)
B72: Logmile To = | C72: 8 | F72: (i.e XX.XX)
B73: AADT = | C73: 21000 | F73: (Average of last 3 yrs)
B74: Highway Class = | C74: Rural 2-Lane
C76: Δ = | D76: 1 | E76: miles
C77: δ = | D77: 0.1 | E77: miles
C78: Percent Cutoff = | D78: 0.95 | E78: %
C79: Possible Δs = | D79: =IF((((C72-C71)-D76)/D77)<=0,1,(((C72-C71+0.05)-D76)/D77)+1) -> 31.5
C80: AADT Group = | D80: =IF(C73<VLOOKUP(C74,AADT_Ranges,2,FALSE),"Low",IF(C73>VLOOKUP(C74,AADT_Ranges,3,FALSE),"High","Medium")) -> High
A82: Code | B82: Category | D82: Obs % | E82: State % | F82: Δs > Cutoff | H82: Code | I82: Category | K82: Obs % | L82: State % | M82: Δs > Cutoff
A83: A | B83: Fatal | D83: =IF(COUNTA($C$71:$E$73)=3,COUNTIFS(CSECT,$C$70,LOGMILE,">="&$C$71,LOGMILE,"<="&$C$72,INTERSECTION,0,CRASH_YEAR,">"&(MAX(CRASH_YEAR)-3),SEVERITY_CD,A83)/COUNTIFS(CSECT,$C$70,LOGMILE,">="&$C$71,LOGMILE,"<="&$C$72,INTERSECTION,0,CRASH_YEAR,">"&(MAX(CRASH_YEAR)-3)),"") -> 0 | E83: =INDEX(INDIRECT($D$80),MATCH(B83,'State Percentages'!$C$2:$C$34,0),MATCH($C$74,'State Percentages'!$D$1:$N$1,0)) -> 0.01320528211 | F83: 0 | G83: SEVERITY_CD | H83: A | I83: Non Coll | K83: =IF(COUNTA($C$71:$E$73)=3,COUNTIFS(CSECT,$C$70,LOGMILE,">="&$C$71,LOGMILE,"<="&$C$72,INTERSECTION,0,CRASH_YEAR,">"&(MAX(CRASH_YEAR)-3),MAN_COLL_CD,H83)/COUNTIFS(CSECT,$C$70,LOGMILE,">="&$C$71,LOGMILE,"<="&$C$72,INTERSECTION,0,CRASH_YEAR,">"&(MAX(CRASH_YEAR)-3)),"") -> 0.08163265306 | L83: =INDEX(INDIRECT($D$80),MATCH(I83,'State Percentages'!$C$2:$C$34,0),MATCH($C$74,'State Percentages'!$D$1:$N$1,0)) -> 0.2719087635 | M83: 0 | N83: MAN_COLL_CD | O83: 1
A84: B | B84: Severe | D84: =IF(COUNTA($C$71:$E$73)=3,COUNTIFS(CSECT,$C$70,LOGMILE,">="&$C$71,LOGMILE,"<="&$C$72,INTERSECTION,0,CRASH_YEAR,">"&(MAX(CRASH_YEAR)-3),SEVERITY_CD,A84)/COUNTIFS(CSECT,$C$70,LOGMILE,">="&$C$71,LOGMILE,"<="&$C$72,INTERSECTION,0,CRASH_YEAR,">"&(MAX(CRASH_YEAR)-3)),"") -> 0.01020408163 | E84: =INDEX(INDIRECT($D$80),MATCH(B84,'State Percentages'!$C$2:$C$34,0),MATCH($C$74,'State Percentages'!$D$1:$N$1,0)) -> 0.006602641056 | F84: 0 | G84: SEVERITY_CD | H84: B | I84: Rear End | K84: 0.3367346939 | L84: =INDEX(INDIRECT($D$80),MATCH(I84,'State Percentages'!$C$2:$C$34,0),MATCH($C$74,'State Percentages'!$D$1:$N$1,0)) -> 0.418967587 | M84: 0 | N84: MAN_COLL_CD | O84: 1
A85: C | B85: Moderate | D85: =IF(COUNTA($C$71:$E$73)=3,COUNTIFS(CSECT,$C$70,LOGMILE,">="&$C$71,LOGMILE,"<="&$C$72,INTERSECTION,0,CRASH_YEAR,">"&(MAX(CRASH_YEAR)-3),SEVERITY_CD,A85)/COUNTIFS(CSECT,$C$70,LOGMILE,">="&$C$71,LOGMILE,"<="&$C$72,INTERSECTION,0,CRASH_YEAR,">"&(MAX(CRASH_YEAR)-3)),"") -> 0.1020408163 | E85: =INDEX(INDIRECT($D$80),MATCH(B85,'State Percentages'!$C$2:$C$34,0),MATCH($C$74,'State Percentages'!$D$1:$N$1,0)) -> 0.06842737095 | F85: 2 | G85: SEVERITY_CD | H85: C | I85: Head On | K85: 0.005102040816 | L85: =INDEX(INDIRECT($D$80),MATCH(I85,'State Percentages'!$C$2:$C$34,0),MATCH($C$74,'State Percentages'!$D$1:$N$1,0)) -> 0.02220888355 | M85: 0 | N85: MAN_COLL_CD | O85: 1
A86: D | B86: Complaint | D86: =IF(COUNTA($C$71:$E$73)=3,COUNTIFS(CSECT,$C$70,LOGMILE,">="&$C$71,LOGMILE,"<="&$C$72,INTERSECTION,0,CRASH_YEAR,">"&(MAX(CRASH_YEAR)-3),SEVERITY_CD,A86)/COUNTIFS(CSECT,$C$70,LOGMILE,">="&$C$71,LOGMILE,"<="&$C$72,INTERSECTION,0,CRASH_YEAR,">"&(MAX(CRASH_YEAR)-3)),"") -> 0.2551020408 | E86: =INDEX(INDIRECT($D$80),MATCH(B86,'State Percentages'!$C$2:$C$34,0),MATCH($C$74,'State Percentages'!$D$1:$N$1,0)) -> 0.268907563 | F86: 0 | G86: SEVERITY_CD | H86: D | I86: Rt Angle | K86: 0.1479591837 | L86: =INDEX(INDIRECT($D$80),MATCH(I86,'State Percentages'!$C$2:$C$34,0),MATCH($C$74,'State Percentages'!$D$1:$N$1,0)) -> 0.07262905162 | M86: 8 | N86: MAN_COLL_CD | O86: 1
A87: E | B87: None | D87: =IF(COUNTA($C$71:$E$73)=3,COUNTIFS(CSECT,$C$70,LOGMILE,">="&$C$71,LOGMILE,"<="&$C$72,INTERSECTION,0,CRASH_YEAR,">"&(MAX(CRASH_YEAR)-3),SEVERITY_CD,A87)/COUNTIFS(CSECT,$C$70,LOGMILE,">="&$C$71,LOGMILE,"<="&$C$72,INTERSECTION,0,CRASH_YEAR,">"&(MAX(CRASH_YEAR)-3)),"") -> 0.6326530612 | E87: =INDEX(INDIRECT($D$80),MATCH(B87,'State Percentages'!$C$2:$C$34,0),MATCH($C$74,'State Percentages'!$D$1:$N$1,0)) -> 0.6428571429 | F87: 9 | G87: SEVERITY_CD | H87: E | I87: Left Turn-e | K87: 0.05102040816 | L87: =INDEX(INDIRECT($D$80),MATCH(I87,'State Percentages'!$C$2:$C$34,0),MATCH($C$74,'State Percentages'!$D$1:$N$1,0)) -> 0.02701080432 | M87: 0 | N87: MAN_COLL_CD | O87: 1
A88: A | B88: Run off rd | D88: =IF(COUNTA($C$71:$E$73)=3,COUNTIFS(CSECT,$C$70,LOGMILE,">="&$C$71,LOGMILE,"<="&$C$72,INTERSECTION,0,CRASH_YEAR,">"&(MAX(CRASH_YEAR)-3),TYPE_ACC,A88)/COUNTIFS(CSECT,$C$70,LOGMILE,">="&$C$71,LOGMILE,"<="&$C$72,INTERSECTION,0,CRASH_YEAR,">"&(MAX(CRASH_YEAR)-3)),"") -> 0.04591836735 | E88: =INDEX(INDIRECT($D$80),MATCH(B88,'State Percentages'!$C$2:$C$34,0),MATCH($C$74,'State Percentages'!$D$1:$N$1,0)) -> 0.2695078031 | F88: 0 | G88: TYPE_ACC | H88: F | I88: Left Turn-f | K88: 0.1734693878 | L88: =INDEX(INDIRECT($D$80),MATCH(I88,'State Percentages'!$C$2:$C$34,0),MATCH($C$74,'State Percentages'!$D$1:$N$1,0)) -> 0.02521008403 | M88: 31 | N88: MAN_COLL_CD | O88: 1
A89: B | B89: Overturn on rd | D89: 0 | E89: =INDEX(INDIRECT($D$80),MATCH(B89,'State Percentages'!$C$2:$C$34,0),MATCH($C$74,'State Percentages'!$D$1:$N$1,0)) -> 0.004201680672 | F89: 0 | G89: TYPE_ACC | H89: G | I89: Left Turn-g | K89: 0.0306122449 | L89: =INDEX(INDIRECT($D$80),MATCH(I89,'State Percentages'!$C$2:$C$34,0),MATCH($C$74,'State Percentages'!$D$1:$N$1,0)) -> 0.01800720288 | M89: 16 | N89: MAN_COLL_CD | O89: 1
A90: C | B90: Coll wt ped | D90: 0 | E90: =INDEX(INDIRECT($D$80),MATCH(B90,'State Percentages'!$C$2:$C$34,0),MATCH($C$74,'State Percentages'!$D$1:$N$1,0)) -> 0.001200480192 | F90: 0 | G90: TYPE_ACC | H90: H | I90: Right Turn-h | K90: 0.0306122449 | L90: =INDEX(INDIRECT($D$80),MATCH(I90,'State Percentages'!$C$2:$C$34,0),MATCH($C$74,'State Percentages'!$D$1:$N$1,0)) -> 0.008403361345 | M90: 12 | N90: MAN_COLL_CD | O90: 1
A91: D | B91: Coll wt veh | D91: 0.8979591837 | E91: =INDEX(INDIRECT($D$80),MATCH(B91,'State Percentages'!$C$2:$C$34,0),MATCH($C$74,'State Percentages'!$D$1:$N$1,0)) -> 0.6398559424 | F91: 31 | G91: TYPE_ACC | H91: I | I91: Right Turn-i | K91: 0.005102040816 | L91: =INDEX(INDIRECT($D$80),MATCH(I91,'State Percentages'!$C$2:$C$34,0),MATCH($C$74,'State Percentages'!$D$1:$N$1,0)) -> 0.001800720288 | M91: 0 | N91: MAN_COLL_CD | O91: 1
A92: E | B92: Coll wt pk car | D92: 0 | E92: =INDEX(INDIRECT($D$80),MATCH(B92,'State Percentages'!$C$2:$C$34,0),MATCH($C$74,'State Percentages'!$D$1:$N$1,0)) -> 0.001200480192 | F92: 0 | G92: TYPE_ACC | H92: J | I92: S Swipe(sd) | K92: 0.04591836735 | L92: =INDEX(INDIRECT($D$80),MATCH(I92,'State Percentages'!$C$2:$C$34,0),MATCH($C$74,'State Percentages'!$D$1:$N$1,0)) -> 0.0456182473 | M92: 9 | N92: MAN_COLL_CD | O92: 1
A93: F | B93: Coll wt train | D93: 0 | E93: =INDEX(INDIRECT($D$80),MATCH(B93,'State Percentages'!$C$2:$C$34,0),MATCH($C$74,'State Percentages'!$D$1:$N$1,0)) -> 0.000600240096 | F93: 0 | G93: TYPE_ACC | H93: K | I93: S Swipe(od) | K93: 0.02040816327 | L93: =INDEX(INDIRECT($D$80),MATCH(I93,'State Percentages'!$C$2:$C$34,0),MATCH($C$74,'State Percentages'!$D$1:$N$1,0)) -> 0.04141656663 | M93: 4 | N93: MAN_COLL_CD | O93: 1
A94: G | B94: Coll wt bicycle | D94: 0 | E94: =INDEX(INDIRECT($D$80),MATCH(B94,'State Percentages'!$C$2:$C$34,0),MATCH($C$74,'State Percentages'!$D$1:$N$1,0)) -> 0 | F94: 0 | G94: TYPE_ACC | H94: Z | I94: Other | K94: 0.07142857143 | L94: =INDEX(INDIRECT($D$80),MATCH(I94,'State Percentages'!$C$2:$C$34,0),MATCH($C$74,'State Percentages'!$D$1:$N$1,0)) -> 0.04681872749 | M94: 10 | N94: MAN_COLL_CD | O94: 1 | P94: Comments
A95: H | B95: Coll wt animal | D95: 0.01020408163 | E95: =INDEX(INDIRECT($D$80),MATCH(B95,'State Percentages'!$C$2:$C$34,0),MATCH($C$74,'State Percentages'!$D$1:$N$1,0)) -> 0.03661464586 | F95: 0 | G95: TYPE_ACC | H95: 1 | I95: Roadway dept. | K95: =IF(COUNTA($C$71:$E$73)=3,COUNTIFS(CSECT,$C$70,LOGMILE,">="&$C$71,LOGMILE,"<="&$C$72,INTERSECTION,0,CRASH_YEAR,">"&(MAX(CRASH_YEAR)-3),roadway_departure,H95)/COUNTIFS(CSECT,$C$70,LOGMILE,">="&$C$71,LOGMILE,"<="&$C$72,INTERSECTION,0,CRASH_YEAR,">"&(MAX(CRASH_YEAR)-3)),"") -> 0.1020408163 | L95: =INDEX(INDIRECT($D$80),MATCH(I95,'State Percentages'!$C$2:$C$34,0),MATCH($C$74,'State Percentages'!$D$1:$N$1,0)) -> 0.3163265306 | M95: 0 | N95: roadway_departure | O95: 1
A96: I | B96: Coll wt fix obj | D96: 0.02040816327 | E96: =INDEX(INDIRECT($D$80),MATCH(B96,'State Percentages'!$C$2:$C$34,0),MATCH($C$74,'State Percentages'!$D$1:$N$1,0)) -> 0.01740696279 | F96: 0 | G96: TYPE_ACC | H96: 1 | I96: Lane Dept. | K96: =IF(COUNTA($C$71:$E$73)=3,COUNTIFS(CSECT,$C$70,LOGMILE,">="&$C$71,LOGMILE,"<="&$C$72,INTERSECTION,0,CRASH_YEAR,">"&(MAX(CRASH_YEAR)-3),lane_departure,H96)/COUNTIFS(CSECT,$C$70,LOGMILE,">="&$C$71,LOGMILE,"<="&$C$72,INTERSECTION,0,CRASH_YEAR,">"&(MAX(CRASH_YEAR)-3)),"") -> 0.1224489796 | L96: =INDEX(INDIRECT($D$80),MATCH(I96,'State Percentages'!$C$2:$C$34,0),MATCH($C$74,'State Percentages'!$D$1:$N$1,0)) -> 0.3955582233 | M96: 0 | N96: lane_departure | O96: 1
A97: J | B97: Coll wt other obj | D97: 0.01020408163 | E97: =INDEX(INDIRECT($D$80),MATCH(B97,'State Percentages'!$C$2:$C$34,0),MATCH($C$74,'State Percentages'!$D$1:$N$1,0)) -> 0.01200480192 | F97: 0 | G97: TYPE_ACC | H97: B | I97: Night (Dark-B) | K97: =IF(COUNTA($C$71:$E$73)=3,COUNTIFS(CSECT,$C$70,LOGMILE,">="&$C$71,LOGMILE,"<="&$C$72,INTERSECTION,0,CRASH_YEAR,">"&(MAX(CRASH_YEAR)-3),LIGHTING_CD,H97)/COUNTIFS(CSECT,$C$70,LOGMILE,">="&$C$71,LOGMILE,"<="&$C$72,INTERSECTION,0,CRASH_YEAR,">"&(MAX(CRASH_YEAR)-3)),"") -> 0.1275510204 | L97: =INDEX(INDIRECT($D$80),MATCH(I97,'State Percentages'!$C$2:$C$34,0),MATCH($C$74,'State Percentages'!$D$1:$N$1,0)) -> 0.2004801921 | M97: 0 | N97: LIGHTING_CD | O97: 1
A98: K | B98: Non Col on Rd | D98: 0.01530612245 | E98: =INDEX(INDIRECT($D$80),MATCH(B98,'State Percentages'!$C$2:$C$34,0),MATCH($C$74,'State Percentages'!$D$1:$N$1,0)) -> 0.01740696279 | F98: 0 | G98: TYPE_ACC | H98: 1 | I98: Alcohol | K98: =IF(COUNTA($C$71:$E$73)=3,COUNTIFS(CSECT,$C$70,LOGMILE,">="&$C$71,LOGMILE,"<="&$C$72,INTERSECTION,0,CRASH_YEAR,">"&(MAX(CRASH_YEAR)-3),ALCOHOL,H98)/COUNTIFS(CSECT,$C$70,LOGMILE,">="&$C$71,LOGMILE,"<="&$C$72,INTERSECTION,0,CRASH_YEAR,">"&(MAX(CRASH_YEAR)-3)),"") -> 0 | L98: =INDEX(INDIRECT($D$80),MATCH(I98,'State Percentages'!$C$2:$C$34,0),MATCH($C$74,'State Percentages'!$D$1:$N$1,0)) -> 0.06782713085 | M98: 0 | N98: ALCOHOL | O98: 1
H99: B | I99: Wet surface | K99: =IF(COUNTA($C$71:$E$73)=3,COUNTIFS(CSECT,$C$70,LOGMILE,">="&$C$71,LOGMILE,"<="&$C$72,INTERSECTION,0,CRASH_YEAR,">"&(MAX(CRASH_YEAR)-3),SURF_COND_CD,H99)/COUNTIFS(CSECT,$C$70,LOGMILE,">="&$C$71,LOGMILE,"<="&$C$72,INTERSECTION,0,CRASH_YEAR,">"&(MAX(CRASH_YEAR)-3)),"") -> 0.1071428571 | L99: =INDEX(INDIRECT($D$80),MATCH(I99,'State Percentages'!$C$2:$C$34,0),MATCH($C$74,'State Percentages'!$D$1:$N$1,0)) -> 0.1668667467 | M99: 0 | N99: SURF_COND_CD | O99: 1

Sheet Construction (hidden)
B2: HWY CLASS | C2: HWY CLASS | D2: β0 | E2: β1 | F2: β2 | G2: β3 | H2: b | I2: β0 | J2: β1 | K2: β2 | L2: β3 | M2: b
B3: R2L | C3: Rural 2-Lane | D3: 0.002807493858 | E3: 0.9458467982 | F3: 0.74892369 | G3: 0 | H3: 2.640033845 | I3: 1.782424906 | J3: 0.9392476143 | K3: 1590.25761 | L3: -0.7855649811 | M3: 0.7303098675 | P3: AADT | Q3: SPF | R3: 80th | S3: SPF | T3: 80th
B4: R3L | C4: Rural 3-Lane | D4: 3.122701722e-06 | E4: 0.785727941 | F4: 1.569414152 | G4: 0 | H4: 1 | I4: 6.048707163e-07 | J4: 1.077493049 | K4: 1.682209801 | L4: 0 | M4: 1.940771718 | P4: 0 | Q4: 0 | R4: 0 | S4: 0 | T4: 0
B5: R4LD | C5: Rural 4-Lane Divided | D5: 0.002177417141 | E5: 0.734966726 | F5: 0.7314040153 | G5: 2.178441688e-05 | H5: 2.946845618 | I5: 1.452861511e-05 | J5: 0.8424908732 | K5: 1.206260334 | L5: -2.311077007e-05 | M5: 1.452785443 | P5: 1000 | Q5: 0.4955527436 | R5: 0.7177352785 | S5: 0.2229492701 | T5: 0.3659156098
B6: R4LU | C6: Rural 4-Lane Undivided | D6: 0.001316593241 | E6: 0.6424976016 | F6: 0.7781489352 | G6: 2.613394628e-05 | H6: 36.398201 | I6: 0.001099765079 | J6: 0.6942383325 | K6: 0.644335317 | L6: 5.95974268e-05 | M6: 72.1839337 | P6: 2000 | Q6: 0.8327955197 | R6: 1.206181849 | S6: 0.3524089744 | T6: 0.5783914194
B7: R5L | C7: Rural 5-Lane | D7: 0.04332831483 | E7: 0.822086151 | F7: 0.2751472482 | G7: 0.0001056236737 | H7: 4.619532871 | I7: 2.765604764e-08 | J7: 1.014986545 | K7: 0.7340443285 | L7: 1.384313472 | M7: 13.0709012 | P7: 3000 | Q7: 1.128281054 | R7: 1.634149194 | S7: 0.4511375817 | T7: 0.7404297994
B8: U2L | C8: Urban 2-Lane | D8: 0.03624668034 | E8: 0.7369739729 | F8: 0.5388414066 | G8: 3.877299105e-05 | H8: 2.933026107 | I8: 0.06562063871 | J8: 0.8338077624 | K8: 0.3093147755 | L8: 3.024834157e-05 | M8: 1.951323309 | P8: 4000 | Q8: 1.399545027 | R8: 2.027035169 | S8: 0.531425002 | T8: 0.8722015714
B9: U3L | C9: Urban 3-Lane | D9: 0.06509488175 | E9: 1.135908292 | F9: 0.5390312855 | G9: 3.576078784e-05 | H9: 5.170759783 | I9: 1.109188608e-05 | J9: 1.212850296 | K9: 1.329957402 | L9: 0 | M9: 1.264515239 | P9: 5000 | Q9: 1.654112638 | R9: 2.39573892 | S9: 0.5990253678 | T9: 0.9831507083
B10: U4LD | C10: Urban 4-Lane Divided | D10: 2.384546091e-05 | E10: 0.6276446965 | F10: 1.33635705 | G10: 2.244941651e-06 | H10: 2.734829692 | I10: 3.034016773e-05 | J10: 0.7408671786 | K10: 1.185510699 | L10: -1.331771603e-05 | M10: 2.793215116 | P10: 6000 | Q10: 1.896119876 | R10: 2.746250818 | S10: 0.6572550405 | T10: 1.07872019
B11: U4LU | C11: Urban 4-Lane Undivided | D11: 0.08157702039 | E11: 0.8866472445 | F11: 0.5170538135 | G11: 3.284051608e-05 | H11: 4.49193736 | I11: 0.003015600731 | J11: 0.8897728974 | K11: 0.7387372836 | L11: 0 | M11: 3.824557773 | P11: 7000 | Q11: 2.128157802 | R11: 3.082323632 | S11: 0.7082453867 | T11: 1.162408123
B12: U5L | C12: Urban 5-Lane | D12: 5.238338208e-05 | E12: 0.8906223663 | F12: 1.290379995 | G12: 1.346175679e-05 | H12: 3.456686945 | I12: 0.01712911749 | J12: 0.9804513261 | K12: 0.5352152631 | L12: 1.617725743e-05 | M12: 2.937060663 | P12: 8000 | Q12: 2.351989456 | R12: 3.406510869 | S12: 0.7534636967 | T12: 1.236622699
B13: U6L | C13: Urban 6-Lane | D13: 0.1138172641 | E13: 0.950797101 | F13: 0.5162298619 | G13: 1.808291667e-05 | H13: 6.204618663 | I13: 0.01267949063 | J13: 1.170981188 | K13: 0.6075195896 | L13: 0 | M13: 3.890516597 | P13: 9000 | Q13: 2.568885257 | R13: 3.720652543 | S13: 0.7939697242 | T13: 1.303103238
P14: 10000 | Q14: 2.779800156 | R14: 4.026131759 | S14: 0.8305566763 | T14: 1.363151593
C15: Rural 2-Lane | D15: Power | E15: Sigmoid | P15: 11000 | Q15: 2.985475678 | R15: 4.324022509 | S15: 0.8638349572 | T15: 1.41776959
C16: Rural 3-Lane | D16: Power | E16: Power | P16: 12000 | Q16: 3.186502664 | R16: 4.615180537 | S16: 0.8942848912 | T16: 1.46774556
C17: Rural 4-Lane Divided | D17: Hoerl | E17: Hoerl | P17: 13000 | Q17: 3.383361872 | R17: 4.900302152 | S17: 0.9222914574 | T17: 1.513711352
C18: Rural 4-Lane Undivided | D18: Hoerl | E18: PowerLine | P18: 14000 | Q18: 3.576451357 | R18: 5.179963878 | S18: 0.9481680264 | T18: 1.556181285
C19: Rural 5-Lane | D19: Hoerl | E19: PowerLine | P19: 15000 | Q19: 3.766105576 | R19: 5.454650124 | S19: 0.9721730758 | T19: 1.595579586
C20: Urban 2-Lane | D20: Hoerl | E20: Hoerl | P20: 16000 | Q20: 3.952609095 | R20: 5.724773046 | S20: 0.994522263 | T20: 1.632260201
C21: Urban 3-Lane | D21: Hoerl | E21: Power | P21: 17000 | Q21: 4.136206679 | R21: 5.990687149 | S21: 1.015397335 | T21: 1.666521425
C22: Urban 4-Lane Divided | D22: Hoerl | E22: Hoerl | P22: 18000 | Q22: 4.317110863 | R22: 6.252700258 | S22: 1.034952829 | T22: 1.698616889
C23: Urban 4-Lane Undivided | D23: Hoerl | E23: Power | P23: 19000 | Q23: 4.495507747 | R23: 6.511081911 | S23: 1.05332119 | T23: 1.728763971
C24: Urban 5-Lane | D24: Hoerl | E24: Hoerl | P24: 20000 | Q24: 4.671561495 | R24: 6.766069877 | S24: 1.070616741 | T24: 1.757150304
C25: Urban 6-Lane | D25: Hoerl | E25: Power | P25: 21000 | Q25: 4.845417887 | R25: 7.017875295 | S25: 1.086938803 | T25: 1.783938896
P26: 22000 | Q26: 5.017207152 | R26: 7.266686784 | S26: 1.102374165 | T26: 1.809272194
P27: 23000 | Q27: 5.187046254 | R27: 7.512673749 | S27: 1.11699908 | T27: 1.833275342
C29: Rural 2-Lane | D29: GraphAll1 | E29: GraphABC1 | P29: AADT | Q29: SPF | R29: 80th | S29: SPF | T29: 80th
C30: Rural 3-Lane | D30: GraphAll2 | E30: GraphABC2 | P30: 0 | Q30: 0 | R30: 0 | S30: 0 | T30: 0
C31: Rural 4-Lane Divided | D31: GraphAll3 | E31: GraphABC3 | P31: 1000 | Q31: 0.1595045064 | R31: 0.2567125997 | S31: 0.06734292288 | T31: 0.1011799265
C32: Rural 4-Lane Undivided | D32: GraphAll4 | E32: GraphABC4 | P32: 2000 | Q32: 0.4733841282 | R32: 0.761882363 | S32: 0.2161163237 | T32: 0.3247057419
C33: Rural 5-Lane | D33: GraphAll5 | E33: GraphABC5 | P33: 3000 | Q33: 0.8944865333 | R33: 1.439620539 | S33: 0.4274743032 | T33: 0.6422622705
C34: Urban 2-Lane | D34: GraphAll6 | E34: GraphABC6 | P34: 4000 | Q34: 1.404929164 | R34: 2.261146261 | S34: 0.6935586303 | T34: 1.042042849
C35: Urban 3-Lane | D35: GraphAll7 | E35: GraphABC7 | P35: 5000 | Q35: 1.99409743 | R35: 3.209376004 | S35: 1.009499606 | T35: 1.516730958
C36: Urban 4-Lane Divided | D36: GraphAll8 | E36: GraphABC8 | P36: 6000 | Q36: 2.654694449 | R36: 4.272565893 | S36: 1.371846824 | T36: 2.061142505
C37: Urban 4-Lane Undivided | D37: GraphAll9 | E37: GraphABC9 | P37: 7000 | Q37: 3.381285023 | R37: 5.441968308 | S37: 1.777968931 | T37: 2.671323994
C38: Urban 5-Lane | D38: GraphAll10 | E38: GraphABC10 | P38: 8000 | Q38: 4.169607384 | R38: 6.710724203 | S38: 2.225762337 | T38: 3.344114867
C39: Urban 6-Lane | D39: GraphAll11 | E39: GraphABC11 | P39: 9000 | Q39: 5.016197827 | R39: 8.073258959 | S39: 2.713488991 | T39: 4.076903775
P40: 10000 | Q40: 5.918165541 | R40: 9.524919994 | S40: 3.239677376 | T40: 4.867479827
C42: Rural 2-Lane | D42: 5000 | E42: 10000
C43: Rural 3-Lane | D43: 3000 | E43: 6000
C44: Rural 4-Lane Divided | D44: 10000 | E44: 20000
C45: Rural 4-Lane Undivided | D45: 5000 | E45: 10000 | P45: AADT | Q45: SPF | R45: 80th | S45: SPF | T45: 80th
C46: Rural 5-Lane | D46: 10000 | E46: 20000 | P46: 0 | Q46: 0 | R46: 0 | S46: 0 | T46: 0
C47: Urban 2-Lane | D47: 10000 | E47: 20000 | P47: 1000 | Q47: 0.3480282801 | R47: 0.4974697731 | S47: 0.05901580586 | T47: 0.09162791566
C48: Urban 3-Lane | D48: 5000 | E48: 10000 | P48: 2000 | Q48: 0.5905408366 | R48: 0.8441159318 | S48: 0.1330613744 | T48: 0.2065910347
C49: Urban 4-Lane Divided | D49: 20000 | E49: 40000 | P49: 3000 | Q49: 0.811903925 | R49: 1.160531153 | S49: 0.2120445068 | T49: 0.3292202132
C50: Urban 4-Lane Undivided | D50: 15000 | E50: 30000 | P50: 4000 | Q50: 1.024109009 | R50: 1.463855972 | S50: 0.2931560008 | T50: 0.4551538851
C51: Urban 5-Lane | D51: 15000 | E51: 30000 | P51: 5000 | Q51: 1.23221761 | R51: 1.7613253 | S51: 0.374938997 | T51: 0.582130131
C52: Urban 6-Lane | D52: 20000 | E52: 40000 | P52: 6000 | Q52: 1.43900315 | R52: 2.056903451 | S52: 0.4564959509 | T52: 0.7087554238
P53: 7000 | Q53: 1.646219521 | R53: 2.353097431 | S53: 0.537223877 | T53: 0.8340935682
P54: 8000 | Q54: 1.855086403 | R54: 2.651650641 | S54: 0.6166969665 | T54: 0.9574834539
P55: 9000 | Q55: 2.066513062 | R55: 2.953862783 | S55: 0.6946054572 | T55: 1.078444144
P56: 10000 | Q56: 2.281215002 | R56: 3.260756595 | S56: 0.7707202272 | T56: 1.196619905
P57: 11000 | Q57: 2.499780334 | R57: 3.573172718 | S57: 0.8448706654 | T57: 1.311745844
P58: 12000 | Q58: 2.722710113 | R58: 3.891827358 | S58: 0.916930024 | T58: 1.423625174
P59: 13000 | Q59: 2.950444166 | R59: 4.217349203 | S59: 0.9868052776 | T59: 1.532113464
P60: 14000 | Q60: 3.183378357 | R60: 4.550304096 | S60: 1.054429847 | T60: 1.637107342
P61: 15000 | Q61: 3.421876515 | R61: 4.891212096 | S61: 1.119758218 | T61: 1.738536144
P62: 16000 | Q62: 3.666278957 | R62: 5.240559647 | S62: 1.182761872 | T62: 1.836355591
P63: 17000 | Q63: 3.91690871 | R63: 5.598808483 | S63: 1.243426133 | T63: 1.930542897
P64: 18000 | Q64: 4.174076176 | R64: 5.966402292 | S64: 1.301747688 | T64: 2.02109292
P65: 19000 | Q65: 4.438082697 | R65: 6.343771809 | S65: 1.357732612 | T65: 2.10801509
P66: 20000 | Q66: 4.709223331 | R66: 6.73133879 | S66: 1.411394761 | T66: 2.19133092
P67: 21000 | Q67: 4.98778905 | R67: 7.129519147 | S67: 1.462754464 | T67: 2.271071973
P68: 22000 | Q68: 5.274068513 | R68: 7.538725489 | S68: 1.511837438 | T68: 2.347278177
P69: 23000 | Q69: 5.568349514 | R69: 7.959369188 | S69: 1.558673883 | T69: 2.419996424
P70: 24000 | Q70: 5.870920188 | R70: 8.391862101 | S70: 1.60329773 | T70: 2.48927939
P71: 25000 | Q71: 6.182070022 | R71: 8.836618018 | S71: 1.645745993 | T71: 2.555184544
P72: 26000 | Q72: 6.502090719 | R72: 9.294053902 | S72: 1.686058224 | T72: 2.617773298
P73: 27000 | Q73: 6.831276954 | R73: 9.764590955 | S73: 1.724276054 | T73: 2.677110285
P74: 28000 | Q74: 7.169927023 | R74: 10.24865556 | S74: 1.760442785 | T74: 2.733262737
P75: 29000 | Q75: 7.518343433 | R75: 10.74668013 | S75: 1.794603053 | T75: 2.786299954
P76: 30000 | Q76: 7.876833424 | R76: 11.25910381 | S76: 1.826802524 | T76: 2.83629284
P77: 31000 | Q77: 8.24570945 | R77: 11.78637324 | S77: 1.857087642 | T77: 2.883313501
P78: 32000 | Q78: 8.625289613 | R78: 12.32894311 | S78: 1.885505401 | T78: 2.927434902
P79: 33000 | Q79: 9.015898079 | R79: 12.88727678 | S79: 1.912103153 | T79: 2.96873056
P80: 34000 | Q80: 9.417865459 | R80: 13.46184681 | S80: 1.936928437 | T80: 3.007274287
P81: 35000 | Q81: 9.831529174 | R81: 14.05313553 | S81: 1.960028834 | T81: 3.043139953
P82: 36000 | Q82: 10.2572338 | R82: 14.66163546 | S82: 1.981451835 | T82: 3.076401295
P83: 37000 | Q83: 10.69533142 | R83: 15.28784986 | S83: 2.001244729 | T83: 3.107131735
P84: 38000 | Q84: 11.14618191 | R84: 15.93229316 | S84: 2.019454509 | T84: 3.135404232
P85: 39000 | Q85: 11.61015332 | R85: 16.59549143 | S85: 2.036127784 | T85: 3.161291151
P86: 40000 | Q86: 12.08762214 | R86: 17.27798281 | S86: 2.051310703 | T86: 3.184864146
P87: 41000 | Q87: 12.5789736 | R87: 17.98031798 | S87: 2.065048898 | T87: 3.206194061
P88: 42000 | Q88: 13.08460202 | R88: 18.70306056 | S88: 2.07738742 | T88: 3.225350845
P89: 43000 | Q89: 13.6049111 | R89: 19.44678759 | S89: 2.088370698 | T89: 3.242403478
P90: 44000 | Q90: 14.1403142 | R90: 20.21208993 | S90: 2.098042496 | T90: 3.257419908
P91: 45000 | Q91: 14.69123467 | R91: 20.99957272 | S91: 2.10644588 | T91: 3.270466998
P92: 46000 | Q92: 15.25810614 | R92: 21.80985579 | S92: 2.113623183 | T92: 3.281610476
P95: AADT | Q95: SPF | R95: 80th | S95: SPF | T95: 80th
P96: 0 | Q96: 0 | R96: 0 | S96: 0 | T96: 0
P97: 1000 | Q97: 0.2919095178 | R97: 0.3316582957 | S97: 0.09987269545 | T97: 0.1096077838
P98: 2000 | Q98: 0.5138593401 | R98: 0.5838306138 | S98: 0.1648829839 | T98: 0.1809549484
P99: 3000 | Q99: 0.7231348787 | R99: 0.8216028146 | S99: 0.2255117807 | T99: 0.2474935355
P100: 4000 | Q100: 0.9285174771 | R100: 1.054951981 | S100: 0.2851620481 | T100: 0.3129582112
P101: 5000 | Q101: 1.133836242 | R101: 1.288228622 | S101: 0.3451018784 | T101: 0.3787406748
P102: 6000 | Q102: 1.341266155 | R102: 1.52390388 | S102: 0.40594117 | T102: 0.4455102747
P103: 7000 | Q103: 1.552241776 | R103: 1.763607661 | S103: 0.4680131044 | T103: 0.5136326692
P104: 8000 | Q104: 1.767809925 | R104: 2.008529326 | S104: 0.5315134748 | T104: 0.5833227365
P105: 9000 | Q105: 1.988793434 | R105: 2.259603749 | S105: 0.5965622639 | T105: 0.6547121546
P106: 10000 | Q106: 2.215876995 | R106: 2.517608857 | S106: 0.6632344526 | T106: 0.7278832131
P107: 11000 | Q107: 2.44965628 | R107: 2.783221434 | S107: 0.731576851 | T107: 0.802887285
P108: 12000 | Q108: 2.690667966 | R108: 3.057051235 | S108: 0.8016179176 | T108: 0.8797556027
P109: 13000 | Q109: 2.93940909 | R109: 3.339662977 | S109: 0.873373788 | T109: 0.9585058746
P110: 14000 | Q110: 3.196350075 | R110: 3.63159114 | S110: 0.9468521293 | T110: 1.039146515
P111: 15000 | Q111: 3.461943834 | R111: 3.933350308 | S111: 1.022054688 | T111: 1.121679441
P112: 16000 | Q112: 3.736632336 | R112: 4.245442634 | S112: 1.098979018 | T112: 1.206101969
P113: 17000 | Q113: 4.020851484 | R113: 4.568363377 | S113: 1.177619686 | T113: 1.292408133
P114: 18000 | Q114: 4.315034834 | R114: 4.902605128 | S114: 1.257969116 | T114: 1.380589622
P115: 19000 | Q115: 4.619616506 | R115: 5.248661121 | S115: 1.340018208 | T115: 1.470636447
P116: 20000 | Q116: 4.935033509 | R116: 5.607027873 | S116: 1.423756777 | T116: 1.56253743
P117: 21000 | Q117: 5.26172765 | R117: 5.97820735 | S117: 1.509173886 | T117: 1.65628057
P118: 22000 | Q118: 5.600147129 | R118: 6.362708781 | S118: 1.596258088 | T118: 1.751853303
P119: 23000 | Q119: 5.950747895 | R119: 6.761050205 | S119: 1.684997613 | T119: 1.84924271
P120: 24000 | Q120: 6.313994842 | R120: 7.173759815 | S120: 1.775380498 | T120: 1.948435665
P121: 25000 | Q121: 6.690362855 | R121: 7.601377163 | S121: 1.867394699 | T121: 2.049418947
P122: 26000 | Q122: 7.080337766 | R122: 8.044454233 | S122: 1.961028164 | T122: 2.152179332
P123: 27000 | Q123: 7.484417226 | R123: 8.503556445 | S123: 2.056268897 | T123: 2.256703653
P126: AADT | Q126: SPF | R126: 80th | S126: SPF | T126: 80th
P127: 0 | Q127: 0 | R127: 0 | S127: 0 | T127: 0
P128: 1000 | Q128: 0.3221701665 | R128: 0.4369269009 | S128: 0.006101985314 | T128: 0.007458463177
P129: 2000 | Q129: 0.4332959953 | R129: 0.5876356537 | S129: 0.02029148059 | T129: 0.02480229843
P130: 3000 | Q130: 0.5384030099 | R130: 0.7301816959 | S130: 0.04098373305 | T130: 0.05009446076
P131: 4000 | Q131: 0.6476730218 | R131: 0.8783735915 | S131: 0.06748926267 | T131: 0.08249219797
P132: 5000 | Q132: 0.7654064354 | R132: 1.038043545 | S132: 0.09937228086 | T132: 0.1214628452
P133: 6000 | Q133: 0.8944383051 | R133: 1.213036455 | S133: 0.1363196909 | T133: 0.166623704
P134: 7000 | Q134: 1.037151963 | R134: 1.406584594 | S134: 0.1780901192 | T134: 0.2176797433
P135: 8000 | Q135: 1.195832898 | R135: 1.621787541 | S135: 0.2244888782 | T135: 0.274392996
P136: 9000 | Q136: 1.372829969 | R136: 1.861830815 | S136: 0.2753538887 | T136: 0.3365653528
P137: 10000 | Q137: 1.570646958 | R137: 2.130110045 | S137: 0.3305470196 | T137: 0.4040279757
P138: 11000 | Q138: 1.792005918 | R138: 2.430316875 | S138: 0.3899484019 | T138: 0.4766343488
P139: 12000 | Q139: 2.039898867 | R139: 2.766509078 | S139: 0.4534525076 | T139: 0.5542554852
P140: 13000 | Q140: 2.317635387 | R140: 3.143175106 | S140: 0.5209653396 | T140: 0.636776492
P141: 14000 | Q141: 2.628890028 | R141: 3.56529838 | S141: 0.5924023521 | T141: 0.7240940288
P142: 15000 | Q142: 2.977751802 | R142: 4.038424417 | S142: 0.667686873 | T142: 0.8161143792
P143: 16000 | Q143: 3.368777292 | R143: 4.568732848 | S143: 0.7467488801 | T143: 0.9127519551
P144: 17000 | Q144: 3.807048545 | R144: 5.163115941 | S144: 0.829524034 | T144: 1.013928114
P145: 18000 | Q145: 4.29823676 | R145: 5.829264973 | S145: 0.9159529017 | T145: 1.119570212
P146: 19000 | Q146: 4.848672731 | R146: 6.57576576 | S146: 1.005980324 | T146: 1.229610827
P147: 20000 | Q147: 5.465425 | R147: 7.412204654 | S147: 1.099554897 | T147: 1.343987127
P148: 21000 | Q148: 6.156386753 | R148: 8.349286385 | S148: 1.196628532 | T148: 1.462640335
P149: 22000 | Q149: 6.930372527 | R149: 9.398965221 | S149: 1.297156099 | T149: 1.585515288
P150: 23000 | Q150: 7.797225936 | R150: 10.57459106 | S150: 1.401095108 | T150: 1.71256005
P151: 24000 | Q151: 8.767939725 | R151: 11.89107226 | S151: 1.508405452 | T151: 1.843725597
P152: 25000 | Q152: 9.854789582 | R152: 13.3650571 | S152: 1.61904917 | T152: 1.978965532
P153: 26000 | Q153: 11.07148334 | R153: 15.01513612 | S153: 1.732990257 | T153: 2.118235845
P156: AADT | Q156: SPF | R156: 80th | S156: SPF | T156: 80th
P157: 0 | Q157: 0 | R157: 0 | S157: 0 | T157: 0
P158: 1000 | Q158: 1.558229254 | R158: 2.228577285 | S158: 0.5729562583 | T158: 0.860294957
P159: 2000 | Q159: 2.353302064 | R159: 3.365689299 | S159: 0.7317642372 | T159: 1.098745452
P160: 3000 | Q160: 3.043699925 | R160: 4.353095347 | S160: 0.855018471 | T160: 1.283811928
P161: 4000 | Q161: 3.694561448 | R161: 5.283956581 | S161: 0.9632911759 | T161: 1.446383609
P162: 5000 | Q162: 4.331326454 | R162: 6.194656996 | S162: 1.063824453 | T162: 1.597334524
P163: 6000 | Q163: 4.967363571 | R163: 7.104316385 | S163: 1.160108439 | T163: 1.74190512
P164: 7000 | Q164: 5.610977748 | R164: 8.024812474 | S164: 1.254131006 | T164: 1.88308019
P165: 8000 | Q165: 6.267955503 | R165: 8.964421135 | S165: 1.347154353 | T165: 2.022754931
P166: 9000 | Q166: 6.942691982 | R166: 9.929428298 | S166: 1.44004571 | T166: 2.162231487
P167: 10000 | Q167: 7.638759283 | R167: 10.92494277 | S167: 1.533438749 | T167: 2.30246132
P168: 11000 | Q168: 8.359221117 | R168: 11.95534627 | S168: 1.627820413 | T168: 2.444175576
P169: 12000 | Q169: 9.106819958 | R169: 13.02456108 | S169: 1.72358116 | T169: 2.587960528
P170: 13000 | Q170: 9.884094954 | R170: 14.13621869 | S170: 1.821045761 | T170: 2.734303819
P171: 14000 | Q171: 10.6934599 | R171: 15.29377129 | S171: 1.920493074 | T171: 2.883624156
P172: 15000 | Q172: 11.53725699 | R172: 16.5005687 | S172: 2.022169244 | T172: 3.036291127
P173: 16000 | Q173: 12.41779538 | R173: 17.75991347 | S173: 2.126296807 | T173: 3.192638869
P174: 17000 | Q174: 13.33737978 | R174: 19.07510178 | S174: 2.233081145 | T174: 3.352975764
P175: 18000 | Q175: 14.29833239 | R175: 20.44945485 | S175: 2.342715191 | T175: 3.517591501
P176: 19000 | Q176: 15.30301033 | R176: 21.88634383 | S176: 2.455382925 | T176: 3.686762327
P177: 20000 | Q177: 16.35381993 | R177: 23.38921023 | S177: 2.571262034 | T177: 3.860755038
P178: 21000 | Q178: 17.45322868 | R178: 24.96158309 | S178: 2.69052597 | T178: 4.039830075
P179: 22000 | Q179: 18.60377576 | R179: 26.6070939 | S179: 2.813345577 | T179: 4.224243959
P180: 23000 | Q180: 19.80808127 | R180: 28.32948994 | S180: 2.939890396 | T180: 4.414251256
P181: 24000 | Q181: 21.06885478 | R181: 30.13264643 | S181: 3.07032973 | T181: 4.610106173
P182: 25000 | Q182: 22.38890324 | R182: 32.02057789 | S182: 3.204833527 | T182: 4.812063891
P183: 26000 | Q183: 23.77113858 | R183: 33.99744893 | S183: 3.343573131 | T183: 5.020381682
P184: 27000 | Q184: 25.218585 | R184: 36.06758476 | S184: 3.486721923 | T184: 5.235319875
P185: 28000 | Q185: 26.73438612 | R185: 38.23548138 | S185: 3.634455874 | T185: 5.457142696
P186: 29000 | Q186: 28.3218121 | R186: 40.50581579 | S186: 3.786954046 | T186: 5.686119004
P187: 30000 | Q187: 29.98426681 | R187: 42.88345617 | S187: 3.944399034 | T187: 5.922522965
P188: 31000 | Q188: 31.72529492 | R188: 45.37347212 | S188: 4.10697737 | T188: 6.166634659
P189: 32000 | Q189: 33.54858927 | R189: 47.98114514 | S189: 4.274879898 | T189: 6.418740637
P190: 33000 | Q190: 35.45799827 | R190: 50.71197921 | S190: 4.448302124 | T190: 6.679134453
P191: 34000 | Q191: 37.45753355 | R191: 53.57171174 | S191: 4.627444548 | T191: 6.948117158
P192: 35000 | Q192: 39.55137773 | R192: 56.56632474 | S192: 4.812512983 | T192: 7.225997779
P193: 36000 | Q193: 41.74389256 | R193: 59.70205637 | S193: 5.003718857 | T193: 7.513093778
P194: 37000 | Q194: 44.03962723 | R194: 62.98541286 | S194: 5.201279518 | T194: 7.809731502
P195: 38000 | Q195: 46.44332697 | R195: 66.42318083 | S195: 5.405418524 | T195: 8.116246625
P196: 39000 | Q196: 48.95994197 | R196: 70.02244008 | S196: 5.616365936 | T196: 8.432984582
P197: 40000 | Q197: 51.59463671 | R197: 73.79057678 | S197: 5.834358606 | T197: 8.760301008
P198: 41000 | Q198: 54.35279947 | R198: 77.73529728 | S198: 6.059640466 | T198: 9.098562167
P199: 42000 | Q199: 57.2400524 | R199: 81.86464235 | S199: 6.292462822 | T199: 9.448145395
P200: 43000 | Q200: 60.26226183 | R200: 86.18700202 | S200: 6.533084641 | T200: 9.809439534
P201: 44000 | Q201: 63.4255491 | R201: 90.71113102 | S201: 6.781772856 | T201: 10.18284538
P202: 45000 | Q202: 66.73630176 | R202: 95.44616482 | S202: 7.038802659 | T202: 10.56877614
P203: 46000 | Q203: 70.20118528 | R203: 100.4016363 | S203: 7.304457813 | T203: 10.96765788
P204: 47000 | Q204: 73.82715517 | R204: 105.5874934 | S204: 7.579030959 | T204: 11.37993
P205: 48000 | Q205: 77.62146966 | R205: 111.0141166 | S205: 7.86282394 | T205: 11.80604573
P206: 49000 | Q206: 81.5917029 | R206: 116.6923386 | S206: 8.156148121 | T206: 12.24647256
P207: 50000 | Q207: 85.74575864 | R207: 122.6334633 | S207: 8.459324728 | T207: 12.70169284
P208: 51000 | Q208: 90.09188459 | R208: 128.8492865 | S208: 8.772685183 | T208: 13.17220419
P209: 52000 | Q209: 94.63868731 | R209: 135.3521173 | S209: 9.096571463 | T209: 13.65852008
... 275 more rows

Sheet State Percentages (hidden)
A1: LOW AADT | D1: Rural 2-Lane | E1: Rural 3-Lane | F1: Rural 4-Lane Divided | G1: Rural 4-Lane Undivided | H1: Rural 5-Lane | I1: Urban 2-lane | J1: Urban 3-Lane | K1: Urban 4-Lane Divided | L1: Urban 4-Lane Undivided | M1: Urban 5-Lane | N1: Urban 6-lane
C2: Fatal | D2: 0.01994405305 | E2: 0 | F2: 0.01101694915 | G2: 0.03636363636 | H2: 0.009090909091 | I2: 0.009676361251 | J2: 0 | K2: 0.003240740741 | L2: 0.002565114444 | M2: 0.005203405866 | N2: 0
C3: Severe | D3: 0.0101533361 | E3: 0 | F3: 0.009322033898 | G3: 0.009090909091 | H3: 0.009090909091 | I3: 0.008965668052 | J3: 0 | K3: 0.008179012346 | L3: 0.008089976322 | M3: 0.008514664144 | N3: 0.01072386059
C4: Moderate | D4: 0.104848736 | E4: 0.05882352941 | F4: 0.0906779661 | G4: 0.08181818182 | H4: 0.06363636364 | I4: 0.06439973759 | J4: 0.02816901408 | K4: 0.06527777778 | L4: 0.05623520126 | M4: 0.08893093661 | N4: 0.0509383378
C5: Complaint | D5: 0.2803046001 | E5: 0.2941176471 | F5: 0.2711864407 | G5: 0.2454545455 | H5: 0.2636363636 | I5: 0.2679860048 | J5: 0.2957746479 | K5: 0.2441358025 | L5: 0.2182320442 | M5: 0.2455061495 | N5: 0.1948168007
C6: None | D6: 0.5847492748 | E6: 0.6470588235 | F6: 0.6177966102 | G6: 0.6272727273 | H6: 0.6545454545 | I6: 0.6489722283 | J6: 0.676056338 | K6: 0.6791666667 | L6: 0.7148776638 | M6: 0.6518448439 | N6: 0.7435210009
C7: Run off rd | D7: 0.5633029424 | E7: 0.05882352941 | F7: 0.3152542373 | G7: 0.3090909091 | H7: 0.2545454545 | I7: 0.2811064946 | J7: 0.0985915493 | K7: 0.1091049383 | L7: 0.03887134964 | M7: 0.07190160833 | N7: 0.03753351206
C8: Overturn on rd | D8: 0.006371736428 | E8: 0 | F8: 0.007627118644 | G8: 0.009090909091 | H8: 0 | I8: 0.002405423136 | J8: 0 | K8: 0.00262345679 | L8: 0.0001973164957 | M8: 0.001419110691 | N8: 0
C9: Coll wt ped | D9: 0.004610443431 | E9: 0 | F9: 0.005084745763 | G9: 0.009090909091 | H9: 0.009090909091 | I9: 0.007598950361 | J9: 0.02816901408 | K9: 0.003703703704 | L9: 0.008484609313 | M9: 0.006622516556 | N9: 0.01519213584
C10: Coll wt veh | D10: 0.2461665976 | E10: 0.8235294118 | F10: 0.4703389831 | G10: 0.4727272727 | H10: 0.6090909091 | I10: 0.6190684452 | J10: 0.8450704225 | K10: 0.799537037 | L10: 0.8780584057 | M10: 0.871333964 | N10: 0.8132260947
C11: Coll wt pk car | D11: 0.003211769581 | E11: 0.05882352941 | F11: 0.002542372881 | G11: 0.009090909091 | H11: 0.009090909091 | I11: 0.006997594577 | J11: 0 | K11: 0.006018518519 | L11: 0.01322020521 | M11: 0.002365184484 | N11: 0.06255585344
C12: Coll wt train | D12: 0.0006216328222 | E12: 0 | F12: 0.0008474576271 | G12: 0 | H12: 0 | I12: 0.0003280122458 | J12: 0 | K12: 0 | L12: 0 | M12: 0 | N12: 0
C13: Coll wt bicycle | D13: 0.0006216328222 | E13: 0 | F13: 0.0008474576271 | G13: 0 | H13: 0 | I13: 0.001366717691 | J13: 0 | K13: 0.001697530864 | L13: 0.002565114444 | M13: 0.001892147588 | N13: 0.001787310098
C14: Coll wt animal | D14: 0.1029320348 | E14: 0.05882352941 | F14: 0.1110169492 | G14: 0.06363636364 | H14: 0.06363636364 | I14: 0.02082877761 | J14: 0 | K14: 0.01959876543 | L14: 0.003749013418 | M14: 0.01135288553 | N14: 0.0008936550492
C15: Coll wt fix obj | D15: 0.0307708247 | E15: 0 | F15: 0.0186440678 | G15: 0.01818181818 | H15: 0 | I15: 0.03028646403 | J15: 0 | K15: 0.02361111111 | L15: 0.02308602999 | M15: 0.01087984863 | N15: 0.03038427167
C16: Coll wt other obj | D16: 0.01802735184 | E16: 0 | F16: 0.02118644068 | G16: 0.08181818182 | H16: 0.04545454545 | I16: 0.01279247759 | J16: 0 | K16: 0.01790123457 | L16: 0.02170481452 | M16: 0.008041627247 | N16: 0.03127792672
C17: Non Col on Rd | D17: 0.02336303357 | E17: 0 | F17: 0.04661016949 | G17: 0.02727272727 | H17: 0.009090909091 | I17: 0.0172206429 | J17: 0.02816901408 | K17: 0.0162037037 | L17: 0.01006314128 | M17: 0.01419110691 | N17: 0.007149240393
C18: Non Coll | D18: 0.6733319519 | E18: 0.1764705882 | F18: 0.4703389831 | G18: 0.3272727273 | H18: 0.2363636364 | I18: 0.3084955172 | J18: 0.07042253521 | K18: 0.1606481481 | L18: 0.07379636938 | M18: 0.08940397351 | N18: 0.07059874888
C19: Rear End | D19: 0.1131889764 | E19: 0.2941176471 | F19: 0.2296610169 | G19: 0.2181818182 | H19: 0.3181818182 | I19: 0.3636015745 | J19: 0.323943662 | K19: 0.4402777778 | L19: 0.4240331492 | M19: 0.3831598865 | N19: 0.3333333333
C20: Head On | D20: 0.01621425611 | E20: 0 | F20: 0.01101694915 | G20: 0.009090909091 | H20: 0.009090909091 | I20: 0.02088344632 | J20: 0.01408450704 | K20: 0.007407407407 | L20: 0.01400947119 | M20: 0.02223273415 | N20: 0.01697944593
C21: Rt Angle | D21: 0.03361997513 | E21: 0.2352941176 | F21: 0.06101694915 | G21: 0.05454545455 | H21: 0.06363636364 | I21: 0.08249507982 | J21: 0.2253521127 | K21: 0.09012345679 | L21: 0.114640884 | M21: 0.1480605487 | N21: 0.07059874888
C22: Left Turn-e | D22: 0.026212184 | E22: 0 | F22: 0.01694915254 | G22: 0.009090909091 | H22: 0.03636363636 | I22: 0.02214082659 | J22: 0.04225352113 | K22: 0.01805555556 | L22: 0.02545382794 | M22: 0.02317880795 | N22: 0.03932082216
C23: Left Turn-f | D23: 0.01362411935 | E23: 0 | F23: 0.01610169492 | G23: 0.02727272727 | H23: 0.02727272727 | I23: 0.0315438443 | J23: 0.08450704225 | K23: 0.02654320988 | L23: 0.03018942384 | M23: 0.05014191107 | N23: 0.01608579088
C24: Left Turn-g | D24: 0.006475341898 | E24: 0 | F24: 0.0186440678 | G24: 0.04545454545 | H24: 0.03636363636 | I24: 0.01847802318 | J24: 0.04225352113 | K24: 0.02484567901 | L24: 0.02190213102 | M24: 0.02696310312 | N24: 0.02859696157
C25: Right Turn-h | D25: 0.00269374223 | E25: 0.05882352941 | F25: 0.006779661017 | G25: 0.009090909091 | H25: 0.05454545455 | I25: 0.009184342882 | J25: 0.01408450704 | K25: 0.01682098765 | L25: 0.01617995264 | M25: 0.02034058657 | N25: 0.01161751564
C26: Right Turn-i | D26: 0.002279320348 | E26: 0 | F26: 0.001694915254 | G26: 0.009090909091 | H26: 0.009090909091 | I26: 0.004100153072 | J26: 0.01408450704 | K26: 0.00200617284 | L26: 0.0045382794 | M26: 0.004730368969 | N26: 0.0008936550492
C27: S Swipe(sd) | D27: 0.02491711562 | E27: 0.05882352941 | F27: 0.0906779661 | G27: 0.1818181818 | H27: 0.1090909091 | I27: 0.04482834026 | J27: 0.07042253521 | K27: 0.1418209877 | L27: 0.1837016575 | M27: 0.1475875118 | N27: 0.2868632708
C28: S Swipe(od) | D28: 0.03766058848 | E28: 0 | F28: 0.009322033898 | G28: 0.03636363636 | H28: 0.009090909091 | I28: 0.03301989941 | J28: 0 | K28: 0.006944444444 | L28: 0.01183898974 | M28: 0.01419110691 | N28: 0.003574620197
C29: Other | D29: 0.04936800663 | E29: 0.1764705882 | F29: 0.06694915254 | G29: 0.07272727273 | H29: 0.09090909091 | I29: 0.0609009403 | J29: 0.0985915493 | K29: 0.06435185185 | L29: 0.07892659826 | M29: 0.07000946074 | N29: 0.1188561215
C30: Roadway dept. | D30: 0.7177786987 | E30: 0.1764705882 | F30: 0.5245762712 | G30: 0.4181818182 | H30: 0.2363636364 | I30: 0.347802318 | J30: 0.0985915493 | K30: 0.1924382716 | L30: 0.09313338595 | M30: 0.1121097446 | N30: 0.109919571
C31: Lane Dept. | D31: 0.792840862 | E31: 0.1764705882 | F31: 0.5677966102 | G31: 0.4818181818 | H31: 0.3454545455 | I31: 0.4126940739 | J31: 0.1408450704 | K31: 0.2137345679 | L31: 0.1095106551 | M31: 0.1452223273 | N31: 0.1188561215
C32: Night (Dark-B) | D32: 0.375984252 | E32: 0.05882352941 | F32: 0.3322033898 | G32: 0.2181818182 | H32: 0.2090909091 | I32: 0.1588125957 | J32: 0.04225352113 | K32: 0.09567901235 | L32: 0.02131018153 | M32: 0.07332071902 | N32: 0.01340482574
C33: Alcohol | D33: 0.1135515955 | E33: 0 | F33: 0.06610169492 | G33: 0.08181818182 | H33: 0.07272727273 | I33: 0.07533347912 | J33: 0.01408450704 | K33: 0.04675925926 | L33: 0.03374112076 | M33: 0.03642384106 | N33: 0.03395889187
C34: Wet surface | D34: 0.1822938251 | E34: 0.1176470588 | F34: 0.1661016949 | G34: 0.2 | H34: 0.1636363636 | I34: 0.1731357971 | J34: 0.1690140845 | K34: 0.1515432099 | L34: 0.1292423047 | M34: 0.1367076632 | N34: 0.1313672922
A36: MEDIUM AADT | D36: Rural 2-Lane | E36: Rural 3-Lane | F36: Rural 4-Lane Divided | G36: Rural 4-Lane Undivided | H36: Rural 5-Lane | I36: Urban 2-lane | J36: Urban 3-Lane | K36: Urban 4-Lane Divided | L36: Urban 4-Lane Undivided | M36: Urban 5-Lane | N36: Urban 6-lane
C37: Fatal | D37: 0.01785410644 | E37: 0 | F37: 0.01524879615 | G37: 0.01063829787 | H37: 0.005235602094 | I37: 0.004758572428 | J37: 0 | K37: 0.002322186837 | L37: 0.002169421488 | M37: 0.002319868996 | N37: 0.002427921093
C38: Severe | D38: 0.01054242476 | E38: 0 | F38: 0.005617977528 | G38: 0.02127659574 | H38: 0.01047120419 | I38: 0.00566829951 | J38: 0.002398081535 | K38: 0.005506900212 | L38: 0.005371900826 | M38: 0.00586790393 | N38: 0.00971168437
C39: Moderate | D39: 0.08859037579 | E39: 0.1578947368 | F39: 0.08105939005 | G39: 0.06382978723 | H39: 0.07853403141 | I39: 0.04912526242 | J39: 0.03357314149 | K39: 0.04777070064 | L39: 0.0416322314 | M39: 0.04885371179 | N39: 0.0440060698
C40: Complaint | D40: 0.2875361333 | E40: 0.1578947368 | F40: 0.2568218299 | G40: 0.219858156 | H40: 0.2617801047 | I40: 0.2433869839 | J40: 0.2086330935 | K40: 0.22757431 | L40: 0.2171487603 | M40: 0.2243449782 | N40: 0.2270106222
C41: None | D41: 0.5954769597 | E41: 0.6842105263 | F41: 0.6412520064 | G41: 0.6843971631 | H41: 0.6439790576 | I41: 0.6970608817 | J41: 0.7553956835 | K41: 0.7168259023 | L41: 0.733677686 | M41: 0.7186135371 | N41: 0.7168437026
C42: Run off rd | D42: 0.4312191804 | E42: 0.3684210526 | F42: 0.3081861958 | G42: 0.2340425532 | H42: 0.3560209424 | I42: 0.1487753674 | J42: 0.1510791367 | K42: 0.05367569002 | L42: 0.05506198347 | M42: 0.02797489083 | N42: 0.03247344461
C43: Overturn on rd | D43: 0.002890664853 | E43: 0 | F43: 0.002407704655 | G43: 0.007092198582 | H43: 0.005235602094 | I43: 0.001189643107 | J43: 0 | K43: 0.001326963907 | L43: 0.0009297520661 | M43: 0.0005458515284 | N43: 0.0009104704097
C44: Coll wt ped | D44: 0.004931134161 | E44: 0 | F44: 0.00481540931 | G44: 0.003546099291 | H44: 0.01570680628 | I44: 0.005038488453 | J44: 0.00479616307 | K44: 0.003582802548 | L44: 0.004132231405 | M44: 0.005322052402 | N44: 0.007890743551
C45: Coll wt veh | D45: 0.4225471859 | E45: 0.5263157895 | F45: 0.5104333868 | G45: 0.5141843972 | H45: 0.5078534031 | I45: 0.78873338 | J45: 0.7865707434 | K45: 0.8887340764 | L45: 0.9018595041 | M45: 0.935180131 | N45: 0.8837632777
C46: Coll wt pk car | D46: 0.00340078218 | E46: 0 | F46: 0.001605136437 | G46: 0.007092198582 | H46: 0.005235602094 | I46: 0.003918824353 | J46: 0.002398081535 | K46: 0.004047239915 | L46: 0.006095041322 | M46: 0.002729257642 | N46: 0.01851289833
C47: Coll wt train | D47: 0 | E47: 0 | F47: 0.0008025682183 | G47: 0.003546099291 | H47: 0 | I47: 0.0001399580126 | J47: 0 | K47: 0.0003317409766 | L47: 0 | M47: 0.0001364628821 | N47: 0
C48: Coll wt bicycle | D48: 0.000680156436 | E48: 0 | F48: 0.0008025682183 | G48: 0.003546099291 | H48: 0 | I48: 0.001119664101 | J48: 0.00479616307 | K48: 0.001526008493 | L48: 0.001342975207 | M48: 0.001228165939 | N48: 0.002427921093
C49: Coll wt animal | D49: 0.07090630845 | E49: 0.05263157895 | F49: 0.04654895666 | G49: 0.1382978723 | H49: 0.02094240838 | I49: 0.0132960112 | J49: 0 | K49: 0.004909766454 | L49: 0.002066115702 | M49: 0.001910480349 | N49: 0
C50: Coll wt fix obj | D50: 0.02193504506 | E50: 0 | F50: 0.06661316212 | G50: 0.02127659574 | H50: 0.02617801047 | I50: 0.01588523443 | J50: 0.02158273381 | K50: 0.01758227176 | L50: 0.01064049587 | M50: 0.008870087336 | N50: 0.02336874052
C51: Coll wt other obj | D51: 0.0170039109 | E51: 0 | F51: 0.02327447833 | G51: 0.02836879433 | H51: 0.01570680628 | I51: 0.009307207838 | J51: 0.01918465228 | K51: 0.0114118896 | L51: 0.00805785124 | M51: 0.009279475983 | N51: 0.02397572079
C52: Non Col on Rd | D52: 0.0244856317 | E52: 0.05263157895 | F52: 0.03451043339 | G52: 0.0390070922 | H52: 0.04712041885 | I52: 0.01259622113 | J52: 0.009592326139 | K52: 0.01287154989 | L52: 0.009814049587 | M52: 0.006823144105 | N52: 0.006676783005
C53: Non Coll | D53: 0.4636966502 | E53: 0.4210526316 | F53: 0.3940609952 | G53: 0.3758865248 | H53: 0.3664921466 | I53: 0.1566829951 | J53: 0.1630695444 | K53: 0.08200636943 | L53: 0.0597107438 | M53: 0.0427128821 | N53: 0.06464339909
C54: Rear End | D54: 0.2707022615 | E54: 0.2105263158 | F54: 0.3250401284 | G54: 0.2482269504 | H54: 0.3036649215 | I54: 0.5300209937 | J54: 0.4868105516 | K54: 0.554339172 | L54: 0.5056818182 | M54: 0.4800764192 | N54: 0.4931714719
C55: Head On | D55: 0.0244856317 | E55: 0.05263157895 | F55: 0.003210272873 | G55: 0.01773049645 | H55: 0.01570680628 | I55: 0.01756473058 | J55: 0.01918465228 | K55: 0.008028131635 | L55: 0.01053719008 | M55: 0.01255458515 | N55: 0.007890743551
C56: Rt Angle | D56: 0.04965141983 | E56: 0.05263157895 | F56: 0.04093097913 | G56: 0.06028368794 | H56: 0.05759162304 | I56: 0.08761371589 | J56: 0.1055155875 | K56: 0.0766985138 | L56: 0.1050619835 | M56: 0.1344159389 | N56: 0.05766312595
C57: Left Turn-e | D57: 0.02618602279 | E57: 0.05263157895 | F57: 0.00963081862 | G57: 0.02127659574 | H57: 0.01047120419 | I57: 0.02386284115 | J57: 0.02158273381 | K57: 0.009355095541 | L57: 0.02685950413 | M57: 0.02033296943 | N57: 0.01305007587
C58: Left Turn-f | D58: 0.02057473219 | E58: 0.05263157895 | F58: 0.01203852327 | G58: 0.02482269504 | H58: 0.02094240838 | I58: 0.02974107768 | J58: 0.03117505995 | K58: 0.02302282378 | L58: 0.02469008264 | M58: 0.04052947598 | N58: 0.01213960546
C59: Left Turn-g | D59: 0.009692229213 | E59: 0 | F59: 0.01284109149 | G59: 0.01418439716 | H59: 0 | I59: 0.01826452064 | J59: 0.01678657074 | K59: 0.01784766454 | L59: 0.01900826446 | M59: 0.02674672489 | N59: 0.01456752656
C60: Right Turn-h | D60: 0.003570821289 | E60: 0 | F60: 0.008025682183 | G60: 0.007092198582 | H60: 0.01047120419 | I60: 0.01189643107 | J60: 0.002398081535 | K60: 0.01678609342 | L60: 0.01838842975 | M60: 0.0206058952 | N60: 0.02033383915
C61: Right Turn-i | D61: 0.001530351981 | E61: 0 | F61: 0.001605136437 | G61: 0.003546099291 | H61: 0.005235602094 | I61: 0.003918824353 | J61: 0.00479616307 | K61: 0.002521231423 | L61: 0.002582644628 | M61: 0.003411572052 | N61: 0.003034901366
C62: S Swipe(sd) | D62: 0.04608059854 | E62: 0.1578947368 | F62: 0.1276083467 | G62: 0.134751773 | H62: 0.1623036649 | I62: 0.05738278516 | J62: 0.06954436451 | K62: 0.1502786624 | L62: 0.1794421488 | M62: 0.1604803493 | N62: 0.2309559939
C63: S Swipe(od) | D63: 0.0397891515 | E63: 0 | F63: 0.006420545746 | G63: 0 | H63: 0 | I63: 0.02351294612 | J63: 0.02398081535 | K63: 0.007298301486 | L63: 0.00847107438 | M63: 0.00846069869 | N63: 0.005159332322
C64: Other | D64: 0.04335997279 | E64: 0 | F64: 0.05858747994 | G64: 0.09219858156 | H64: 0.04712041885 | I64: 0.03904828551 | J64: 0.05035971223 | K64: 0.05128715499 | L64: 0.03915289256 | M64: 0.0495360262 | N64: 0.07738998483
C65: Roadway dept. | D65: 0.5082468968 | E65: 0.4736842105 | F65: 0.4357945425 | G65: 0.4219858156 | H65: 0.3926701571 | I65: 0.17816655 | J65: 0.1798561151 | K65: 0.09992038217 | L65: 0.06704545455 | M65: 0.05267467249 | N65: 0.0846737481
C66: Lane Dept. | D66: 0.6010882503 | E66: 0.5263157895 | F66: 0.5016051364 | G66: 0.4432624113 | H66: 0.4712041885 | I66: 0.2260321903 | J66: 0.1990407674 | K66: 0.11617569 | L66: 0.09576446281 | M66: 0.06577510917 | N66: 0.09165402124
C67: Night (Dark-B) | D67: 0.3093011393 | E67: 0.2105263158 | F67: 0.2688603531 | G67: 0.2659574468 | H67: 0.2303664921 | I67: 0.1059482155 | J67: 0.05275779376 | K67: 0.05593152866 | L67: 0.01704545455 | M67: 0.02688318777 | N67: 0.01153262519
C68: Alcohol | D68: 0.09573201836 | E68: 0.05263157895 | F68: 0.07784911717 | G68: 0.05673758865 | H68: 0.08376963351 | I68: 0.04933519944 | J68: 0.05035971223 | K68: 0.03476645435 | L68: 0.03026859504 | M68: 0.02456331878 | N68: 0.0339908953
C69: Wet surface | D69: 0.1627274273 | E69: 0.1578947368 | F69: 0.1918138042 | G69: 0.1524822695 | H69: 0.219895288 | I69: 0.155073478 | J69: 0.1846522782 | K69: 0.1493497877 | L69: 0.133677686 | M69: 0.1284115721 | N69: 0.1201820941
A71: HIGH AADT | D71: Rural 2-Lane | E71: Rural 3-Lane | F71: Rural 4-Lane Divided | G71: Rural 4-Lane Undivided | H71: Rural 5-Lane | I71: Urban 2-lane | J71: Urban 3-Lane | K71: Urban 4-Lane Divided | L71: Urban 4-Lane Undivided | M71: Urban 5-Lane | N71: Urban 6-lane
C72: Fatal | D72: 0.01320528211 | E72: 0 | F72: 0.01749781277 | G72: 0.01675977654 | H72: 0.02380952381 | I72: 0.002308326463 | J72: 0.00303030303 | K72: 0.002299180917 | L72: 0.001317523057 | M72: 0.001077715244 | N72: 0.001701765582
C73: Severe | D73: 0.006602641056 | E73: 0 | F73: 0.01049868766 | G73: 0.01117318436 | H73: 0 | I73: 0.003792250618 | J73: 0.006060606061 | K73: 0.004023566604 | L73: 0.00395256917 | M73: 0.002993653455 | N73: 0.004041693257
C74: Moderate | D74: 0.06842737095 | E74: 0 | F74: 0.08048993876 | G74: 0.06145251397 | H74: 0.04761904762 | I74: 0.03676834295 | J74: 0.06666666667 | K74: 0.03649949705 | L74: 0.03886693017 | M74: 0.03975571788 | N74: 0.02722824931
C75: Complaint | D75: 0.268907563 | E75: 0.4444444444 | F75: 0.2764654418 | G75: 0.2402234637 | H75: 0.1507936508 | I75: 0.2222588623 | J75: 0.2363636364 | K75: 0.188676534 | L75: 0.2272727273 | M75: 0.2099149802 | N75: 0.1959157626
C76: None | D76: 0.6428571429 | E76: 0.5555555556 | F76: 0.615048119 | G76: 0.6703910615 | H76: 0.7777777778 | I76: 0.7348722176 | J76: 0.6878787879 | K76: 0.7685012214 | L76: 0.7285902503 | M76: 0.7462579332 | N76: 0.7711125292
C77: Run off rd | D77: 0.2695078031 | E77: 0.2222222222 | F77: 0.3429571304 | G77: 0.1340782123 | H77: 0.06349206349 | I77: 0.05886232481 | J77: 0.04393939394 | K77: 0.04253484696 | L77: 0.02173913043 | M77: 0.02035684349 | N77: 0.01978302489
C78: Overturn on rd | D78: 0.004201680672 | E78: 0 | F78: 0.005249343832 | G78: 0 | H78: 0 | I78: 0.000494641385 | J78: 0 | K78: 0.0008621928438 | L78: 0 | M78: 0.0004789845527 | N78: 0.001489044884
C79: Coll wt ped | D79: 0.001200480192 | E79: 0 | F79: 0.004374453193 | G79: 0.005586592179 | H79: 0 | I79: 0.004122011542 | J79: 0.00303030303 | K79: 0.00158068688 | L79: 0.00395256917 | M79: 0.003113399593 | N79: 0.002978089768
C80: Coll wt veh | D80: 0.6398559424 | E80: 0.7777777778 | F80: 0.5266841645 | G80: 0.7262569832 | H80: 0.8968253968 | I80: 0.9017312448 | J80: 0.9272727273 | K80: 0.9163672942 | L80: 0.9341238472 | M80: 0.9524607831 | N80: 0.9238459902
C81: Coll wt pk car | D81: 0.001200480192 | E81: 0 | F81: 0.004374453193 | G81: 0 | H81: 0 | I81: 0.002308326463 | J81: 0.001515151515 | K81: 0.002155482109 | L81: 0.00790513834 | M81: 0.002155430487 | N81: 0.004041693257
C82: Coll wt train | D82: 0.000600240096 | E82: 0 | F82: 0 | G82: 0 | H82: 0 | I82: 0.0001648804617 | J82: 0 | K82: 0.0002873976146 | L82: 0 | M82: 0.0001197461382 | N82: 0
C83: Coll wt bicycle | D83: 0 | E83: 0 | F83: 0 | G83: 0 | H83: 0 | I83: 0.001319043693 | J83: 0.004545454545 | K83: 0.0004310964219 | L83: 0 | M83: 0.001436953658 | N83: 0.001063603489
C84: Coll wt animal | D84: 0.03661464586 | E84: 0 | F84: 0.02099737533 | G84: 0.005586592179 | H84: 0 | I84: 0.004286892003 | J84: 0.001515151515 | K84: 0.00158068688 | L84: 0.0006587615283 | M84: 0.00131720752 | N84: 0.0002127206977
C85: Coll wt fix obj | D85: 0.01740696279 | E85: 0 | F85: 0.0271216098 | G85: 0.04469273743 | H85: 0.007936507937 | I85: 0.0120362737 | J85: 0.01060606061 | K85: 0.01307659146 | L85: 0.009222661397 | M85: 0.004071368698 | N85: 0.01935758349
C86: Coll wt other obj | D86: 0.01200480192 | E86: 0 | F86: 0.01662292213 | G86: 0.05027932961 | H86: 0.02380952381 | I86: 0.006265457543 | J86: 0.004545454545 | K86: 0.01278919385 | L86: 0.01778656126 | M86: 0.009819183331 | N86: 0.0189321421
C87: Non Col on Rd | D87: 0.01740696279 | E87: 0 | F87: 0.05161854768 | G87: 0.03351955307 | H87: 0.007936507937 | I87: 0.008408903545 | J87: 0.00303030303 | K87: 0.008334530823 | L87: 0.004611330698 | M87: 0.004670099389 | N87: 0.008296107211
C88: Non Coll | D88: 0.2719087635 | E88: 0 | F88: 0.3587051619 | G88: 0.2122905028 | H88: 0.07936507937 | I88: 0.06892003298 | J88: 0.05606060606 | K88: 0.05446184797 | L88: 0.03886693017 | M88: 0.02143455874 | N88: 0.04552222931
C89: Rear End | D89: 0.418967587 | E89: 0.2222222222 | F89: 0.3368328959 | G89: 0.2905027933 | H89: 0.5793650794 | I89: 0.5912613355 | J89: 0.6196969697 | K89: 0.6354361259 | L89: 0.5283267457 | M89: 0.549395282 | N89: 0.5407360136
C90: Head On | D90: 0.02220888355 | E90: 0.1111111111 | F90: 0.0113735783 | G90: 0.005586592179 | H90: 0.01587301587 | I90: 0.01253091509 | J90: 0.01515151515 | K90: 0.005460554677 | L90: 0.007246376812 | M90: 0.01101664471 | N90: 0.004467134652
C91: Rt Angle | D91: 0.07262905162 | E91: 0.1111111111 | F91: 0.04286964129 | G91: 0.06703910615 | H91: 0.03968253968 | I91: 0.09480626546 | J91: 0.09696969697 | K91: 0.0472769076 | L91: 0.08959156785 | M91: 0.1341156748 | N91: 0.04020421187
C92: Left Turn-e | D92: 0.02701080432 | E92: 0.1111111111 | F92: 0.002624671916 | G92: 0.03910614525 | H92: 0 | I92: 0.0176422094 | J92: 0.02424242424 | K92: 0.003879867797 | L92: 0.009881422925 | M92: 0.01245359837 | N92: 0.008083386514
C93: Left Turn-f | D93: 0.02521008403 | E93: 0.1111111111 | F93: 0.01224846894 | G93: 0.03910614525 | H93: 0 | I93: 0.03478977741 | J93: 0.03181818182 | K93: 0.01120850697 | L93: 0.02371541502 | M93: 0.03628307987 | N93: 0.01169963837
C94: Left Turn-g | D94: 0.01800720288 | E94: 0 | F94: 0.01049868766 | G94: 0.03910614525 | H94: 0.007936507937 | I94: 0.01780708986 | J94: 0.01818181818 | K94: 0.009484121282 | L94: 0.01251646904 | M94: 0.01640522093 | N94: 0.01021059349
C95: Right Turn-h | D95: 0.008403361345 | E95: 0 | F95: 0.007874015748 | G95: 0.01117318436 | H95: 0.007936507937 | I95: 0.01368507832 | J95: 0.01060606061 | K95: 0.01666906165 | L95: 0.02042160738 | M95: 0.02083582804 | N95: 0.01510316954
C96: Right Turn-i | D96: 0.001800720288 | E96: 0 | F96: 0.0008748906387 | G96: 0 | H96: 0 | I96: 0.002308326463 | J96: 0.004545454545 | K96: 0.001005891651 | L96: 0.001317523057 | M96: 0.003233145731 | N96: 0.001276324186
C97: S Swipe(sd) | D97: 0.0456182473 | E97: 0.1111111111 | F97: 0.1539807524 | G97: 0.1899441341 | H97: 0.1984126984 | I97: 0.1028854081 | J97: 0.05909090909 | K97: 0.1793361115 | L97: 0.1996047431 | M97: 0.1532750569 | N97: 0.2729206552
C98: S Swipe(od) | D98: 0.04141656663 | E98: 0.1111111111 | F98: 0.008748906387 | G98: 0 | H98: 0.007936507937 | I98: 0.01797197032 | J98: 0.01666666667 | K98: 0.004742060641 | L98: 0.01844532279 | M98: 0.008501975811 | N98: 0.003190810466
C99: Other | D99: 0.04681872749 | E99: 0.1111111111 | F99: 0.05336832896 | G99: 0.1061452514 | H99: 0.06349206349 | I99: 0.02473206925 | J99: 0.04696969697 | K99: 0.03103894238 | L99: 0.05006587615 | M99: 0.03304993414 | N99: 0.0465858328
C100: Roadway dept. | D100: 0.3163265306 | E100: 0 | F100: 0.4033245844 | G100: 0.2346368715 | H100: 0.119047619 | I100: 0.0834295136 | J100: 0.06666666667 | K100: 0.06840063227 | L100: 0.05138339921 | M100: 0.0253861813 | N100: 0.06105084025
C101: Lane Dept. | D101: 0.3955582233 | E101: 0.2222222222 | F101: 0.4566929134 | G101: 0.2681564246 | H101: 0.126984127 | I101: 0.1071723001 | J101: 0.0803030303 | K101: 0.08377640466 | L101: 0.05928853755 | M101: 0.03879774877 | N101: 0.06381620932
C102: Night (Dark-B) | D102: 0.2004801921 | E102: 0 | F102: 0.2545931759 | G102: 0.1340782123 | H102: 0.07142857143 | I102: 0.06677658697 | J102: 0.06363636364 | K102: 0.05130047421 | L102: 0.01119894598 | M102: 0.007544006706 | N102: 0.01106147628
C103: Alcohol | D103: 0.06782713085 | E103: 0 | F103: 0.07086614173 | G103: 0.03351955307 | H103: 0.05555555556 | I103: 0.02852431987 | J103: 0.04545454545 | K103: 0.02457249605 | L103: 0.02371541502 | M103: 0.02011735122 | N103: 0.02361199745
C104: Wet surface | D104: 0.1668667467 | E104: 0 | F104: 0.1627296588 | G104: 0.156424581 | H104: 0.1587301587 | I104: 0.1350370981 | J104: 0.1863636364 | K104: 0.1310533123 | L104: 0.1304347826 | M104: 0.1305232906 | N104: 0.1338013189

Sheet Pivot Tables (hidden)
B1: Pivot Tables
B4: Row Labels | C4: Count of CRASH_NUM | E4: Row Labels | F4: Count of CRASH_NUM | H4: Row Labels | I4: Count of CRASH_NUM | K4: Row Labels | L4: Count of CRASH_NUM | N4: Row Labels | O4: Count of CRASH_NUM | Q4: Row Labels | R4: Count of CRASH_NUM | T4: Row Labels | U4: Count of CRASH_NUM
B5: Right Turn-i | C5: 2 | E5: No | F5: 253 | H5: 5 | I5: 1 | K5: Non-Int | L5: 199 | N5: Coll wt pk car | O5: 1 | Q5: 2013 | R5: 80 | T5: A | U5: 26
B6: Head on | C6: 2 | E6: Yes | F6: 2 | H6: 4 | I6: 3 | K6: Int | L6: 56 | N6: Coll wt other obj | O6: 2 | Q6: 2014 | R6: 90 | T6: B | U6: 48
B7: S Swipe(od) | C7: 5 | E7: Grand Total | F7: 255 | H7: 3 | I7: 18 | K7: Grand Total | L7: 255 | N7: Coll wt animal | O7: 3 | Q7: 2015 | R7: 85 | T7: C | U7: 176
B8: Right Turn-h | C8: 7 | H8: 1 | I8: 22 | N8: Coll wt fix onj | O8: 4 | Q8: Grand Total | R8: 255 | T8: Z | U8: 5
B9: Left Turn-g | C9: 8 | H9: 2 | I9: 211 | N9: Non Col on Rd | O9: 4 | T9: Grand Total | U9: 255
B10: S Swipe(sd) | C10: 11 | H10: Grand Total | I10: 255 | N10: Run off rd | O10: 13
B11: Left Turn-e | C11: 11 | E11: Row Labels | F11: Count of CRASH_NUM | N11: Coll wt veh | O11: 228
B12: Other | C12: 18 | E12: Dry | F12: 228 | K12: Row Labels | L12: Count of CRASH_NUM | N12: Grand Total | O12: 255
B13: Non Coll | C13: 21 | E13: Wet | F13: 27 | K13: Fatal | L13: 1
B14: Rt Angle | C14: 36 | E14: Grand Total | F14: 255 | K14: Severe | L14: 2
B15: Left Turn-f | C15: 45 | K15: Moderate | L15: 23
B16: Rear End | C16: 89 | K16: Complaint | L16: 67
B17: Grand Total | C17: 255 | K17: PDO | L17: 162
K18: Grand Total | L18: 255
K21: Row Labels | L21: Count of CRASH_NUM
B22: A | C22: Non Coll | E22: Row Labels | F22: Count of CRASH_NUM | I22: Hour Range | K22: No | L22: 255 | N22: A | O22: Run off rd
B23: B | C23: Rear End | E23: No | F23: 229 | I23: 12AM-3AM | K23: Grand Total | L23: 255 | N23: B | O23: Overturn on rd
B24: C | C24: Head On | E24: Yes | F24: 26 | I24: 3AM-6AM | N24: C | O24: Coll wt ped
B25: D | C25: Rt Angle | E25: Grand Total | F25: 255 | I25: 6AM-9AM | N25: D | O25: Coll wt veh
B26: E | C26: Left Turn-e | I26: 9AM-12PM | N26: E | O26: Coll wt pk car
B27: F | C27: Left Turn-f | I27: 12PM-3PM | N27: F | O27: Coll wt train
B28: G | C28: Left Turn-g | E28: Row Labels | F28: Count of CRASH_NUM | I28: 3PM-6PM | N28: G | O28: Coll wt bicycle
B29: H | C29: Right Turn-h | E29: No | F29: 224 | I29: 6PM-9PM | N29: H | O29: Coll wt animal
B30: I | C30: Right Turn-i | E30: Yes | F30: 31 | I30: 9PM-12AM | N30: I | O30: Coll wt fix obj
B31: J | C31: S Swipe(sd) | E31: Grand Total | F31: 255 | N31: J | O31: Coll wt other obj
B32: K | C32: S Swipe(od) | N32: K | O32: Non Col on Rd
B33: Z | C33: Other | N33: Z | O33: Unknown
E34: Row Labels | F34: Count of CRASH_NUM
E35: Dawn | F35: 9
E36: Dusk | F36: 11
E37: Dark -SL at Int | F37: 15
E38: Dark-No SL | F38: 25
E39: Dark-SL | F39: 30
E40: Daylight | F40: 165
E41: Grand Total | F41: 255

Sheet PRA (hidden)
D1: =Dashboards!F83 -> 0 | E1: =Dashboards!F84 -> 0 | F1: =Dashboards!F85 -> 2 | G1: =Dashboards!F86 -> 0 | H1: =Dashboards!F87 -> 9 | I1: =Dashboards!F88 -> 0 | J1: =Dashboards!F89 -> 0 | K1: =Dashboards!F90 -> 0 | L1: =Dashboards!F91 -> 31 | M1: =Dashboards!F92 -> 0 | N1: =Dashboards!F93 -> 0 | O1: =Dashboards!F94 -> 0 | P1: =Dashboards!F95 -> 0 | Q1: =Dashboards!F96 -> 0 | R1: =Dashboards!F97 -> 0 | S1: =Dashboards!F98 -> 0 | T1: =Dashboards!M83 -> 0 | U1: =Dashboards!M84 -> 0 | V1: =Dashboards!M85 -> 0 | W1: =Dashboards!M86 -> 8 | X1: =Dashboards!M87 -> 0 | Y1: =Dashboards!M88 -> 31 | Z1: =Dashboards!M89 -> 16 | AA1: =Dashboards!M90 -> 12 | AB1: =Dashboards!M91 -> 0 | AC1: =Dashboards!M92 -> 9 | AD1: =Dashboards!M93 -> 4 | AE1: =Dashboards!M94 -> 10 | AF1: =Dashboards!M95 -> 0 | AG1: =Dashboards!M96 -> 0 | AH1: =Dashboards!M97 -> 0 | AI1: =Dashboards!M98 -> 0 | AJ1: =Dashboards!M99 -> 0
D2: SEVERITY_CD | E2: SEVERITY_CD | F2: SEVERITY_CD | G2: SEVERITY_CD | H2: SEVERITY_CD | I2: TYPE_ACC | J2: TYPE_ACC | K2: TYPE_ACC | L2: TYPE_ACC | M2: TYPE_ACC | N2: TYPE_ACC | O2: TYPE_ACC | P2: TYPE_ACC | Q2: TYPE_ACC | R2: TYPE_ACC | S2: TYPE_ACC | T2: MAN_COLL_CD | U2: MAN_COLL_CD | V2: MAN_COLL_CD | W2: MAN_COLL_CD | X2: MAN_COLL_CD | Y2: MAN_COLL_CD | Z2: MAN_COLL_CD | AA2: MAN_COLL_CD | AB2: MAN_COLL_CD | AC2: MAN_COLL_CD | AD2: MAN_COLL_CD | AE2: MAN_COLL_CD | AF2: roadway_departure | AG2: lane_departure | AH2: LIGHTING_CD | AI2: ALCOHOL | AJ2: SURF_COND_CD
D3: =Dashboards!E83 -> 0.01320528211 | E3: =Dashboards!E84 -> 0.006602641056 | F3: =Dashboards!E85 -> 0.06842737095 | G3: =Dashboards!E86 -> 0.268907563 | H3: =Dashboards!E87 -> 0.6428571429 | I3: =Dashboards!E88 -> 0.2695078031 | J3: =Dashboards!E89 -> 0.004201680672 | K3: =Dashboards!E90 -> 0.001200480192 | L3: =Dashboards!E91 -> 0.6398559424 | M3: =Dashboards!E92 -> 0.001200480192 | N3: =Dashboards!E93 -> 0.000600240096 | O3: =Dashboards!E94 -> 0 | P3: =Dashboards!E95 -> 0.03661464586 | Q3: =Dashboards!E96 -> 0.01740696279 | R3: =Dashboards!E97 -> 0.01200480192 | S3: =Dashboards!E98 -> 0.01740696279 | T3: =Dashboards!L83 -> 0.2719087635 | U3: =Dashboards!L84 -> 0.418967587 | V3: =Dashboards!L85 -> 0.02220888355 | W3: =Dashboards!L86 -> 0.07262905162 | X3: =Dashboards!L87 -> 0.02701080432 | Y3: =Dashboards!L88 -> 0.02521008403 | Z3: =Dashboards!L89 -> 0.01800720288 | AA3: =Dashboards!L90 -> 0.008403361345 | AB3: =Dashboards!L91 -> 0.001800720288 | AC3: =Dashboards!L92 -> 0.0456182473 | AD3: =Dashboards!L93 -> 0.04141656663 | AE3: =Dashboards!L94 -> 0.04681872749 | AF3: =Dashboards!L95 -> 0.3163265306 | AG3: =Dashboards!L96 -> 0.3955582233 | AH3: =Dashboards!L97 -> 0.2004801921 | AI3: =Dashboards!L98 -> 0.06782713085 | AJ3: =Dashboards!L99 -> 0.1668667467
D4: A | E4: B | F4: C | G4: D | H4: E | I4: A | J4: B | K4: C | L4: D | M4: E | N4: F | O4: G | P4: H | Q4: I | R4: J | S4: K | T4: A | U4: B | V4: C | W4: D | X4: E | Y4: F | Z4: G | AA4: H | AB4: I | AC4: J | AD4: K | AE4: Z | AF4: 1 | AG4: 1 | AH4: B | AI4: 1 | AJ4: B
A5: LMF | B5: LMT | C5: Midpoint | D5: Fatal | E5: Severe | F5: Moderate | G5: Complaint | H5: None | I5: Run off rd | J5: Overturn on rd | K5: Coll wt ped | L5: Coll wt veh | M5: Coll wt pk car | N5: Coll wt train | O5: Coll wt bicycle | P5: Coll wt animal | Q5: Coll wt fix obj | R5: Coll wt other obj | S5: Non Col on Rd | T5: Non Coll | U5: Rear End | V5: Head On | W5: Rt Angle | X5: Left Turn-e | Y5: Left Turn-f | Z5: Left Turn-g | AA5: Right Turn-h | AB5: Right Turn-i | AC5: S Swipe(sd) | AD5: S Swipe(od) | AE5: Other | AF5: Roadway dept. | AG5: Lane Dept. | AH5: Night (Dark-B) | AI5: Alcohol | AJ5: Wet surface
F6: 0.9743288682 | H6: 0.7191092865 | L6: 0.9999999954 | W6: 0.9886957623 | Y6: 0.9992976191 | Z6: 0.9577456666 | AA6: 0.9943009615 | AC6: 0.6873687031 | AD6: 0.7370230817 | AE6: 0.859116775
F7: 0.9899283849 | H7: 0.5427491578 | L7: 0.9999998955 | W7: 0.9863005726 | Y7: 0.9997391679 | Z7: 0 | AA7: 0.9965559503 | AC7: 0 | AD7: 0.8138748033 | AE7: 0.913695707
F8: 0.9864823333 | H8: 0.5031130467 | L8: 0.9999999572 | W8: 0.9817448643 | Y8: 0.9996458837 | Z8: 0.9691591953 | AA8: 0.9959812041 | AC8: 0 | AD8: 0.7924852638 | AE8: 0.899333537
F9: 0.94687438 | H9: 0.4655881499 | L9: 1 | W9: 0.9328265162 | Y9: 0.9999419507 | Z9: 0.9992630981 | AA9: 0.9953515368 | AC9: 0 | AD9: 0 | AE9: 0.8839515572
F10: 0.8746017776 | H10: 0.4183794087 | L10: 0.9999993719 | W10: 0.9393356023 | Y10: 0.9995904003 | Z10: 0.9993455429 | AA10: 0 | AC10: 0 | AD10: 0 | AE10: 0.8917659482
F11: 0.8425584071 | H11: 0.5578564116 | L11: 0.999983193 | W11: 0.8130350805 | Y11: 0.9960147722 | Z11: 0.9990752567 | AA11: 0 | AC11: 0.6999958149 | AD11: 0 | AE11: 0.8676176739
F12: 0.723716871 | H12: 0.8753716436 | L12: 0.999722449 | W12: 0.4543092243 | Y12: 0.9995904003 | Z12: 0.9993455429 | AA12: 0 | AC12: 0.8992080909 | AD12: 0 | AE12: 0
F13: 0.7695856468 | H13: 0.5427491578 | L13: 0.9970017103 | W13: 0.508965804 | Y13: 0.9997391679 | Z13: 0.9995518911 | AA13: 0 | AC13: 0.7746460148 | AD13: 0 | AE13: 0.7631222012
F14: 0.4954777139 | H14: 0.7897161037 | L14: 0.9959935805 | W14: 0.4543092243 | Y14: 0.9999950125 | Z14: 0.9993455429 | AA14: 0 | AC14: 0.7376565726 | AD14: 0 | AE14: 0.7248585716
F15: 0.6765610112 | H15: 0.6809178161 | L15: 0.9949012549 | W15: 0.6356077612 | Y15: 0.9999991375 | Z15: 0.9990752567 | AA15: 0 | AC15: 0.6999958149 | AD15: 0 | AE15: 0
F16: 0 | H16: 0.7547546588 | L16: 0.9824946564 | W16: 0.419846086 | Y16: 0.9999993067 | Z16: 0.9937372228 | AA16: 0 | AC16: 0.7125964548 | AD16: 0 | AE16: 0.8758990911
F17: 0 | H17: 0.6809178161 | L17: 0.9863781433 | W17: 0.6356077612 | Y17: 0.9999910547 | Z17: 0.9931753245 | AA17: 0 | AC17: 0.6999958149 | AD17: 0 | AE17: 0.9545725548
F18: 0.4127606453 | H18: 0.7542999984 | L18: 0.9918606898 | W18: 0.6019076877 | Y18: 0.9999986897 | Z18: 0.9552426316 | AA18: 0 | AC18: 0.9509211347 | AD18: 0 | AE18: 0.9462229243
F19: 0.4782381448 | H19: 0.7183364871 | L19: 0.9776095984 | W19: 0.669393571 | Y19: 0.9999994464 | Z19: 0 | AA19: 0 | AC19: 0.9655353649 | AD19: 0 | AE19: 0.962095467
F20: 0.4954777139 | H20: 0.6786811445 | L20: 0.9959935805 | W20: 0.6862383645 | Y20: 0.9999995611 | Z20: 0 | AA20: 0 | AC20: 0.9687057252 | AD20: 0.7815920835 | AE20: 0.9909189945
F21: 0.7695856468 | H21: 0.4055539653 | L21: 0.9905322757 | W21: 0.7361585142 | Y21: 0.9999999856 | Z21: 0 | AA21: 0 | AC21: 0.9198385193 | AD21: 0.8138748033 | AE21: 0.9987608037
F22: 0.8941011226 | H22: 0.325056786 | L22: 0.997802905 | W22: 0.7196577232 | Y22: 0.9999999807 | Z22: 0 | AA22: 0 | AC22: 0.7624193315 | AD22: 0.8032509986 | AE22: 0.9997375192
F23: 0.8642771202 | H23: 0.5963200484 | L23: 0.9991529437 | W23: 0.669393571 | Y23: 0.9999999561 | Z23: 0 | AA23: 0 | AC23: 0.7251553439 | AD23: 0.9173383719 | AE23: 0.9995386718
F24: 0.9798438745 | H24: 0.3846588793 | L24: 0.9993873482 | W24: 0.8256072921 | Y24: 0.9999999432 | Z24: 0 | AA24: 0 | AC24: 0.8842346052 | AD24: 0.9112603771 | AE24: 0.9972788348
F25: 0.9521830634 | H25: 0.6786811445 | L25: 0.9988323966 | W25: 0.6862383645 | Y25: 0.9999510426 | Z25: 0 | AA25: 0 | AC25: 0.9919590217 | AD25: 0.7815920835 | AE25: 0.9979801547
F26: 0.94687438 | H26: 0.7183364871 | L26: 0.9991529437 | W26: 0.669393571 | Y26: 0.9999419507 | Z26: 0 | AA26: 0 | AC26: 0.9908982471 | AD26: 0.7705856277 | AE26: 0.962095467
F27: 0.9412224667 | H27: 0.8474326269 | L27: 0.9998616484 | W27: 0 | Y27: 0.9999925942 | Z27: 0 | AA27: 0 | AC27: 0.9897412369 | AD27: 0.7594797264 | AE27: 0.9584368686
F28: 0.9412224667 | H28: 0.7547546588 | L28: 0.9993873482 | W28: 0 | Y28: 0.9999925942 | Z28: 0 | AA28: 0 | AC28: 0.9621734383 | AD28: 0.7594797264 | AE28: 0.9884373756
F29: 0.9222006702 | H29: 0.7542999984 | L29: 0.9991133026 | W29: 0.3713693028 | Y29: 0.9999871569 | Z29: 0 | AA29: 0 | AC29: 0.9509211347 | AD29: 0.7256981207 | AE29: 0.9958946355
F30: 0.9222006702 | H30: 0.8442065916 | L30: 0.9991133026 | W30: 0.7869725626 | Y30: 0.9998907384 | Z30: 0 | AA30: 0 | AC30: 0.9509211347 | AD30: 0 | AE30: 0.9838738443
F31: 0.9222006702 | H31: 0.9099507879 | L31: 0.9999521248 | W31: 0.7869725626 | Y31: 0.9992039686 | Z31: 0 | AA31: 0 | AC31: 0.9509211347 | AD31: 0 | AE31: 0.9462229243
F32: 0.9151753807 | H32: 0.925319561 | L32: 0.9998369115 | W32: 0.7735314762 | Y32: 0.9946207679 | Z32: 0 | AA32: 0.9935279932 | AC32: 0.9467780758 | AD32: 0 | AE32: 0.8414958434
F33: 0.94687438 | H33: 0.8203073679 | L33: 0.9998038069 | W33: 0.8378415059 | Y33: 0.982063977 | Z33: 0 | AA33: 0 | AC33: 0.9655353649 | AD33: 0 | AE33: 0.8839515572
F34: 0.723716871 | H34: 0.9872798919 | L34: 0.999722449 | W34: 0.8497146322 | Y34: 0.9251354971 | Z34: 0 | AA34: 0.9956733279 | AC34: 0.8992080909 | AD34: 0 | AE34: 0.9909189945
F35: 0.7080990655 | H35: 0.9463855715 | L35: 0.9999644134 | W35: 0.9328265162 | Y35: 0.9205196744 | Z35: 0 | AA35: 0.9953515368 | AC35: 0 | AD35: 0 | AE35: 0.9976495601
F36: 0.7080990655 | H36: 0.8203073679 | L36: 0.9999644134 | W36: 0.9328265162 | Y36: 0.9205196744 | Z36: 0 | AA36: 0.9953515368 | AC36: 0 | AD36: 0 | AE36: 0.9976495601

Sheet PRA Chart Data (hidden)
D1: FALSE | E1: FALSE | F1: FALSE | G1: FALSE | H1: FALSE | I1: FALSE | J1: FALSE | K1: FALSE | L1: FALSE | M1: FALSE | N1: FALSE | O1: FALSE | P1: FALSE | Q1: FALSE | R1: FALSE | S1: FALSE | T1: FALSE | U1: FALSE | V1: FALSE | W1: FALSE | X1: FALSE | Y1: TRUE | Z1: TRUE | AA1: TRUE | AB1: FALSE | AC1: FALSE | AD1: FALSE | AE1: FALSE | AF1: FALSE | AG1: FALSE | AH1: FALSE | AI1: FALSE | AJ1: FALSE
A2: LMF | B2: LMT | C2: Midpoint | D2: Fatal | E2: Severe | F2: Moderate | G2: Complaint | H2: None | I2: Run off rd | J2: Overturn on rd | K2: Coll wt ped | L2: Coll wt veh | M2: Coll wt pk car | N2: Coll wt train | O2: Coll wt bicycle | P2: Coll wt animal | Q2: Coll wt fix obj | R2: Coll wt other obj | S2: Non Col on Rd | T2: Non Coll | U2: Rear End | V2: Head On | W2: Rt Angle | X2: Left Turn-e | Y2: Left Turn-f | Z2: Left Turn-g | AA2: Right Turn-h | AB2: Right Turn-i | AC2: S Swipe(sd) | AD2: S Swipe(od) | AE2: Other | AF2: Roadway dept. | AG2: Lane Dept. | AH2: Night (Dark-B) | AI2: Alcohol | AJ2: Wet surface | AL2: Probability Limit
A3: =Dashboards!C71 -> 4 | B3: =IF(A3+Dashboards!$D$76>Dashboards!$C$72+0.05,NA(),A3+Dashboards!$D$76) -> 5 | C3: =(A3+B3)/2 -> 4.5 | D3: =IF(D$1,PRA!D6,NA()) ->  | E3: =IF(E$1,PRA!E6,NA()) ->  | F3: =IF(F$1,PRA!F6,NA()) ->  | G3: =IF(G$1,PRA!G6,NA()) ->  | H3: =IF(H$1,PRA!H6,NA()) ->  | I3: =IF(I$1,PRA!I6,NA()) ->  | J3: =IF(J$1,PRA!J6,NA()) ->  | K3: =IF(K$1,PRA!K6,NA()) ->  | L3: =IF(L$1,PRA!L6,NA()) ->  | M3: =IF(M$1,PRA!M6,NA()) ->  | N3: =IF(N$1,PRA!N6,NA()) ->  | O3: =IF(O$1,PRA!O6,NA()) ->  | P3: =IF(P$1,PRA!P6,NA()) ->  | Q3: =IF(Q$1,PRA!Q6,NA()) ->  | R3: =IF(R$1,PRA!R6,NA()) ->  | S3: =IF(S$1,PRA!S6,NA()) ->  | T3: =IF(T$1,PRA!T6,NA()) ->  | U3: =IF(U$1,PRA!U6,NA()) ->  | V3: =IF(V$1,PRA!V6,NA()) ->  | W3: =IF(W$1,PRA!W6,NA()) ->  | X3: =IF(X$1,PRA!X6,NA()) ->  | Y3: =IF(Y$1,PRA!Y6,NA()) -> 0.9992976191 | Z3: =IF(Z$1,PRA!Z6,NA()) -> 0.9577456666 | AA3: =IF(AA$1,PRA!AA6,NA()) -> 0.9943009615 | AB3: =IF(AB$1,PRA!AB6,NA()) ->  | AC3: =IF(AC$1,PRA!AC6,NA()) ->  | AD3: =IF(AD$1,PRA!AD6,NA()) ->  | AE3: =IF(AE$1,PRA!AE6,NA()) ->  | AF3: =IF(AF$1,PRA!AF6,NA()) ->  | AG3: =IF(AG$1,PRA!AG6,NA()) ->  | AH3: =IF(AH$1,PRA!AH6,NA()) ->  | AI3: =IF(AI$1,PRA!AI6,NA()) ->  | AJ3: =IF(AJ$1,PRA!AJ6,NA()) ->  | AL3: =Dashboards!C71+5*Dashboards!D77 -> 4.5 | AM3: =Dashboards!D78 -> 0.95
A4: =IF(B3>Dashboards!$C$72+0.05,NA(),A3+Dashboards!$D$77) -> 4.1 | B4: =IF(A4+Dashboards!$D$76>Dashboards!$C$72+0.05,NA(),A4+Dashboards!$D$76) -> 5.1 | C4: =(A4+B4)/2 -> 4.6 | D4: =IF(D$1,PRA!D7,NA()) ->  | E4: =IF(E$1,PRA!E7,NA()) ->  | F4: =IF(F$1,PRA!F7,NA()) ->  | G4: =IF(G$1,PRA!G7,NA()) ->  | H4: =IF(H$1,PRA!H7,NA()) ->  | I4: =IF(I$1,PRA!I7,NA()) ->  | J4: =IF(J$1,PRA!J7,NA()) ->  | K4: =IF(K$1,PRA!K7,NA()) ->  | L4: =IF(L$1,PRA!L7,NA()) ->  | M4: =IF(M$1,PRA!M7,NA()) ->  | N4: =IF(N$1,PRA!N7,NA()) ->  | O4: =IF(O$1,PRA!O7,NA()) ->  | P4: =IF(P$1,PRA!P7,NA()) ->  | Q4: =IF(Q$1,PRA!Q7,NA()) ->  | R4: =IF(R$1,PRA!R7,NA()) ->  | S4: =IF(S$1,PRA!S7,NA()) ->  | T4: =IF(T$1,PRA!T7,NA()) ->  | U4: =IF(U$1,PRA!U7,NA()) ->  | V4: =IF(V$1,PRA!V7,NA()) ->  | W4: =IF(W$1,PRA!W7,NA()) ->  | X4: =IF(X$1,PRA!X7,NA()) ->  | Y4: =IF(Y$1,PRA!Y7,NA()) -> 0.9997391679 | Z4: =IF(Z$1,PRA!Z7,NA()) -> 0 | AA4: =IF(AA$1,PRA!AA7,NA()) -> 0.9965559503 | AB4: =IF(AB$1,PRA!AB7,NA()) ->  | AC4: =IF(AC$1,PRA!AC7,NA()) ->  | AD4: =IF(AD$1,PRA!AD7,NA()) ->  | AE4: =IF(AE$1,PRA!AE7,NA()) ->  | AF4: =IF(AF$1,PRA!AF7,NA()) ->  | AG4: =IF(AG$1,PRA!AG7,NA()) ->  | AH4: =IF(AH$1,PRA!AH7,NA()) ->  | AI4: =IF(AI$1,PRA!AI7,NA()) ->  | AJ4: =IF(AJ$1,PRA!AJ7,NA()) ->  | AL4: =Dashboards!C72-5*Dashboards!D77 -> 7.5 | AM4: =Dashboards!D78 -> 0.95
A5: =IF(B4>Dashboards!$C$72+0.05,NA(),A4+Dashboards!$D$77) -> 4.2 | B5: =IF(A5+Dashboards!$D$76>Dashboards!$C$72+0.05,NA(),A5+Dashboards!$D$76) -> 5.2 | C5: =(A5+B5)/2 -> 4.7 | D5: =IF(D$1,PRA!D8,NA()) ->  | E5: =IF(E$1,PRA!E8,NA()) ->  | F5: =IF(F$1,PRA!F8,NA()) ->  | G5: =IF(G$1,PRA!G8,NA()) ->  | H5: =IF(H$1,PRA!H8,NA()) ->  | I5: =IF(I$1,PRA!I8,NA()) ->  | J5: =IF(J$1,PRA!J8,NA()) ->  | K5: =IF(K$1,PRA!K8,NA()) ->  | L5: =IF(L$1,PRA!L8,NA()) ->  | M5: =IF(M$1,PRA!M8,NA()) ->  | N5: =IF(N$1,PRA!N8,NA()) ->  | O5: =IF(O$1,PRA!O8,NA()) ->  | P5: =IF(P$1,PRA!P8,NA()) ->  | Q5: =IF(Q$1,PRA!Q8,NA()) ->  | R5: =IF(R$1,PRA!R8,NA()) ->  | S5: =IF(S$1,PRA!S8,NA()) ->  | T5: =IF(T$1,PRA!T8,NA()) ->  | U5: =IF(U$1,PRA!U8,NA()) ->  | V5: =IF(V$1,PRA!V8,NA()) ->  | W5: =IF(W$1,PRA!W8,NA()) ->  | X5: =IF(X$1,PRA!X8,NA()) ->  | Y5: =IF(Y$1,PRA!Y8,NA()) -> 0.9996458837 | Z5: =IF(Z$1,PRA!Z8,NA()) -> 0.9691591953 | AA5: =IF(AA$1,PRA!AA8,NA()) -> 0.9959812041 | AB5: =IF(AB$1,PRA!AB8,NA()) ->  | AC5: =IF(AC$1,PRA!AC8,NA()) ->  | AD5: =IF(AD$1,PRA!AD8,NA()) ->  | AE5: =IF(AE$1,PRA!AE8,NA()) ->  | AF5: =IF(AF$1,PRA!AF8,NA()) ->  | AG5: =IF(AG$1,PRA!AG8,NA()) ->  | AH5: =IF(AH$1,PRA!AH8,NA()) ->  | AI5: =IF(AI$1,PRA!AI8,NA()) ->  | AJ5: =IF(AJ$1,PRA!AJ8,NA()) -> 
A6: =IF(B5>Dashboards!$C$72+0.05,NA(),A5+Dashboards!$D$77) -> 4.3 | B6: =IF(A6+Dashboards!$D$76>Dashboards!$C$72+0.05,NA(),A6+Dashboards!$D$76) -> 5.3 | C6: 4.8 | D6: =IF(D$1,PRA!D9,NA()) ->  | E6: =IF(E$1,PRA!E9,NA()) ->  | F6: =IF(F$1,PRA!F9,NA()) ->  | G6: =IF(G$1,PRA!G9,NA()) ->  | H6: =IF(H$1,PRA!H9,NA()) ->  | I6: =IF(I$1,PRA!I9,NA()) ->  | J6: =IF(J$1,PRA!J9,NA()) ->  | K6: =IF(K$1,PRA!K9,NA()) ->  | L6: =IF(L$1,PRA!L9,NA()) ->  | M6: =IF(M$1,PRA!M9,NA()) ->  | N6: =IF(N$1,PRA!N9,NA()) ->  | O6: =IF(O$1,PRA!O9,NA()) ->  | P6: =IF(P$1,PRA!P9,NA()) ->  | Q6: =IF(Q$1,PRA!Q9,NA()) ->  | R6: =IF(R$1,PRA!R9,NA()) ->  | S6: =IF(S$1,PRA!S9,NA()) ->  | T6: =IF(T$1,PRA!T9,NA()) ->  | U6: =IF(U$1,PRA!U9,NA()) ->  | V6: =IF(V$1,PRA!V9,NA()) ->  | W6: =IF(W$1,PRA!W9,NA()) ->  | X6: =IF(X$1,PRA!X9,NA()) ->  | Y6: =IF(Y$1,PRA!Y9,NA()) -> 0.9999419507 | Z6: =IF(Z$1,PRA!Z9,NA()) -> 0.9992630981 | AA6: =IF(AA$1,PRA!AA9,NA()) -> 0.9953515368 | AB6: =IF(AB$1,PRA!AB9,NA()) ->  | AC6: =IF(AC$1,PRA!AC9,NA()) ->  | AD6: =IF(AD$1,PRA!AD9,NA()) ->  | AE6: =IF(AE$1,PRA!AE9,NA()) ->  | AF6: =IF(AF$1,PRA!AF9,NA()) ->  | AG6: =IF(AG$1,PRA!AG9,NA()) ->  | AH6: =IF(AH$1,PRA!AH9,NA()) ->  | AI6: =IF(AI$1,PRA!AI9,NA()) ->  | AJ6: =IF(AJ$1,PRA!AJ9,NA()) -> 
A7: =IF(B6>Dashboards!$C$72+0.05,NA(),A6+Dashboards!$D$77) -> 4.4 | B7: =IF(A7+Dashboards!$D$76>Dashboards!$C$72+0.05,NA(),A7+Dashboards!$D$76) -> 5.4 | C7: 4.9 | D7: =IF(D$1,PRA!D10,NA()) ->  | E7: =IF(E$1,PRA!E10,NA()) ->  | F7: =IF(F$1,PRA!F10,NA()) ->  | G7: =IF(G$1,PRA!G10,NA()) ->  | H7: =IF(H$1,PRA!H10,NA()) ->  | I7: =IF(I$1,PRA!I10,NA()) ->  | J7: =IF(J$1,PRA!J10,NA()) ->  | K7: =IF(K$1,PRA!K10,NA()) ->  | L7: =IF(L$1,PRA!L10,NA()) ->  | M7: =IF(M$1,PRA!M10,NA()) ->  | N7: =IF(N$1,PRA!N10,NA()) ->  | O7: =IF(O$1,PRA!O10,NA()) ->  | P7: =IF(P$1,PRA!P10,NA()) ->  | Q7: =IF(Q$1,PRA!Q10,NA()) ->  | R7: =IF(R$1,PRA!R10,NA()) ->  | S7: =IF(S$1,PRA!S10,NA()) ->  | T7: =IF(T$1,PRA!T10,NA()) ->  | U7: =IF(U$1,PRA!U10,NA()) ->  | V7: =IF(V$1,PRA!V10,NA()) ->  | W7: =IF(W$1,PRA!W10,NA()) ->  | X7: =IF(X$1,PRA!X10,NA()) ->  | Y7: =IF(Y$1,PRA!Y10,NA()) -> 0.9995904003 | Z7: =IF(Z$1,PRA!Z10,NA()) -> 0.9993455429 | AA7: =IF(AA$1,PRA!AA10,NA()) -> 0 | AB7: =IF(AB$1,PRA!AB10,NA()) ->  | AC7: =IF(AC$1,PRA!AC10,NA()) ->  | AD7: =IF(AD$1,PRA!AD10,NA()) ->  | AE7: =IF(AE$1,PRA!AE10,NA()) ->  | AF7: =IF(AF$1,PRA!AF10,NA()) ->  | AG7: =IF(AG$1,PRA!AG10,NA()) ->  | AH7: =IF(AH$1,PRA!AH10,NA()) ->  | AI7: =IF(AI$1,PRA!AI10,NA()) ->  | AJ7: =IF(AJ$1,PRA!AJ10,NA()) -> 
A8: =IF(B7>Dashboards!$C$72+0.05,NA(),A7+Dashboards!$D$77) -> 4.5 | B8: =IF(A8+Dashboards!$D$76>Dashboards!$C$72+0.05,NA(),A8+Dashboards!$D$76) -> 5.5 | C8: 5 | D8: =IF(D$1,PRA!D11,NA()) ->  | E8: =IF(E$1,PRA!E11,NA()) ->  | F8: =IF(F$1,PRA!F11,NA()) ->  | G8: =IF(G$1,PRA!G11,NA()) ->  | H8: =IF(H$1,PRA!H11,NA()) ->  | I8: =IF(I$1,PRA!I11,NA()) ->  | J8: =IF(J$1,PRA!J11,NA()) ->  | K8: =IF(K$1,PRA!K11,NA()) ->  | L8: =IF(L$1,PRA!L11,NA()) ->  | M8: =IF(M$1,PRA!M11,NA()) ->  | N8: =IF(N$1,PRA!N11,NA()) ->  | O8: =IF(O$1,PRA!O11,NA()) ->  | P8: =IF(P$1,PRA!P11,NA()) ->  | Q8: =IF(Q$1,PRA!Q11,NA()) ->  | R8: =IF(R$1,PRA!R11,NA()) ->  | S8: =IF(S$1,PRA!S11,NA()) ->  | T8: =IF(T$1,PRA!T11,NA()) ->  | U8: =IF(U$1,PRA!U11,NA()) ->  | V8: =IF(V$1,PRA!V11,NA()) ->  | W8: =IF(W$1,PRA!W11,NA()) ->  | X8: =IF(X$1,PRA!X11,NA()) ->  | Y8: =IF(Y$1,PRA!Y11,NA()) -> 0.9960147722 | Z8: =IF(Z$1,PRA!Z11,NA()) -> 0.9990752567 | AA8: =IF(AA$1,PRA!AA11,NA()) -> 0 | AB8: =IF(AB$1,PRA!AB11,NA()) ->  | AC8: =IF(AC$1,PRA!AC11,NA()) ->  | AD8: =IF(AD$1,PRA!AD11,NA()) ->  | AE8: =IF(AE$1,PRA!AE11,NA()) ->  | AF8: =IF(AF$1,PRA!AF11,NA()) ->  | AG8: =IF(AG$1,PRA!AG11,NA()) ->  | AH8: =IF(AH$1,PRA!AH11,NA()) ->  | AI8: =IF(AI$1,PRA!AI11,NA()) ->  | AJ8: =IF(AJ$1,PRA!AJ11,NA()) -> 
A9: =IF(B8>Dashboards!$C$72+0.05,NA(),A8+Dashboards!$D$77) -> 4.6 | B9: =IF(A9+Dashboards!$D$76>Dashboards!$C$72+0.05,NA(),A9+Dashboards!$D$76) -> 5.6 | C9: 5.1 | D9: =IF(D$1,PRA!D12,NA()) ->  | E9: =IF(E$1,PRA!E12,NA()) ->  | F9: =IF(F$1,PRA!F12,NA()) ->  | G9: =IF(G$1,PRA!G12,NA()) ->  | H9: =IF(H$1,PRA!H12,NA()) ->  | I9: =IF(I$1,PRA!I12,NA()) ->  | J9: =IF(J$1,PRA!J12,NA()) ->  | K9: =IF(K$1,PRA!K12,NA()) ->  | L9: =IF(L$1,PRA!L12,NA()) ->  | M9: =IF(M$1,PRA!M12,NA()) ->  | N9: =IF(N$1,PRA!N12,NA()) ->  | O9: =IF(O$1,PRA!O12,NA()) ->  | P9: =IF(P$1,PRA!P12,NA()) ->  | Q9: =IF(Q$1,PRA!Q12,NA()) ->  | R9: =IF(R$1,PRA!R12,NA()) ->  | S9: =IF(S$1,PRA!S12,NA()) ->  | T9: =IF(T$1,PRA!T12,NA()) ->  | U9: =IF(U$1,PRA!U12,NA()) ->  | V9: =IF(V$1,PRA!V12,NA()) ->  | W9: =IF(W$1,PRA!W12,NA()) ->  | X9: =IF(X$1,PRA!X12,NA()) ->  | Y9: =IF(Y$1,PRA!Y12,NA()) -> 0.9995904003 | Z9: =IF(Z$1,PRA!Z12,NA()) -> 0.9993455429 | AA9: =IF(AA$1,PRA!AA12,NA()) -> 0 | AB9: =IF(AB$1,PRA!AB12,NA()) ->  | AC9: =IF(AC$1,PRA!AC12,NA()) ->  | AD9: =IF(AD$1,PRA!AD12,NA()) ->  | AE9: =IF(AE$1,PRA!AE12,NA()) ->  | AF9: =IF(AF$1,PRA!AF12,NA()) ->  | AG9: =IF(AG$1,PRA!AG12,NA()) ->  | AH9: =IF(AH$1,PRA!AH12,NA()) ->  | AI9: =IF(AI$1,PRA!AI12,NA()) ->  | AJ9: =IF(AJ$1,PRA!AJ12,NA()) -> 
A10: =IF(B9>Dashboards!$C$72+0.05,NA(),A9+Dashboards!$D$77) -> 4.7 | B10: =IF(A10+Dashboards!$D$76>Dashboards!$C$72+0.05,NA(),A10+Dashboards!$D$76) -> 5.7 | C10: 5.2 | D10: =IF(D$1,PRA!D13,NA()) ->  | E10: =IF(E$1,PRA!E13,NA()) ->  | F10: =IF(F$1,PRA!F13,NA()) ->  | G10: =IF(G$1,PRA!G13,NA()) ->  | H10: =IF(H$1,PRA!H13,NA()) ->  | I10: =IF(I$1,PRA!I13,NA()) ->  | J10: =IF(J$1,PRA!J13,NA()) ->  | K10: =IF(K$1,PRA!K13,NA()) ->  | L10: =IF(L$1,PRA!L13,NA()) ->  | M10: =IF(M$1,PRA!M13,NA()) ->  | N10: =IF(N$1,PRA!N13,NA()) ->  | O10: =IF(O$1,PRA!O13,NA()) ->  | P10: =IF(P$1,PRA!P13,NA()) ->  | Q10: =IF(Q$1,PRA!Q13,NA()) ->  | R10: =IF(R$1,PRA!R13,NA()) ->  | S10: =IF(S$1,PRA!S13,NA()) ->  | T10: =IF(T$1,PRA!T13,NA()) ->  | U10: =IF(U$1,PRA!U13,NA()) ->  | V10: =IF(V$1,PRA!V13,NA()) ->  | W10: =IF(W$1,PRA!W13,NA()) ->  | X10: =IF(X$1,PRA!X13,NA()) ->  | Y10: =IF(Y$1,PRA!Y13,NA()) -> 0.9997391679 | Z10: =IF(Z$1,PRA!Z13,NA()) -> 0.9995518911 | AA10: =IF(AA$1,PRA!AA13,NA()) -> 0 | AB10: =IF(AB$1,PRA!AB13,NA()) ->  | AC10: =IF(AC$1,PRA!AC13,NA()) ->  | AD10: =IF(AD$1,PRA!AD13,NA()) ->  | AE10: =IF(AE$1,PRA!AE13,NA()) ->  | AF10: =IF(AF$1,PRA!AF13,NA()) ->  | AG10: =IF(AG$1,PRA!AG13,NA()) ->  | AH10: =IF(AH$1,PRA!AH13,NA()) ->  | AI10: =IF(AI$1,PRA!AI13,NA()) ->  | AJ10: =IF(AJ$1,PRA!AJ13,NA()) -> 
A11: =IF(B10>Dashboards!$C$72+0.05,NA(),A10+Dashboards!$D$77) -> 4.8 | B11: =IF(A11+Dashboards!$D$76>Dashboards!$C$72+0.05,NA(),A11+Dashboards!$D$76) -> 5.8 | C11: 5.3 | D11: =IF(D$1,PRA!D14,NA()) ->  | E11: =IF(E$1,PRA!E14,NA()) ->  | F11: =IF(F$1,PRA!F14,NA()) ->  | G11: =IF(G$1,PRA!G14,NA()) ->  | H11: =IF(H$1,PRA!H14,NA()) ->  | I11: =IF(I$1,PRA!I14,NA()) ->  | J11: =IF(J$1,PRA!J14,NA()) ->  | K11: =IF(K$1,PRA!K14,NA()) ->  | L11: =IF(L$1,PRA!L14,NA()) ->  | M11: =IF(M$1,PRA!M14,NA()) ->  | N11: =IF(N$1,PRA!N14,NA()) ->  | O11: =IF(O$1,PRA!O14,NA()) ->  | P11: =IF(P$1,PRA!P14,NA()) ->  | Q11: =IF(Q$1,PRA!Q14,NA()) ->  | R11: =IF(R$1,PRA!R14,NA()) ->  | S11: =IF(S$1,PRA!S14,NA()) ->  | T11: =IF(T$1,PRA!T14,NA()) ->  | U11: =IF(U$1,PRA!U14,NA()) ->  | V11: =IF(V$1,PRA!V14,NA()) ->  | W11: =IF(W$1,PRA!W14,NA()) ->  | X11: =IF(X$1,PRA!X14,NA()) ->  | Y11: =IF(Y$1,PRA!Y14,NA()) -> 0.9999950125 | Z11: =IF(Z$1,PRA!Z14,NA()) -> 0.9993455429 | AA11: =IF(AA$1,PRA!AA14,NA()) -> 0 | AB11: =IF(AB$1,PRA!AB14,NA()) ->  | AC11: =IF(AC$1,PRA!AC14,NA()) ->  | AD11: =IF(AD$1,PRA!AD14,NA()) ->  | AE11: =IF(AE$1,PRA!AE14,NA()) ->  | AF11: =IF(AF$1,PRA!AF14,NA()) ->  | AG11: =IF(AG$1,PRA!AG14,NA()) ->  | AH11: =IF(AH$1,PRA!AH14,NA()) ->  | AI11: =IF(AI$1,PRA!AI14,NA()) ->  | AJ11: =IF(AJ$1,PRA!AJ14,NA()) -> 
A12: =IF(B11>Dashboards!$C$72+0.05,NA(),A11+Dashboards!$D$77) -> 4.9 | B12: =IF(A12+Dashboards!$D$76>Dashboards!$C$72+0.05,NA(),A12+Dashboards!$D$76) -> 5.9 | C12: 5.4 | D12: =IF(D$1,PRA!D15,NA()) ->  | E12: =IF(E$1,PRA!E15,NA()) ->  | F12: =IF(F$1,PRA!F15,NA()) ->  | G12: =IF(G$1,PRA!G15,NA()) ->  | H12: =IF(H$1,PRA!H15,NA()) ->  | I12: =IF(I$1,PRA!I15,NA()) ->  | J12: =IF(J$1,PRA!J15,NA()) ->  | K12: =IF(K$1,PRA!K15,NA()) ->  | L12: =IF(L$1,PRA!L15,NA()) ->  | M12: =IF(M$1,PRA!M15,NA()) ->  | N12: =IF(N$1,PRA!N15,NA()) ->  | O12: =IF(O$1,PRA!O15,NA()) ->  | P12: =IF(P$1,PRA!P15,NA()) ->  | Q12: =IF(Q$1,PRA!Q15,NA()) ->  | R12: =IF(R$1,PRA!R15,NA()) ->  | S12: =IF(S$1,PRA!S15,NA()) ->  | T12: =IF(T$1,PRA!T15,NA()) ->  | U12: =IF(U$1,PRA!U15,NA()) ->  | V12: =IF(V$1,PRA!V15,NA()) ->  | W12: =IF(W$1,PRA!W15,NA()) ->  | X12: =IF(X$1,PRA!X15,NA()) ->  | Y12: =IF(Y$1,PRA!Y15,NA()) -> 0.9999991375 | Z12: =IF(Z$1,PRA!Z15,NA()) -> 0.9990752567 | AA12: =IF(AA$1,PRA!AA15,NA()) -> 0 | AB12: =IF(AB$1,PRA!AB15,NA()) ->  | AC12: =IF(AC$1,PRA!AC15,NA()) ->  | AD12: =IF(AD$1,PRA!AD15,NA()) ->  | AE12: =IF(AE$1,PRA!AE15,NA()) ->  | AF12: =IF(AF$1,PRA!AF15,NA()) ->  | AG12: =IF(AG$1,PRA!AG15,NA()) ->  | AH12: =IF(AH$1,PRA!AH15,NA()) ->  | AI12: =IF(AI$1,PRA!AI15,NA()) ->  | AJ12: =IF(AJ$1,PRA!AJ15,NA()) -> 
A13: =IF(B12>Dashboards!$C$72+0.05,NA(),A12+Dashboards!$D$77) -> 5 | B13: =IF(A13+Dashboards!$D$76>Dashboards!$C$72+0.05,NA(),A13+Dashboards!$D$76) -> 6 | C13: 5.5 | D13: =IF(D$1,PRA!D16,NA()) ->  | E13: =IF(E$1,PRA!E16,NA()) ->  | F13: =IF(F$1,PRA!F16,NA()) ->  | G13: =IF(G$1,PRA!G16,NA()) ->  | H13: =IF(H$1,PRA!H16,NA()) ->  | I13: =IF(I$1,PRA!I16,NA()) ->  | J13: =IF(J$1,PRA!J16,NA()) ->  | K13: =IF(K$1,PRA!K16,NA()) ->  | L13: =IF(L$1,PRA!L16,NA()) ->  | M13: =IF(M$1,PRA!M16,NA()) ->  | N13: =IF(N$1,PRA!N16,NA()) ->  | O13: =IF(O$1,PRA!O16,NA()) ->  | P13: =IF(P$1,PRA!P16,NA()) ->  | Q13: =IF(Q$1,PRA!Q16,NA()) ->  | R13: =IF(R$1,PRA!R16,NA()) ->  | S13: =IF(S$1,PRA!S16,NA()) ->  | T13: =IF(T$1,PRA!T16,NA()) ->  | U13: =IF(U$1,PRA!U16,NA()) ->  | V13: =IF(V$1,PRA!V16,NA()) ->  | W13: =IF(W$1,PRA!W16,NA()) ->  | X13: =IF(X$1,PRA!X16,NA()) ->  | Y13: =IF(Y$1,PRA!Y16,NA()) -> 0.9999993067 | Z13: =IF(Z$1,PRA!Z16,NA()) -> 0.9937372228 | AA13: =IF(AA$1,PRA!AA16,NA()) -> 0 | AB13: =IF(AB$1,PRA!AB16,NA()) ->  | AC13: =IF(AC$1,PRA!AC16,NA()) ->  | AD13: =IF(AD$1,PRA!AD16,NA()) ->  | AE13: =IF(AE$1,PRA!AE16,NA()) ->  | AF13: =IF(AF$1,PRA!AF16,NA()) ->  | AG13: =IF(AG$1,PRA!AG16,NA()) ->  | AH13: =IF(AH$1,PRA!AH16,NA()) ->  | AI13: =IF(AI$1,PRA!AI16,NA()) ->  | AJ13: =IF(AJ$1,PRA!AJ16,NA()) -> 
A14: =IF(B13>Dashboards!$C$72+0.05,NA(),A13+Dashboards!$D$77) -> 5.1 | B14: =IF(A14+Dashboards!$D$76>Dashboards!$C$72+0.05,NA(),A14+Dashboards!$D$76) -> 6.1 | C14: =(A14+B14)/2 -> 5.6 | D14: =IF(D$1,PRA!D17,NA()) ->  | E14: =IF(E$1,PRA!E17,NA()) ->  | F14: =IF(F$1,PRA!F17,NA()) ->  | G14: =IF(G$1,PRA!G17,NA()) ->  | H14: =IF(H$1,PRA!H17,NA()) ->  | I14: =IF(I$1,PRA!I17,NA()) ->  | J14: =IF(J$1,PRA!J17,NA()) ->  | K14: =IF(K$1,PRA!K17,NA()) ->  | L14: =IF(L$1,PRA!L17,NA()) ->  | M14: =IF(M$1,PRA!M17,NA()) ->  | N14: =IF(N$1,PRA!N17,NA()) ->  | O14: =IF(O$1,PRA!O17,NA()) ->  | P14: =IF(P$1,PRA!P17,NA()) ->  | Q14: =IF(Q$1,PRA!Q17,NA()) ->  | R14: =IF(R$1,PRA!R17,NA()) ->  | S14: =IF(S$1,PRA!S17,NA()) ->  | T14: =IF(T$1,PRA!T17,NA()) ->  | U14: =IF(U$1,PRA!U17,NA()) ->  | V14: =IF(V$1,PRA!V17,NA()) ->  | W14: =IF(W$1,PRA!W17,NA()) ->  | X14: =IF(X$1,PRA!X17,NA()) ->  | Y14: =IF(Y$1,PRA!Y17,NA()) -> 0.9999910547 | Z14: =IF(Z$1,PRA!Z17,NA()) -> 0.9931753245 | AA14: =IF(AA$1,PRA!AA17,NA()) -> 0 | AB14: =IF(AB$1,PRA!AB17,NA()) ->  | AC14: =IF(AC$1,PRA!AC17,NA()) ->  | AD14: =IF(AD$1,PRA!AD17,NA()) ->  | AE14: =IF(AE$1,PRA!AE17,NA()) ->  | AF14: =IF(AF$1,PRA!AF17,NA()) ->  | AG14: =IF(AG$1,PRA!AG17,NA()) ->  | AH14: =IF(AH$1,PRA!AH17,NA()) ->  | AI14: =IF(AI$1,PRA!AI17,NA()) ->  | AJ14: =IF(AJ$1,PRA!AJ17,NA()) -> 
A15: =IF(B14>Dashboards!$C$72+0.05,NA(),A14+Dashboards!$D$77) -> 5.2 | B15: =IF(A15+Dashboards!$D$76>Dashboards!$C$72+0.05,NA(),A15+Dashboards!$D$76) -> 6.2 | C15: 5.7 | D15: =IF(D$1,PRA!D18,NA()) ->  | E15: =IF(E$1,PRA!E18,NA()) ->  | F15: =IF(F$1,PRA!F18,NA()) ->  | G15: =IF(G$1,PRA!G18,NA()) ->  | H15: =IF(H$1,PRA!H18,NA()) ->  | I15: =IF(I$1,PRA!I18,NA()) ->  | J15: =IF(J$1,PRA!J18,NA()) ->  | K15: =IF(K$1,PRA!K18,NA()) ->  | L15: =IF(L$1,PRA!L18,NA()) ->  | M15: =IF(M$1,PRA!M18,NA()) ->  | N15: =IF(N$1,PRA!N18,NA()) ->  | O15: =IF(O$1,PRA!O18,NA()) ->  | P15: =IF(P$1,PRA!P18,NA()) ->  | Q15: =IF(Q$1,PRA!Q18,NA()) ->  | R15: =IF(R$1,PRA!R18,NA()) ->  | S15: =IF(S$1,PRA!S18,NA()) ->  | T15: =IF(T$1,PRA!T18,NA()) ->  | U15: =IF(U$1,PRA!U18,NA()) ->  | V15: =IF(V$1,PRA!V18,NA()) ->  | W15: =IF(W$1,PRA!W18,NA()) ->  | X15: =IF(X$1,PRA!X18,NA()) ->  | Y15: =IF(Y$1,PRA!Y18,NA()) -> 0.9999986897 | Z15: =IF(Z$1,PRA!Z18,NA()) -> 0.9552426316 | AA15: =IF(AA$1,PRA!AA18,NA()) -> 0 | AB15: =IF(AB$1,PRA!AB18,NA()) ->  | AC15: =IF(AC$1,PRA!AC18,NA()) ->  | AD15: =IF(AD$1,PRA!AD18,NA()) ->  | AE15: =IF(AE$1,PRA!AE18,NA()) ->  | AF15: =IF(AF$1,PRA!AF18,NA()) ->  | AG15: =IF(AG$1,PRA!AG18,NA()) ->  | AH15: =IF(AH$1,PRA!AH18,NA()) ->  | AI15: =IF(AI$1,PRA!AI18,NA()) ->  | AJ15: =IF(AJ$1,PRA!AJ18,NA()) -> 
A16: =IF(B15>Dashboards!$C$72+0.05,NA(),A15+Dashboards!$D$77) -> 5.3 | B16: =IF(A16+Dashboards!$D$76>Dashboards!$C$72+0.05,NA(),A16+Dashboards!$D$76) -> 6.3 | C16: 5.8 | D16: =IF(D$1,PRA!D19,NA()) ->  | E16: =IF(E$1,PRA!E19,NA()) ->  | F16: =IF(F$1,PRA!F19,NA()) ->  | G16: =IF(G$1,PRA!G19,NA()) ->  | H16: =IF(H$1,PRA!H19,NA()) ->  | I16: =IF(I$1,PRA!I19,NA()) ->  | J16: =IF(J$1,PRA!J19,NA()) ->  | K16: =IF(K$1,PRA!K19,NA()) ->  | L16: =IF(L$1,PRA!L19,NA()) ->  | M16: =IF(M$1,PRA!M19,NA()) ->  | N16: =IF(N$1,PRA!N19,NA()) ->  | O16: =IF(O$1,PRA!O19,NA()) ->  | P16: =IF(P$1,PRA!P19,NA()) ->  | Q16: =IF(Q$1,PRA!Q19,NA()) ->  | R16: =IF(R$1,PRA!R19,NA()) ->  | S16: =IF(S$1,PRA!S19,NA()) ->  | T16: =IF(T$1,PRA!T19,NA()) ->  | U16: =IF(U$1,PRA!U19,NA()) ->  | V16: =IF(V$1,PRA!V19,NA()) ->  | W16: =IF(W$1,PRA!W19,NA()) ->  | X16: =IF(X$1,PRA!X19,NA()) ->  | Y16: =IF(Y$1,PRA!Y19,NA()) -> 0.9999994464 | Z16: =IF(Z$1,PRA!Z19,NA()) -> 0 | AA16: =IF(AA$1,PRA!AA19,NA()) -> 0 | AB16: =IF(AB$1,PRA!AB19,NA()) ->  | AC16: =IF(AC$1,PRA!AC19,NA()) ->  | AD16: =IF(AD$1,PRA!AD19,NA()) ->  | AE16: =IF(AE$1,PRA!AE19,NA()) ->  | AF16: =IF(AF$1,PRA!AF19,NA()) ->  | AG16: =IF(AG$1,PRA!AG19,NA()) ->  | AH16: =IF(AH$1,PRA!AH19,NA()) ->  | AI16: =IF(AI$1,PRA!AI19,NA()) ->  | AJ16: =IF(AJ$1,PRA!AJ19,NA()) -> 
